Workbook

Sheet Alirajpur
A1: State Summary for AWP&B - 2017-18 , SSA, Madhya Pradesh (Rs in Lakhs)
A3: District : | B3: Alirajpur
A5: S.No. | B5: Activity | C5: Year 2016-17 | K5: Outlay Proposed for 2017-18 | T5: Outlay Recommended for 2017-18 | AC5: Remarks
C6: Outlay approved by PAB (including spillover) | E6: Expected Achievement till March'2017 | I6: Savings | K6: Spill Over | M6: Deferred laibility of 2016-17 | O6: Fresh | R6: Total | T6: Spill Over | V6: Deferred laibility of 2016-17 | X6: Fresh | AA6: Total
C7: Phy. | D7: Fin | E7: Phy. | F7: Fin. | G7: Phy. (%) | H7: Fin. (%) | I7: Phy. | J7: Fin. | K7: Phy. | L7: Fin. | M7: Phy. | N7: Fin. | O7: Unit Cost | P7: Phy. | Q7: Fin. | R7: Phy. | S7: Fin. | T7: Phy. | U7: Fin. | V7: Phy. | W7: Fin. | X7: Unit Cost | Y7: Phy. | Z7: Fin. | AA7: Phy. | AB7: Fin.
A8: I | B8: ACCESS
B9: SSA
A10: 1 | B10: Opening of New Schools
A11: 1.01 | B11: New Primary School
A12: 1.02 | B12: Upgradation of PS to UPS
A13: 1.03 | B13: Composite Schools
A14: 1.04 | B14: Residential schools for specific category of children
A15: 1.05 | B15: Residential Hostel | P15: 1 | R15: =+P15 -> 1 | AA15: =+Y15 -> 0
A16: 1.06 | B16: Integration of Class V with primary schools
A17: 1.07 | B17: Integration of Class VIII with upper primary schools
A18: 2 | B18: Residential Schools for specific category of children
A19: A | B19: 50 children
B20: Non-recurring (one time grant) | G20: =+E20/C20 ->  | H20: =+F20/D20 ->  | I20: =+C20-E20 -> 0 | J20: =+D20-F20 -> 0
A21: 2.01 | B21: Furniture/ Equipment (including kitchen) | G21: =+E21/C21 ->  | I21: =+C21-E21 -> 0 | J21: 0 | O21: 2 | Q21: =+P21*O21 -> 0 | R21: =+P21+M21+K21 -> 0 | S21: =+Q21+N21+L21 -> 0 | X21: 2 | Z21: =+Y21*X21 -> 0 | AA21: =+Y21+V21+T21 -> 0 | AB21: =+Z21+W21+U21 -> 0
A22: 2.02 | B22: TLM and equipment including library books | I22: 0 | J22: 0 | O22: 3 | Q22: =+P22*O22 -> 0 | R22: =+P22+M22+K22 -> 0 | S22: 0 | X22: 3 | Z22: =+Y22*X22 -> 0 | AA22: =+Y22+V22+T22 -> 0 | AB22: 0
A23: 2.03 | B23: Bedding (new) | I23: 0 | J23: 0 | O23: 0.375 | Q23: 0 | R23: 0 | S23: 0 | X23: 0.375 | Z23: 0 | AA23: 0 | AB23: 0
A24: 2.04 | B24: Replacement of bedding (once in 3 years) | I24: 0 | J24: 0 | Q24: 0 | R24: 0 | S24: 0 | Z24: 0 | AA24: 0 | AB24: 0
B25: Sub Total (Non Recurring) | I25: 0 | J25: 0 | Q25: 0 | R25: 0 | S25: 0 | Z25: 0 | AA25: 0 | AB25: 0
B26: Recurring (50 children) | I26: 0 | J26: 0 | Q26: 0 | R26: 0 | S26: 0 | Z26: 0 | AA26: 0 | AB26: 0
A27: 2.05 | B27: Maintenance per child Per month @ Rs.1500/- | I27: 0 | J27: 0 | O27: 9 | Q27: 0 | R27: 0 | S27: 0 | X27: 9 | Z27: 0 | AA27: 0 | AB27: 0
A28: 2.06 | B28: Stipend per child per month @ Rs.100/- | I28: 0 | J28: 0 | O28: 0.6 | Q28: 0 | R28: 0 | S28: 0 | X28: 0.6 | Z28: 0 | AA28: 0 | AB28: 0
A29: 2.07 | B29: Supplementary TLM, Stationery and other educational material @Rs.1000/- per child per annum | I29: 0 | J29: 0 | O29: 0.5 | Q29: 0 | R29: 0 | S29: 0 | X29: 0.5 | Z29: 0 | AA29: 0 | AB29: 0
A30: 2.08 | B30: Salaries | I30: 0 | J30: 0 | Q30: 0 | R30: 0 | S30: 0 | Z30: 0 | AA30: 0 | AB30: 0
A31: (a) | B31: 1 Warden @ Rs.25000/- per month | I31: 0 | J31: 0 | O31: 3 | Q31: 0 | R31: 0 | S31: 0 | X31: 3 | Z31: 0 | AA31: 0 | AB31: 0
A32: (b) | B32: 4 Fulltime teachers as per RTE Norms @ Rs. 20,000/- per month per teacher | I32: 0 | J32: 0 | O32: 9.6 | Q32: 0 | R32: 0 | S32: 0 | X32: 9.6 | Z32: 0 | AA32: 0 | AB32: 0
A33: (c) | B33: 2 Urdu Teachers (only for Blocks with muslim population above 20% and select urban areas) @ Rs.12,000/- per month per teacher. | I33: 0 | J33: 0 | O33: 2.88 | Q33: 0 | R33: 0 | S33: 0 | X33: 2.88 | Z33: 0 | AA33: 0 | AB33: 0
A34: (d) | B34: 3 Part time teachers @ Rs.5,000/- per month per teacher | I34: 0 | J34: 0 | O34: 1.5 | Q34: 0 | R34: 0 | S34: 0 | X34: 1.5 | Z34: 0 | AA34: 0 | AB34: 0
A35: (e) | B35: 1 Full time Accountant @ Rs. 10,000/- per month | I35: 0 | J35: 0 | O35: 1.2 | Q35: 0 | R35: 0 | S35: 0 | X35: 1.2 | Z35: 0 | AA35: 0 | AB35: 0
A36: (f) | B36: 2 Support staff - (Accountant/Assistant, Peon, Chowkidar) @ Rs. 5,000/- per month per staff | I36: 0 | J36: 0 | O36: 1.2 | Q36: 0 | R36: 0 | S36: 0 | X36: 1.2 | Z36: 0 | AA36: 0 | AB36: 0
A37: (g) | B37: 1 Head Cook @ Rs. 6,000/- per month and upto 2 Asstt. Cooks @ Rs. 4,500/- per month per cook | I37: 0 | J37: 0 | O37: 1.8 | Q37: 0 | R37: 0 | S37: 0 | X37: 1.8 | Z37: 0 | AA37: 0 | AB37: 0
A38: 2.09 | B38: Specific Skill training @ Rs.1000/- per annum per child | I38: 0 | J38: 0 | O38: 0.5 | Q38: 0 | R38: 0 | S38: 0 | X38: 0.5 | Z38: 0 | AA38: 0 | AB38: 0
A39: 2.1 | B39: Electricity / water charges @ Rs. 1000/- per annum per child | I39: 0 | J39: 0 | O39: 0.5 | Q39: 0 | R39: 0 | S39: 0 | X39: 0.5 | Z39: 0 | AA39: 0 | AB39: 0
A40: =+A39+0.01 -> 2.11 | B40: Medical care/contingencies @ Rs.1250/- per annum per child | I40: 0 | J40: 0 | O40: 0.625 | Q40: 0 | R40: 0 | S40: 0 | X40: 0.625 | Z40: 0 | AA40: 0 | AB40: 0
A41: =+A40+0.01 -> 2.12 | B41: Maintenance @ Rs. 750/- per child per annum | I41: 0 | J41: 0 | O41: 0.375 | Q41: 0 | R41: 0 | S41: 0 | X41: 0.375 | Z41: 0 | AA41: 0 | AB41: 0
A42: 2.13 | B42: Miscellaneous @ Rs. 750/- per child per annum | I42: 0 | J42: 0 | O42: 0.375 | Q42: 0 | R42: 0 | S42: 0 | X42: 0.375 | Z42: 0 | AA42: 0 | AB42: 0
A43: 2.14 | B43: Preparatory camps @ Rs. 300/- per child per annum | I43: 0 | J43: 0 | O43: 0.15 | Q43: 0 | R43: 0 | S43: 0 | X43: 0.15 | Z43: 0 | AA43: 0 | AB43: 0
A44: 2.15 | B44: P.T.A / school functions @ Rs. 300/- per child per annum | I44: 0 | J44: 0 | O44: 0.15 | Q44: 0 | R44: 0 | S44: 0 | X44: 0.15 | Z44: 0 | AA44: 0 | AB44: 0
A45: 2.16 | B45: Provision of Rent @ Rs. 10,000/- per child per annum | I45: 0 | J45: 0 | Q45: 0 | R45: 0 | S45: 0 | Z45: 0 | AA45: 0 | AB45: 0
A46: 2.17 | B46: Capacity Building @ Rs. 500/- per child per annum | I46: 0 | J46: 0 | O46: 0.25 | Q46: 0 | R46: 0 | S46: 0 | X46: 0.25 | Z46: 0 | AA46: 0 | AB46: 0
A47: 2.18 | B47: Physical / Self Defence Training @ Rs.200/- per child per annum | I47: 0 | J47: 0 | O47: 0.1 | Q47: 0 | R47: 0 | S47: 0 | X47: 0.1 | Z47: 0 | AA47: 0 | AB47: 0
B48: Sub Total (Recurring) | I48: 0 | J48: 0 | Q48: 0 | R48: 0 | S48: 0 | Z48: 0 | AA48: 0 | AB48: 0
B49: Total (Non Recurring + Recurring) | I49: 0 | J49: 0 | Q49: 0 | R49: 0 | S49: 0 | Z49: 0 | AA49: 0 | AB49: 0
A50: B | B50: 100 children | I50: 0 | J50: 0 | Q50: 0 | R50: 0 | S50: 0 | Z50: 0 | AA50: 0 | AB50: 0
B51: Non-recurring (one time grant) | I51: 0 | J51: 0 | Q51: 0 | R51: 0 | S51: 0 | Z51: 0 | AA51: 0 | AB51: 0
A52: 2.19 | B52: Furniture / Equipment (including kitchen equipment) | I52: 0 | J52: 0 | O52: 3 | Q52: 0 | R52: 0 | S52: 0 | X52: 3 | Z52: 0 | AA52: 0 | AB52: 0
A53: =+A52+0.01 -> 2.2 | B53: TLM and equipment including library books (New) | I53: 0 | J53: 0 | O53: 3.5 | Q53: 0 | R53: 0 | S53: 0 | X53: 3.5 | Z53: 0 | AA53: 0 | AB53: 0
A54: 2.21 | B54: Beds for Boys | I54: 0 | J54: 0 | O54: 0.04 | P54: 0 | Q54: 0 | R54: 0 | S54: 0 | X54: 0.04 | Z54: 0 | AA54: 0 | AB54: 0
A55: 2.22 | B55: Replacement of bedding (once in 3 years) | I55: 0 | J55: 0 | O55: 0.0075 | P55: =P58 -> 0 | Q55: 0 | R55: 0 | S55: 0 | X55: 0.0075 | Y55: =Y58 -> 0 | Z55: 0 | AA55: 0 | AB55: 0
B56: Sub Total Non-recurring | C56: =SUM(C52:C55) -> 0 | D56: =SUM(D52:D55) -> 0 | E56: 0 | F56: 0 | I56: =SUM(I52:I55) -> 0 | J56: 0 | K56: 0 | L56: 0 | M56: 0 | N56: 0 | O56: 6.5475 | P56: 0 | Q56: 0 | R56: 0 | S56: 0 | T56: 0 | U56: 0 | V56: 0 | W56: 0 | X56: 6.5475 | Y56: 0 | Z56: 0 | AA56: 0 | AB56: 0
B57: Recurring | I57: 0 | J57: 0 | Q57: 0 | R57: 0 | S57: 0 | Z57: =+Y57*X57 -> 0 | AA57: =+Y57+V57+T57 -> 0 | AB57: 0
A58: 2.23 | B58: Maintenance per child per month @ Rs. 1500/- | C58: 0 | D58: 0 | E58: =+C58 -> 0 | F58: =+D58*0.98 -> 0 | I58: 0 | J58: 0 | O58: 0.18 | P58: 0 | Q58: 0 | R58: 0 | S58: 0 | X58: 0.18 | Y58: =+P58 -> 0 | Z58: 0 | AA58: 0 | AB58: 0
A59: =+A58+0.01 -> 2.24 | B59: Stipend per child per month @ Rs.100/- | C59: 0 | D59: 0 | E59: =+C59 -> 0 | F59: =+D59*0.98 -> 0 | G59: =+E59/C59 ->  | I59: 0 | J59: 0 | O59: 0.012 | P59: 0 | Q59: 0 | R59: 0 | S59: 0 | X59: 0.012 | Y59: 0 | Z59: 0 | AA59: 0 | AB59: 0
A60: 2.25 | B60: Supplementary TLM, Stationery and other educational material per child @1000/- per annum | C60: 0 | D60: 0 | E60: 0 | F60: =+D60*0.95 -> 0 | I60: 0 | J60: 0 | O60: 0.01 | P60: 0 | Q60: 0 | R60: 0 | S60: 0 | X60: 0.01 | Y60: 0 | Z60: 0 | AA60: 0 | AB60: 0
A61: 2.26 | B61: Salaries | I61: 0 | J61: 0 | Q61: 0 | R61: 0 | S61: 0 | Y61: 0 | Z61: 0 | AA61: 0 | AB61: 0
A62: (a) | B62: 1 Warden @ Rs. 25,000/- per month | C62: 0 | D62: 0 | E62: =+C62 -> 0 | F62: =+D62*0.8 -> 0 | I62: 0 | J62: 0 | O62: 3 | P62: 0 | Q62: 0 | R62: 0 | S62: 0 | X62: 3 | Y62: 0 | Z62: 0 | AA62: 0 | AB62: 0 | AC62: =0.25*1*12 -> 3
A63: (b) | B63: 1 head teacher @ Rs. 25,000/- per month in case the enrollment exceeds 100 | I63: 0 | J63: 0 | O63: 3 | Q63: 0 | R63: 0 | S63: 0 | X63: 3 | Y63: 0 | Z63: 0 | AA63: 0 | AB63: 0
A64: (c) | B64: 4 - 5 Full time teachers as per RTE norms @ Rs. 20,000/- per month per teacher | I64: 0 | J64: 0 | O64: 9.6 | Q64: 0 | R64: 0 | S64: 0 | X64: 9.6 | Y64: 0 | Z64: 0 | AA64: 0 | AB64: 0
A65: (d) | B65: 2 Urdu Teachers (only for blocks with muslim population above 20% and select urban areas), if required @ Rs. 12,000/- per month per teacher | I65: 0 | J65: 0 | O65: 2.88 | Q65: 0 | R65: 0 | S65: 0 | X65: 2.88 | Y65: 0 | Z65: 0 | AA65: 0 | AB65: 0
A66: (e) | B66: 3 part time teachers @ Rs. 5,000/- per month per teacher | C66: 0 | D66: 0 | E66: =+C66 -> 0 | F66: =+D66*0.85 -> 0 | I66: 0 | J66: 0 | O66: 1.8 | P66: 0 | Q66: 0 | R66: 0 | S66: 0 | X66: 1.8 | Y66: 0 | Z66: 0 | AA66: 0 | AB66: 0
A67: (f) | B67: 1 Full time Accountant @ Rs. 10,000/- per month | C67: 0 | D67: 0 | E67: =+C67 -> 0 | F67: =+D67*0.72 -> 0 | I67: 0 | J67: 0 | O67: 1.2 | P67: 0 | Q67: 0 | R67: 0 | S67: 0 | X67: 1.2 | Y67: 0 | Z67: 0 | AA67: 0 | AB67: 0
A68: (g) | B68: 2 Support Staff – (Accountant/ Assistant, Peon, Chowkidar) @ Rs. 5,000/- per month per staff | C68: 0 | D68: 0 | E68: 0 | F68: =+D68*0.96 -> 0 | I68: 0 | J68: 0 | O68: 1.2 | P68: 0 | Q68: 0 | R68: 0 | S68: 0 | X68: 1.2 | Y68: 0 | Z68: 0 | AA68: 0 | AB68: 0
A69: (h) | B69: 1 Head cook @ Rs. 6,000/- per month and upto 2 Asstt. Cooks @ Rs. 4,500/- per month per cook | C69: 0 | D69: 0 | E69: 0 | F69: =+D69*0.96 -> 0 | I69: 0 | J69: 0 | O69: 1.8 | P69: 0 | Q69: 0 | R69: 0 | S69: 0 | X69: 1.8 | Y69: 0 | Z69: 0 | AA69: 0 | AB69: 0
A70: 2.27 | B70: Specific skill training per child @ Rs.1000/- per annum | C70: 0 | D70: 0 | E70: 0 | F70: =+D70*0.9 -> 0 | I70: 0 | J70: 0 | O70: 0.01 | P70: 0 | Q70: 0 | R70: 0 | S70: 0 | X70: 0.01 | Y70: 0 | Z70: 0 | AA70: 0 | AB70: 0
A71: 2.28 | B71: Electricity / water charges per child @Rs.1000/- per annum | C71: 0 | D71: 0 | E71: 0 | F71: =+D71 -> 0 | I71: 0 | J71: 0 | O71: 0.01 | P71: 0 | Q71: 0 | R71: 0 | S71: 0 | X71: 0.01 | Y71: 0 | Z71: 0 | AA71: 0 | AB71: 0
A72: 2.29 | B72: Medical care/contingencies @ Rs.1250/- per child per annum | C72: 0 | D72: 0 | E72: 0 | F72: 0 | I72: 0 | J72: 0 | O72: 0.0125 | P72: 0 | Q72: 0 | R72: 0 | S72: 0 | X72: 0.0125 | Y72: 0 | Z72: 0 | AA72: 0 | AB72: 0
A73: 2.3 | B73: Maintenance @ Rs.750/- per child per annum | C73: 0 | D73: 0 | E73: 0 | F73: 0 | I73: 0 | J73: 0 | O73: 0.0075 | P73: 0 | Q73: 0 | R73: 0 | S73: 0 | X73: 0.0075 | Y73: 0 | Z73: 0 | AA73: 0 | AB73: 0
A74: 2.31 | B74: Miscellaneous @ Rs.750/- per child per annum | C74: 0 | D74: 0 | E74: 0 | F74: 0 | I74: 0 | J74: 0 | O74: 0.0075 | P74: 0 | Q74: 0 | R74: 0 | S74: 0 | X74: 0.0075 | Y74: 0 | Z74: 0 | AA74: 0 | AB74: 0
A75: 2.32 | B75: Preparatory camps @ Rs.200/- per child per annum | C75: 0 | D75: 0 | E75: 0 | F75: =+D75*0.8 -> 0 | I75: 0 | J75: 0 | O75: 0.003 | P75: 0 | Q75: 0 | R75: 0 | S75: 0 | X75: 0.003 | Y75: 0 | Z75: 0 | AA75: 0 | AB75: 0
A76: 2.33 | B76: P.T.A / school functions @ Rs.200/- per child per annum | C76: 0 | D76: 0 | E76: 0 | F76: =+D76*0.8 -> 0 | I76: 0 | J76: 0 | O76: 0.003 | P76: 0 | Q76: 0 | R76: 0 | S76: 0 | X76: 0.003 | Y76: 0 | Z76: 0 | AA76: 0 | AB76: 0
A77: 2.34 | B77: Provision of Rent @ Rs. 6000/- per child per annum | I77: 0 | J77: 0 | O77: 0 | Q77: 0 | R77: 0 | S77: 0 | X77: 0 | Y77: 0 | Z77: 0 | AA77: 0 | AB77: 0
A78: 2.35 | B78: Capacity Building @ Rs.500/- per child per annum | C78: 0 | D78: 0 | E78: =+C78 -> 0 | F78: =+D78*0.61 -> 0 | I78: 0 | J78: 0 | O78: 0.005 | P78: 0 | Q78: 0 | R78: 0 | S78: 0 | X78: 0.005 | Y78: 0 | Z78: 0 | AA78: 0 | AB78: 0
A79: 2.36 | B79: Physical / Self Defence training @ Rs. 200/- per child per annum. | F79: =+D79*0.61 -> 0 | I79: 0 | J79: 0 | O79: 0.002 | P79: 0 | Q79: 0 | R79: 0 | S79: 0 | X79: 0.002 | Y79: 0 | Z79: 0 | AA79: 0 | AB79: 0
B80: Sub Total (Recurring) | C80: =+C58 -> 0 | D80: =SUM(D58:D79) -> 0 | E80: =+E58 -> 0 | F80: 0 | G80: =+E80/C80 ->  | I80: =SUM(I58:I79) -> 0 | J80: 0 | K80: 0 | L80: 0 | M80: 0 | N80: 0 | O80: 24.7425 | P80: =+P58 -> 0 | Q80: =SUM(Q58:Q79) -> 0 | R80: =+R58 -> 0 | S80: 0 | T80: 0 | U80: 0 | V80: 0 | W80: 0 | X80: 24.7425 | Y80: =+Y58 -> 0 | Z80: =SUM(Z58:Z79) -> 0 | AA80: =+AA58 -> 0 | AB80: =SUM(AB58:AB79) -> 0
B81: Total (Recurring + Non Recurring) | C81: =+C80+C56 -> 0 | D81: =+D80+D56 -> 0 | E81: 0 | F81: 0 | I81: =+I80+I56 -> 0 | J81: 0 | K81: 0 | L81: 0 | M81: 0 | N81: 0 | O81: 31.29 | P81: =P80 -> 0 | Q81: =+Q80+Q56 -> 0 | R81: =R80 -> 0 | S81: 0 | T81: 0 | U81: 0 | V81: 0 | W81: 0 | X81: 31.29 | Y81: =Y80 -> 0 | Z81: =+Z80+Z56 -> 0 | AA81: =AA80 -> 0 | AB81: =+AB80+AB56 -> 0
B82: Total (A + B) Residential Boys School | C82: =+C81+C49 -> 0 | D82: =+D81+D49 -> 0 | E82: 0 | F82: 0 | I82: =+I81+I49 -> 0 | J82: 0 | K82: 0 | L82: 0 | M82: 0 | N82: 0 | O82: 31.29 | P82: 0 | Q82: 0 | R82: 0 | S82: =+S81+S49 -> 0 | T82: =+T81+T49 -> 0 | U82: 0 | V82: 0 | W82: 0 | X82: 31.29 | Y82: 0 | Z82: 0 | AA82: 0 | AB82: =+AB81+AB49 -> 0
A83: 3 | B83: Residential Hostel for specific category of children
A84: (A) | B84: 50 children | I84: 0 | J84: 0 | Q84: 0 | R84: 0 | S84: 0 | Z84: =+Y84*X84 -> 0 | AA84: =+Y84+V84+T84 -> 0 | AB84: 0
B85: Non-recurring (one time grant) | G85: =+E85/C85 ->  | I85: =+C85-E85 -> 0 | J85: 0 | Q85: 0 | R85: 0 | S85: 0 | Z85: 0 | AA85: 0 | AB85: 0
A86: 3.01 | B86: Furniture/ Equipment (including kitchen) | I86: 0 | J86: 0 | O86: 2 | Q86: =+P86*O86 -> 0 | R86: =+P86+M86+K86 -> 0 | S86: 0 | X86: 2 | Z86: 0 | AA86: 0 | AB86: 0
A87: =+A86+0.01 -> 3.02 | B87: TLM and equipment including library books | I87: 0 | J87: 0 | O87: 3 | Q87: 0 | R87: 0 | S87: 0 | X87: 3 | Z87: 0 | AA87: 0 | AB87: 0
A88: 3.03 | B88: Bedding (new) | I88: 0 | J88: 0 | O88: 0.375 | Q88: 0 | R88: 0 | S88: 0 | X88: 0.375 | Z88: 0 | AA88: 0 | AB88: 0
A89: 3.04 | B89: Replacement of bedding (once in 3 years) | I89: 0 | J89: 0 | Q89: 0 | R89: 0 | S89: 0 | Z89: 0 | AA89: 0 | AB89: 0
B90: Sub Total (Non Recurring) | C90: =SUM(C86:C89) -> 0 | D90: =SUM(D86:D89) -> 0 | E90: 0 | F90: 0 | I90: =SUM(I86:I89) -> 0 | J90: 0 | K90: 0 | L90: 0 | M90: 0 | N90: 0 | O90: 5.375 | P90: 0 | Q90: 0 | R90: 0 | S90: 0 | T90: 0 | U90: 0 | V90: 0 | W90: 0 | X90: 5.375 | Y90: 0 | Z90: 0 | AA90: 0 | AB90: 0
B91: Recurring (50 children) | I91: 0 | J91: 0 | Q91: 0 | R91: 0 | S91: 0 | Z91: =+Y91*X91 -> 0 | AA91: =+Y91+V91+T91 -> 0 | AB91: 0
A92: 3.05 | B92: Maintenance per child Per month @ Rs.1500/- | I92: 0 | J92: 0 | O92: 9 | Q92: 0 | R92: 0 | S92: 0 | X92: 9 | Z92: 0 | AA92: 0 | AB92: 0
A93: =+A92+0.01 -> 3.06 | B93: Stipend per child per month @ Rs.100/- | I93: 0 | J93: 0 | O93: 0.6 | Q93: 0 | R93: 0 | S93: 0 | X93: 0.6 | Z93: 0 | AA93: 0 | AB93: 0
A94: 3.07 | B94: Supplementary TLM, Stationery and other educational material @Rs.1000/- per child per annum | I94: 0 | J94: 0 | O94: 0.5 | Q94: 0 | R94: 0 | S94: 0 | X94: 0.5 | Z94: 0 | AA94: 0 | AB94: 0
B95: Salaries | I95: 0 | J95: 0 | Q95: 0 | R95: 0 | S95: 0 | Z95: 0 | AA95: 0 | AB95: 0
A96: (a) | B96: 1 Warden @ Rs.25000/- per month | I96: 0 | J96: 0 | O96: 3 | Q96: 0 | R96: 0 | S96: 0 | X96: 3 | Z96: 0 | AA96: 0 | AB96: 0
A97: (b) | B97: 4 Fulltime teachers as per RTE Norms @ Rs. 20,000/- per month per teacher | I97: 0 | J97: 0 | O97: 9.6 | Q97: 0 | R97: 0 | S97: 0 | X97: 9.6 | Z97: 0 | AA97: 0 | AB97: 0
A98: (c) | B98: 2 Urdu Teachers (only for Blocks with muslim population above 20% and select urban areas) @ Rs.12,000/- per month per teacher. | I98: 0 | J98: 0 | O98: 2.88 | Q98: 0 | R98: 0 | S98: 0 | X98: 2.88 | Z98: 0 | AA98: 0 | AB98: 0
A99: (d) | B99: 3 Part time teachers @ Rs.5,000/- per month per teacher | I99: 0 | J99: 0 | O99: 1.5 | Q99: 0 | R99: 0 | S99: 0 | X99: 1.5 | Z99: 0 | AA99: 0 | AB99: 0
A100: (e) | B100: 1 Full time Accountant @ Rs. 10,000/- per month | I100: 0 | J100: 0 | O100: 1.2 | Q100: 0 | R100: 0 | S100: 0 | X100: 1.2 | Z100: 0 | AA100: 0 | AB100: 0
A101: (f) | B101: 2 Support staff - (Accountant/Assistant, Peon, Chowkidar) @ Rs. 5,000/- per month per staff | I101: 0 | J101: 0 | O101: 1.2 | Q101: 0 | R101: 0 | S101: 0 | X101: 1.2 | Z101: 0 | AA101: 0 | AB101: 0
A102: (g) | B102: 1 Head Cook @ Rs. 6,000/- per month and upto 2 Asstt. Cooks @ Rs. 4,500/- per month per cook | I102: 0 | J102: 0 | O102: 1.8 | Q102: 0 | R102: 0 | S102: 0 | X102: 1.8 | Z102: 0 | AA102: 0 | AB102: 0
A103: 3.08 | B103: Specific Skill training @ Rs.1000/- per annum per child | I103: 0 | J103: 0 | O103: 0.5 | Q103: 0 | R103: 0 | S103: 0 | X103: 0.5 | Z103: 0 | AA103: 0 | AB103: 0
A104: =+A103+0.01 -> 3.09 | B104: Electricity / water charges @ Rs. 1000/- per annum per child | I104: 0 | J104: 0 | O104: 0.5 | Q104: 0 | R104: 0 | S104: 0 | X104: 0.5 | Z104: 0 | AA104: 0 | AB104: 0
A105: 3.1 | B105: Medical care/contingencies @ Rs.1250/- per annum per child | I105: 0 | J105: 0 | O105: 0.625 | Q105: 0 | R105: 0 | S105: 0 | X105: 0.625 | Z105: 0 | AA105: 0 | AB105: 0
A106: 3.11 | B106: Maintenance @ Rs. 750/- per child per annum | I106: 0 | J106: 0 | O106: 0.375 | Q106: 0 | R106: 0 | S106: 0 | X106: 0.375 | Z106: 0 | AA106: 0 | AB106: 0
A107: 3.12 | B107: Miscellaneous @ Rs. 750/- per child per annum | I107: 0 | J107: 0 | O107: 0.375 | Q107: 0 | R107: 0 | S107: 0 | X107: 0.375 | Z107: 0 | AA107: 0 | AB107: 0
A108: 3.13 | B108: Preparatory camps @ Rs. 300/- per child per annum | I108: 0 | J108: 0 | O108: 0.15 | Q108: 0 | R108: 0 | S108: 0 | X108: 0.15 | Z108: 0 | AA108: 0 | AB108: 0
A109: 3.14 | B109: P.T.A / school functions @ Rs. 300/- per child per annum | I109: 0 | J109: 0 | O109: 0.15 | Q109: 0 | R109: 0 | S109: 0 | X109: 0.15 | Z109: 0 | AA109: 0 | AB109: 0
A110: 3.15 | B110: Provision of Rent @ Rs. 10,000/- per child per annum | I110: 0 | J110: 0 | Q110: 0 | R110: 0 | S110: 0 | Z110: 0 | AA110: 0 | AB110: 0
A111: 3.16 | B111: Capacity Building @ Rs. 500/- per child per annum | I111: 0 | J111: 0 | O111: 0.25 | Q111: 0 | R111: 0 | S111: 0 | X111: 0.25 | Z111: 0 | AA111: 0 | AB111: 0
A112: 3.17 | B112: Physical / Self Defence Training @ Rs.200/- per child per annum | I112: 0 | J112: 0 | O112: 0.1 | Q112: 0 | R112: 0 | S112: 0 | X112: 0.1 | Z112: 0 | AA112: 0 | AB112: 0
B113: Sub Total (Recurring) | C113: =SUM(C92:C112) -> 0 | D113: =SUM(D92:D112) -> 0 | E113: 0 | F113: 0 | I113: =SUM(I92:I112) -> 0 | J113: 0 | K113: 0 | L113: 0 | M113: 0 | N113: 0 | O113: 34.305 | P113: 0 | Q113: 0 | R113: 0 | S113: 0 | T113: 0 | U113: 0 | V113: 0 | W113: 0 | X113: 34.305 | Y113: 0 | Z113: 0 | AA113: 0 | AB113: 0
B114: Total (Non Recurring + Recurring) | C114: =+C113+C90 -> 0 | D114: =+D113+D90 -> 0 | E114: 0 | F114: 0 | I114: =+I113+I90 -> 0 | J114: 0 | K114: 0 | L114: 0 | M114: 0 | N114: 0 | O114: 39.68 | P114: 0 | Q114: 0 | R114: 0 | S114: 0 | T114: 0 | U114: 0 | V114: 0 | W114: 0 | X114: 39.68 | Y114: 0 | Z114: 0 | AA114: 0 | AB114: 0
A115: (B) | B115: 100 Children | I115: 0 | J115: 0 | Q115: 0 | R115: 0 | S115: 0 | Z115: =+Y115*X115 -> 0 | AA115: =+Y115+V115+T115 -> 0 | AB115: 0
B116: Non-recurring (one time grant) | I116: 0 | J116: 0 | Q116: 0 | R116: 0 | S116: 0 | Z116: 0 | AA116: 0 | AB116: 0
A117: 3.18 | B117: Furniture / Equipment (including kitchen equipment) | I117: 0 | J117: 0 | O117: 3 | Q117: 0 | R117: 0 | S117: 0 | X117: 3 | Z117: 0 | AA117: 0 | AB117: 0
A118: =+A117+0.01 -> 3.19 | B118: TLM and equipment including library books (New) | I118: 0 | J118: 0 | O118: 3.5 | Q118: 0 | R118: 0 | S118: 0 | X118: 3.5 | Z118: 0 | AA118: 0 | AB118: 0
A119: 3.2 | B119: Beds for Boys | I119: 0 | J119: 0 | O119: 0.04 | P119: 100 | Q119: 4 | R119: 100 | S119: 4 | X119: 0.04 | Z119: 0 | AA119: 0 | AB119: 0
A120: 3.21 | B120: Replacement of bedding (once in 3 years) | I120: 0 | J120: 0 | O120: 0.0075 | P120: =P123 -> 100 | Q120: 0.75 | R120: 100 | S120: 0.75 | X120: 0.0075 | Y120: =P120 -> 100 | Z120: 0.75 | AA120: 100 | AB120: 0.75
B121: Sub Total Non-recurring | C121: =SUM(C117:C120) -> 0 | D121: =SUM(D117:D120) -> 0 | E121: 0 | F121: 0 | I121: =SUM(I117:I120) -> 0 | J121: 0 | K121: 0 | L121: 0 | M121: 0 | N121: 0 | O121: 6.5475 | P121: 200 | Q121: 4.75 | R121: 200 | S121: 4.75 | T121: 0 | U121: 0 | V121: 0 | W121: 0 | X121: 6.5475 | Y121: 100 | Z121: 0.75 | AA121: 100 | AB121: 0.75
B122: Recurring | I122: 0 | J122: 0 | Q122: 0 | R122: 0 | S122: 0 | Z122: =+Y122*X122 -> 0 | AA122: =+Y122+V122+T122 -> 0 | AB122: 0
A123: 3.22 | B123: Maintenance per child per month @ Rs. 1500/- | C123: 0 | D123: 0 | E123: =+C123 -> 0 | F123: =+D123*0.98 -> 0 | I123: 0 | J123: 0 | O123: 0.18 | P123: 100 | Q123: 18 | R123: 100 | S123: 18 | X123: 0.18 | Y123: =P123 -> 100 | Z123: 18 | AA123: 100 | AB123: 18 | AF123: 250
A124: =+A123+0.01 -> 3.23 | B124: Stipend per child per month @ Rs.100/- | C124: 0 | D124: 0 | E124: =+C124 -> 0 | F124: =+D124*0.98 -> 0 | I124: 0 | J124: 0 | O124: 0.012 | P124: 100 | Q124: 1.2 | R124: 100 | S124: 1.2 | X124: 0.012 | Y124: =P124 -> 100 | Z124: 1.2 | AA124: 100 | AB124: 1.2
A125: 3.24 | B125: Supplementary TLM, Stationery and other educational material per child @1000/- per annum | C125: 0 | D125: 0 | E125: 0 | F125: =+D125*0.95 -> 0 | I125: 0 | J125: 0 | O125: 0.01 | P125: 100 | Q125: 1 | R125: 100 | S125: 1 | X125: 0.01 | Y125: 100 | Z125: 1 | AA125: 100 | AB125: 1
B126: Salaries | I126: 0 | J126: 0 | Q126: 0 | R126: 0 | S126: 0 | Y126: 0 | Z126: 0 | AA126: 0 | AB126: 0
A127: (a) | B127: 1 Warden @ Rs. 25,000/- per month | C127: 0 | D127: 0 | E127: =+C127 -> 0 | F127: =+D127*0.8 -> 0 | I127: 0 | J127: 0 | O127: 3 | P127: 1 | Q127: 3 | R127: 1 | S127: 3 | X127: 3 | Y127: 1 | Z127: 3 | AA127: 1 | AB127: 3
A128: (b) | B128: 1 head teacher @ Rs. 25,000/- per month in case the enrollment exceeds 100 | I128: 0 | J128: 0 | O128: 3 | Q128: 0 | R128: 0 | S128: 0 | X128: 3 | Y128: 0 | Z128: 0 | AA128: 0 | AB128: 0
A129: (c) | B129: 4 - 5 Full time teachers as per RTE norms @ Rs. 20,000/- per month per teacher | I129: 0 | J129: 0 | O129: 9.6 | Q129: 0 | R129: 0 | S129: 0 | X129: 9.6 | Y129: 0 | Z129: 0 | AA129: 0 | AB129: 0
A130: (d) | B130: 2 Urdu Teachers (only for blocks with muslim population above 20% and select urban areas), if required @ Rs. 12,000/- per month per teacher | I130: 0 | J130: 0 | O130: 2.88 | Q130: 0 | R130: 0 | S130: 0 | X130: 2.88 | Y130: 0 | Z130: 0 | AA130: 0 | AB130: 0
A131: (e) | B131: 3 part time teachers @ Rs. 5,000/- per month per teacher | C131: 0 | D131: 0 | E131: =+C131 -> 0 | F131: =+D131*0.85 -> 0 | I131: 0 | J131: 0 | O131: 1.8 | P131: 1 | Q131: 1.8 | R131: 1 | S131: 1.8 | X131: 1.8 | Y131: 1 | Z131: 1.8 | AA131: 1 | AB131: 1.8
A132: (f) | B132: 1 Full time Accountant @ Rs. 10,000/- per month | C132: 0 | D132: 0 | E132: =+C132 -> 0 | F132: =+D132*0.72 -> 0 | I132: 0 | J132: 0 | O132: 1.2 | P132: 1 | Q132: 1.2 | R132: 1 | S132: 1.2 | X132: 1.2 | Y132: 1 | Z132: 1.2 | AA132: 1 | AB132: 1.2
A133: 3.25 | B133: 2 Support Staff – (Accountant/ Assistant, Peon, Chowkidar) @ Rs. 5,000/- per month per staff | C133: 0 | D133: 0 | E133: 0 | F133: =+D133*0.96 -> 0 | I133: 0 | J133: 0 | O133: 1.2 | P133: 1 | Q133: 1.2 | R133: 1 | S133: 1.2 | X133: 1.2 | Y133: 1 | Z133: 1.2 | AA133: 1 | AB133: 1.2
A134: =+A133+0.01 -> 3.26 | B134: 1 Head cook @ Rs. 6,000/- per month and upto 2 Asstt. Cooks @ Rs. 4,500/- per month per cook | C134: 0 | D134: 0 | E134: 0 | F134: =+D134*0.96 -> 0 | I134: 0 | J134: 0 | O134: 1.8 | P134: 1 | Q134: 1.8 | R134: 1 | S134: 1.8 | X134: 1.8 | Y134: 1 | Z134: 1.8 | AA134: 1 | AB134: 1.8
A135: 3.27 | B135: Specific skill training per child @ Rs.1000/- per annum | C135: 0 | D135: 0 | E135: 0 | F135: =+D135*0.9 -> 0 | I135: 0 | J135: 0 | O135: 0.01 | P135: 100 | Q135: 1 | R135: 100 | S135: 1 | X135: 0.01 | Y135: 100 | Z135: 1 | AA135: 100 | AB135: 1
A136: 3.28 | B136: Electricity / water charges per child @Rs.1000/- per annum | C136: 0 | D136: 0 | E136: 0 | F136: =+D136 -> 0 | I136: 0 | J136: 0 | O136: 0.01 | P136: 100 | Q136: 1 | R136: 100 | S136: 1 | X136: 0.01 | Y136: 100 | Z136: 1 | AA136: 100 | AB136: 1
A137: 3.29 | B137: Medical care/contingencies @ Rs.1250/- per child per annum | C137: 0 | D137: 0 | E137: 0 | F137: 0 | I137: 0 | J137: 0 | O137: 0.0125 | P137: 100 | Q137: 1.25 | R137: 100 | S137: 1.25 | X137: 0.0125 | Y137: 100 | Z137: 1.25 | AA137: 100 | AB137: 1.25
A138: 3.3 | B138: Maintenance @ Rs.750/- per child per annum | C138: 0 | D138: 0 | E138: 0 | F138: 0 | I138: 0 | J138: 0 | O138: 0.0075 | P138: 100 | Q138: 0.75 | R138: 100 | S138: 0.75 | X138: 0.0075 | Y138: 100 | Z138: 0.75 | AA138: 100 | AB138: 0.75
A139: 3.31 | B139: Miscellaneous @ Rs.750/- per child per annum | C139: 0 | D139: 0 | E139: 0 | F139: 0 | I139: 0 | J139: 0 | O139: 0.0075 | P139: 100 | Q139: 0.75 | R139: 100 | S139: 0.75 | X139: 0.0075 | Y139: 100 | Z139: 0.75 | AA139: 100 | AB139: 0.75
A140: 3.32 | B140: Preparatory camps @ Rs.200/- per child per annum | C140: 0 | D140: 0 | E140: 0 | F140: =+D140*0.8 -> 0 | I140: 0 | J140: 0 | O140: 0.003 | P140: 100 | Q140: 0.3 | R140: 100 | S140: 0.3 | X140: 0.003 | Y140: 100 | Z140: 0.3 | AA140: 100 | AB140: 0.3
A141: 3.33 | B141: P.T.A / school functions @ Rs.200/- per child per annum | C141: 0 | D141: 0 | E141: 0 | F141: =+D141*0.8 -> 0 | I141: 0 | J141: 0 | O141: 0.003 | P141: 100 | Q141: 0.3 | R141: 100 | S141: 0.3 | X141: 0.003 | Y141: 100 | Z141: 0.3 | AA141: 100 | AB141: 0.3
A142: 3.34 | B142: Provision of Rent @ Rs. 6000/- per child per annum | I142: 0 | J142: 0 | O142: 0 | Q142: 0 | R142: 0 | S142: 0 | X142: 0 | Y142: 0 | Z142: 0 | AA142: 0 | AB142: 0
A143: 3.35 | B143: Capacity Building @ Rs.500/- per child per annum | C143: 0 | D143: 0 | E143: =+C143 -> 0 | F143: =+D143*0.61 -> 0 | I143: 0 | J143: 0 | O143: 0.005 | P143: 100 | Q143: 0.5 | R143: 100 | S143: 0.5 | X143: 0.005 | Y143: 100 | Z143: 0.5 | AA143: 100 | AB143: 0.5
A144: 3.36 | B144: Physical / Self Defence training @ Rs. 200/- per child per annum. | F144: =+D144*0.61 -> 0 | I144: 0 | J144: 0 | O144: 0.002 | P144: 100 | Q144: 0.2 | R144: 100 | S144: 0.2 | X144: 0.002 | Y144: 100 | Z144: 0.2 | AA144: 100 | AB144: 0.2
B145: Sub Total (Recurring) | C145: =+C123 -> 0 | D145: =SUM(D123:D144) -> 0 | E145: =+E123 -> 0 | F145: 0 | I145: =SUM(I123:I144) -> 0 | J145: 0 | K145: 0 | L145: 0 | M145: 0 | N145: 0 | O145: 24.7425 | P145: =+P123 -> 100 | Q145: 35.25 | R145: =+R123 -> 100 | S145: 35.25 | T145: 0 | U145: 0 | V145: 0 | W145: 0 | X145: 24.7425 | Y145: =+Y123 -> 100 | Z145: =SUM(Z123:Z144) -> 35.25 | AA145: =+AA123 -> 100 | AB145: =SUM(AB123:AB144) -> 35.25
B146: Total (Recurring + Non Recurring) | C146: =+C145+C121 -> 0 | D146: =+D145+D121 -> 0 | E146: 0 | F146: 0 | I146: =+I145+I121 -> 0 | J146: 0 | K146: 0 | L146: 0 | M146: 0 | N146: 0 | O146: 31.29 | P146: =P145 -> 100 | Q146: 40 | R146: =R145 -> 100 | S146: 40 | T146: 0 | U146: 0 | V146: 0 | W146: 0 | X146: 31.29 | Y146: =Y145 -> 100 | Z146: =+Z145+Z121 -> 36 | AA146: =AA145 -> 100 | AB146: =+AB145+AB121 -> 36
B147: Total (A + B) Residential Boys Hostels | C147: =+C146+C82 -> 0 | D147: =+D146+D82 -> 0 | E147: =+E146+E82 -> 0 | F147: =+F146+F82 -> 0 | I147: =+I146+I82 -> 0 | J147: =+J146+J82 -> 0 | K147: 0 | L147: =+L146+L114 -> 0 | M147: 0 | N147: 0 | O147: 70.97 | P147: 100 | Q147: =+Q146+Q82 -> 40 | R147: 100 | S147: =+S146+S82 -> 40 | T147: =+T146+T82 -> 0 | U147: =+U146+U114 -> 0 | V147: =+V146+V82 -> 0 | W147: =+W146+W114 -> 0 | X147: 70.97 | Y147: 100 | Z147: =+Z146+Z82 -> 36 | AA147: =+AA146+AA114 -> 100 | AB147: =+AB146+AB82 -> 36
A148: 4 | B148: Girls Hostel | I148: 0 | J148: 0 | Q148: 0 | R148: 0 | S148: 0 | Z148: =+Y148*X148 -> 0 | AA148: =+Y148+V148+T148 -> 0 | AB148: 0
A149: (A) | B149: 50 children Girls Hostels | C149: 5 | E149: =+C149 -> 5 | G149: =+E149/C149 -> 1 | I149: =+C149-E149 -> 0 | J149: 0 | P149: 0 | Q149: 0 | R149: 5 | S149: 0 | Z149: 0 | AA149: =+C149 -> 5 | AB149: 0 | AC149: Not recommended
B150: Non-recurring (one time grant) | I150: 0 | J150: 0 | Q150: =+P150*O150 -> 0 | R150: =+P150+M150+K150 -> 0 | S150: 0 | Z150: 0 | AA150: =+Y150+V150+T150 -> 0 | AB150: 0
A151: 4.01 | B151: Furniture/ Equipment (including kitchen) | I151: 0 | J151: 0 | O151: 2 | Q151: 0 | R151: 0 | S151: 0 | X151: 2 | Z151: 0 | AA151: 0 | AB151: 0
A152: =+A151+0.01 -> 4.02 | B152: TLM and equipment including library books | I152: 0 | J152: 0 | O152: 3 | Q152: 0 | R152: 0 | S152: 0 | X152: 3 | Z152: 0 | AA152: 0 | AB152: 0
A153: 4.03 | B153: Beds for Girls | I153: 0 | J153: 0 | O153: 0.04 | P153: 250 | Q153: 10 | R153: 250 | S153: 10 | X153: 0.04 | Z153: 0 | AA153: 0 | AB153: 0
A154: 4.04 | B154: Replacement of bedding (once in 3 years) | I154: 0 | J154: 0 | O154: 0.0075 | P154: =P157 -> 250 | Q154: 1.875 | R154: 250 | S154: 1.875 | X154: 0.0075 | Y154: =Y157 -> 250 | Z154: 1.875 | AA154: 250 | AB154: 1.875
B155: Sub Total (Non Recurring) | C155: =SUM(C151:C154) -> 0 | D155: =SUM(D151:D154) -> 0 | E155: 0 | F155: 0 | I155: =SUM(I151:I154) -> 0 | J155: 0 | K155: 0 | L155: 0 | M155: 0 | N155: 0 | O155: 5.0475 | P155: 500 | Q155: 11.875 | R155: 500 | S155: 11.875 | T155: 0 | U155: 0 | V155: 0 | W155: 0 | X155: 5.0475 | Y155: 250 | Z155: 1.875 | AA155: 250 | AB155: 1.875
B156: Recurring (50 children) | I156: 0 | J156: 0 | Q156: 0 | R156: 0 | S156: 0 | Z156: =+Y156*X156 -> 0 | AA156: =+Y156+V156+T156 -> 0 | AB156: 0
A157: 4.05 | B157: Maintenance per child Per month @ Rs.1500/- | C157: 250 | D157: 45 | E157: =+C157 -> 250 | F157: =+D157*0.98 -> 44.1 | G157: 1 | H157: 0.98 | I157: 0 | J157: 0.9 | O157: 0.18 | P157: 250 | Q157: 45 | R157: 250 | S157: 45 | X157: 0.18 | Y157: =C157 -> 250 | Z157: 45 | AA157: 250 | AB157: 45
A158: =+A157+0.01 -> 4.06 | B158: Stipend per child per month @ Rs.100/- | C158: 250 | D158: 3 | E158: =+C158 -> 250 | F158: =+D158*0.98 -> 2.94 | G158: 1 | H158: 0.98 | I158: 0 | J158: 0.06 | O158: 0.012 | P158: 250 | Q158: 3 | R158: 250 | S158: 3 | X158: 0.012 | Y158: =C158 -> 250 | Z158: 3 | AA158: 250 | AB158: 3
A159: 4.07 | B159: Supplementary TLM, Stationery and other educational material @Rs.1000/- per child per annum | C159: 250 | D159: 2.5 | E159: 250 | F159: =+D159*0.95 -> 2.375 | G159: 1 | H159: 0.95 | I159: 0 | J159: 0.125 | O159: 0.01 | P159: 250 | Q159: 2.5 | R159: 250 | S159: 2.5 | X159: 0.01 | Y159: 250 | Z159: 2.5 | AA159: 250 | AB159: 2.5
B160: Salaries | C160: 0 | D160: 0 | I160: 0 | J160: 0 | P160: 0 | Q160: 0 | R160: 0 | S160: 0 | Y160: 0 | Z160: 0 | AA160: 0 | AB160: 0
A161: (a) | B161: 1 Warden @ Rs.25000/- per month | C161: 5 | D161: 12 | E161: =+C161 -> 5 | F161: =+D161*0.77 -> 9.24 | G161: 1 | H161: 0.77 | I161: 0 | J161: 2.76 | O161: 3 | P161: 5 | Q161: 15 | R161: 5 | S161: 15 | X161: 3 | Y161: 5 | Z161: 15 | AA161: 5 | AB161: 15
A162: (b) | B162: 4 Fulltime teachers as per RTE Norms @ Rs. 20,000/- per month per teacher | I162: 0 | J162: 0 | O162: 3 | Q162: 0 | R162: 0 | S162: 0 | X162: 3 | Y162: 0 | Z162: 0 | AA162: 0 | AB162: 0
A163: (c) | B163: 2 Urdu Teachers (only for Blocks with muslim population above 20% and select urban areas) @ Rs.12,000/- per month per teacher. | I163: 0 | J163: 0 | O163: 9.6 | Q163: 0 | R163: 0 | S163: 0 | X163: 9.6 | Y163: 0 | Z163: 0 | AA163: 0 | AB163: 0
A164: (d) | B164: 3 Part time teachers @ Rs.5,000/- per month per teacher | C164: 5 | D164: 7.5 | E164: =+C164 -> 5 | F164: =+D164*0.85 -> 6.375 | G164: 1 | H164: 0.85 | I164: 0 | J164: 1.125 | O164: 1.8 | P164: 5 | Q164: 9 | R164: 5 | S164: 9 | X164: 1.8 | Y164: 5 | Z164: 9 | AA164: 5 | AB164: 9
A165: (e) | B165: 1 Full time Accountant @ Rs. 10,000/- per month | C165: 5 | D165: 6 | E165: =+C165 -> 5 | F165: =+D165*0.72 -> 4.32 | G165: 1 | H165: 0.72 | I165: 0 | J165: 1.68 | O165: 1.2 | P165: 5 | Q165: 6 | R165: 5 | S165: 6 | X165: 1.2 | Y165: 5 | Z165: 6 | AA165: 5 | AB165: 6
A166: (f) | B166: 2 Support staff - (Accountant/Assistant, Peon, Chowkidar) @ Rs. 5,000/- per month per staff | C166: 5 | D166: 6 | E166: 5 | F166: =+D166*0.96 -> 5.76 | G166: 1 | H166: 0.96 | I166: 0 | J166: 0.24 | O166: 1.2 | P166: 5 | Q166: 6 | R166: 5 | S166: 6 | X166: 1.2 | Y166: 5 | Z166: 6 | AA166: 5 | AB166: 6
A167: (g) | B167: 1 Head Cook @ Rs. 6,000/- per month and upto 2 Asstt. Cooks @ Rs. 4,500/- per month per cook | C167: 5 | D167: 6.3 | E167: 5 | F167: =+D167*0.96 -> 6.048 | G167: 1 | H167: 0.96 | I167: 0 | J167: 0.252 | O167: 1.8 | P167: 5 | Q167: 9 | R167: 5 | S167: 9 | X167: 1.8 | Y167: 5 | Z167: 9 | AA167: 5 | AB167: 9
A168: 4.08 | B168: Specific Skill training @ Rs.1000/- per annum per child | C168: 250 | D168: 2.5 | E168: 250 | F168: =+D168*0.9 -> 2.25 | G168: 1 | H168: 0.9 | I168: 0 | J168: 0.25 | O168: 0.01 | P168: 250 | Q168: 2.5 | R168: 250 | S168: 2.5 | X168: 0.01 | Y168: 250 | Z168: 2.5 | AA168: 250 | AB168: 2.5
A169: =+A168+0.01 -> 4.09 | B169: Electricity / water charges @ Rs. 1000/- per annum per child | C169: 250 | D169: 2.5 | E169: 250 | F169: =+D169 -> 2.5 | G169: 1 | H169: 1 | I169: 0 | J169: 0 | O169: 0.01 | P169: 250 | Q169: 2.5 | R169: 250 | S169: 2.5 | X169: 0.01 | Y169: 250 | Z169: 2.5 | AA169: 250 | AB169: 2.5
A170: 4.1 | B170: Medical care/contingencies @ Rs.1250/- per annum per child | C170: 250 | D170: 3.125 | E170: 250 | F170: 3.125 | G170: 1 | H170: 1 | I170: 0 | J170: 0 | O170: 0.0125 | P170: 250 | Q170: 3.125 | R170: 250 | S170: 3.125 | X170: 0.0125 | Y170: 250 | Z170: 3.125 | AA170: 250 | AB170: 3.125
A171: 4.11 | B171: Maintenance @ Rs. 750/- per child per annum | C171: 250 | D171: 1.875 | E171: 250 | F171: 1.875 | G171: 1 | H171: 1 | I171: 0 | J171: 0 | O171: 0.0075 | P171: 250 | Q171: 1.875 | R171: 250 | S171: 1.875 | X171: 0.0075 | Y171: 250 | Z171: 1.875 | AA171: 250 | AB171: 1.875
A172: 4.12 | B172: Miscellaneous @ Rs. 750/- per child per annum | C172: 250 | D172: 1.875 | E172: 250 | F172: 1.875 | G172: 1 | H172: 1 | I172: 0 | J172: 0 | O172: 0.0075 | P172: 250 | Q172: 1.875 | R172: 250 | S172: 1.875 | X172: 0.0075 | Y172: 250 | Z172: 1.875 | AA172: 250 | AB172: 1.875
A173: 4.13 | B173: Preparatory camps @ Rs. 300/- per child per annum | C173: 250 | D173: 0.75 | E173: 250 | F173: =+D173*0.8 -> 0.6 | G173: 1 | H173: 0.8 | I173: 0 | J173: 0.15 | O173: 0.003 | P173: 250 | Q173: 0.75 | R173: 250 | S173: 0.75 | X173: 0.003 | Y173: 250 | Z173: 0.75 | AA173: 250 | AB173: 0.75
A174: 4.14 | B174: P.T.A / school functions @ Rs. 300/- per child per annum | C174: 250 | D174: 0.75 | E174: 250 | F174: =+D174*0.8 -> 0.6 | G174: 1 | H174: 0.8 | I174: 0 | J174: 0.15 | O174: 0.003 | P174: 250 | Q174: 0.75 | R174: 250 | S174: 0.75 | X174: 0.003 | Y174: 250 | Z174: 0.75 | AA174: 250 | AB174: 0.75
A175: 4.15 | B175: Provision of Rent @ Rs. 10,000/- per child per annum | I175: 0 | J175: 0 | O175: 0 | Q175: 0 | R175: 0 | S175: 0 | X175: 0 | Y175: 0 | Z175: 0 | AA175: 0 | AB175: 0
A176: 4.16 | B176: Capacity Building @ Rs. 500/- per child per annum | C176: 250 | D176: 1.25 | E176: =+C176 -> 250 | F176: =+D176*0.61 -> 0.7625 | G176: 1 | H176: 0.61 | I176: 0 | J176: 0.4875 | O176: 0.005 | P176: 250 | Q176: 1.25 | R176: 250 | S176: 1.25 | X176: 0.005 | Y176: 250 | Z176: 1.25 | AA176: 250 | AB176: 1.25
A177: 4.17 | B177: Physical / Self Defence Training @ Rs.200/- per child per annum | C177: 250 | D177: 0.5 | E177: 250 | F177: =+D177*0.61 -> 0.305 | G177: 1 | H177: 0.61 | I177: 0 | J177: 0.195 | O177: 0.002 | P177: 250 | Q177: 0.5 | R177: 250 | S177: 0.5 | X177: 0.002 | Y177: 250 | Z177: 0.5 | AA177: 250 | AB177: 0.5
B178: Sub Total (Recurring) | C178: =+C157 -> 250 | D178: =SUM(D157:D177) -> 103.425 | E178: =+E157 -> 250 | F178: 95.0505 | G178: 1 | H178: 0.9190282814 | I178: =SUM(I157:I177) -> 0 | J178: 8.3745 | K178: 0 | L178: 0 | M178: 0 | N178: 0 | O178: 21.8625 | P178: =+P157 -> 250 | Q178: 110.625 | R178: =+R157 -> 250 | S178: 110.625 | T178: 0 | U178: 0 | V178: 0 | W178: 0 | X178: 21.8625 | Y178: =+Y157 -> 250 | Z178: =SUM(Z157:Z177) -> 110.625 | AA178: =+AA157 -> 250 | AB178: =SUM(AB157:AB177) -> 110.625
B179: Total (Non Recurring + Recurring) | C179: =+C178+C155 -> 250 | D179: =+D178+D155 -> 103.425 | E179: 250 | F179: 95.0505 | G179: 1 | H179: 0.9190282814 | I179: =+I178+I155 -> 0 | J179: 8.3745 | K179: 0 | L179: 0 | M179: 0 | N179: 0 | O179: 26.91 | P179: =+P178 -> 250 | Q179: 122.5 | R179: =+R178 -> 250 | S179: =+S178+S155 -> 122.5 | T179: =+T178+T155 -> 0 | U179: 0 | V179: 0 | W179: 0 | X179: 26.91 | Y179: =+Y178 -> 250 | Z179: =+Z178+Z155 -> 112.5 | AA179: =+AA178 -> 250 | AB179: =+AB178+AB155 -> 112.5
A180: (B) | B180: 100 Children Girls Hostels | C180: 3 | E180: =+C180 -> 3 | G180: 1 | I180: 0 | J180: 0 | P180: 0 | Q180: 0 | R180: 3 | S180: 0 | Z180: =+Y180*X180 -> 0 | AA180: =+C180 -> 3 | AB180: =+Z180+W180+U180 -> 0
B181: Non-recurring (one time grant) | I181: 0 | J181: 0 | Q181: 0 | R181: 0 | S181: 0 | Z181: 0 | AA181: =+Y181+V181+T181 -> 0 | AB181: 0
A182: 5.01 | B182: Furniture / Equipment (including kitchen equipment) | I182: 0 | J182: 0 | O182: 3 | Q182: 0 | R182: 0 | S182: 0 | X182: 3 | Z182: 0 | AA182: 0 | AB182: 0
A183: =+A182+0.01 -> 5.02 | B183: TLM and equipment including library books (New) | I183: 0 | J183: 0 | O183: 3.5 | Q183: 0 | R183: 0 | S183: 0 | X183: 3.5 | Z183: 0 | AA183: 0 | AB183: 0
A184: 5.03 | B184: Beds for Girls | I184: 0 | J184: 0 | O184: 0.04 | P184: 300 | Q184: 12 | R184: 300 | S184: 12 | X184: 0.04 | Z184: 0 | AA184: 0 | AB184: 0
A185: 5.04 | B185: Replacement of bedding (once in 3 years) | I185: 0 | J185: 0 | O185: 0.0075 | P185: =P188 -> 300 | Q185: 2.25 | R185: 300 | S185: 2.25 | X185: 0.0075 | Y185: =Y188 -> 300 | Z185: 2.25 | AA185: 300 | AB185: 2.25
B186: Sub Total Non-recurring | C186: =SUM(C182:C185) -> 0 | D186: =SUM(D182:D185) -> 0 | E186: 0 | F186: 0 | I186: =SUM(I182:I185) -> 0 | J186: 0 | K186: 0 | L186: 0 | M186: 0 | N186: 0 | O186: 6.5475 | P186: 600 | Q186: 14.25 | R186: 600 | S186: 14.25 | T186: 0 | U186: 0 | V186: 0 | W186: 0 | X186: 6.5475 | Y186: 300 | Z186: 2.25 | AA186: 300 | AB186: 2.25
B187: Recurring | I187: 0 | J187: 0 | Q187: 0 | R187: 0 | S187: 0 | Z187: =+Y187*X187 -> 0 | AA187: =+Y187+V187+T187 -> 0 | AB187: 0
A188: 5.05 | B188: Maintenance per child per month @ Rs. 1500/- | C188: 300 | D188: 54 | E188: =+C188 -> 300 | F188: =+D188*0.98 -> 52.92 | G188: 1 | H188: 0.98 | I188: 0 | J188: 1.08 | O188: 0.18 | P188: 300 | Q188: 54 | R188: 300 | S188: 54 | X188: 0.18 | Y188: 300 | Z188: 54 | AA188: 300 | AB188: 54
A189: =+A188+0.01 -> 5.06 | B189: Stipend per child per month @ Rs.100/- | C189: 300 | D189: 3.6 | E189: =+C189 -> 300 | F189: =+D189*0.98 -> 3.528 | G189: 1 | H189: 0.98 | I189: 0 | J189: 0.072 | O189: 0.012 | P189: 300 | Q189: 3.6 | R189: 300 | S189: 3.6 | X189: 0.012 | Y189: 300 | Z189: 3.6 | AA189: 300 | AB189: 3.6
A190: 5.07 | B190: Supplementary TLM, Stationery and other educational material per child @1000/- per annum | C190: 300 | D190: 3 | E190: 300 | F190: =+D190*0.95 -> 2.85 | G190: 1 | H190: 0.95 | I190: 0 | J190: 0.15 | O190: 0.01 | P190: 300 | Q190: 3 | R190: 300 | S190: 3 | X190: 0.01 | Y190: 300 | Z190: 3 | AA190: 300 | AB190: 3
B191: Salaries | C191: 0 | D191: 0 | I191: 0 | J191: 0 | P191: 0 | Y191: 0
A192: (a) | B192: 1 Warden @ Rs. 25,000/- per month | C192: 3 | D192: 7.2 | E192: =+C192 -> 3 | F192: =+D192*0.78 -> 5.616 | G192: 1 | H192: 0.78 | I192: 0 | J192: 1.584 | O192: 3 | P192: 3 | Q192: =+P192*O192 -> 9 | R192: =+P192+M192+K192 -> 3 | S192: 9 | X192: 3 | Y192: 3 | Z192: =+Y192*X192 -> 9 | AA192: =+Y192+V192+T192 -> 3 | AB192: 9
A193: (b) | B193: 1 head teacher @ Rs. 25,000/- per month in case the enrollment exceeds 100 | I193: 0 | J193: 0 | O193: 3 | Q193: 0 | R193: 0 | S193: 0 | X193: 3 | Z193: 0 | AA193: 0 | AB193: 0
A194: (c) | B194: 4 - 5 Full time teachers as per RTE norms @ Rs. 20,000/- per month per teacher | I194: 0 | J194: 0 | O194: 9.6 | Q194: 0 | R194: 0 | S194: 0 | X194: 9.6 | Z194: 0 | AA194: 0 | AB194: 0
A195: (d) | B195: 2 Urdu Teachers (only for blocks with muslim population above 20% and select urban areas), if required @ Rs. 12,000/- per month per teacher | E195: =+C195 -> 0 | F195: =+D195*0.85 -> 0 | I195: 0 | J195: 0 | O195: 2.88 | Q195: 0 | R195: 0 | S195: 0 | X195: 2.88 | Z195: 0 | AA195: 0 | AB195: 0
A196: (e) | B196: 3 part time teachers @ Rs. 5,000/- per month per teacher | C196: 3 | D196: 4.5 | E196: =+C196 -> 3 | F196: =+D196*0.72 -> 3.24 | G196: 1 | H196: 0.72 | I196: 0 | J196: 1.26 | O196: 1.8 | P196: 3 | Q196: 5.4 | R196: 3 | S196: 5.4 | X196: 1.8 | Y196: 3 | Z196: 5.4 | AA196: 3 | AB196: 5.4
A197: (f) | B197: 1 Full time Accountant @ Rs. 10,000/- per month | C197: 3 | D197: 3.6 | E197: 3 | F197: =+D197*0.96 -> 3.456 | G197: 1 | H197: 0.96 | I197: 0 | J197: 0.144 | O197: 1.2 | P197: 3 | Q197: 3.6 | R197: 3 | S197: 3.6 | X197: 1.2 | Y197: 3 | Z197: 3.6 | AA197: 3 | AB197: 3.6
A198: 5.08 | B198: 2 Support Staff – (Accountant/ Assistant, Peon, Chowkidar) @ Rs. 5,000/- per month per staff | C198: 3 | D198: 3.6 | E198: 3 | F198: =+D198*0.96 -> 3.456 | G198: 1 | H198: 0.96 | I198: 0 | J198: 0.144 | O198: 1.2 | P198: 3 | Q198: 3.6 | R198: 3 | S198: 3.6 | X198: 1.2 | Y198: 3 | Z198: 3.6 | AA198: 3 | AB198: 3.6
A199: =+A198+0.01 -> 5.09 | B199: 1 Head cook @ Rs. 6,000/- per month and upto 2 Asstt. Cooks @ Rs. 4,500/- per month per cook | C199: 3 | D199: 5.4 | E199: 3 | F199: =+D199*0.9 -> 4.86 | G199: 1 | H199: 0.9 | I199: 0 | J199: 0.54 | O199: 1.8 | P199: 3 | Q199: 5.4 | R199: 3 | S199: 5.4 | X199: 1.8 | Y199: 3 | Z199: 5.4 | AA199: 3 | AB199: 5.4
A200: 5.1 | B200: Specific skill training per child @ Rs.1000/- per annum | C200: 300 | D200: 3 | E200: 300 | F200: =+D200*0.9 -> 2.7 | G200: 1 | H200: 0.9 | I200: 0 | J200: 0.3 | O200: 0.01 | P200: 300 | Q200: 3 | R200: 300 | S200: 3 | X200: 0.01 | Y200: 300 | Z200: 3 | AA200: 300 | AB200: 3
A201: 5.11 | B201: Electricity / water charges per child @Rs.1000/- per annum | C201: 300 | D201: 3 | E201: 300 | F201: =+D201 -> 3 | G201: 1 | H201: 1 | I201: 0 | J201: 0 | O201: 0.01 | P201: 300 | Q201: 3 | R201: 300 | S201: 3 | X201: 0.01 | Y201: 300 | Z201: 3 | AA201: 300 | AB201: 3
A202: 5.12 | B202: Medical care/contingencies @ Rs.1250/- per child per annum | C202: 300 | D202: 3.75 | E202: 300 | F202: 3.75 | G202: 1 | H202: 1 | I202: 0 | J202: 0 | O202: 0.0125 | P202: 300 | Q202: 3.75 | R202: 300 | S202: 3.75 | X202: 0.0125 | Y202: 300 | Z202: 3.75 | AA202: 300 | AB202: 3.75
... 403 more rows

Sheet Aagar
A1: State Summary for AWP&B - 2017-18 , SSA, Madhya Pradesh (Rs in Lakhs)
A3: District : | B3: Aagar
A5: S.No. | B5: Activity | C5: Year 2016-17 | K5: Outlay Proposed for 2017-18 | T5: Outlay Recommended for 2017-18 | AC5: Remarks
C6: Outlay approved by PAB (including spillover) | E6: Expected Achievement till March'2017 | I6: Savings | K6: Spill Over | M6: Deferred laibility of 2016-17 | O6: Fresh | R6: Total | T6: Spill Over | V6: Deferred laibility of 2016-17 | X6: Fresh | AA6: Total
C7: Phy. | D7: Fin | E7: Phy. | F7: Fin. | G7: Phy. (%) | H7: Fin. (%) | I7: Phy. | J7: Fin. | K7: Phy. | L7: Fin. | M7: Phy. | N7: Fin. | O7: Unit Cost | P7: Phy. | Q7: Fin. | R7: Phy. | S7: Fin. | T7: Phy. | U7: Fin. | V7: Phy. | W7: Fin. | X7: Unit Cost | Y7: Phy. | Z7: Fin. | AA7: Phy. | AB7: Fin.
A8: I | B8: ACCESS
B9: SSA
A10: 1 | B10: Opening of New Schools
A11: 1.01 | B11: New Primary School
A12: 1.02 | B12: Upgradation of PS to UPS
A13: 1.03 | B13: Composite Schools
A14: 1.04 | B14: Residential schools for specific category of children
A15: 1.05 | B15: Residential Hostel | P15: 1 | R15: =+P15 -> 1 | AA15: =+Y15 -> 0
A16: 1.06 | B16: Integration of Class V with primary schools
A17: 1.07 | B17: Integration of Class VIII with upper primary schools
A18: 2 | B18: Residential Schools for specific category of children
A19: A | B19: 50 children
B20: Non-recurring (one time grant) | G20: =+E20/C20 ->  | H20: =+F20/D20 ->  | I20: =+C20-E20 -> 0 | J20: =+D20-F20 -> 0
A21: 2.01 | B21: Furniture/ Equipment (including kitchen) | G21: =+E21/C21 ->  | I21: =+C21-E21 -> 0 | J21: 0 | O21: 2 | Q21: =+P21*O21 -> 0 | R21: =+P21+M21+K21 -> 0 | S21: =+Q21+N21+L21 -> 0 | X21: 2 | Z21: =+Y21*X21 -> 0 | AA21: =+Y21+V21+T21 -> 0 | AB21: =+Z21+W21+U21 -> 0
A22: 2.02 | B22: TLM and equipment including library books | I22: 0 | J22: 0 | O22: 3 | Q22: =+P22*O22 -> 0 | R22: =+P22+M22+K22 -> 0 | S22: 0 | X22: 3 | Z22: =+Y22*X22 -> 0 | AA22: =+Y22+V22+T22 -> 0 | AB22: 0
A23: 2.03 | B23: Bedding (new) | I23: 0 | J23: 0 | O23: 0.375 | Q23: 0 | R23: 0 | S23: 0 | X23: 0.375 | Z23: 0 | AA23: 0 | AB23: 0
A24: 2.04 | B24: Replacement of bedding (once in 3 years) | I24: 0 | J24: 0 | Q24: 0 | R24: 0 | S24: 0 | Z24: 0 | AA24: 0 | AB24: 0
B25: Sub Total (Non Recurring) | I25: 0 | J25: 0 | Q25: 0 | R25: 0 | S25: 0 | Z25: 0 | AA25: 0 | AB25: 0
B26: Recurring (50 children) | I26: 0 | J26: 0 | Q26: 0 | R26: 0 | S26: 0 | Z26: 0 | AA26: 0 | AB26: 0
A27: 2.05 | B27: Maintenance per child Per month @ Rs.1500/- | I27: 0 | J27: 0 | O27: 9 | Q27: 0 | R27: 0 | S27: 0 | X27: 9 | Z27: 0 | AA27: 0 | AB27: 0
A28: 2.06 | B28: Stipend per child per month @ Rs.100/- | I28: 0 | J28: 0 | O28: 0.6 | Q28: 0 | R28: 0 | S28: 0 | X28: 0.6 | Z28: 0 | AA28: 0 | AB28: 0
A29: 2.07 | B29: Supplementary TLM, Stationery and other educational material @Rs.1000/- per child per annum | I29: 0 | J29: 0 | O29: 0.5 | Q29: 0 | R29: 0 | S29: 0 | X29: 0.5 | Z29: 0 | AA29: 0 | AB29: 0
A30: 2.08 | B30: Salaries | I30: 0 | J30: 0 | Q30: 0 | R30: 0 | S30: 0 | Z30: 0 | AA30: 0 | AB30: 0
A31: (a) | B31: 1 Warden @ Rs.25000/- per month | I31: 0 | J31: 0 | O31: 3 | Q31: 0 | R31: 0 | S31: 0 | X31: 3 | Z31: 0 | AA31: 0 | AB31: 0
A32: (b) | B32: 4 Fulltime teachers as per RTE Norms @ Rs. 20,000/- per month per teacher | I32: 0 | J32: 0 | O32: 9.6 | Q32: 0 | R32: 0 | S32: 0 | X32: 9.6 | Z32: 0 | AA32: 0 | AB32: 0
A33: (c) | B33: 2 Urdu Teachers (only for Blocks with muslim population above 20% and select urban areas) @ Rs.12,000/- per month per teacher. | I33: 0 | J33: 0 | O33: 2.88 | Q33: 0 | R33: 0 | S33: 0 | X33: 2.88 | Z33: 0 | AA33: 0 | AB33: 0
A34: (d) | B34: 3 Part time teachers @ Rs.5,000/- per month per teacher | I34: 0 | J34: 0 | O34: 1.5 | Q34: 0 | R34: 0 | S34: 0 | X34: 1.5 | Z34: 0 | AA34: 0 | AB34: 0
A35: (e) | B35: 1 Full time Accountant @ Rs. 10,000/- per month | I35: 0 | J35: 0 | O35: 1.2 | Q35: 0 | R35: 0 | S35: 0 | X35: 1.2 | Z35: 0 | AA35: 0 | AB35: 0
A36: (f) | B36: 2 Support staff - (Accountant/Assistant, Peon, Chowkidar) @ Rs. 5,000/- per month per staff | I36: 0 | J36: 0 | O36: 1.2 | Q36: 0 | R36: 0 | S36: 0 | X36: 1.2 | Z36: 0 | AA36: 0 | AB36: 0
A37: (g) | B37: 1 Head Cook @ Rs. 6,000/- per month and upto 2 Asstt. Cooks @ Rs. 4,500/- per month per cook | I37: 0 | J37: 0 | O37: 1.8 | Q37: 0 | R37: 0 | S37: 0 | X37: 1.8 | Z37: 0 | AA37: 0 | AB37: 0
A38: 2.09 | B38: Specific Skill training @ Rs.1000/- per annum per child | I38: 0 | J38: 0 | O38: 0.5 | Q38: 0 | R38: 0 | S38: 0 | X38: 0.5 | Z38: 0 | AA38: 0 | AB38: 0
A39: 2.1 | B39: Electricity / water charges @ Rs. 1000/- per annum per child | I39: 0 | J39: 0 | O39: 0.5 | Q39: 0 | R39: 0 | S39: 0 | X39: 0.5 | Z39: 0 | AA39: 0 | AB39: 0
A40: =+A39+0.01 -> 2.11 | B40: Medical care/contingencies @ Rs.1250/- per annum per child | I40: 0 | J40: 0 | O40: 0.625 | Q40: 0 | R40: 0 | S40: 0 | X40: 0.625 | Z40: 0 | AA40: 0 | AB40: 0
A41: =+A40+0.01 -> 2.12 | B41: Maintenance @ Rs. 750/- per child per annum | I41: 0 | J41: 0 | O41: 0.375 | Q41: 0 | R41: 0 | S41: 0 | X41: 0.375 | Z41: 0 | AA41: 0 | AB41: 0
A42: 2.13 | B42: Miscellaneous @ Rs. 750/- per child per annum | I42: 0 | J42: 0 | O42: 0.375 | Q42: 0 | R42: 0 | S42: 0 | X42: 0.375 | Z42: 0 | AA42: 0 | AB42: 0
A43: 2.14 | B43: Preparatory camps @ Rs. 300/- per child per annum | I43: 0 | J43: 0 | O43: 0.15 | Q43: 0 | R43: 0 | S43: 0 | X43: 0.15 | Z43: 0 | AA43: 0 | AB43: 0
A44: 2.15 | B44: P.T.A / school functions @ Rs. 300/- per child per annum | I44: 0 | J44: 0 | O44: 0.15 | Q44: 0 | R44: 0 | S44: 0 | X44: 0.15 | Z44: 0 | AA44: 0 | AB44: 0
A45: 2.16 | B45: Provision of Rent @ Rs. 10,000/- per child per annum | I45: 0 | J45: 0 | Q45: 0 | R45: 0 | S45: 0 | Z45: 0 | AA45: 0 | AB45: 0
A46: 2.17 | B46: Capacity Building @ Rs. 500/- per child per annum | I46: 0 | J46: 0 | O46: 0.25 | Q46: 0 | R46: 0 | S46: 0 | X46: 0.25 | Z46: 0 | AA46: 0 | AB46: 0
A47: 2.18 | B47: Physical / Self Defence Training @ Rs.200/- per child per annum | I47: 0 | J47: 0 | O47: 0.1 | Q47: 0 | R47: 0 | S47: 0 | X47: 0.1 | Z47: 0 | AA47: 0 | AB47: 0
B48: Sub Total (Recurring) | I48: 0 | J48: 0 | Q48: 0 | R48: 0 | S48: 0 | Z48: 0 | AA48: 0 | AB48: 0
B49: Total (Non Recurring + Recurring) | I49: 0 | J49: 0 | Q49: 0 | R49: 0 | S49: 0 | Z49: 0 | AA49: 0 | AB49: 0
A50: B | B50: 100 children | I50: 0 | J50: 0 | Q50: 0 | R50: 0 | S50: 0 | Z50: 0 | AA50: 0 | AB50: 0
B51: Non-recurring (one time grant) | I51: 0 | J51: 0 | Q51: 0 | R51: 0 | S51: 0 | Z51: 0 | AA51: 0 | AB51: 0
A52: 2.19 | B52: Furniture / Equipment (including kitchen equipment) | I52: 0 | J52: 0 | O52: 3 | Q52: 0 | R52: 0 | S52: 0 | X52: 3 | Z52: 0 | AA52: 0 | AB52: 0
A53: =+A52+0.01 -> 2.2 | B53: TLM and equipment including library books (New) | I53: 0 | J53: 0 | O53: 3.5 | Q53: 0 | R53: 0 | S53: 0 | X53: 3.5 | Z53: 0 | AA53: 0 | AB53: 0
A54: 2.21 | B54: Beds for Boys | I54: 0 | J54: 0 | O54: 0.04 | P54: 0 | Q54: 0 | R54: 0 | S54: 0 | X54: 0.04 | Z54: 0 | AA54: 0 | AB54: 0
A55: 2.22 | B55: Replacement of bedding (once in 3 years) | I55: 0 | J55: 0 | O55: 0.0075 | P55: =P58 -> 0 | Q55: 0 | R55: 0 | S55: 0 | X55: 0.0075 | Y55: =Y58 -> 0 | Z55: 0 | AA55: 0 | AB55: 0
B56: Sub Total Non-recurring | C56: =SUM(C52:C55) -> 0 | D56: =SUM(D52:D55) -> 0 | E56: 0 | F56: 0 | I56: =SUM(I52:I55) -> 0 | J56: 0 | K56: 0 | L56: 0 | M56: 0 | N56: 0 | O56: 6.5475 | P56: 0 | Q56: 0 | R56: 0 | S56: 0 | T56: 0 | U56: 0 | V56: 0 | W56: 0 | X56: 6.5475 | Y56: 0 | Z56: 0 | AA56: 0 | AB56: 0
B57: Recurring | I57: 0 | J57: 0 | Q57: 0 | R57: 0 | S57: 0 | Z57: =+Y57*X57 -> 0 | AA57: =+Y57+V57+T57 -> 0 | AB57: 0
A58: 2.23 | B58: Maintenance per child per month @ Rs. 1500/- | C58: 0 | D58: 0 | E58: =+C58 -> 0 | F58: =+D58*0.98 -> 0 | I58: 0 | J58: 0 | O58: 0.18 | P58: 0 | Q58: 0 | R58: 0 | S58: 0 | X58: 0.18 | Y58: =+P58 -> 0 | Z58: 0 | AA58: 0 | AB58: 0
A59: =+A58+0.01 -> 2.24 | B59: Stipend per child per month @ Rs.100/- | C59: 0 | D59: 0 | E59: =+C59 -> 0 | F59: =+D59*0.98 -> 0 | G59: =+E59/C59 ->  | I59: 0 | J59: 0 | O59: 0.012 | P59: 0 | Q59: 0 | R59: 0 | S59: 0 | X59: 0.012 | Y59: 0 | Z59: 0 | AA59: 0 | AB59: 0
A60: 2.25 | B60: Supplementary TLM, Stationery and other educational material per child @1000/- per annum | C60: 0 | D60: 0 | E60: 0 | F60: =+D60*0.95 -> 0 | I60: 0 | J60: 0 | O60: 0.01 | P60: 0 | Q60: 0 | R60: 0 | S60: 0 | X60: 0.01 | Y60: 0 | Z60: 0 | AA60: 0 | AB60: 0
A61: 2.26 | B61: Salaries | I61: 0 | J61: 0 | Q61: 0 | R61: 0 | S61: 0 | Y61: 0 | Z61: 0 | AA61: 0 | AB61: 0
A62: (a) | B62: 1 Warden @ Rs. 25,000/- per month | C62: 0 | D62: 0 | E62: =+C62 -> 0 | F62: =+D62*0.8 -> 0 | I62: 0 | J62: 0 | O62: 3 | P62: 0 | Q62: 0 | R62: 0 | S62: 0 | X62: 3 | Y62: 0 | Z62: 0 | AA62: 0 | AB62: 0 | AC62: =0.25*1*12 -> 3
A63: (b) | B63: 1 head teacher @ Rs. 25,000/- per month in case the enrollment exceeds 100 | I63: 0 | J63: 0 | O63: 3 | Q63: 0 | R63: 0 | S63: 0 | X63: 3 | Y63: 0 | Z63: 0 | AA63: 0 | AB63: 0
A64: (c) | B64: 4 - 5 Full time teachers as per RTE norms @ Rs. 20,000/- per month per teacher | I64: 0 | J64: 0 | O64: 9.6 | Q64: 0 | R64: 0 | S64: 0 | X64: 9.6 | Y64: 0 | Z64: 0 | AA64: 0 | AB64: 0
A65: (d) | B65: 2 Urdu Teachers (only for blocks with muslim population above 20% and select urban areas), if required @ Rs. 12,000/- per month per teacher | I65: 0 | J65: 0 | O65: 2.88 | Q65: 0 | R65: 0 | S65: 0 | X65: 2.88 | Y65: 0 | Z65: 0 | AA65: 0 | AB65: 0
A66: (e) | B66: 3 part time teachers @ Rs. 5,000/- per month per teacher | C66: 0 | D66: 0 | E66: =+C66 -> 0 | F66: =+D66*0.85 -> 0 | I66: 0 | J66: 0 | O66: 1.8 | P66: 0 | Q66: 0 | R66: 0 | S66: 0 | X66: 1.8 | Y66: 0 | Z66: 0 | AA66: 0 | AB66: 0
A67: (f) | B67: 1 Full time Accountant @ Rs. 10,000/- per month | C67: 0 | D67: 0 | E67: =+C67 -> 0 | F67: =+D67*0.72 -> 0 | I67: 0 | J67: 0 | O67: 1.2 | P67: 0 | Q67: 0 | R67: 0 | S67: 0 | X67: 1.2 | Y67: 0 | Z67: 0 | AA67: 0 | AB67: 0
A68: (g) | B68: 2 Support Staff – (Accountant/ Assistant, Peon, Chowkidar) @ Rs. 5,000/- per month per staff | C68: 0 | D68: 0 | E68: 0 | F68: =+D68*0.96 -> 0 | I68: 0 | J68: 0 | O68: 1.2 | P68: 0 | Q68: 0 | R68: 0 | S68: 0 | X68: 1.2 | Y68: 0 | Z68: 0 | AA68: 0 | AB68: 0
A69: (h) | B69: 1 Head cook @ Rs. 6,000/- per month and upto 2 Asstt. Cooks @ Rs. 4,500/- per month per cook | C69: 0 | D69: 0 | E69: 0 | F69: =+D69*0.96 -> 0 | I69: 0 | J69: 0 | O69: 1.8 | P69: 0 | Q69: 0 | R69: 0 | S69: 0 | X69: 1.8 | Y69: 0 | Z69: 0 | AA69: 0 | AB69: 0
A70: 2.27 | B70: Specific skill training per child @ Rs.1000/- per annum | C70: 0 | D70: 0 | E70: 0 | F70: =+D70*0.9 -> 0 | I70: 0 | J70: 0 | O70: 0.01 | P70: 0 | Q70: 0 | R70: 0 | S70: 0 | X70: 0.01 | Y70: 0 | Z70: 0 | AA70: 0 | AB70: 0
A71: 2.28 | B71: Electricity / water charges per child @Rs.1000/- per annum | C71: 0 | D71: 0 | E71: 0 | F71: =+D71 -> 0 | I71: 0 | J71: 0 | O71: 0.01 | P71: 0 | Q71: 0 | R71: 0 | S71: 0 | X71: 0.01 | Y71: 0 | Z71: 0 | AA71: 0 | AB71: 0
A72: 2.29 | B72: Medical care/contingencies @ Rs.1250/- per child per annum | C72: 0 | D72: 0 | E72: 0 | F72: 0 | I72: 0 | J72: 0 | O72: 0.0125 | P72: 0 | Q72: 0 | R72: 0 | S72: 0 | X72: 0.0125 | Y72: 0 | Z72: 0 | AA72: 0 | AB72: 0
A73: 2.3 | B73: Maintenance @ Rs.750/- per child per annum | C73: 0 | D73: 0 | E73: 0 | F73: 0 | I73: 0 | J73: 0 | O73: 0.0075 | P73: 0 | Q73: 0 | R73: 0 | S73: 0 | X73: 0.0075 | Y73: 0 | Z73: 0 | AA73: 0 | AB73: 0
A74: 2.31 | B74: Miscellaneous @ Rs.750/- per child per annum | C74: 0 | D74: 0 | E74: 0 | F74: 0 | I74: 0 | J74: 0 | O74: 0.0075 | P74: 0 | Q74: 0 | R74: 0 | S74: 0 | X74: 0.0075 | Y74: 0 | Z74: 0 | AA74: 0 | AB74: 0
A75: 2.32 | B75: Preparatory camps @ Rs.200/- per child per annum | C75: 0 | D75: 0 | E75: 0 | F75: =+D75*0.8 -> 0 | I75: 0 | J75: 0 | O75: 0.003 | P75: 0 | Q75: 0 | R75: 0 | S75: 0 | X75: 0.003 | Y75: 0 | Z75: 0 | AA75: 0 | AB75: 0
A76: 2.33 | B76: P.T.A / school functions @ Rs.200/- per child per annum | C76: 0 | D76: 0 | E76: 0 | F76: =+D76*0.8 -> 0 | I76: 0 | J76: 0 | O76: 0.003 | P76: 0 | Q76: 0 | R76: 0 | S76: 0 | X76: 0.003 | Y76: 0 | Z76: 0 | AA76: 0 | AB76: 0
A77: 2.34 | B77: Provision of Rent @ Rs. 6000/- per child per annum | I77: 0 | J77: 0 | O77: 0 | Q77: 0 | R77: 0 | S77: 0 | X77: 0 | Y77: 0 | Z77: 0 | AA77: 0 | AB77: 0
A78: 2.35 | B78: Capacity Building @ Rs.500/- per child per annum | C78: 0 | D78: 0 | E78: =+C78 -> 0 | F78: =+D78*0.61 -> 0 | I78: 0 | J78: 0 | O78: 0.005 | P78: 0 | Q78: 0 | R78: 0 | S78: 0 | X78: 0.005 | Y78: 0 | Z78: 0 | AA78: 0 | AB78: 0
A79: 2.36 | B79: Physical / Self Defence training @ Rs. 200/- per child per annum. | F79: =+D79*0.61 -> 0 | I79: 0 | J79: 0 | O79: 0.002 | P79: 0 | Q79: 0 | R79: 0 | S79: 0 | X79: 0.002 | Y79: 0 | Z79: 0 | AA79: 0 | AB79: 0
B80: Sub Total (Recurring) | C80: =+C58 -> 0 | D80: =SUM(D58:D79) -> 0 | E80: =+E58 -> 0 | F80: 0 | G80: =+E80/C80 ->  | I80: =SUM(I58:I79) -> 0 | J80: 0 | K80: 0 | L80: 0 | M80: 0 | N80: 0 | O80: 24.7425 | P80: =+P58 -> 0 | Q80: =SUM(Q58:Q79) -> 0 | R80: =+R58 -> 0 | S80: 0 | T80: 0 | U80: 0 | V80: 0 | W80: 0 | X80: 24.7425 | Y80: =+Y58 -> 0 | Z80: =SUM(Z58:Z79) -> 0 | AA80: =+AA58 -> 0 | AB80: =SUM(AB58:AB79) -> 0
B81: Total (Recurring + Non Recurring) | C81: =+C80+C56 -> 0 | D81: =+D80+D56 -> 0 | E81: 0 | F81: 0 | I81: =+I80+I56 -> 0 | J81: 0 | K81: 0 | L81: 0 | M81: 0 | N81: 0 | O81: 31.29 | P81: =P80 -> 0 | Q81: =+Q80+Q56 -> 0 | R81: =R80 -> 0 | S81: 0 | T81: 0 | U81: 0 | V81: 0 | W81: 0 | X81: 31.29 | Y81: =Y80 -> 0 | Z81: =+Z80+Z56 -> 0 | AA81: =AA80 -> 0 | AB81: =+AB80+AB56 -> 0
B82: Total (A + B) Residential Boys School | C82: =+C81+C49 -> 0 | D82: =+D81+D49 -> 0 | E82: 0 | F82: 0 | I82: =+I81+I49 -> 0 | J82: 0 | K82: 0 | L82: 0 | M82: 0 | N82: 0 | O82: 31.29 | P82: 0 | Q82: 0 | R82: 0 | S82: =+S81+S49 -> 0 | T82: =+T81+T49 -> 0 | U82: 0 | V82: 0 | W82: 0 | X82: 31.29 | Y82: 0 | Z82: 0 | AA82: 0 | AB82: =+AB81+AB49 -> 0
A83: 3 | B83: Residential Hostel for specific category of children
A84: (A) | B84: 50 children | I84: 0 | J84: 0 | Q84: 0 | R84: 0 | S84: 0 | Z84: =+Y84*X84 -> 0 | AA84: =+Y84+V84+T84 -> 0 | AB84: 0
B85: Non-recurring (one time grant) | G85: =+E85/C85 ->  | I85: =+C85-E85 -> 0 | J85: 0 | Q85: 0 | R85: 0 | S85: 0 | Z85: 0 | AA85: 0 | AB85: 0
A86: 3.01 | B86: Furniture/ Equipment (including kitchen) | I86: 0 | J86: 0 | O86: 2 | Q86: =+P86*O86 -> 0 | R86: =+P86+M86+K86 -> 0 | S86: 0 | X86: 2 | Z86: 0 | AA86: 0 | AB86: 0
A87: =+A86+0.01 -> 3.02 | B87: TLM and equipment including library books | I87: 0 | J87: 0 | O87: 3 | Q87: 0 | R87: 0 | S87: 0 | X87: 3 | Z87: 0 | AA87: 0 | AB87: 0
A88: 3.03 | B88: Bedding (new) | I88: 0 | J88: 0 | O88: 0.375 | Q88: 0 | R88: 0 | S88: 0 | X88: 0.375 | Z88: 0 | AA88: 0 | AB88: 0
A89: 3.04 | B89: Replacement of bedding (once in 3 years) | I89: 0 | J89: 0 | Q89: 0 | R89: 0 | S89: 0 | Z89: 0 | AA89: 0 | AB89: 0
B90: Sub Total (Non Recurring) | C90: =SUM(C86:C89) -> 0 | D90: =SUM(D86:D89) -> 0 | E90: 0 | F90: 0 | I90: =SUM(I86:I89) -> 0 | J90: 0 | K90: 0 | L90: 0 | M90: 0 | N90: 0 | O90: 5.375 | P90: 0 | Q90: 0 | R90: 0 | S90: 0 | T90: 0 | U90: 0 | V90: 0 | W90: 0 | X90: 5.375 | Y90: 0 | Z90: 0 | AA90: 0 | AB90: 0
B91: Recurring (50 children) | I91: 0 | J91: 0 | Q91: 0 | R91: 0 | S91: 0 | Z91: =+Y91*X91 -> 0 | AA91: =+Y91+V91+T91 -> 0 | AB91: 0
A92: 3.05 | B92: Maintenance per child Per month @ Rs.1500/- | I92: 0 | J92: 0 | O92: 9 | Q92: 0 | R92: 0 | S92: 0 | X92: 9 | Z92: 0 | AA92: 0 | AB92: 0
A93: =+A92+0.01 -> 3.06 | B93: Stipend per child per month @ Rs.100/- | I93: 0 | J93: 0 | O93: 0.6 | Q93: 0 | R93: 0 | S93: 0 | X93: 0.6 | Z93: 0 | AA93: 0 | AB93: 0
A94: 3.07 | B94: Supplementary TLM, Stationery and other educational material @Rs.1000/- per child per annum | I94: 0 | J94: 0 | O94: 0.5 | Q94: 0 | R94: 0 | S94: 0 | X94: 0.5 | Z94: 0 | AA94: 0 | AB94: 0
B95: Salaries | I95: 0 | J95: 0 | Q95: 0 | R95: 0 | S95: 0 | Z95: 0 | AA95: 0 | AB95: 0
A96: (a) | B96: 1 Warden @ Rs.25000/- per month | I96: 0 | J96: 0 | O96: 3 | Q96: 0 | R96: 0 | S96: 0 | X96: 3 | Z96: 0 | AA96: 0 | AB96: 0
A97: (b) | B97: 4 Fulltime teachers as per RTE Norms @ Rs. 20,000/- per month per teacher | I97: 0 | J97: 0 | O97: 9.6 | Q97: 0 | R97: 0 | S97: 0 | X97: 9.6 | Z97: 0 | AA97: 0 | AB97: 0
A98: (c) | B98: 2 Urdu Teachers (only for Blocks with muslim population above 20% and select urban areas) @ Rs.12,000/- per month per teacher. | I98: 0 | J98: 0 | O98: 2.88 | Q98: 0 | R98: 0 | S98: 0 | X98: 2.88 | Z98: 0 | AA98: 0 | AB98: 0
A99: (d) | B99: 3 Part time teachers @ Rs.5,000/- per month per teacher | I99: 0 | J99: 0 | O99: 1.5 | Q99: 0 | R99: 0 | S99: 0 | X99: 1.5 | Z99: 0 | AA99: 0 | AB99: 0
A100: (e) | B100: 1 Full time Accountant @ Rs. 10,000/- per month | I100: 0 | J100: 0 | O100: 1.2 | Q100: 0 | R100: 0 | S100: 0 | X100: 1.2 | Z100: 0 | AA100: 0 | AB100: 0
A101: (f) | B101: 2 Support staff - (Accountant/Assistant, Peon, Chowkidar) @ Rs. 5,000/- per month per staff | I101: 0 | J101: 0 | O101: 1.2 | Q101: 0 | R101: 0 | S101: 0 | X101: 1.2 | Z101: 0 | AA101: 0 | AB101: 0
A102: (g) | B102: 1 Head Cook @ Rs. 6,000/- per month and upto 2 Asstt. Cooks @ Rs. 4,500/- per month per cook | I102: 0 | J102: 0 | O102: 1.8 | Q102: 0 | R102: 0 | S102: 0 | X102: 1.8 | Z102: 0 | AA102: 0 | AB102: 0
A103: 3.08 | B103: Specific Skill training @ Rs.1000/- per annum per child | I103: 0 | J103: 0 | O103: 0.5 | Q103: 0 | R103: 0 | S103: 0 | X103: 0.5 | Z103: 0 | AA103: 0 | AB103: 0
A104: =+A103+0.01 -> 3.09 | B104: Electricity / water charges @ Rs. 1000/- per annum per child | I104: 0 | J104: 0 | O104: 0.5 | Q104: 0 | R104: 0 | S104: 0 | X104: 0.5 | Z104: 0 | AA104: 0 | AB104: 0
A105: 3.1 | B105: Medical care/contingencies @ Rs.1250/- per annum per child | I105: 0 | J105: 0 | O105: 0.625 | Q105: 0 | R105: 0 | S105: 0 | X105: 0.625 | Z105: 0 | AA105: 0 | AB105: 0
A106: 3.11 | B106: Maintenance @ Rs. 750/- per child per annum | I106: 0 | J106: 0 | O106: 0.375 | Q106: 0 | R106: 0 | S106: 0 | X106: 0.375 | Z106: 0 | AA106: 0 | AB106: 0
A107: 3.12 | B107: Miscellaneous @ Rs. 750/- per child per annum | I107: 0 | J107: 0 | O107: 0.375 | Q107: 0 | R107: 0 | S107: 0 | X107: 0.375 | Z107: 0 | AA107: 0 | AB107: 0
A108: 3.13 | B108: Preparatory camps @ Rs. 300/- per child per annum | I108: 0 | J108: 0 | O108: 0.15 | Q108: 0 | R108: 0 | S108: 0 | X108: 0.15 | Z108: 0 | AA108: 0 | AB108: 0
A109: 3.14 | B109: P.T.A / school functions @ Rs. 300/- per child per annum | I109: 0 | J109: 0 | O109: 0.15 | Q109: 0 | R109: 0 | S109: 0 | X109: 0.15 | Z109: 0 | AA109: 0 | AB109: 0
A110: 3.15 | B110: Provision of Rent @ Rs. 10,000/- per child per annum | I110: 0 | J110: 0 | Q110: 0 | R110: 0 | S110: 0 | Z110: 0 | AA110: 0 | AB110: 0
A111: 3.16 | B111: Capacity Building @ Rs. 500/- per child per annum | I111: 0 | J111: 0 | O111: 0.25 | Q111: 0 | R111: 0 | S111: 0 | X111: 0.25 | Z111: 0 | AA111: 0 | AB111: 0
A112: 3.17 | B112: Physical / Self Defence Training @ Rs.200/- per child per annum | I112: 0 | J112: 0 | O112: 0.1 | Q112: 0 | R112: 0 | S112: 0 | X112: 0.1 | Z112: 0 | AA112: 0 | AB112: 0
B113: Sub Total (Recurring) | C113: =SUM(C92:C112) -> 0 | D113: =SUM(D92:D112) -> 0 | E113: 0 | F113: 0 | I113: =SUM(I92:I112) -> 0 | J113: 0 | K113: 0 | L113: 0 | M113: 0 | N113: 0 | O113: 34.305 | P113: 0 | Q113: 0 | R113: 0 | S113: 0 | T113: 0 | U113: 0 | V113: 0 | W113: 0 | X113: 34.305 | Y113: 0 | Z113: 0 | AA113: 0 | AB113: 0
B114: Total (Non Recurring + Recurring) | C114: =+C113+C90 -> 0 | D114: =+D113+D90 -> 0 | E114: 0 | F114: 0 | I114: =+I113+I90 -> 0 | J114: 0 | K114: 0 | L114: 0 | M114: 0 | N114: 0 | O114: 39.68 | P114: 0 | Q114: 0 | R114: 0 | S114: 0 | T114: 0 | U114: 0 | V114: 0 | W114: 0 | X114: 39.68 | Y114: 0 | Z114: 0 | AA114: 0 | AB114: 0
A115: (B) | B115: 100 Children | I115: 0 | J115: 0 | Q115: 0 | R115: 0 | S115: 0 | Z115: =+Y115*X115 -> 0 | AA115: =+Y115+V115+T115 -> 0 | AB115: 0
B116: Non-recurring (one time grant) | I116: 0 | J116: 0 | Q116: 0 | R116: 0 | S116: 0 | Z116: 0 | AA116: 0 | AB116: 0
A117: 3.18 | B117: Furniture / Equipment (including kitchen equipment) | I117: 0 | J117: 0 | O117: 3 | Q117: 0 | R117: 0 | S117: 0 | X117: 3 | Z117: 0 | AA117: 0 | AB117: 0
A118: =+A117+0.01 -> 3.19 | B118: TLM and equipment including library books (New) | I118: 0 | J118: 0 | O118: 3.5 | Q118: 0 | R118: 0 | S118: 0 | X118: 3.5 | Z118: 0 | AA118: 0 | AB118: 0
A119: 3.2 | B119: Beds for Boys | I119: 0 | J119: 0 | O119: 0.04 | P119: 100 | Q119: 4 | R119: 100 | S119: 4 | X119: 0.04 | Z119: 0 | AA119: 0 | AB119: 0
A120: 3.21 | B120: Replacement of bedding (once in 3 years) | I120: 0 | J120: 0 | O120: 0.0075 | P120: =P123 -> 100 | Q120: 0.75 | R120: 100 | S120: 0.75 | X120: 0.0075 | Y120: =P120 -> 100 | Z120: 0.75 | AA120: 100 | AB120: 0.75
B121: Sub Total Non-recurring | C121: =SUM(C117:C120) -> 0 | D121: =SUM(D117:D120) -> 0 | E121: 0 | F121: 0 | I121: =SUM(I117:I120) -> 0 | J121: 0 | K121: 0 | L121: 0 | M121: 0 | N121: 0 | O121: 6.5475 | P121: 200 | Q121: 4.75 | R121: 200 | S121: 4.75 | T121: 0 | U121: 0 | V121: 0 | W121: 0 | X121: 6.5475 | Y121: 100 | Z121: 0.75 | AA121: 100 | AB121: 0.75
B122: Recurring | I122: 0 | J122: 0 | Q122: 0 | R122: 0 | S122: 0 | Z122: =+Y122*X122 -> 0 | AA122: =+Y122+V122+T122 -> 0 | AB122: 0
A123: 3.22 | B123: Maintenance per child per month @ Rs. 1500/- | C123: 0 | D123: 0 | E123: =+C123 -> 0 | F123: =+D123*0.98 -> 0 | I123: 0 | J123: 0 | O123: 0.18 | P123: 100 | Q123: 18 | R123: 100 | S123: 18 | X123: 0.18 | Y123: =P123 -> 100 | Z123: 18 | AA123: 100 | AB123: 18 | AF123: 250
A124: =+A123+0.01 -> 3.23 | B124: Stipend per child per month @ Rs.100/- | C124: 0 | D124: 0 | E124: =+C124 -> 0 | F124: =+D124*0.98 -> 0 | I124: 0 | J124: 0 | O124: 0.012 | P124: 100 | Q124: 1.2 | R124: 100 | S124: 1.2 | X124: 0.012 | Y124: =P124 -> 100 | Z124: 1.2 | AA124: 100 | AB124: 1.2
A125: 3.24 | B125: Supplementary TLM, Stationery and other educational material per child @1000/- per annum | C125: 0 | D125: 0 | E125: 0 | F125: =+D125*0.95 -> 0 | I125: 0 | J125: 0 | O125: 0.01 | P125: 100 | Q125: 1 | R125: 100 | S125: 1 | X125: 0.01 | Y125: 100 | Z125: 1 | AA125: 100 | AB125: 1
B126: Salaries | I126: 0 | J126: 0 | Q126: 0 | R126: 0 | S126: 0 | Y126: 0 | Z126: 0 | AA126: 0 | AB126: 0
A127: (a) | B127: 1 Warden @ Rs. 25,000/- per month | C127: 0 | D127: 0 | E127: =+C127 -> 0 | F127: =+D127*0.8 -> 0 | I127: 0 | J127: 0 | O127: 3 | P127: 1 | Q127: 3 | R127: 1 | S127: 3 | X127: 3 | Y127: 1 | Z127: 3 | AA127: 1 | AB127: 3
A128: (b) | B128: 1 head teacher @ Rs. 25,000/- per month in case the enrollment exceeds 100 | I128: 0 | J128: 0 | O128: 3 | Q128: 0 | R128: 0 | S128: 0 | X128: 3 | Y128: 0 | Z128: 0 | AA128: 0 | AB128: 0
A129: (c) | B129: 4 - 5 Full time teachers as per RTE norms @ Rs. 20,000/- per month per teacher | I129: 0 | J129: 0 | O129: 9.6 | Q129: 0 | R129: 0 | S129: 0 | X129: 9.6 | Y129: 0 | Z129: 0 | AA129: 0 | AB129: 0
A130: (d) | B130: 2 Urdu Teachers (only for blocks with muslim population above 20% and select urban areas), if required @ Rs. 12,000/- per month per teacher | I130: 0 | J130: 0 | O130: 2.88 | Q130: 0 | R130: 0 | S130: 0 | X130: 2.88 | Y130: 0 | Z130: 0 | AA130: 0 | AB130: 0
A131: (e) | B131: 3 part time teachers @ Rs. 5,000/- per month per teacher | C131: 0 | D131: 0 | E131: =+C131 -> 0 | F131: =+D131*0.85 -> 0 | I131: 0 | J131: 0 | O131: 1.8 | P131: 1 | Q131: 1.8 | R131: 1 | S131: 1.8 | X131: 1.8 | Y131: 1 | Z131: 1.8 | AA131: 1 | AB131: 1.8
A132: (f) | B132: 1 Full time Accountant @ Rs. 10,000/- per month | C132: 0 | D132: 0 | E132: =+C132 -> 0 | F132: =+D132*0.72 -> 0 | I132: 0 | J132: 0 | O132: 1.2 | P132: 1 | Q132: 1.2 | R132: 1 | S132: 1.2 | X132: 1.2 | Y132: 1 | Z132: 1.2 | AA132: 1 | AB132: 1.2
A133: 3.25 | B133: 2 Support Staff – (Accountant/ Assistant, Peon, Chowkidar) @ Rs. 5,000/- per month per staff | C133: 0 | D133: 0 | E133: 0 | F133: =+D133*0.96 -> 0 | I133: 0 | J133: 0 | O133: 1.2 | P133: 1 | Q133: 1.2 | R133: 1 | S133: 1.2 | X133: 1.2 | Y133: 1 | Z133: 1.2 | AA133: 1 | AB133: 1.2
A134: =+A133+0.01 -> 3.26 | B134: 1 Head cook @ Rs. 6,000/- per month and upto 2 Asstt. Cooks @ Rs. 4,500/- per month per cook | C134: 0 | D134: 0 | E134: 0 | F134: =+D134*0.96 -> 0 | I134: 0 | J134: 0 | O134: 1.8 | P134: 1 | Q134: 1.8 | R134: 1 | S134: 1.8 | X134: 1.8 | Y134: 1 | Z134: 1.8 | AA134: 1 | AB134: 1.8
A135: 3.27 | B135: Specific skill training per child @ Rs.1000/- per annum | C135: 0 | D135: 0 | E135: 0 | F135: =+D135*0.9 -> 0 | I135: 0 | J135: 0 | O135: 0.01 | P135: 100 | Q135: 1 | R135: 100 | S135: 1 | X135: 0.01 | Y135: 100 | Z135: 1 | AA135: 100 | AB135: 1
A136: 3.28 | B136: Electricity / water charges per child @Rs.1000/- per annum | C136: 0 | D136: 0 | E136: 0 | F136: =+D136 -> 0 | I136: 0 | J136: 0 | O136: 0.01 | P136: 100 | Q136: 1 | R136: 100 | S136: 1 | X136: 0.01 | Y136: 100 | Z136: 1 | AA136: 100 | AB136: 1
A137: 3.29 | B137: Medical care/contingencies @ Rs.1250/- per child per annum | C137: 0 | D137: 0 | E137: 0 | F137: 0 | I137: 0 | J137: 0 | O137: 0.0125 | P137: 100 | Q137: 1.25 | R137: 100 | S137: 1.25 | X137: 0.0125 | Y137: 100 | Z137: 1.25 | AA137: 100 | AB137: 1.25
A138: 3.3 | B138: Maintenance @ Rs.750/- per child per annum | C138: 0 | D138: 0 | E138: 0 | F138: 0 | I138: 0 | J138: 0 | O138: 0.0075 | P138: 100 | Q138: 0.75 | R138: 100 | S138: 0.75 | X138: 0.0075 | Y138: 100 | Z138: 0.75 | AA138: 100 | AB138: 0.75
A139: 3.31 | B139: Miscellaneous @ Rs.750/- per child per annum | C139: 0 | D139: 0 | E139: 0 | F139: 0 | I139: 0 | J139: 0 | O139: 0.0075 | P139: 100 | Q139: 0.75 | R139: 100 | S139: 0.75 | X139: 0.0075 | Y139: 100 | Z139: 0.75 | AA139: 100 | AB139: 0.75
A140: 3.32 | B140: Preparatory camps @ Rs.200/- per child per annum | C140: 0 | D140: 0 | E140: 0 | F140: =+D140*0.8 -> 0 | I140: 0 | J140: 0 | O140: 0.003 | P140: 100 | Q140: 0.3 | R140: 100 | S140: 0.3 | X140: 0.003 | Y140: 100 | Z140: 0.3 | AA140: 100 | AB140: 0.3
A141: 3.33 | B141: P.T.A / school functions @ Rs.200/- per child per annum | C141: 0 | D141: 0 | E141: 0 | F141: =+D141*0.8 -> 0 | I141: 0 | J141: 0 | O141: 0.003 | P141: 100 | Q141: 0.3 | R141: 100 | S141: 0.3 | X141: 0.003 | Y141: 100 | Z141: 0.3 | AA141: 100 | AB141: 0.3
A142: 3.34 | B142: Provision of Rent @ Rs. 6000/- per child per annum | I142: 0 | J142: 0 | O142: 0 | Q142: 0 | R142: 0 | S142: 0 | X142: 0 | Y142: 0 | Z142: 0 | AA142: 0 | AB142: 0
A143: 3.35 | B143: Capacity Building @ Rs.500/- per child per annum | C143: 0 | D143: 0 | E143: =+C143 -> 0 | F143: =+D143*0.61 -> 0 | I143: 0 | J143: 0 | O143: 0.005 | P143: 100 | Q143: 0.5 | R143: 100 | S143: 0.5 | X143: 0.005 | Y143: 100 | Z143: 0.5 | AA143: 100 | AB143: 0.5
A144: 3.36 | B144: Physical / Self Defence training @ Rs. 200/- per child per annum. | F144: =+D144*0.61 -> 0 | I144: 0 | J144: 0 | O144: 0.002 | P144: 100 | Q144: 0.2 | R144: 100 | S144: 0.2 | X144: 0.002 | Y144: 100 | Z144: 0.2 | AA144: 100 | AB144: 0.2
B145: Sub Total (Recurring) | C145: =+C123 -> 0 | D145: =SUM(D123:D144) -> 0 | E145: =+E123 -> 0 | F145: 0 | I145: =SUM(I123:I144) -> 0 | J145: 0 | K145: 0 | L145: 0 | M145: 0 | N145: 0 | O145: 24.7425 | P145: =+P123 -> 100 | Q145: 35.25 | R145: =+R123 -> 100 | S145: 35.25 | T145: 0 | U145: 0 | V145: 0 | W145: 0 | X145: 24.7425 | Y145: =+Y123 -> 100 | Z145: =SUM(Z123:Z144) -> 35.25 | AA145: =+AA123 -> 100 | AB145: =SUM(AB123:AB144) -> 35.25
B146: Total (Recurring + Non Recurring) | C146: =+C145+C121 -> 0 | D146: =+D145+D121 -> 0 | E146: 0 | F146: 0 | I146: =+I145+I121 -> 0 | J146: 0 | K146: 0 | L146: 0 | M146: 0 | N146: 0 | O146: 31.29 | P146: =P145 -> 100 | Q146: 40 | R146: =R145 -> 100 | S146: 40 | T146: 0 | U146: 0 | V146: 0 | W146: 0 | X146: 31.29 | Y146: =Y145 -> 100 | Z146: =+Z145+Z121 -> 36 | AA146: =AA145 -> 100 | AB146: =+AB145+AB121 -> 36
B147: Total (A + B) Residential Boys Hostels | C147: =+C146+C82 -> 0 | D147: =+D146+D82 -> 0 | E147: =+E146+E82 -> 0 | F147: =+F146+F82 -> 0 | I147: =+I146+I82 -> 0 | J147: =+J146+J82 -> 0 | K147: 0 | L147: =+L146+L114 -> 0 | M147: 0 | N147: 0 | O147: 70.97 | P147: 100 | Q147: =+Q146+Q82 -> 40 | R147: 100 | S147: =+S146+S82 -> 40 | T147: =+T146+T82 -> 0 | U147: =+U146+U114 -> 0 | V147: =+V146+V82 -> 0 | W147: =+W146+W114 -> 0 | X147: 70.97 | Y147: 100 | Z147: =+Z146+Z82 -> 36 | AA147: =+AA146+AA114 -> 100 | AB147: =+AB146+AB82 -> 36
A148: 4 | B148: Girls Hostel | I148: 0 | J148: 0 | Q148: 0 | R148: 0 | S148: 0 | Z148: =+Y148*X148 -> 0 | AA148: =+Y148+V148+T148 -> 0 | AB148: 0
A149: (A) | B149: 50 children Girls Hostels | C149: 1 | E149: =+C149 -> 1 | G149: =+E149/C149 -> 1 | I149: =+C149-E149 -> 0 | J149: 0 | P149: 0 | Q149: 0 | R149: 1 | S149: 0 | Z149: 0 | AA149: =+C149 -> 1 | AB149: 0 | AC149: Not recommended
B150: Non-recurring (one time grant) | I150: 0 | J150: 0 | Q150: =+P150*O150 -> 0 | R150: =+P150+M150+K150 -> 0 | S150: 0 | Z150: 0 | AA150: =+Y150+V150+T150 -> 0 | AB150: 0
A151: 4.01 | B151: Furniture/ Equipment (including kitchen) | I151: 0 | J151: 0 | O151: 2 | Q151: 0 | R151: 0 | S151: 0 | X151: 2 | Z151: 0 | AA151: 0 | AB151: 0
A152: =+A151+0.01 -> 4.02 | B152: TLM and equipment including library books | I152: 0 | J152: 0 | O152: 3 | Q152: 0 | R152: 0 | S152: 0 | X152: 3 | Z152: 0 | AA152: 0 | AB152: 0
A153: 4.03 | B153: Beds for Girls | I153: 0 | J153: 0 | O153: 0.04 | P153: 50 | Q153: 2 | R153: 50 | S153: 2 | X153: 0.04 | Z153: 0 | AA153: 0 | AB153: 0
A154: 4.04 | B154: Replacement of bedding (once in 3 years) | I154: 0 | J154: 0 | O154: 0.0075 | P154: =P157 -> 50 | Q154: 0.375 | R154: 50 | S154: 0.375 | X154: 0.0075 | Y154: =Y157 -> 50 | Z154: 0.375 | AA154: 50 | AB154: 0.375
B155: Sub Total (Non Recurring) | C155: =SUM(C151:C154) -> 0 | D155: =SUM(D151:D154) -> 0 | E155: 0 | F155: 0 | I155: =SUM(I151:I154) -> 0 | J155: 0 | K155: 0 | L155: 0 | M155: 0 | N155: 0 | O155: 5.0475 | P155: 100 | Q155: 2.375 | R155: 100 | S155: 2.375 | T155: 0 | U155: 0 | V155: 0 | W155: 0 | X155: 5.0475 | Y155: 50 | Z155: 0.375 | AA155: 50 | AB155: 0.375
B156: Recurring (50 children) | I156: 0 | J156: 0 | Q156: 0 | R156: 0 | S156: 0 | Z156: =+Y156*X156 -> 0 | AA156: =+Y156+V156+T156 -> 0 | AB156: 0
A157: 4.05 | B157: Maintenance per child Per month @ Rs.1500/- | C157: 50 | D157: 9 | E157: =+C157 -> 50 | F157: =+D157*0.98 -> 8.82 | G157: 1 | H157: 0.98 | I157: 0 | J157: 0.18 | O157: 0.18 | P157: 50 | Q157: 9 | R157: 50 | S157: 9 | X157: 0.18 | Y157: =C157 -> 50 | Z157: 9 | AA157: 50 | AB157: 9
A158: =+A157+0.01 -> 4.06 | B158: Stipend per child per month @ Rs.100/- | C158: 50 | D158: 0.6 | E158: =+C158 -> 50 | F158: =+D158*0.98 -> 0.588 | G158: 1 | H158: 0.98 | I158: 0 | J158: 0.012 | O158: 0.012 | P158: 50 | Q158: 0.6 | R158: 50 | S158: 0.6 | X158: 0.012 | Y158: =C158 -> 50 | Z158: 0.6 | AA158: 50 | AB158: 0.6
A159: 4.07 | B159: Supplementary TLM, Stationery and other educational material @Rs.1000/- per child per annum | C159: 50 | D159: 0.5 | E159: 50 | F159: =+D159*0.95 -> 0.475 | G159: 1 | H159: 0.95 | I159: 0 | J159: 0.025 | O159: 0.01 | P159: 50 | Q159: 0.5 | R159: 50 | S159: 0.5 | X159: 0.01 | Y159: 50 | Z159: 0.5 | AA159: 50 | AB159: 0.5
B160: Salaries | C160: 0 | D160: 0 | I160: 0 | J160: 0 | P160: 0 | Q160: 0 | R160: 0 | S160: 0 | Y160: 0 | Z160: 0 | AA160: 0 | AB160: 0
A161: (a) | B161: 1 Warden @ Rs.25000/- per month | C161: 1 | D161: 2.4 | E161: =+C161 -> 1 | F161: =+D161*0.77 -> 1.848 | G161: 1 | H161: 0.77 | I161: 0 | J161: 0.552 | O161: 3 | P161: 1 | Q161: 3 | R161: 1 | S161: 3 | X161: 3 | Y161: 1 | Z161: 3 | AA161: 1 | AB161: 3
A162: (b) | B162: 4 Fulltime teachers as per RTE Norms @ Rs. 20,000/- per month per teacher | I162: 0 | J162: 0 | O162: 3 | Q162: 0 | R162: 0 | S162: 0 | X162: 3 | Y162: 0 | Z162: 0 | AA162: 0 | AB162: 0
A163: (c) | B163: 2 Urdu Teachers (only for Blocks with muslim population above 20% and select urban areas) @ Rs.12,000/- per month per teacher. | I163: 0 | J163: 0 | O163: 9.6 | Q163: 0 | R163: 0 | S163: 0 | X163: 9.6 | Y163: 0 | Z163: 0 | AA163: 0 | AB163: 0
A164: (d) | B164: 3 Part time teachers @ Rs.5,000/- per month per teacher | C164: 1 | D164: 1.5 | E164: =+C164 -> 1 | F164: =+D164*0.85 -> 1.275 | G164: 1 | H164: 0.85 | I164: 0 | J164: 0.225 | O164: 1.8 | P164: 1 | Q164: 1.8 | R164: 1 | S164: 1.8 | X164: 1.8 | Y164: 1 | Z164: 1.8 | AA164: 1 | AB164: 1.8
A165: (e) | B165: 1 Full time Accountant @ Rs. 10,000/- per month | C165: 1 | D165: 1.2 | E165: =+C165 -> 1 | F165: =+D165*0.72 -> 0.864 | G165: 1 | H165: 0.72 | I165: 0 | J165: 0.336 | O165: 1.2 | P165: 1 | Q165: 1.2 | R165: 1 | S165: 1.2 | X165: 1.2 | Y165: 1 | Z165: 1.2 | AA165: 1 | AB165: 1.2
A166: (f) | B166: 2 Support staff - (Accountant/Assistant, Peon, Chowkidar) @ Rs. 5,000/- per month per staff | C166: 1 | D166: 1.2 | E166: 1 | F166: =+D166*0.96 -> 1.152 | G166: 1 | H166: 0.96 | I166: 0 | J166: 0.048 | O166: 1.2 | P166: 1 | Q166: 1.2 | R166: 1 | S166: 1.2 | X166: 1.2 | Y166: 1 | Z166: 1.2 | AA166: 1 | AB166: 1.2
A167: (g) | B167: 1 Head Cook @ Rs. 6,000/- per month and upto 2 Asstt. Cooks @ Rs. 4,500/- per month per cook | C167: 1 | D167: 1.26 | E167: 1 | F167: =+D167*0.96 -> 1.2096 | G167: 1 | H167: 0.96 | I167: 0 | J167: 0.0504 | O167: 1.8 | P167: 1 | Q167: 1.8 | R167: 1 | S167: 1.8 | X167: 1.8 | Y167: 1 | Z167: 1.8 | AA167: 1 | AB167: 1.8
A168: 4.08 | B168: Specific Skill training @ Rs.1000/- per annum per child | C168: 50 | D168: 0.5 | E168: 50 | F168: =+D168*0.9 -> 0.45 | G168: 1 | H168: 0.9 | I168: 0 | J168: 0.05 | O168: 0.01 | P168: 50 | Q168: 0.5 | R168: 50 | S168: 0.5 | X168: 0.01 | Y168: 50 | Z168: 0.5 | AA168: 50 | AB168: 0.5
A169: =+A168+0.01 -> 4.09 | B169: Electricity / water charges @ Rs. 1000/- per annum per child | C169: 50 | D169: 0.5 | E169: 50 | F169: =+D169 -> 0.5 | G169: 1 | H169: 1 | I169: 0 | J169: 0 | O169: 0.01 | P169: 50 | Q169: 0.5 | R169: 50 | S169: 0.5 | X169: 0.01 | Y169: 50 | Z169: 0.5 | AA169: 50 | AB169: 0.5
A170: 4.1 | B170: Medical care/contingencies @ Rs.1250/- per annum per child | C170: 50 | D170: 0.625 | E170: 50 | F170: 0.625 | G170: 1 | H170: 1 | I170: 0 | J170: 0 | O170: 0.0125 | P170: 50 | Q170: 0.625 | R170: 50 | S170: 0.625 | X170: 0.0125 | Y170: 50 | Z170: 0.625 | AA170: 50 | AB170: 0.625
A171: 4.11 | B171: Maintenance @ Rs. 750/- per child per annum | C171: 50 | D171: 0.375 | E171: 50 | F171: 0.375 | G171: 1 | H171: 1 | I171: 0 | J171: 0 | O171: 0.0075 | P171: 50 | Q171: 0.375 | R171: 50 | S171: 0.375 | X171: 0.0075 | Y171: 50 | Z171: 0.375 | AA171: 50 | AB171: 0.375
A172: 4.12 | B172: Miscellaneous @ Rs. 750/- per child per annum | C172: 50 | D172: 0.375 | E172: 50 | F172: 0.375 | G172: 1 | H172: 1 | I172: 0 | J172: 0 | O172: 0.0075 | P172: 50 | Q172: 0.375 | R172: 50 | S172: 0.375 | X172: 0.0075 | Y172: 50 | Z172: 0.375 | AA172: 50 | AB172: 0.375
A173: 4.13 | B173: Preparatory camps @ Rs. 300/- per child per annum | C173: 50 | D173: 0.15 | E173: 50 | F173: =+D173*0.8 -> 0.12 | G173: 1 | H173: 0.8 | I173: 0 | J173: 0.03 | O173: 0.003 | P173: 50 | Q173: 0.15 | R173: 50 | S173: 0.15 | X173: 0.003 | Y173: 50 | Z173: 0.15 | AA173: 50 | AB173: 0.15
A174: 4.14 | B174: P.T.A / school functions @ Rs. 300/- per child per annum | C174: 50 | D174: 0.15 | E174: 50 | F174: =+D174*0.8 -> 0.12 | G174: 1 | H174: 0.8 | I174: 0 | J174: 0.03 | O174: 0.003 | P174: 50 | Q174: 0.15 | R174: 50 | S174: 0.15 | X174: 0.003 | Y174: 50 | Z174: 0.15 | AA174: 50 | AB174: 0.15
A175: 4.15 | B175: Provision of Rent @ Rs. 10,000/- per child per annum | I175: 0 | J175: 0 | O175: 0 | Q175: 0 | R175: 0 | S175: 0 | X175: 0 | Y175: 0 | Z175: 0 | AA175: 0 | AB175: 0
A176: 4.16 | B176: Capacity Building @ Rs. 500/- per child per annum | C176: 50 | D176: 0.25 | E176: =+C176 -> 50 | F176: =+D176*0.61 -> 0.1525 | G176: 1 | H176: 0.61 | I176: 0 | J176: 0.0975 | O176: 0.005 | P176: 50 | Q176: 0.25 | R176: 50 | S176: 0.25 | X176: 0.005 | Y176: 50 | Z176: 0.25 | AA176: 50 | AB176: 0.25
A177: 4.17 | B177: Physical / Self Defence Training @ Rs.200/- per child per annum | C177: 50 | D177: 0.1 | E177: 50 | F177: =+D177*0.61 -> 0.061 | G177: 1 | H177: 0.61 | I177: 0 | J177: 0.039 | O177: 0.002 | P177: 50 | Q177: 0.1 | R177: 50 | S177: 0.1 | X177: 0.002 | Y177: 50 | Z177: 0.1 | AA177: 50 | AB177: 0.1
B178: Sub Total (Recurring) | C178: =+C157 -> 50 | D178: =SUM(D157:D177) -> 20.685 | E178: =+E157 -> 50 | F178: 19.0101 | G178: 1 | H178: 0.9190282814 | I178: =SUM(I157:I177) -> 0 | J178: 1.6749 | K178: 0 | L178: 0 | M178: 0 | N178: 0 | O178: 21.8625 | P178: =+P157 -> 50 | Q178: 22.125 | R178: =+R157 -> 50 | S178: 22.125 | T178: 0 | U178: 0 | V178: 0 | W178: 0 | X178: 21.8625 | Y178: =+Y157 -> 50 | Z178: =SUM(Z157:Z177) -> 22.125 | AA178: =+AA157 -> 50 | AB178: =SUM(AB157:AB177) -> 22.125
B179: Total (Non Recurring + Recurring) | C179: =+C178+C155 -> 50 | D179: =+D178+D155 -> 20.685 | E179: 50 | F179: 19.0101 | G179: 1 | H179: 0.9190282814 | I179: =+I178+I155 -> 0 | J179: 1.6749 | K179: 0 | L179: 0 | M179: 0 | N179: 0 | O179: 26.91 | P179: =+P178 -> 50 | Q179: 24.5 | R179: =+R178 -> 50 | S179: =+S178+S155 -> 24.5 | T179: =+T178+T155 -> 0 | U179: 0 | V179: 0 | W179: 0 | X179: 26.91 | Y179: =+Y178 -> 50 | Z179: =+Z178+Z155 -> 22.5 | AA179: =+AA178 -> 50 | AB179: =+AB178+AB155 -> 22.5
A180: (B) | B180: 100 Children Girls Hostels | C180: 1 | E180: =+C180 -> 1 | G180: 1 | I180: 0 | J180: 0 | P180: 0 | Q180: 0 | R180: 1 | S180: 0 | Z180: =+Y180*X180 -> 0 | AA180: =+C180 -> 1 | AB180: =+Z180+W180+U180 -> 0
B181: Non-recurring (one time grant) | I181: 0 | J181: 0 | Q181: 0 | R181: 0 | S181: 0 | Z181: 0 | AA181: =+Y181+V181+T181 -> 0 | AB181: 0
A182: 5.01 | B182: Furniture / Equipment (including kitchen equipment) | I182: 0 | J182: 0 | O182: 3 | Q182: 0 | R182: 0 | S182: 0 | X182: 3 | Z182: 0 | AA182: 0 | AB182: 0
A183: =+A182+0.01 -> 5.02 | B183: TLM and equipment including library books (New) | I183: 0 | J183: 0 | O183: 3.5 | Q183: 0 | R183: 0 | S183: 0 | X183: 3.5 | Z183: 0 | AA183: 0 | AB183: 0
A184: 5.03 | B184: Beds for Girls | I184: 0 | J184: 0 | O184: 0.04 | P184: 100 | Q184: 4 | R184: 100 | S184: 4 | X184: 0.04 | Z184: 0 | AA184: 0 | AB184: 0
A185: 5.04 | B185: Replacement of bedding (once in 3 years) | I185: 0 | J185: 0 | O185: 0.0075 | P185: =P188 -> 100 | Q185: 0.75 | R185: 100 | S185: 0.75 | X185: 0.0075 | Y185: =Y188 -> 100 | Z185: 0.75 | AA185: 100 | AB185: 0.75
B186: Sub Total Non-recurring | C186: =SUM(C182:C185) -> 0 | D186: =SUM(D182:D185) -> 0 | E186: 0 | F186: 0 | I186: =SUM(I182:I185) -> 0 | J186: 0 | K186: 0 | L186: 0 | M186: 0 | N186: 0 | O186: 6.5475 | P186: 200 | Q186: 4.75 | R186: 200 | S186: 4.75 | T186: 0 | U186: 0 | V186: 0 | W186: 0 | X186: 6.5475 | Y186: 100 | Z186: 0.75 | AA186: 100 | AB186: 0.75
B187: Recurring | I187: 0 | J187: 0 | Q187: 0 | R187: 0 | S187: 0 | Z187: =+Y187*X187 -> 0 | AA187: =+Y187+V187+T187 -> 0 | AB187: 0
A188: 5.05 | B188: Maintenance per child per month @ Rs. 1500/- | C188: 100 | D188: 18 | E188: =+C188 -> 100 | F188: =+D188*0.98 -> 17.64 | G188: 1 | H188: 0.98 | I188: 0 | J188: 0.36 | O188: 0.18 | P188: 100 | Q188: 18 | R188: 100 | S188: 18 | X188: 0.18 | Y188: 100 | Z188: 18 | AA188: 100 | AB188: 18
A189: =+A188+0.01 -> 5.06 | B189: Stipend per child per month @ Rs.100/- | C189: 100 | D189: 1.2 | E189: =+C189 -> 100 | F189: =+D189*0.98 -> 1.176 | G189: 1 | H189: 0.98 | I189: 0 | J189: 0.024 | O189: 0.012 | P189: 100 | Q189: 1.2 | R189: 100 | S189: 1.2 | X189: 0.012 | Y189: 100 | Z189: 1.2 | AA189: 100 | AB189: 1.2
A190: 5.07 | B190: Supplementary TLM, Stationery and other educational material per child @1000/- per annum | C190: 100 | D190: 1 | E190: 100 | F190: =+D190*0.95 -> 0.95 | G190: 1 | H190: 0.95 | I190: 0 | J190: 0.05 | O190: 0.01 | P190: 100 | Q190: 1 | R190: 100 | S190: 1 | X190: 0.01 | Y190: 100 | Z190: 1 | AA190: 100 | AB190: 1
B191: Salaries | C191: 0 | D191: 0 | I191: 0 | J191: 0 | P191: 0 | Y191: 0
A192: (a) | B192: 1 Warden @ Rs. 25,000/- per month | C192: 1 | D192: 2.4 | E192: =+C192 -> 1 | F192: =+D192*0.78 -> 1.872 | G192: 1 | H192: 0.78 | I192: 0 | J192: 0.528 | O192: 3 | P192: 1 | Q192: =+P192*O192 -> 3 | R192: =+P192+M192+K192 -> 1 | S192: 3 | X192: 3 | Y192: 1 | Z192: =+Y192*X192 -> 3 | AA192: =+Y192+V192+T192 -> 1 | AB192: 3
A193: (b) | B193: 1 head teacher @ Rs. 25,000/- per month in case the enrollment exceeds 100 | I193: 0 | J193: 0 | O193: 3 | Q193: 0 | R193: 0 | S193: 0 | X193: 3 | Z193: 0 | AA193: 0 | AB193: 0
A194: (c) | B194: 4 - 5 Full time teachers as per RTE norms @ Rs. 20,000/- per month per teacher | I194: 0 | J194: 0 | O194: 9.6 | Q194: 0 | R194: 0 | S194: 0 | X194: 9.6 | Z194: 0 | AA194: 0 | AB194: 0
A195: (d) | B195: 2 Urdu Teachers (only for blocks with muslim population above 20% and select urban areas), if required @ Rs. 12,000/- per month per teacher | E195: =+C195 -> 0 | F195: =+D195*0.85 -> 0 | I195: 0 | J195: 0 | O195: 2.88 | Q195: 0 | R195: 0 | S195: 0 | X195: 2.88 | Z195: 0 | AA195: 0 | AB195: 0
A196: (e) | B196: 3 part time teachers @ Rs. 5,000/- per month per teacher | C196: 1 | D196: 1.5 | E196: =+C196 -> 1 | F196: =+D196*0.72 -> 1.08 | G196: 1 | H196: 0.72 | I196: 0 | J196: 0.42 | O196: 1.8 | P196: 1 | Q196: 1.8 | R196: 1 | S196: 1.8 | X196: 1.8 | Y196: 1 | Z196: 1.8 | AA196: 1 | AB196: 1.8
A197: (f) | B197: 1 Full time Accountant @ Rs. 10,000/- per month | C197: 1 | D197: 1.2 | E197: 1 | F197: =+D197*0.96 -> 1.152 | G197: 1 | H197: 0.96 | I197: 0 | J197: 0.048 | O197: 1.2 | P197: 1 | Q197: 1.2 | R197: 1 | S197: 1.2 | X197: 1.2 | Y197: 1 | Z197: 1.2 | AA197: 1 | AB197: 1.2
A198: 5.08 | B198: 2 Support Staff – (Accountant/ Assistant, Peon, Chowkidar) @ Rs. 5,000/- per month per staff | C198: 1 | D198: 1.2 | E198: 1 | F198: =+D198*0.96 -> 1.152 | G198: 1 | H198: 0.96 | I198: 0 | J198: 0.048 | O198: 1.2 | P198: 1 | Q198: 1.2 | R198: 1 | S198: 1.2 | X198: 1.2 | Y198: 1 | Z198: 1.2 | AA198: 1 | AB198: 1.2
A199: =+A198+0.01 -> 5.09 | B199: 1 Head cook @ Rs. 6,000/- per month and upto 2 Asstt. Cooks @ Rs. 4,500/- per month per cook | C199: 1 | D199: 1.8 | E199: 1 | F199: =+D199*0.9 -> 1.62 | G199: 1 | H199: 0.9 | I199: 0 | J199: 0.18 | O199: 1.8 | P199: 1 | Q199: 1.8 | R199: 1 | S199: 1.8 | X199: 1.8 | Y199: 1 | Z199: 1.8 | AA199: 1 | AB199: 1.8
A200: 5.1 | B200: Specific skill training per child @ Rs.1000/- per annum | C200: 100 | D200: 1 | E200: 100 | F200: =+D200*0.9 -> 0.9 | G200: 1 | H200: 0.9 | I200: 0 | J200: 0.1 | O200: 0.01 | P200: 100 | Q200: 1 | R200: 100 | S200: 1 | X200: 0.01 | Y200: 100 | Z200: 1 | AA200: 100 | AB200: 1
A201: 5.11 | B201: Electricity / water charges per child @Rs.1000/- per annum | C201: 100 | D201: 1 | E201: 100 | F201: =+D201 -> 1 | G201: 1 | H201: 1 | I201: 0 | J201: 0 | O201: 0.01 | P201: 100 | Q201: 1 | R201: 100 | S201: 1 | X201: 0.01 | Y201: 100 | Z201: 1 | AA201: 100 | AB201: 1
A202: 5.12 | B202: Medical care/contingencies @ Rs.1250/- per child per annum | C202: 100 | D202: 1.25 | E202: 100 | F202: 1.25 | G202: 1 | H202: 1 | I202: 0 | J202: 0 | O202: 0.0125 | P202: 100 | Q202: 1.25 | R202: 100 | S202: 1.25 | X202: 0.0125 | Y202: 100 | Z202: 1.25 | AA202: 100 | AB202: 1.25
... 403 more rows

Sheet Ashoknagar
A1: State Summary for AWP&B - 2017-18 , SSA, Madhya Pradesh (Rs in Lakhs)
A3: District : | B3: Ashoknagar
A5: S.No. | B5: Activity | C5: Year 2016-17 | K5: Outlay Proposed for 2017-18 | T5: Outlay Recommended for 2017-18 | AC5: Remarks
C6: Outlay approved by PAB (including spillover) | E6: Expected Achievement till March'2017 | I6: Savings | K6: Spill Over | M6: Deferred laibility of 2016-17 | O6: Fresh | R6: Total | T6: Spill Over | V6: Deferred laibility of 2016-17 | X6: Fresh | AA6: Total
C7: Phy. | D7: Fin | E7: Phy. | F7: Fin. | G7: Phy. (%) | H7: Fin. (%) | I7: Phy. | J7: Fin. | K7: Phy. | L7: Fin. | M7: Phy. | N7: Fin. | O7: Unit Cost | P7: Phy. | Q7: Fin. | R7: Phy. | S7: Fin. | T7: Phy. | U7: Fin. | V7: Phy. | W7: Fin. | X7: Unit Cost | Y7: Phy. | Z7: Fin. | AA7: Phy. | AB7: Fin.
A8: I | B8: ACCESS
B9: SSA
A10: 1 | B10: Opening of New Schools
A11: 1.01 | B11: New Primary School
A12: 1.02 | B12: Upgradation of PS to UPS
A13: 1.03 | B13: Composite Schools
A14: 1.04 | B14: Residential schools for specific category of children
A15: 1.05 | B15: Residential Hostel | P15: 1 | R15: =+P15 -> 1 | AA15: =+Y15 -> 0
A16: 1.06 | B16: Integration of Class V with primary schools
A17: 1.07 | B17: Integration of Class VIII with upper primary schools
A18: 2 | B18: Residential Schools for specific category of children
A19: A | B19: 50 children
B20: Non-recurring (one time grant) | G20: =+E20/C20 ->  | H20: =+F20/D20 ->  | I20: =+C20-E20 -> 0 | J20: =+D20-F20 -> 0
A21: 2.01 | B21: Furniture/ Equipment (including kitchen) | G21: =+E21/C21 ->  | I21: =+C21-E21 -> 0 | J21: 0 | O21: 2 | Q21: =+P21*O21 -> 0 | R21: =+P21+M21+K21 -> 0 | S21: =+Q21+N21+L21 -> 0 | X21: 2 | Z21: =+Y21*X21 -> 0 | AA21: =+Y21+V21+T21 -> 0 | AB21: =+Z21+W21+U21 -> 0
A22: 2.02 | B22: TLM and equipment including library books | I22: 0 | J22: 0 | O22: 3 | Q22: =+P22*O22 -> 0 | R22: =+P22+M22+K22 -> 0 | S22: 0 | X22: 3 | Z22: =+Y22*X22 -> 0 | AA22: =+Y22+V22+T22 -> 0 | AB22: 0
A23: 2.03 | B23: Bedding (new) | I23: 0 | J23: 0 | O23: 0.375 | Q23: 0 | R23: 0 | S23: 0 | X23: 0.375 | Z23: 0 | AA23: 0 | AB23: 0
A24: 2.04 | B24: Replacement of bedding (once in 3 years) | I24: 0 | J24: 0 | Q24: 0 | R24: 0 | S24: 0 | Z24: 0 | AA24: 0 | AB24: 0
B25: Sub Total (Non Recurring) | I25: 0 | J25: 0 | Q25: 0 | R25: 0 | S25: 0 | Z25: 0 | AA25: 0 | AB25: 0
B26: Recurring (50 children) | I26: 0 | J26: 0 | Q26: 0 | R26: 0 | S26: 0 | Z26: 0 | AA26: 0 | AB26: 0
A27: 2.05 | B27: Maintenance per child Per month @ Rs.1500/- | I27: 0 | J27: 0 | O27: 9 | Q27: 0 | R27: 0 | S27: 0 | X27: 9 | Z27: 0 | AA27: 0 | AB27: 0
A28: 2.06 | B28: Stipend per child per month @ Rs.100/- | I28: 0 | J28: 0 | O28: 0.6 | Q28: 0 | R28: 0 | S28: 0 | X28: 0.6 | Z28: 0 | AA28: 0 | AB28: 0
A29: 2.07 | B29: Supplementary TLM, Stationery and other educational material @Rs.1000/- per child per annum | I29: 0 | J29: 0 | O29: 0.5 | Q29: 0 | R29: 0 | S29: 0 | X29: 0.5 | Z29: 0 | AA29: 0 | AB29: 0
A30: 2.08 | B30: Salaries | I30: 0 | J30: 0 | Q30: 0 | R30: 0 | S30: 0 | Z30: 0 | AA30: 0 | AB30: 0
A31: (a) | B31: 1 Warden @ Rs.25000/- per month | I31: 0 | J31: 0 | O31: 3 | Q31: 0 | R31: 0 | S31: 0 | X31: 3 | Z31: 0 | AA31: 0 | AB31: 0
A32: (b) | B32: 4 Fulltime teachers as per RTE Norms @ Rs. 20,000/- per month per teacher | I32: 0 | J32: 0 | O32: 9.6 | Q32: 0 | R32: 0 | S32: 0 | X32: 9.6 | Z32: 0 | AA32: 0 | AB32: 0
A33: (c) | B33: 2 Urdu Teachers (only for Blocks with muslim population above 20% and select urban areas) @ Rs.12,000/- per month per teacher. | I33: 0 | J33: 0 | O33: 2.88 | Q33: 0 | R33: 0 | S33: 0 | X33: 2.88 | Z33: 0 | AA33: 0 | AB33: 0
A34: (d) | B34: 3 Part time teachers @ Rs.5,000/- per month per teacher | I34: 0 | J34: 0 | O34: 1.5 | Q34: 0 | R34: 0 | S34: 0 | X34: 1.5 | Z34: 0 | AA34: 0 | AB34: 0
A35: (e) | B35: 1 Full time Accountant @ Rs. 10,000/- per month | I35: 0 | J35: 0 | O35: 1.2 | Q35: 0 | R35: 0 | S35: 0 | X35: 1.2 | Z35: 0 | AA35: 0 | AB35: 0
A36: (f) | B36: 2 Support staff - (Accountant/Assistant, Peon, Chowkidar) @ Rs. 5,000/- per month per staff | I36: 0 | J36: 0 | O36: 1.2 | Q36: 0 | R36: 0 | S36: 0 | X36: 1.2 | Z36: 0 | AA36: 0 | AB36: 0
A37: (g) | B37: 1 Head Cook @ Rs. 6,000/- per month and upto 2 Asstt. Cooks @ Rs. 4,500/- per month per cook | I37: 0 | J37: 0 | O37: 1.8 | Q37: 0 | R37: 0 | S37: 0 | X37: 1.8 | Z37: 0 | AA37: 0 | AB37: 0
A38: 2.09 | B38: Specific Skill training @ Rs.1000/- per annum per child | I38: 0 | J38: 0 | O38: 0.5 | Q38: 0 | R38: 0 | S38: 0 | X38: 0.5 | Z38: 0 | AA38: 0 | AB38: 0
A39: 2.1 | B39: Electricity / water charges @ Rs. 1000/- per annum per child | I39: 0 | J39: 0 | O39: 0.5 | Q39: 0 | R39: 0 | S39: 0 | X39: 0.5 | Z39: 0 | AA39: 0 | AB39: 0
A40: =+A39+0.01 -> 2.11 | B40: Medical care/contingencies @ Rs.1250/- per annum per child | I40: 0 | J40: 0 | O40: 0.625 | Q40: 0 | R40: 0 | S40: 0 | X40: 0.625 | Z40: 0 | AA40: 0 | AB40: 0
A41: =+A40+0.01 -> 2.12 | B41: Maintenance @ Rs. 750/- per child per annum | I41: 0 | J41: 0 | O41: 0.375 | Q41: 0 | R41: 0 | S41: 0 | X41: 0.375 | Z41: 0 | AA41: 0 | AB41: 0
A42: 2.13 | B42: Miscellaneous @ Rs. 750/- per child per annum | I42: 0 | J42: 0 | O42: 0.375 | Q42: 0 | R42: 0 | S42: 0 | X42: 0.375 | Z42: 0 | AA42: 0 | AB42: 0
A43: 2.14 | B43: Preparatory camps @ Rs. 300/- per child per annum | I43: 0 | J43: 0 | O43: 0.15 | Q43: 0 | R43: 0 | S43: 0 | X43: 0.15 | Z43: 0 | AA43: 0 | AB43: 0
A44: 2.15 | B44: P.T.A / school functions @ Rs. 300/- per child per annum | I44: 0 | J44: 0 | O44: 0.15 | Q44: 0 | R44: 0 | S44: 0 | X44: 0.15 | Z44: 0 | AA44: 0 | AB44: 0
A45: 2.16 | B45: Provision of Rent @ Rs. 10,000/- per child per annum | I45: 0 | J45: 0 | Q45: 0 | R45: 0 | S45: 0 | Z45: 0 | AA45: 0 | AB45: 0
A46: 2.17 | B46: Capacity Building @ Rs. 500/- per child per annum | I46: 0 | J46: 0 | O46: 0.25 | Q46: 0 | R46: 0 | S46: 0 | X46: 0.25 | Z46: 0 | AA46: 0 | AB46: 0
A47: 2.18 | B47: Physical / Self Defence Training @ Rs.200/- per child per annum | I47: 0 | J47: 0 | O47: 0.1 | Q47: 0 | R47: 0 | S47: 0 | X47: 0.1 | Z47: 0 | AA47: 0 | AB47: 0
B48: Sub Total (Recurring) | I48: 0 | J48: 0 | Q48: 0 | R48: 0 | S48: 0 | Z48: 0 | AA48: 0 | AB48: 0
B49: Total (Non Recurring + Recurring) | I49: 0 | J49: 0 | Q49: 0 | R49: 0 | S49: 0 | Z49: 0 | AA49: 0 | AB49: 0
A50: B | B50: 100 children | I50: 0 | J50: 0 | Q50: 0 | R50: 0 | S50: 0 | Z50: 0 | AA50: 0 | AB50: 0
B51: Non-recurring (one time grant) | I51: 0 | J51: 0 | Q51: 0 | R51: 0 | S51: 0 | Z51: 0 | AA51: 0 | AB51: 0
A52: 2.19 | B52: Furniture / Equipment (including kitchen equipment) | I52: 0 | J52: 0 | O52: 3 | Q52: 0 | R52: 0 | S52: 0 | X52: 3 | Z52: 0 | AA52: 0 | AB52: 0
A53: =+A52+0.01 -> 2.2 | B53: TLM and equipment including library books (New) | I53: 0 | J53: 0 | O53: 3.5 | Q53: 0 | R53: 0 | S53: 0 | X53: 3.5 | Z53: 0 | AA53: 0 | AB53: 0
A54: 2.21 | B54: Beds for Boys | I54: 0 | J54: 0 | O54: 0.04 | P54: 0 | Q54: 0 | R54: 0 | S54: 0 | X54: 0.04 | Z54: 0 | AA54: 0 | AB54: 0
A55: 2.22 | B55: Replacement of bedding (once in 3 years) | I55: 0 | J55: 0 | O55: 0.0075 | P55: =P58 -> 0 | Q55: 0 | R55: 0 | S55: 0 | X55: 0.0075 | Y55: =Y58 -> 0 | Z55: 0 | AA55: 0 | AB55: 0
B56: Sub Total Non-recurring | C56: =SUM(C52:C55) -> 0 | D56: =SUM(D52:D55) -> 0 | E56: 0 | F56: 0 | I56: =SUM(I52:I55) -> 0 | J56: 0 | K56: 0 | L56: 0 | M56: 0 | N56: 0 | O56: 6.5475 | P56: 0 | Q56: 0 | R56: 0 | S56: 0 | T56: 0 | U56: 0 | V56: 0 | W56: 0 | X56: 6.5475 | Y56: 0 | Z56: 0 | AA56: 0 | AB56: 0
B57: Recurring | I57: 0 | J57: 0 | Q57: 0 | R57: 0 | S57: 0 | Z57: =+Y57*X57 -> 0 | AA57: =+Y57+V57+T57 -> 0 | AB57: 0
A58: 2.23 | B58: Maintenance per child per month @ Rs. 1500/- | C58: 0 | D58: 0 | E58: =+C58 -> 0 | F58: =+D58*0.98 -> 0 | I58: 0 | J58: 0 | O58: 0.18 | P58: 0 | Q58: 0 | R58: 0 | S58: 0 | X58: 0.18 | Y58: =+P58 -> 0 | Z58: 0 | AA58: 0 | AB58: 0
A59: =+A58+0.01 -> 2.24 | B59: Stipend per child per month @ Rs.100/- | C59: 0 | D59: 0 | E59: =+C59 -> 0 | F59: =+D59*0.98 -> 0 | G59: =+E59/C59 ->  | I59: 0 | J59: 0 | O59: 0.012 | P59: 0 | Q59: 0 | R59: 0 | S59: 0 | X59: 0.012 | Y59: 0 | Z59: 0 | AA59: 0 | AB59: 0
A60: 2.25 | B60: Supplementary TLM, Stationery and other educational material per child @1000/- per annum | C60: 0 | D60: 0 | E60: 0 | F60: =+D60*0.95 -> 0 | I60: 0 | J60: 0 | O60: 0.01 | P60: 0 | Q60: 0 | R60: 0 | S60: 0 | X60: 0.01 | Y60: 0 | Z60: 0 | AA60: 0 | AB60: 0
A61: 2.26 | B61: Salaries | I61: 0 | J61: 0 | Q61: 0 | R61: 0 | S61: 0 | Y61: 0 | Z61: 0 | AA61: 0 | AB61: 0
A62: (a) | B62: 1 Warden @ Rs. 25,000/- per month | C62: 0 | D62: 0 | E62: =+C62 -> 0 | F62: =+D62*0.8 -> 0 | I62: 0 | J62: 0 | O62: 3 | P62: 0 | Q62: 0 | R62: 0 | S62: 0 | X62: 3 | Y62: 0 | Z62: 0 | AA62: 0 | AB62: 0 | AC62: =0.25*1*12 -> 3
A63: (b) | B63: 1 head teacher @ Rs. 25,000/- per month in case the enrollment exceeds 100 | I63: 0 | J63: 0 | O63: 3 | Q63: 0 | R63: 0 | S63: 0 | X63: 3 | Y63: 0 | Z63: 0 | AA63: 0 | AB63: 0
A64: (c) | B64: 4 - 5 Full time teachers as per RTE norms @ Rs. 20,000/- per month per teacher | I64: 0 | J64: 0 | O64: 9.6 | Q64: 0 | R64: 0 | S64: 0 | X64: 9.6 | Y64: 0 | Z64: 0 | AA64: 0 | AB64: 0
A65: (d) | B65: 2 Urdu Teachers (only for blocks with muslim population above 20% and select urban areas), if required @ Rs. 12,000/- per month per teacher | I65: 0 | J65: 0 | O65: 2.88 | Q65: 0 | R65: 0 | S65: 0 | X65: 2.88 | Y65: 0 | Z65: 0 | AA65: 0 | AB65: 0
A66: (e) | B66: 3 part time teachers @ Rs. 5,000/- per month per teacher | C66: 0 | D66: 0 | E66: =+C66 -> 0 | F66: =+D66*0.85 -> 0 | I66: 0 | J66: 0 | O66: 1.8 | P66: 0 | Q66: 0 | R66: 0 | S66: 0 | X66: 1.8 | Y66: 0 | Z66: 0 | AA66: 0 | AB66: 0
A67: (f) | B67: 1 Full time Accountant @ Rs. 10,000/- per month | C67: 0 | D67: 0 | E67: =+C67 -> 0 | F67: =+D67*0.72 -> 0 | I67: 0 | J67: 0 | O67: 1.2 | P67: 0 | Q67: 0 | R67: 0 | S67: 0 | X67: 1.2 | Y67: 0 | Z67: 0 | AA67: 0 | AB67: 0
A68: (g) | B68: 2 Support Staff – (Accountant/ Assistant, Peon, Chowkidar) @ Rs. 5,000/- per month per staff | C68: 0 | D68: 0 | E68: 0 | F68: =+D68*0.96 -> 0 | I68: 0 | J68: 0 | O68: 1.2 | P68: 0 | Q68: 0 | R68: 0 | S68: 0 | X68: 1.2 | Y68: 0 | Z68: 0 | AA68: 0 | AB68: 0
A69: (h) | B69: 1 Head cook @ Rs. 6,000/- per month and upto 2 Asstt. Cooks @ Rs. 4,500/- per month per cook | C69: 0 | D69: 0 | E69: 0 | F69: =+D69*0.96 -> 0 | I69: 0 | J69: 0 | O69: 1.8 | P69: 0 | Q69: 0 | R69: 0 | S69: 0 | X69: 1.8 | Y69: 0 | Z69: 0 | AA69: 0 | AB69: 0
A70: 2.27 | B70: Specific skill training per child @ Rs.1000/- per annum | C70: 0 | D70: 0 | E70: 0 | F70: =+D70*0.9 -> 0 | I70: 0 | J70: 0 | O70: 0.01 | P70: 0 | Q70: 0 | R70: 0 | S70: 0 | X70: 0.01 | Y70: 0 | Z70: 0 | AA70: 0 | AB70: 0
A71: 2.28 | B71: Electricity / water charges per child @Rs.1000/- per annum | C71: 0 | D71: 0 | E71: 0 | F71: =+D71 -> 0 | I71: 0 | J71: 0 | O71: 0.01 | P71: 0 | Q71: 0 | R71: 0 | S71: 0 | X71: 0.01 | Y71: 0 | Z71: 0 | AA71: 0 | AB71: 0
A72: 2.29 | B72: Medical care/contingencies @ Rs.1250/- per child per annum | C72: 0 | D72: 0 | E72: 0 | F72: 0 | I72: 0 | J72: 0 | O72: 0.0125 | P72: 0 | Q72: 0 | R72: 0 | S72: 0 | X72: 0.0125 | Y72: 0 | Z72: 0 | AA72: 0 | AB72: 0
A73: 2.3 | B73: Maintenance @ Rs.750/- per child per annum | C73: 0 | D73: 0 | E73: 0 | F73: 0 | I73: 0 | J73: 0 | O73: 0.0075 | P73: 0 | Q73: 0 | R73: 0 | S73: 0 | X73: 0.0075 | Y73: 0 | Z73: 0 | AA73: 0 | AB73: 0
A74: 2.31 | B74: Miscellaneous @ Rs.750/- per child per annum | C74: 0 | D74: 0 | E74: 0 | F74: 0 | I74: 0 | J74: 0 | O74: 0.0075 | P74: 0 | Q74: 0 | R74: 0 | S74: 0 | X74: 0.0075 | Y74: 0 | Z74: 0 | AA74: 0 | AB74: 0
A75: 2.32 | B75: Preparatory camps @ Rs.200/- per child per annum | C75: 0 | D75: 0 | E75: 0 | F75: =+D75*0.8 -> 0 | I75: 0 | J75: 0 | O75: 0.003 | P75: 0 | Q75: 0 | R75: 0 | S75: 0 | X75: 0.003 | Y75: 0 | Z75: 0 | AA75: 0 | AB75: 0
A76: 2.33 | B76: P.T.A / school functions @ Rs.200/- per child per annum | C76: 0 | D76: 0 | E76: 0 | F76: =+D76*0.8 -> 0 | I76: 0 | J76: 0 | O76: 0.003 | P76: 0 | Q76: 0 | R76: 0 | S76: 0 | X76: 0.003 | Y76: 0 | Z76: 0 | AA76: 0 | AB76: 0
A77: 2.34 | B77: Provision of Rent @ Rs. 6000/- per child per annum | I77: 0 | J77: 0 | O77: 0 | Q77: 0 | R77: 0 | S77: 0 | X77: 0 | Y77: 0 | Z77: 0 | AA77: 0 | AB77: 0
A78: 2.35 | B78: Capacity Building @ Rs.500/- per child per annum | C78: 0 | D78: 0 | E78: =+C78 -> 0 | F78: =+D78*0.61 -> 0 | I78: 0 | J78: 0 | O78: 0.005 | P78: 0 | Q78: 0 | R78: 0 | S78: 0 | X78: 0.005 | Y78: 0 | Z78: 0 | AA78: 0 | AB78: 0
A79: 2.36 | B79: Physical / Self Defence training @ Rs. 200/- per child per annum. | F79: =+D79*0.61 -> 0 | I79: 0 | J79: 0 | O79: 0.002 | P79: 0 | Q79: 0 | R79: 0 | S79: 0 | X79: 0.002 | Y79: 0 | Z79: 0 | AA79: 0 | AB79: 0
B80: Sub Total (Recurring) | C80: =+C58 -> 0 | D80: =SUM(D58:D79) -> 0 | E80: =+E58 -> 0 | F80: 0 | G80: =+E80/C80 ->  | I80: =SUM(I58:I79) -> 0 | J80: 0 | K80: 0 | L80: 0 | M80: 0 | N80: 0 | O80: 24.7425 | P80: =+P58 -> 0 | Q80: =SUM(Q58:Q79) -> 0 | R80: =+R58 -> 0 | S80: 0 | T80: 0 | U80: 0 | V80: 0 | W80: 0 | X80: 24.7425 | Y80: =+Y58 -> 0 | Z80: =SUM(Z58:Z79) -> 0 | AA80: =+AA58 -> 0 | AB80: =SUM(AB58:AB79) -> 0
B81: Total (Recurring + Non Recurring) | C81: =+C80+C56 -> 0 | D81: =+D80+D56 -> 0 | E81: 0 | F81: 0 | I81: =+I80+I56 -> 0 | J81: 0 | K81: 0 | L81: 0 | M81: 0 | N81: 0 | O81: 31.29 | P81: =P80 -> 0 | Q81: =+Q80+Q56 -> 0 | R81: =R80 -> 0 | S81: 0 | T81: 0 | U81: 0 | V81: 0 | W81: 0 | X81: 31.29 | Y81: =Y80 -> 0 | Z81: =+Z80+Z56 -> 0 | AA81: =AA80 -> 0 | AB81: =+AB80+AB56 -> 0
B82: Total (A + B) Residential Boys School | C82: =+C81+C49 -> 0 | D82: =+D81+D49 -> 0 | E82: 0 | F82: 0 | I82: =+I81+I49 -> 0 | J82: 0 | K82: 0 | L82: 0 | M82: 0 | N82: 0 | O82: 31.29 | P82: 0 | Q82: 0 | R82: 0 | S82: =+S81+S49 -> 0 | T82: =+T81+T49 -> 0 | U82: 0 | V82: 0 | W82: 0 | X82: 31.29 | Y82: 0 | Z82: 0 | AA82: 0 | AB82: =+AB81+AB49 -> 0
A83: 3 | B83: Residential Hostel for specific category of children
A84: (A) | B84: 50 children | I84: 0 | J84: 0 | Q84: 0 | R84: 0 | S84: 0 | Z84: =+Y84*X84 -> 0 | AA84: =+Y84+V84+T84 -> 0 | AB84: 0
B85: Non-recurring (one time grant) | G85: =+E85/C85 ->  | I85: =+C85-E85 -> 0 | J85: 0 | Q85: 0 | R85: 0 | S85: 0 | Z85: 0 | AA85: 0 | AB85: 0
A86: 3.01 | B86: Furniture/ Equipment (including kitchen) | I86: 0 | J86: 0 | O86: 2 | Q86: =+P86*O86 -> 0 | R86: =+P86+M86+K86 -> 0 | S86: 0 | X86: 2 | Z86: 0 | AA86: 0 | AB86: 0
A87: =+A86+0.01 -> 3.02 | B87: TLM and equipment including library books | I87: 0 | J87: 0 | O87: 3 | Q87: 0 | R87: 0 | S87: 0 | X87: 3 | Z87: 0 | AA87: 0 | AB87: 0
A88: 3.03 | B88: Bedding (new) | I88: 0 | J88: 0 | O88: 0.375 | Q88: 0 | R88: 0 | S88: 0 | X88: 0.375 | Z88: 0 | AA88: 0 | AB88: 0
A89: 3.04 | B89: Replacement of bedding (once in 3 years) | I89: 0 | J89: 0 | Q89: 0 | R89: 0 | S89: 0 | Z89: 0 | AA89: 0 | AB89: 0
B90: Sub Total (Non Recurring) | C90: =SUM(C86:C89) -> 0 | D90: =SUM(D86:D89) -> 0 | E90: 0 | F90: 0 | I90: =SUM(I86:I89) -> 0 | J90: 0 | K90: 0 | L90: 0 | M90: 0 | N90: 0 | O90: 5.375 | P90: 0 | Q90: 0 | R90: 0 | S90: 0 | T90: 0 | U90: 0 | V90: 0 | W90: 0 | X90: 5.375 | Y90: 0 | Z90: 0 | AA90: 0 | AB90: 0
B91: Recurring (50 children) | I91: 0 | J91: 0 | Q91: 0 | R91: 0 | S91: 0 | Z91: =+Y91*X91 -> 0 | AA91: =+Y91+V91+T91 -> 0 | AB91: 0
A92: 3.05 | B92: Maintenance per child Per month @ Rs.1500/- | I92: 0 | J92: 0 | O92: 9 | Q92: 0 | R92: 0 | S92: 0 | X92: 9 | Z92: 0 | AA92: 0 | AB92: 0
A93: =+A92+0.01 -> 3.06 | B93: Stipend per child per month @ Rs.100/- | I93: 0 | J93: 0 | O93: 0.6 | Q93: 0 | R93: 0 | S93: 0 | X93: 0.6 | Z93: 0 | AA93: 0 | AB93: 0
A94: 3.07 | B94: Supplementary TLM, Stationery and other educational material @Rs.1000/- per child per annum | I94: 0 | J94: 0 | O94: 0.5 | Q94: 0 | R94: 0 | S94: 0 | X94: 0.5 | Z94: 0 | AA94: 0 | AB94: 0
B95: Salaries | I95: 0 | J95: 0 | Q95: 0 | R95: 0 | S95: 0 | Z95: 0 | AA95: 0 | AB95: 0
A96: (a) | B96: 1 Warden @ Rs.25000/- per month | I96: 0 | J96: 0 | O96: 3 | Q96: 0 | R96: 0 | S96: 0 | X96: 3 | Z96: 0 | AA96: 0 | AB96: 0
A97: (b) | B97: 4 Fulltime teachers as per RTE Norms @ Rs. 20,000/- per month per teacher | I97: 0 | J97: 0 | O97: 9.6 | Q97: 0 | R97: 0 | S97: 0 | X97: 9.6 | Z97: 0 | AA97: 0 | AB97: 0
A98: (c) | B98: 2 Urdu Teachers (only for Blocks with muslim population above 20% and select urban areas) @ Rs.12,000/- per month per teacher. | I98: 0 | J98: 0 | O98: 2.88 | Q98: 0 | R98: 0 | S98: 0 | X98: 2.88 | Z98: 0 | AA98: 0 | AB98: 0
A99: (d) | B99: 3 Part time teachers @ Rs.5,000/- per month per teacher | I99: 0 | J99: 0 | O99: 1.5 | Q99: 0 | R99: 0 | S99: 0 | X99: 1.5 | Z99: 0 | AA99: 0 | AB99: 0
A100: (e) | B100: 1 Full time Accountant @ Rs. 10,000/- per month | I100: 0 | J100: 0 | O100: 1.2 | Q100: 0 | R100: 0 | S100: 0 | X100: 1.2 | Z100: 0 | AA100: 0 | AB100: 0
A101: (f) | B101: 2 Support staff - (Accountant/Assistant, Peon, Chowkidar) @ Rs. 5,000/- per month per staff | I101: 0 | J101: 0 | O101: 1.2 | Q101: 0 | R101: 0 | S101: 0 | X101: 1.2 | Z101: 0 | AA101: 0 | AB101: 0
A102: (g) | B102: 1 Head Cook @ Rs. 6,000/- per month and upto 2 Asstt. Cooks @ Rs. 4,500/- per month per cook | I102: 0 | J102: 0 | O102: 1.8 | Q102: 0 | R102: 0 | S102: 0 | X102: 1.8 | Z102: 0 | AA102: 0 | AB102: 0
A103: 3.08 | B103: Specific Skill training @ Rs.1000/- per annum per child | I103: 0 | J103: 0 | O103: 0.5 | Q103: 0 | R103: 0 | S103: 0 | X103: 0.5 | Z103: 0 | AA103: 0 | AB103: 0
A104: =+A103+0.01 -> 3.09 | B104: Electricity / water charges @ Rs. 1000/- per annum per child | I104: 0 | J104: 0 | O104: 0.5 | Q104: 0 | R104: 0 | S104: 0 | X104: 0.5 | Z104: 0 | AA104: 0 | AB104: 0
A105: 3.1 | B105: Medical care/contingencies @ Rs.1250/- per annum per child | I105: 0 | J105: 0 | O105: 0.625 | Q105: 0 | R105: 0 | S105: 0 | X105: 0.625 | Z105: 0 | AA105: 0 | AB105: 0
A106: 3.11 | B106: Maintenance @ Rs. 750/- per child per annum | I106: 0 | J106: 0 | O106: 0.375 | Q106: 0 | R106: 0 | S106: 0 | X106: 0.375 | Z106: 0 | AA106: 0 | AB106: 0
A107: 3.12 | B107: Miscellaneous @ Rs. 750/- per child per annum | I107: 0 | J107: 0 | O107: 0.375 | Q107: 0 | R107: 0 | S107: 0 | X107: 0.375 | Z107: 0 | AA107: 0 | AB107: 0
A108: 3.13 | B108: Preparatory camps @ Rs. 300/- per child per annum | I108: 0 | J108: 0 | O108: 0.15 | Q108: 0 | R108: 0 | S108: 0 | X108: 0.15 | Z108: 0 | AA108: 0 | AB108: 0
A109: 3.14 | B109: P.T.A / school functions @ Rs. 300/- per child per annum | I109: 0 | J109: 0 | O109: 0.15 | Q109: 0 | R109: 0 | S109: 0 | X109: 0.15 | Z109: 0 | AA109: 0 | AB109: 0
A110: 3.15 | B110: Provision of Rent @ Rs. 10,000/- per child per annum | I110: 0 | J110: 0 | Q110: 0 | R110: 0 | S110: 0 | Z110: 0 | AA110: 0 | AB110: 0
A111: 3.16 | B111: Capacity Building @ Rs. 500/- per child per annum | I111: 0 | J111: 0 | O111: 0.25 | Q111: 0 | R111: 0 | S111: 0 | X111: 0.25 | Z111: 0 | AA111: 0 | AB111: 0
A112: 3.17 | B112: Physical / Self Defence Training @ Rs.200/- per child per annum | I112: 0 | J112: 0 | O112: 0.1 | Q112: 0 | R112: 0 | S112: 0 | X112: 0.1 | Z112: 0 | AA112: 0 | AB112: 0
B113: Sub Total (Recurring) | C113: =SUM(C92:C112) -> 0 | D113: =SUM(D92:D112) -> 0 | E113: 0 | F113: 0 | I113: =SUM(I92:I112) -> 0 | J113: 0 | K113: 0 | L113: 0 | M113: 0 | N113: 0 | O113: 34.305 | P113: 0 | Q113: 0 | R113: 0 | S113: 0 | T113: 0 | U113: 0 | V113: 0 | W113: 0 | X113: 34.305 | Y113: 0 | Z113: 0 | AA113: 0 | AB113: 0
B114: Total (Non Recurring + Recurring) | C114: =+C113+C90 -> 0 | D114: =+D113+D90 -> 0 | E114: 0 | F114: 0 | I114: =+I113+I90 -> 0 | J114: 0 | K114: 0 | L114: 0 | M114: 0 | N114: 0 | O114: 39.68 | P114: 0 | Q114: 0 | R114: 0 | S114: 0 | T114: 0 | U114: 0 | V114: 0 | W114: 0 | X114: 39.68 | Y114: 0 | Z114: 0 | AA114: 0 | AB114: 0
A115: (B) | B115: 100 Children | I115: 0 | J115: 0 | Q115: 0 | R115: 0 | S115: 0 | Z115: =+Y115*X115 -> 0 | AA115: =+Y115+V115+T115 -> 0 | AB115: 0
B116: Non-recurring (one time grant) | I116: 0 | J116: 0 | Q116: 0 | R116: 0 | S116: 0 | Z116: 0 | AA116: 0 | AB116: 0
A117: 3.18 | B117: Furniture / Equipment (including kitchen equipment) | I117: 0 | J117: 0 | O117: 3 | Q117: 0 | R117: 0 | S117: 0 | X117: 3 | Z117: 0 | AA117: 0 | AB117: 0
A118: =+A117+0.01 -> 3.19 | B118: TLM and equipment including library books (New) | I118: 0 | J118: 0 | O118: 3.5 | Q118: 0 | R118: 0 | S118: 0 | X118: 3.5 | Z118: 0 | AA118: 0 | AB118: 0
A119: 3.2 | B119: Beds for Boys | I119: 0 | J119: 0 | O119: 0.04 | P119: 100 | Q119: 4 | R119: 100 | S119: 4 | X119: 0.04 | Z119: 0 | AA119: 0 | AB119: 0
A120: 3.21 | B120: Replacement of bedding (once in 3 years) | I120: 0 | J120: 0 | O120: 0.0075 | P120: =P123 -> 100 | Q120: 0.75 | R120: 100 | S120: 0.75 | X120: 0.0075 | Y120: =P120 -> 100 | Z120: 0.75 | AA120: 100 | AB120: 0.75
B121: Sub Total Non-recurring | C121: =SUM(C117:C120) -> 0 | D121: =SUM(D117:D120) -> 0 | E121: 0 | F121: 0 | I121: =SUM(I117:I120) -> 0 | J121: 0 | K121: 0 | L121: 0 | M121: 0 | N121: 0 | O121: 6.5475 | P121: 200 | Q121: 4.75 | R121: 200 | S121: 4.75 | T121: 0 | U121: 0 | V121: 0 | W121: 0 | X121: 6.5475 | Y121: 100 | Z121: 0.75 | AA121: 100 | AB121: 0.75
B122: Recurring | I122: 0 | J122: 0 | Q122: 0 | R122: 0 | S122: 0 | Z122: =+Y122*X122 -> 0 | AA122: =+Y122+V122+T122 -> 0 | AB122: 0
A123: 3.22 | B123: Maintenance per child per month @ Rs. 1500/- | C123: 0 | D123: 0 | E123: =+C123 -> 0 | F123: =+D123*0.98 -> 0 | I123: 0 | J123: 0 | O123: 0.18 | P123: 100 | Q123: 18 | R123: 100 | S123: 18 | X123: 0.18 | Y123: =P123 -> 100 | Z123: 18 | AA123: 100 | AB123: 18 | AF123: 250
A124: =+A123+0.01 -> 3.23 | B124: Stipend per child per month @ Rs.100/- | C124: 0 | D124: 0 | E124: =+C124 -> 0 | F124: =+D124*0.98 -> 0 | I124: 0 | J124: 0 | O124: 0.012 | P124: 100 | Q124: 1.2 | R124: 100 | S124: 1.2 | X124: 0.012 | Y124: =P124 -> 100 | Z124: 1.2 | AA124: 100 | AB124: 1.2
A125: 3.24 | B125: Supplementary TLM, Stationery and other educational material per child @1000/- per annum | C125: 0 | D125: 0 | E125: 0 | F125: =+D125*0.95 -> 0 | I125: 0 | J125: 0 | O125: 0.01 | P125: 100 | Q125: 1 | R125: 100 | S125: 1 | X125: 0.01 | Y125: 100 | Z125: 1 | AA125: 100 | AB125: 1
B126: Salaries | I126: 0 | J126: 0 | Q126: 0 | R126: 0 | S126: 0 | Y126: 0 | Z126: 0 | AA126: 0 | AB126: 0
A127: (a) | B127: 1 Warden @ Rs. 25,000/- per month | C127: 0 | D127: 0 | E127: =+C127 -> 0 | F127: =+D127*0.8 -> 0 | I127: 0 | J127: 0 | O127: 3 | P127: 1 | Q127: 3 | R127: 1 | S127: 3 | X127: 3 | Y127: 1 | Z127: 3 | AA127: 1 | AB127: 3
A128: (b) | B128: 1 head teacher @ Rs. 25,000/- per month in case the enrollment exceeds 100 | I128: 0 | J128: 0 | O128: 3 | Q128: 0 | R128: 0 | S128: 0 | X128: 3 | Y128: 0 | Z128: 0 | AA128: 0 | AB128: 0
A129: (c) | B129: 4 - 5 Full time teachers as per RTE norms @ Rs. 20,000/- per month per teacher | I129: 0 | J129: 0 | O129: 9.6 | Q129: 0 | R129: 0 | S129: 0 | X129: 9.6 | Y129: 0 | Z129: 0 | AA129: 0 | AB129: 0
A130: (d) | B130: 2 Urdu Teachers (only for blocks with muslim population above 20% and select urban areas), if required @ Rs. 12,000/- per month per teacher | I130: 0 | J130: 0 | O130: 2.88 | Q130: 0 | R130: 0 | S130: 0 | X130: 2.88 | Y130: 0 | Z130: 0 | AA130: 0 | AB130: 0
A131: (e) | B131: 3 part time teachers @ Rs. 5,000/- per month per teacher | C131: 0 | D131: 0 | E131: =+C131 -> 0 | F131: =+D131*0.85 -> 0 | I131: 0 | J131: 0 | O131: 1.8 | P131: 1 | Q131: 1.8 | R131: 1 | S131: 1.8 | X131: 1.8 | Y131: 1 | Z131: 1.8 | AA131: 1 | AB131: 1.8
A132: (f) | B132: 1 Full time Accountant @ Rs. 10,000/- per month | C132: 0 | D132: 0 | E132: =+C132 -> 0 | F132: =+D132*0.72 -> 0 | I132: 0 | J132: 0 | O132: 1.2 | P132: 1 | Q132: 1.2 | R132: 1 | S132: 1.2 | X132: 1.2 | Y132: 1 | Z132: 1.2 | AA132: 1 | AB132: 1.2
A133: 3.25 | B133: 2 Support Staff – (Accountant/ Assistant, Peon, Chowkidar) @ Rs. 5,000/- per month per staff | C133: 0 | D133: 0 | E133: 0 | F133: =+D133*0.96 -> 0 | I133: 0 | J133: 0 | O133: 1.2 | P133: 1 | Q133: 1.2 | R133: 1 | S133: 1.2 | X133: 1.2 | Y133: 1 | Z133: 1.2 | AA133: 1 | AB133: 1.2
A134: =+A133+0.01 -> 3.26 | B134: 1 Head cook @ Rs. 6,000/- per month and upto 2 Asstt. Cooks @ Rs. 4,500/- per month per cook | C134: 0 | D134: 0 | E134: 0 | F134: =+D134*0.96 -> 0 | I134: 0 | J134: 0 | O134: 1.8 | P134: 1 | Q134: 1.8 | R134: 1 | S134: 1.8 | X134: 1.8 | Y134: 1 | Z134: 1.8 | AA134: 1 | AB134: 1.8
A135: 3.27 | B135: Specific skill training per child @ Rs.1000/- per annum | C135: 0 | D135: 0 | E135: 0 | F135: =+D135*0.9 -> 0 | I135: 0 | J135: 0 | O135: 0.01 | P135: 100 | Q135: 1 | R135: 100 | S135: 1 | X135: 0.01 | Y135: 100 | Z135: 1 | AA135: 100 | AB135: 1
A136: 3.28 | B136: Electricity / water charges per child @Rs.1000/- per annum | C136: 0 | D136: 0 | E136: 0 | F136: =+D136 -> 0 | I136: 0 | J136: 0 | O136: 0.01 | P136: 100 | Q136: 1 | R136: 100 | S136: 1 | X136: 0.01 | Y136: 100 | Z136: 1 | AA136: 100 | AB136: 1
A137: 3.29 | B137: Medical care/contingencies @ Rs.1250/- per child per annum | C137: 0 | D137: 0 | E137: 0 | F137: 0 | I137: 0 | J137: 0 | O137: 0.0125 | P137: 100 | Q137: 1.25 | R137: 100 | S137: 1.25 | X137: 0.0125 | Y137: 100 | Z137: 1.25 | AA137: 100 | AB137: 1.25
A138: 3.3 | B138: Maintenance @ Rs.750/- per child per annum | C138: 0 | D138: 0 | E138: 0 | F138: 0 | I138: 0 | J138: 0 | O138: 0.0075 | P138: 100 | Q138: 0.75 | R138: 100 | S138: 0.75 | X138: 0.0075 | Y138: 100 | Z138: 0.75 | AA138: 100 | AB138: 0.75
A139: 3.31 | B139: Miscellaneous @ Rs.750/- per child per annum | C139: 0 | D139: 0 | E139: 0 | F139: 0 | I139: 0 | J139: 0 | O139: 0.0075 | P139: 100 | Q139: 0.75 | R139: 100 | S139: 0.75 | X139: 0.0075 | Y139: 100 | Z139: 0.75 | AA139: 100 | AB139: 0.75
A140: 3.32 | B140: Preparatory camps @ Rs.200/- per child per annum | C140: 0 | D140: 0 | E140: 0 | F140: =+D140*0.8 -> 0 | I140: 0 | J140: 0 | O140: 0.003 | P140: 100 | Q140: 0.3 | R140: 100 | S140: 0.3 | X140: 0.003 | Y140: 100 | Z140: 0.3 | AA140: 100 | AB140: 0.3
A141: 3.33 | B141: P.T.A / school functions @ Rs.200/- per child per annum | C141: 0 | D141: 0 | E141: 0 | F141: =+D141*0.8 -> 0 | I141: 0 | J141: 0 | O141: 0.003 | P141: 100 | Q141: 0.3 | R141: 100 | S141: 0.3 | X141: 0.003 | Y141: 100 | Z141: 0.3 | AA141: 100 | AB141: 0.3
A142: 3.34 | B142: Provision of Rent @ Rs. 6000/- per child per annum | I142: 0 | J142: 0 | O142: 0 | Q142: 0 | R142: 0 | S142: 0 | X142: 0 | Y142: 0 | Z142: 0 | AA142: 0 | AB142: 0
A143: 3.35 | B143: Capacity Building @ Rs.500/- per child per annum | C143: 0 | D143: 0 | E143: =+C143 -> 0 | F143: =+D143*0.61 -> 0 | I143: 0 | J143: 0 | O143: 0.005 | P143: 100 | Q143: 0.5 | R143: 100 | S143: 0.5 | X143: 0.005 | Y143: 100 | Z143: 0.5 | AA143: 100 | AB143: 0.5
A144: 3.36 | B144: Physical / Self Defence training @ Rs. 200/- per child per annum. | F144: =+D144*0.61 -> 0 | I144: 0 | J144: 0 | O144: 0.002 | P144: 100 | Q144: 0.2 | R144: 100 | S144: 0.2 | X144: 0.002 | Y144: 100 | Z144: 0.2 | AA144: 100 | AB144: 0.2
B145: Sub Total (Recurring) | C145: =+C123 -> 0 | D145: =SUM(D123:D144) -> 0 | E145: =+E123 -> 0 | F145: 0 | I145: =SUM(I123:I144) -> 0 | J145: 0 | K145: 0 | L145: 0 | M145: 0 | N145: 0 | O145: 24.7425 | P145: =+P123 -> 100 | Q145: 35.25 | R145: =+R123 -> 100 | S145: 35.25 | T145: 0 | U145: 0 | V145: 0 | W145: 0 | X145: 24.7425 | Y145: =+Y123 -> 100 | Z145: =SUM(Z123:Z144) -> 35.25 | AA145: =+AA123 -> 100 | AB145: =SUM(AB123:AB144) -> 35.25
B146: Total (Recurring + Non Recurring) | C146: =+C145+C121 -> 0 | D146: =+D145+D121 -> 0 | E146: 0 | F146: 0 | I146: =+I145+I121 -> 0 | J146: 0 | K146: 0 | L146: 0 | M146: 0 | N146: 0 | O146: 31.29 | P146: =P145 -> 100 | Q146: 40 | R146: =R145 -> 100 | S146: 40 | T146: 0 | U146: 0 | V146: 0 | W146: 0 | X146: 31.29 | Y146: =Y145 -> 100 | Z146: =+Z145+Z121 -> 36 | AA146: =AA145 -> 100 | AB146: =+AB145+AB121 -> 36
B147: Total (A + B) Residential Boys Hostels | C147: =+C146+C82 -> 0 | D147: =+D146+D82 -> 0 | E147: =+E146+E82 -> 0 | F147: =+F146+F82 -> 0 | I147: =+I146+I82 -> 0 | J147: =+J146+J82 -> 0 | K147: 0 | L147: =+L146+L114 -> 0 | M147: 0 | N147: 0 | O147: 70.97 | P147: 100 | Q147: =+Q146+Q82 -> 40 | R147: 100 | S147: =+S146+S82 -> 40 | T147: =+T146+T82 -> 0 | U147: =+U146+U114 -> 0 | V147: =+V146+V82 -> 0 | W147: =+W146+W114 -> 0 | X147: 70.97 | Y147: 100 | Z147: =+Z146+Z82 -> 36 | AA147: =+AA146+AA114 -> 100 | AB147: =+AB146+AB82 -> 36
A148: 4 | B148: Girls Hostel | I148: 0 | J148: 0 | Q148: 0 | R148: 0 | S148: 0 | Z148: =+Y148*X148 -> 0 | AA148: =+Y148+V148+T148 -> 0 | AB148: 0
A149: (A) | B149: 50 children Girls Hostels | C149: 0 | E149: =+C149 -> 0 | G149: =+E149/C149 ->  | I149: =+C149-E149 -> 0 | J149: 0 | P149: 0 | Q149: 0 | R149: 0 | S149: 0 | Z149: 0 | AA149: =+C149 -> 0 | AB149: 0 | AC149: Not recommended
B150: Non-recurring (one time grant) | I150: 0 | J150: 0 | Q150: =+P150*O150 -> 0 | R150: =+P150+M150+K150 -> 0 | S150: 0 | Z150: 0 | AA150: =+Y150+V150+T150 -> 0 | AB150: 0
A151: 4.01 | B151: Furniture/ Equipment (including kitchen) | I151: 0 | J151: 0 | O151: 2 | Q151: 0 | R151: 0 | S151: 0 | X151: 2 | Z151: 0 | AA151: 0 | AB151: 0
A152: =+A151+0.01 -> 4.02 | B152: TLM and equipment including library books | I152: 0 | J152: 0 | O152: 3 | Q152: 0 | R152: 0 | S152: 0 | X152: 3 | Z152: 0 | AA152: 0 | AB152: 0
A153: 4.03 | B153: Beds for Girls | I153: 0 | J153: 0 | O153: 0.04 | P153: 0 | Q153: 0 | R153: 0 | S153: 0 | X153: 0.04 | Z153: 0 | AA153: 0 | AB153: 0
A154: 4.04 | B154: Replacement of bedding (once in 3 years) | I154: 0 | J154: 0 | O154: 0.0075 | P154: =P157 -> 0 | Q154: 0 | R154: 0 | S154: 0 | X154: 0.0075 | Y154: =Y157 -> 0 | Z154: 0 | AA154: 0 | AB154: 0
B155: Sub Total (Non Recurring) | C155: =SUM(C151:C154) -> 0 | D155: =SUM(D151:D154) -> 0 | E155: 0 | F155: 0 | I155: =SUM(I151:I154) -> 0 | J155: 0 | K155: 0 | L155: 0 | M155: 0 | N155: 0 | O155: 5.0475 | P155: 0 | Q155: 0 | R155: 0 | S155: 0 | T155: 0 | U155: 0 | V155: 0 | W155: 0 | X155: 5.0475 | Y155: 0 | Z155: 0 | AA155: 0 | AB155: 0
B156: Recurring (50 children) | I156: 0 | J156: 0 | Q156: 0 | R156: 0 | S156: 0 | Z156: =+Y156*X156 -> 0 | AA156: =+Y156+V156+T156 -> 0 | AB156: 0
A157: 4.05 | B157: Maintenance per child Per month @ Rs.1500/- | C157: 0 | D157: 0 | E157: =+C157 -> 0 | F157: =+D157*0.98 -> 0 | I157: 0 | J157: 0 | O157: 0.18 | P157: 0 | Q157: 0 | R157: 0 | S157: 0 | X157: 0.18 | Y157: =C157 -> 0 | Z157: 0 | AA157: 0 | AB157: 0
A158: =+A157+0.01 -> 4.06 | B158: Stipend per child per month @ Rs.100/- | C158: 0 | D158: 0 | E158: =+C158 -> 0 | F158: =+D158*0.98 -> 0 | I158: 0 | J158: 0 | O158: 0.012 | P158: 0 | Q158: 0 | R158: 0 | S158: 0 | X158: 0.012 | Y158: =C158 -> 0 | Z158: 0 | AA158: 0 | AB158: 0
A159: 4.07 | B159: Supplementary TLM, Stationery and other educational material @Rs.1000/- per child per annum | C159: 0 | D159: 0 | E159: 0 | F159: =+D159*0.95 -> 0 | I159: 0 | J159: 0 | O159: 0.01 | P159: 0 | Q159: 0 | R159: 0 | S159: 0 | X159: 0.01 | Y159: 0 | Z159: 0 | AA159: 0 | AB159: 0
B160: Salaries | C160: 0 | D160: 0 | I160: 0 | J160: 0 | P160: 0 | Q160: 0 | R160: 0 | S160: 0 | Y160: 0 | Z160: 0 | AA160: 0 | AB160: 0
A161: (a) | B161: 1 Warden @ Rs.25000/- per month | C161: 0 | D161: 0 | E161: =+C161 -> 0 | F161: =+D161*0.77 -> 0 | I161: 0 | J161: 0 | O161: 3 | P161: 0 | Q161: 0 | R161: 0 | S161: 0 | X161: 3 | Y161: 0 | Z161: 0 | AA161: 0 | AB161: 0
A162: (b) | B162: 4 Fulltime teachers as per RTE Norms @ Rs. 20,000/- per month per teacher | I162: 0 | J162: 0 | O162: 3 | Q162: 0 | R162: 0 | S162: 0 | X162: 3 | Y162: 0 | Z162: 0 | AA162: 0 | AB162: 0
A163: (c) | B163: 2 Urdu Teachers (only for Blocks with muslim population above 20% and select urban areas) @ Rs.12,000/- per month per teacher. | I163: 0 | J163: 0 | O163: 9.6 | Q163: 0 | R163: 0 | S163: 0 | X163: 9.6 | Y163: 0 | Z163: 0 | AA163: 0 | AB163: 0
A164: (d) | B164: 3 Part time teachers @ Rs.5,000/- per month per teacher | C164: 0 | D164: 0 | E164: =+C164 -> 0 | F164: =+D164*0.85 -> 0 | I164: 0 | J164: 0 | O164: 1.8 | P164: 0 | Q164: 0 | R164: 0 | S164: 0 | X164: 1.8 | Y164: 0 | Z164: 0 | AA164: 0 | AB164: 0
A165: (e) | B165: 1 Full time Accountant @ Rs. 10,000/- per month | C165: 0 | D165: 0 | E165: =+C165 -> 0 | F165: =+D165*0.72 -> 0 | I165: 0 | J165: 0 | O165: 1.2 | P165: 0 | Q165: 0 | R165: 0 | S165: 0 | X165: 1.2 | Y165: 0 | Z165: 0 | AA165: 0 | AB165: 0
A166: (f) | B166: 2 Support staff - (Accountant/Assistant, Peon, Chowkidar) @ Rs. 5,000/- per month per staff | C166: 0 | D166: 0 | E166: 0 | F166: =+D166*0.96 -> 0 | I166: 0 | J166: 0 | O166: 1.2 | P166: 0 | Q166: 0 | R166: 0 | S166: 0 | X166: 1.2 | Y166: 0 | Z166: 0 | AA166: 0 | AB166: 0
A167: (g) | B167: 1 Head Cook @ Rs. 6,000/- per month and upto 2 Asstt. Cooks @ Rs. 4,500/- per month per cook | C167: 0 | D167: 0 | E167: 0 | F167: =+D167*0.96 -> 0 | I167: 0 | J167: 0 | O167: 1.8 | P167: 0 | Q167: 0 | R167: 0 | S167: 0 | X167: 1.8 | Y167: 0 | Z167: 0 | AA167: 0 | AB167: 0
A168: 4.08 | B168: Specific Skill training @ Rs.1000/- per annum per child | C168: 0 | D168: 0 | E168: 0 | F168: =+D168*0.9 -> 0 | I168: 0 | J168: 0 | O168: 0.01 | P168: 0 | Q168: 0 | R168: 0 | S168: 0 | X168: 0.01 | Y168: 0 | Z168: 0 | AA168: 0 | AB168: 0
A169: =+A168+0.01 -> 4.09 | B169: Electricity / water charges @ Rs. 1000/- per annum per child | C169: 0 | D169: 0 | E169: 0 | F169: =+D169 -> 0 | I169: 0 | J169: 0 | O169: 0.01 | P169: 0 | Q169: 0 | R169: 0 | S169: 0 | X169: 0.01 | Y169: 0 | Z169: 0 | AA169: 0 | AB169: 0
A170: 4.1 | B170: Medical care/contingencies @ Rs.1250/- per annum per child | C170: 0 | D170: 0 | E170: 0 | F170: 0 | I170: 0 | J170: 0 | O170: 0.0125 | P170: 0 | Q170: 0 | R170: 0 | S170: 0 | X170: 0.0125 | Y170: 0 | Z170: 0 | AA170: 0 | AB170: 0
A171: 4.11 | B171: Maintenance @ Rs. 750/- per child per annum | C171: 0 | D171: 0 | E171: 0 | F171: 0 | I171: 0 | J171: 0 | O171: 0.0075 | P171: 0 | Q171: 0 | R171: 0 | S171: 0 | X171: 0.0075 | Y171: 0 | Z171: 0 | AA171: 0 | AB171: 0
A172: 4.12 | B172: Miscellaneous @ Rs. 750/- per child per annum | C172: 0 | D172: 0 | E172: 0 | F172: 0 | I172: 0 | J172: 0 | O172: 0.0075 | P172: 0 | Q172: 0 | R172: 0 | S172: 0 | X172: 0.0075 | Y172: 0 | Z172: 0 | AA172: 0 | AB172: 0
A173: 4.13 | B173: Preparatory camps @ Rs. 300/- per child per annum | C173: 0 | D173: 0 | E173: 0 | F173: =+D173*0.8 -> 0 | I173: 0 | J173: 0 | O173: 0.003 | P173: 0 | Q173: 0 | R173: 0 | S173: 0 | X173: 0.003 | Y173: 0 | Z173: 0 | AA173: 0 | AB173: 0
A174: 4.14 | B174: P.T.A / school functions @ Rs. 300/- per child per annum | C174: 0 | D174: 0 | E174: 0 | F174: =+D174*0.8 -> 0 | I174: 0 | J174: 0 | O174: 0.003 | P174: 0 | Q174: 0 | R174: 0 | S174: 0 | X174: 0.003 | Y174: 0 | Z174: 0 | AA174: 0 | AB174: 0
A175: 4.15 | B175: Provision of Rent @ Rs. 10,000/- per child per annum | I175: 0 | J175: 0 | O175: 0 | Q175: 0 | R175: 0 | S175: 0 | X175: 0 | Y175: 0 | Z175: 0 | AA175: 0 | AB175: 0
A176: 4.16 | B176: Capacity Building @ Rs. 500/- per child per annum | C176: 0 | D176: 0 | E176: =+C176 -> 0 | F176: =+D176*0.61 -> 0 | I176: 0 | J176: 0 | O176: 0.005 | P176: 0 | Q176: 0 | R176: 0 | S176: 0 | X176: 0.005 | Y176: 0 | Z176: 0 | AA176: 0 | AB176: 0
A177: 4.17 | B177: Physical / Self Defence Training @ Rs.200/- per child per annum | C177: 0 | D177: 0 | E177: 0 | F177: =+D177*0.61 -> 0 | I177: 0 | J177: 0 | O177: 0.002 | P177: 0 | Q177: 0 | R177: 0 | S177: 0 | X177: 0.002 | Y177: 0 | Z177: 0 | AA177: 0 | AB177: 0
B178: Sub Total (Recurring) | C178: =+C157 -> 0 | D178: =SUM(D157:D177) -> 0 | E178: =+E157 -> 0 | F178: 0 | I178: =SUM(I157:I177) -> 0 | J178: 0 | K178: 0 | L178: 0 | M178: 0 | N178: 0 | O178: 21.8625 | P178: =+P157 -> 0 | Q178: 0 | R178: =+R157 -> 0 | S178: 0 | T178: 0 | U178: 0 | V178: 0 | W178: 0 | X178: 21.8625 | Y178: =+Y157 -> 0 | Z178: =SUM(Z157:Z177) -> 0 | AA178: =+AA157 -> 0 | AB178: =SUM(AB157:AB177) -> 0
B179: Total (Non Recurring + Recurring) | C179: =+C178+C155 -> 0 | D179: =+D178+D155 -> 0 | E179: 0 | F179: 0 | I179: =+I178+I155 -> 0 | J179: 0 | K179: 0 | L179: 0 | M179: 0 | N179: 0 | O179: 26.91 | P179: =+P178 -> 0 | Q179: 0 | R179: =+R178 -> 0 | S179: =+S178+S155 -> 0 | T179: =+T178+T155 -> 0 | U179: 0 | V179: 0 | W179: 0 | X179: 26.91 | Y179: =+Y178 -> 0 | Z179: =+Z178+Z155 -> 0 | AA179: =+AA178 -> 0 | AB179: =+AB178+AB155 -> 0
A180: (B) | B180: 100 Children Girls Hostels | C180: 2 | E180: =+C180 -> 2 | G180: 1 | I180: 0 | J180: 0 | P180: 0 | Q180: 0 | R180: 2 | S180: 0 | Z180: =+Y180*X180 -> 0 | AA180: =+C180 -> 2 | AB180: =+Z180+W180+U180 -> 0
B181: Non-recurring (one time grant) | I181: 0 | J181: 0 | Q181: 0 | R181: 0 | S181: 0 | Z181: 0 | AA181: =+Y181+V181+T181 -> 0 | AB181: 0
A182: 5.01 | B182: Furniture / Equipment (including kitchen equipment) | I182: 0 | J182: 0 | O182: 3 | Q182: 0 | R182: 0 | S182: 0 | X182: 3 | Z182: 0 | AA182: 0 | AB182: 0
A183: =+A182+0.01 -> 5.02 | B183: TLM and equipment including library books (New) | I183: 0 | J183: 0 | O183: 3.5 | Q183: 0 | R183: 0 | S183: 0 | X183: 3.5 | Z183: 0 | AA183: 0 | AB183: 0
A184: 5.03 | B184: Beds for Girls | I184: 0 | J184: 0 | O184: 0.04 | P184: 200 | Q184: 8 | R184: 200 | S184: 8 | X184: 0.04 | Z184: 0 | AA184: 0 | AB184: 0
A185: 5.04 | B185: Replacement of bedding (once in 3 years) | I185: 0 | J185: 0 | O185: 0.0075 | P185: =P188 -> 200 | Q185: 1.5 | R185: 200 | S185: 1.5 | X185: 0.0075 | Y185: =Y188 -> 200 | Z185: 1.5 | AA185: 200 | AB185: 1.5
B186: Sub Total Non-recurring | C186: =SUM(C182:C185) -> 0 | D186: =SUM(D182:D185) -> 0 | E186: 0 | F186: 0 | I186: =SUM(I182:I185) -> 0 | J186: 0 | K186: 0 | L186: 0 | M186: 0 | N186: 0 | O186: 6.5475 | P186: 400 | Q186: 9.5 | R186: 400 | S186: 9.5 | T186: 0 | U186: 0 | V186: 0 | W186: 0 | X186: 6.5475 | Y186: 200 | Z186: 1.5 | AA186: 200 | AB186: 1.5
B187: Recurring | I187: 0 | J187: 0 | Q187: 0 | R187: 0 | S187: 0 | Z187: =+Y187*X187 -> 0 | AA187: =+Y187+V187+T187 -> 0 | AB187: 0
A188: 5.05 | B188: Maintenance per child per month @ Rs. 1500/- | C188: 200 | D188: 36 | E188: =+C188 -> 200 | F188: =+D188*0.98 -> 35.28 | G188: 1 | H188: 0.98 | I188: 0 | J188: 0.72 | O188: 0.18 | P188: 200 | Q188: 36 | R188: 200 | S188: 36 | X188: 0.18 | Y188: 200 | Z188: 36 | AA188: 200 | AB188: 36
A189: =+A188+0.01 -> 5.06 | B189: Stipend per child per month @ Rs.100/- | C189: 200 | D189: 2.4 | E189: =+C189 -> 200 | F189: =+D189*0.98 -> 2.352 | G189: 1 | H189: 0.98 | I189: 0 | J189: 0.048 | O189: 0.012 | P189: 200 | Q189: 2.4 | R189: 200 | S189: 2.4 | X189: 0.012 | Y189: 200 | Z189: 2.4 | AA189: 200 | AB189: 2.4
A190: 5.07 | B190: Supplementary TLM, Stationery and other educational material per child @1000/- per annum | C190: 200 | D190: 2 | E190: 200 | F190: =+D190*0.95 -> 1.9 | G190: 1 | H190: 0.95 | I190: 0 | J190: 0.1 | O190: 0.01 | P190: 200 | Q190: 2 | R190: 200 | S190: 2 | X190: 0.01 | Y190: 200 | Z190: 2 | AA190: 200 | AB190: 2
B191: Salaries | C191: 0 | D191: 0 | I191: 0 | J191: 0 | P191: 0 | Y191: 0
A192: (a) | B192: 1 Warden @ Rs. 25,000/- per month | C192: 2 | D192: 4.8 | E192: =+C192 -> 2 | F192: =+D192*0.78 -> 3.744 | G192: 1 | H192: 0.78 | I192: 0 | J192: 1.056 | O192: 3 | P192: 2 | Q192: =+P192*O192 -> 6 | R192: =+P192+M192+K192 -> 2 | S192: 6 | X192: 3 | Y192: 2 | Z192: =+Y192*X192 -> 6 | AA192: =+Y192+V192+T192 -> 2 | AB192: 6
A193: (b) | B193: 1 head teacher @ Rs. 25,000/- per month in case the enrollment exceeds 100 | I193: 0 | J193: 0 | O193: 3 | Q193: 0 | R193: 0 | S193: 0 | X193: 3 | Z193: 0 | AA193: 0 | AB193: 0
A194: (c) | B194: 4 - 5 Full time teachers as per RTE norms @ Rs. 20,000/- per month per teacher | I194: 0 | J194: 0 | O194: 9.6 | Q194: 0 | R194: 0 | S194: 0 | X194: 9.6 | Z194: 0 | AA194: 0 | AB194: 0
A195: (d) | B195: 2 Urdu Teachers (only for blocks with muslim population above 20% and select urban areas), if required @ Rs. 12,000/- per month per teacher | E195: =+C195 -> 0 | F195: =+D195*0.85 -> 0 | I195: 0 | J195: 0 | O195: 2.88 | Q195: 0 | R195: 0 | S195: 0 | X195: 2.88 | Z195: 0 | AA195: 0 | AB195: 0
A196: (e) | B196: 3 part time teachers @ Rs. 5,000/- per month per teacher | C196: 2 | D196: 3 | E196: =+C196 -> 2 | F196: =+D196*0.72 -> 2.16 | G196: 1 | H196: 0.72 | I196: 0 | J196: 0.84 | O196: 1.8 | P196: 2 | Q196: 3.6 | R196: 2 | S196: 3.6 | X196: 1.8 | Y196: 2 | Z196: 3.6 | AA196: 2 | AB196: 3.6
A197: (f) | B197: 1 Full time Accountant @ Rs. 10,000/- per month | C197: 2 | D197: 2.4 | E197: 2 | F197: =+D197*0.96 -> 2.304 | G197: 1 | H197: 0.96 | I197: 0 | J197: 0.096 | O197: 1.2 | P197: 2 | Q197: 2.4 | R197: 2 | S197: 2.4 | X197: 1.2 | Y197: 2 | Z197: 2.4 | AA197: 2 | AB197: 2.4
A198: 5.08 | B198: 2 Support Staff – (Accountant/ Assistant, Peon, Chowkidar) @ Rs. 5,000/- per month per staff | C198: 2 | D198: 2.4 | E198: 2 | F198: =+D198*0.96 -> 2.304 | G198: 1 | H198: 0.96 | I198: 0 | J198: 0.096 | O198: 1.2 | P198: 2 | Q198: 2.4 | R198: 2 | S198: 2.4 | X198: 1.2 | Y198: 2 | Z198: 2.4 | AA198: 2 | AB198: 2.4
A199: =+A198+0.01 -> 5.09 | B199: 1 Head cook @ Rs. 6,000/- per month and upto 2 Asstt. Cooks @ Rs. 4,500/- per month per cook | C199: 2 | D199: 3.6 | E199: 2 | F199: =+D199*0.9 -> 3.24 | G199: 1 | H199: 0.9 | I199: 0 | J199: 0.36 | O199: 1.8 | P199: 2 | Q199: 3.6 | R199: 2 | S199: 3.6 | X199: 1.8 | Y199: 2 | Z199: 3.6 | AA199: 2 | AB199: 3.6
A200: 5.1 | B200: Specific skill training per child @ Rs.1000/- per annum | C200: 200 | D200: 2 | E200: 200 | F200: =+D200*0.9 -> 1.8 | G200: 1 | H200: 0.9 | I200: 0 | J200: 0.2 | O200: 0.01 | P200: 200 | Q200: 2 | R200: 200 | S200: 2 | X200: 0.01 | Y200: 200 | Z200: 2 | AA200: 200 | AB200: 2
A201: 5.11 | B201: Electricity / water charges per child @Rs.1000/- per annum | C201: 200 | D201: 2 | E201: 200 | F201: =+D201 -> 2 | G201: 1 | H201: 1 | I201: 0 | J201: 0 | O201: 0.01 | P201: 200 | Q201: 2 | R201: 200 | S201: 2 | X201: 0.01 | Y201: 200 | Z201: 2 | AA201: 200 | AB201: 2
A202: 5.12 | B202: Medical care/contingencies @ Rs.1250/- per child per annum | C202: 200 | D202: 2.5 | E202: 200 | F202: 2.5 | G202: 1 | H202: 1 | I202: 0 | J202: 0 | O202: 0.0125 | P202: 200 | Q202: 2.5 | R202: 200 | S202: 2.5 | X202: 0.0125 | Y202: 200 | Z202: 2.5 | AA202: 200 | AB202: 2.5
... 403 more rows

Sheet Anuppur
A1: State Summary for AWP&B - 2017-18 , SSA, Madhya Pradesh (Rs in Lakhs)
A3: District : | B3: Anooppur
A5: S.No. | B5: Activity | C5: Year 2016-17 | K5: Outlay Proposed for 2017-18 | T5: Outlay Recommended for 2017-18 | AC5: Remarks
C6: Outlay approved by PAB (including spillover) | E6: Expected Achievement till March'2017 | I6: Savings | K6: Spill Over | M6: Deferred laibility of 2016-17 | O6: Fresh | R6: Total | T6: Spill Over | V6: Deferred laibility of 2016-17 | X6: Fresh | AA6: Total
C7: Phy. | D7: Fin | E7: Phy. | F7: Fin. | G7: Phy. (%) | H7: Fin. (%) | I7: Phy. | J7: Fin. | K7: Phy. | L7: Fin. | M7: Phy. | N7: Fin. | O7: Unit Cost | P7: Phy. | Q7: Fin. | R7: Phy. | S7: Fin. | T7: Phy. | U7: Fin. | V7: Phy. | W7: Fin. | X7: Unit Cost | Y7: Phy. | Z7: Fin. | AA7: Phy. | AB7: Fin.
A8: I | B8: ACCESS
B9: SSA
A10: 1 | B10: Opening of New Schools
A11: 1.01 | B11: New Primary School
A12: 1.02 | B12: Upgradation of PS to UPS
A13: 1.03 | B13: Composite Schools
A14: 1.04 | B14: Residential schools for specific category of children
A15: 1.05 | B15: Residential Hostel | P15: 1 | R15: =+P15 -> 1 | AA15: =+Y15 -> 0
A16: 1.06 | B16: Integration of Class V with primary schools
A17: 1.07 | B17: Integration of Class VIII with upper primary schools
A18: 2 | B18: Residential Schools for specific category of children
A19: A | B19: 50 children
B20: Non-recurring (one time grant) | G20: =+E20/C20 ->  | H20: =+F20/D20 ->  | I20: =+C20-E20 -> 0 | J20: =+D20-F20 -> 0
A21: 2.01 | B21: Furniture/ Equipment (including kitchen) | G21: =+E21/C21 ->  | I21: =+C21-E21 -> 0 | J21: 0 | O21: 2 | Q21: =+P21*O21 -> 0 | R21: =+P21+M21+K21 -> 0 | S21: =+Q21+N21+L21 -> 0 | X21: 2 | Z21: =+Y21*X21 -> 0 | AA21: =+Y21+V21+T21 -> 0 | AB21: =+Z21+W21+U21 -> 0
A22: 2.02 | B22: TLM and equipment including library books | I22: 0 | J22: 0 | O22: 3 | Q22: =+P22*O22 -> 0 | R22: =+P22+M22+K22 -> 0 | S22: 0 | X22: 3 | Z22: =+Y22*X22 -> 0 | AA22: =+Y22+V22+T22 -> 0 | AB22: 0
A23: 2.03 | B23: Bedding (new) | I23: 0 | J23: 0 | O23: 0.375 | Q23: 0 | R23: 0 | S23: 0 | X23: 0.375 | Z23: 0 | AA23: 0 | AB23: 0
A24: 2.04 | B24: Replacement of bedding (once in 3 years) | I24: 0 | J24: 0 | Q24: 0 | R24: 0 | S24: 0 | Z24: 0 | AA24: 0 | AB24: 0
B25: Sub Total (Non Recurring) | I25: 0 | J25: 0 | Q25: 0 | R25: 0 | S25: 0 | Z25: 0 | AA25: 0 | AB25: 0
B26: Recurring (50 children) | I26: 0 | J26: 0 | Q26: 0 | R26: 0 | S26: 0 | Z26: 0 | AA26: 0 | AB26: 0
A27: 2.05 | B27: Maintenance per child Per month @ Rs.1500/- | I27: 0 | J27: 0 | O27: 9 | Q27: 0 | R27: 0 | S27: 0 | X27: 9 | Z27: 0 | AA27: 0 | AB27: 0
A28: 2.06 | B28: Stipend per child per month @ Rs.100/- | I28: 0 | J28: 0 | O28: 0.6 | Q28: 0 | R28: 0 | S28: 0 | X28: 0.6 | Z28: 0 | AA28: 0 | AB28: 0
A29: 2.07 | B29: Supplementary TLM, Stationery and other educational material @Rs.1000/- per child per annum | I29: 0 | J29: 0 | O29: 0.5 | Q29: 0 | R29: 0 | S29: 0 | X29: 0.5 | Z29: 0 | AA29: 0 | AB29: 0
A30: 2.08 | B30: Salaries | I30: 0 | J30: 0 | Q30: 0 | R30: 0 | S30: 0 | Z30: 0 | AA30: 0 | AB30: 0
A31: (a) | B31: 1 Warden @ Rs.25000/- per month | I31: 0 | J31: 0 | O31: 3 | Q31: 0 | R31: 0 | S31: 0 | X31: 3 | Z31: 0 | AA31: 0 | AB31: 0
A32: (b) | B32: 4 Fulltime teachers as per RTE Norms @ Rs. 20,000/- per month per teacher | I32: 0 | J32: 0 | O32: 9.6 | Q32: 0 | R32: 0 | S32: 0 | X32: 9.6 | Z32: 0 | AA32: 0 | AB32: 0
A33: (c) | B33: 2 Urdu Teachers (only for Blocks with muslim population above 20% and select urban areas) @ Rs.12,000/- per month per teacher. | I33: 0 | J33: 0 | O33: 2.88 | Q33: 0 | R33: 0 | S33: 0 | X33: 2.88 | Z33: 0 | AA33: 0 | AB33: 0
A34: (d) | B34: 3 Part time teachers @ Rs.5,000/- per month per teacher | I34: 0 | J34: 0 | O34: 1.5 | Q34: 0 | R34: 0 | S34: 0 | X34: 1.5 | Z34: 0 | AA34: 0 | AB34: 0
A35: (e) | B35: 1 Full time Accountant @ Rs. 10,000/- per month | I35: 0 | J35: 0 | O35: 1.2 | Q35: 0 | R35: 0 | S35: 0 | X35: 1.2 | Z35: 0 | AA35: 0 | AB35: 0
A36: (f) | B36: 2 Support staff - (Accountant/Assistant, Peon, Chowkidar) @ Rs. 5,000/- per month per staff | I36: 0 | J36: 0 | O36: 1.2 | Q36: 0 | R36: 0 | S36: 0 | X36: 1.2 | Z36: 0 | AA36: 0 | AB36: 0
A37: (g) | B37: 1 Head Cook @ Rs. 6,000/- per month and upto 2 Asstt. Cooks @ Rs. 4,500/- per month per cook | I37: 0 | J37: 0 | O37: 1.8 | Q37: 0 | R37: 0 | S37: 0 | X37: 1.8 | Z37: 0 | AA37: 0 | AB37: 0
A38: 2.09 | B38: Specific Skill training @ Rs.1000/- per annum per child | I38: 0 | J38: 0 | O38: 0.5 | Q38: 0 | R38: 0 | S38: 0 | X38: 0.5 | Z38: 0 | AA38: 0 | AB38: 0
A39: 2.1 | B39: Electricity / water charges @ Rs. 1000/- per annum per child | I39: 0 | J39: 0 | O39: 0.5 | Q39: 0 | R39: 0 | S39: 0 | X39: 0.5 | Z39: 0 | AA39: 0 | AB39: 0
A40: =+A39+0.01 -> 2.11 | B40: Medical care/contingencies @ Rs.1250/- per annum per child | I40: 0 | J40: 0 | O40: 0.625 | Q40: 0 | R40: 0 | S40: 0 | X40: 0.625 | Z40: 0 | AA40: 0 | AB40: 0
A41: =+A40+0.01 -> 2.12 | B41: Maintenance @ Rs. 750/- per child per annum | I41: 0 | J41: 0 | O41: 0.375 | Q41: 0 | R41: 0 | S41: 0 | X41: 0.375 | Z41: 0 | AA41: 0 | AB41: 0
A42: 2.13 | B42: Miscellaneous @ Rs. 750/- per child per annum | I42: 0 | J42: 0 | O42: 0.375 | Q42: 0 | R42: 0 | S42: 0 | X42: 0.375 | Z42: 0 | AA42: 0 | AB42: 0
A43: 2.14 | B43: Preparatory camps @ Rs. 300/- per child per annum | I43: 0 | J43: 0 | O43: 0.15 | Q43: 0 | R43: 0 | S43: 0 | X43: 0.15 | Z43: 0 | AA43: 0 | AB43: 0
A44: 2.15 | B44: P.T.A / school functions @ Rs. 300/- per child per annum | I44: 0 | J44: 0 | O44: 0.15 | Q44: 0 | R44: 0 | S44: 0 | X44: 0.15 | Z44: 0 | AA44: 0 | AB44: 0
A45: 2.16 | B45: Provision of Rent @ Rs. 10,000/- per child per annum | I45: 0 | J45: 0 | Q45: 0 | R45: 0 | S45: 0 | Z45: 0 | AA45: 0 | AB45: 0
A46: 2.17 | B46: Capacity Building @ Rs. 500/- per child per annum | I46: 0 | J46: 0 | O46: 0.25 | Q46: 0 | R46: 0 | S46: 0 | X46: 0.25 | Z46: 0 | AA46: 0 | AB46: 0
A47: 2.18 | B47: Physical / Self Defence Training @ Rs.200/- per child per annum | I47: 0 | J47: 0 | O47: 0.1 | Q47: 0 | R47: 0 | S47: 0 | X47: 0.1 | Z47: 0 | AA47: 0 | AB47: 0
B48: Sub Total (Recurring) | I48: 0 | J48: 0 | Q48: 0 | R48: 0 | S48: 0 | Z48: 0 | AA48: 0 | AB48: 0
B49: Total (Non Recurring + Recurring) | I49: 0 | J49: 0 | Q49: 0 | R49: 0 | S49: 0 | Z49: 0 | AA49: 0 | AB49: 0
A50: B | B50: 100 children | I50: 0 | J50: 0 | Q50: 0 | R50: 0 | S50: 0 | Z50: 0 | AA50: 0 | AB50: 0
B51: Non-recurring (one time grant) | I51: 0 | J51: 0 | Q51: 0 | R51: 0 | S51: 0 | Z51: 0 | AA51: 0 | AB51: 0
A52: 2.19 | B52: Furniture / Equipment (including kitchen equipment) | I52: 0 | J52: 0 | O52: 3 | Q52: 0 | R52: 0 | S52: 0 | X52: 3 | Z52: 0 | AA52: 0 | AB52: 0
A53: =+A52+0.01 -> 2.2 | B53: TLM and equipment including library books (New) | I53: 0 | J53: 0 | O53: 3.5 | Q53: 0 | R53: 0 | S53: 0 | X53: 3.5 | Z53: 0 | AA53: 0 | AB53: 0
A54: 2.21 | B54: Beds for Boys | I54: 0 | J54: 0 | O54: 0.04 | P54: 0 | Q54: 0 | R54: 0 | S54: 0 | X54: 0.04 | Z54: 0 | AA54: 0 | AB54: 0
A55: 2.22 | B55: Replacement of bedding (once in 3 years) | I55: 0 | J55: 0 | O55: 0.0075 | P55: =P58 -> 0 | Q55: 0 | R55: 0 | S55: 0 | X55: 0.0075 | Y55: =Y58 -> 0 | Z55: 0 | AA55: 0 | AB55: 0
B56: Sub Total Non-recurring | C56: =SUM(C52:C55) -> 0 | D56: =SUM(D52:D55) -> 0 | E56: 0 | F56: 0 | I56: =SUM(I52:I55) -> 0 | J56: 0 | K56: 0 | L56: 0 | M56: 0 | N56: 0 | O56: 6.5475 | P56: 0 | Q56: 0 | R56: 0 | S56: 0 | T56: 0 | U56: 0 | V56: 0 | W56: 0 | X56: 6.5475 | Y56: 0 | Z56: 0 | AA56: 0 | AB56: 0
B57: Recurring | I57: 0 | J57: 0 | Q57: 0 | R57: 0 | S57: 0 | Z57: =+Y57*X57 -> 0 | AA57: =+Y57+V57+T57 -> 0 | AB57: 0
A58: 2.23 | B58: Maintenance per child per month @ Rs. 1500/- | C58: 0 | D58: 0 | E58: =+C58 -> 0 | F58: =+D58*0.98 -> 0 | I58: 0 | J58: 0 | O58: 0.18 | P58: 0 | Q58: 0 | R58: 0 | S58: 0 | X58: 0.18 | Y58: =+P58 -> 0 | Z58: 0 | AA58: 0 | AB58: 0
A59: =+A58+0.01 -> 2.24 | B59: Stipend per child per month @ Rs.100/- | C59: 0 | D59: 0 | E59: =+C59 -> 0 | F59: =+D59*0.98 -> 0 | G59: =+E59/C59 ->  | I59: 0 | J59: 0 | O59: 0.012 | P59: 0 | Q59: 0 | R59: 0 | S59: 0 | X59: 0.012 | Y59: 0 | Z59: 0 | AA59: 0 | AB59: 0
A60: 2.25 | B60: Supplementary TLM, Stationery and other educational material per child @1000/- per annum | C60: 0 | D60: 0 | E60: 0 | F60: =+D60*0.95 -> 0 | I60: 0 | J60: 0 | O60: 0.01 | P60: 0 | Q60: 0 | R60: 0 | S60: 0 | X60: 0.01 | Y60: 0 | Z60: 0 | AA60: 0 | AB60: 0
A61: 2.26 | B61: Salaries | I61: 0 | J61: 0 | Q61: 0 | R61: 0 | S61: 0 | Y61: 0 | Z61: 0 | AA61: 0 | AB61: 0
A62: (a) | B62: 1 Warden @ Rs. 25,000/- per month | C62: 0 | D62: 0 | E62: =+C62 -> 0 | F62: =+D62*0.8 -> 0 | I62: 0 | J62: 0 | O62: 3 | P62: 0 | Q62: 0 | R62: 0 | S62: 0 | X62: 3 | Y62: 0 | Z62: 0 | AA62: 0 | AB62: 0 | AC62: =0.25*1*12 -> 3
A63: (b) | B63: 1 head teacher @ Rs. 25,000/- per month in case the enrollment exceeds 100 | I63: 0 | J63: 0 | O63: 3 | Q63: 0 | R63: 0 | S63: 0 | X63: 3 | Y63: 0 | Z63: 0 | AA63: 0 | AB63: 0
A64: (c) | B64: 4 - 5 Full time teachers as per RTE norms @ Rs. 20,000/- per month per teacher | I64: 0 | J64: 0 | O64: 9.6 | Q64: 0 | R64: 0 | S64: 0 | X64: 9.6 | Y64: 0 | Z64: 0 | AA64: 0 | AB64: 0
A65: (d) | B65: 2 Urdu Teachers (only for blocks with muslim population above 20% and select urban areas), if required @ Rs. 12,000/- per month per teacher | I65: 0 | J65: 0 | O65: 2.88 | Q65: 0 | R65: 0 | S65: 0 | X65: 2.88 | Y65: 0 | Z65: 0 | AA65: 0 | AB65: 0
A66: (e) | B66: 3 part time teachers @ Rs. 5,000/- per month per teacher | C66: 0 | D66: 0 | E66: =+C66 -> 0 | F66: =+D66*0.85 -> 0 | I66: 0 | J66: 0 | O66: 1.8 | P66: 0 | Q66: 0 | R66: 0 | S66: 0 | X66: 1.8 | Y66: 0 | Z66: 0 | AA66: 0 | AB66: 0
A67: (f) | B67: 1 Full time Accountant @ Rs. 10,000/- per month | C67: 0 | D67: 0 | E67: =+C67 -> 0 | F67: =+D67*0.72 -> 0 | I67: 0 | J67: 0 | O67: 1.2 | P67: 0 | Q67: 0 | R67: 0 | S67: 0 | X67: 1.2 | Y67: 0 | Z67: 0 | AA67: 0 | AB67: 0
A68: (g) | B68: 2 Support Staff – (Accountant/ Assistant, Peon, Chowkidar) @ Rs. 5,000/- per month per staff | C68: 0 | D68: 0 | E68: 0 | F68: =+D68*0.96 -> 0 | I68: 0 | J68: 0 | O68: 1.2 | P68: 0 | Q68: 0 | R68: 0 | S68: 0 | X68: 1.2 | Y68: 0 | Z68: 0 | AA68: 0 | AB68: 0
A69: (h) | B69: 1 Head cook @ Rs. 6,000/- per month and upto 2 Asstt. Cooks @ Rs. 4,500/- per month per cook | C69: 0 | D69: 0 | E69: 0 | F69: =+D69*0.96 -> 0 | I69: 0 | J69: 0 | O69: 1.8 | P69: 0 | Q69: 0 | R69: 0 | S69: 0 | X69: 1.8 | Y69: 0 | Z69: 0 | AA69: 0 | AB69: 0
A70: 2.27 | B70: Specific skill training per child @ Rs.1000/- per annum | C70: 0 | D70: 0 | E70: 0 | F70: =+D70*0.9 -> 0 | I70: 0 | J70: 0 | O70: 0.01 | P70: 0 | Q70: 0 | R70: 0 | S70: 0 | X70: 0.01 | Y70: 0 | Z70: 0 | AA70: 0 | AB70: 0
A71: 2.28 | B71: Electricity / water charges per child @Rs.1000/- per annum | C71: 0 | D71: 0 | E71: 0 | F71: =+D71 -> 0 | I71: 0 | J71: 0 | O71: 0.01 | P71: 0 | Q71: 0 | R71: 0 | S71: 0 | X71: 0.01 | Y71: 0 | Z71: 0 | AA71: 0 | AB71: 0
A72: 2.29 | B72: Medical care/contingencies @ Rs.1250/- per child per annum | C72: 0 | D72: 0 | E72: 0 | F72: 0 | I72: 0 | J72: 0 | O72: 0.0125 | P72: 0 | Q72: 0 | R72: 0 | S72: 0 | X72: 0.0125 | Y72: 0 | Z72: 0 | AA72: 0 | AB72: 0
A73: 2.3 | B73: Maintenance @ Rs.750/- per child per annum | C73: 0 | D73: 0 | E73: 0 | F73: 0 | I73: 0 | J73: 0 | O73: 0.0075 | P73: 0 | Q73: 0 | R73: 0 | S73: 0 | X73: 0.0075 | Y73: 0 | Z73: 0 | AA73: 0 | AB73: 0
A74: 2.31 | B74: Miscellaneous @ Rs.750/- per child per annum | C74: 0 | D74: 0 | E74: 0 | F74: 0 | I74: 0 | J74: 0 | O74: 0.0075 | P74: 0 | Q74: 0 | R74: 0 | S74: 0 | X74: 0.0075 | Y74: 0 | Z74: 0 | AA74: 0 | AB74: 0
A75: 2.32 | B75: Preparatory camps @ Rs.200/- per child per annum | C75: 0 | D75: 0 | E75: 0 | F75: =+D75*0.8 -> 0 | I75: 0 | J75: 0 | O75: 0.003 | P75: 0 | Q75: 0 | R75: 0 | S75: 0 | X75: 0.003 | Y75: 0 | Z75: 0 | AA75: 0 | AB75: 0
A76: 2.33 | B76: P.T.A / school functions @ Rs.200/- per child per annum | C76: 0 | D76: 0 | E76: 0 | F76: =+D76*0.8 -> 0 | I76: 0 | J76: 0 | O76: 0.003 | P76: 0 | Q76: 0 | R76: 0 | S76: 0 | X76: 0.003 | Y76: 0 | Z76: 0 | AA76: 0 | AB76: 0
A77: 2.34 | B77: Provision of Rent @ Rs. 6000/- per child per annum | I77: 0 | J77: 0 | O77: 0 | Q77: 0 | R77: 0 | S77: 0 | X77: 0 | Y77: 0 | Z77: 0 | AA77: 0 | AB77: 0
A78: 2.35 | B78: Capacity Building @ Rs.500/- per child per annum | C78: 0 | D78: 0 | E78: =+C78 -> 0 | F78: =+D78*0.61 -> 0 | I78: 0 | J78: 0 | O78: 0.005 | P78: 0 | Q78: 0 | R78: 0 | S78: 0 | X78: 0.005 | Y78: 0 | Z78: 0 | AA78: 0 | AB78: 0
A79: 2.36 | B79: Physical / Self Defence training @ Rs. 200/- per child per annum. | F79: =+D79*0.61 -> 0 | I79: 0 | J79: 0 | O79: 0.002 | P79: 0 | Q79: 0 | R79: 0 | S79: 0 | X79: 0.002 | Y79: 0 | Z79: 0 | AA79: 0 | AB79: 0
B80: Sub Total (Recurring) | C80: =+C58 -> 0 | D80: =SUM(D58:D79) -> 0 | E80: =+E58 -> 0 | F80: 0 | G80: =+E80/C80 ->  | I80: =SUM(I58:I79) -> 0 | J80: 0 | K80: 0 | L80: 0 | M80: 0 | N80: 0 | O80: 24.7425 | P80: =+P58 -> 0 | Q80: =SUM(Q58:Q79) -> 0 | R80: =+R58 -> 0 | S80: 0 | T80: 0 | U80: 0 | V80: 0 | W80: 0 | X80: 24.7425 | Y80: =+Y58 -> 0 | Z80: =SUM(Z58:Z79) -> 0 | AA80: =+AA58 -> 0 | AB80: =SUM(AB58:AB79) -> 0
B81: Total (Recurring + Non Recurring) | C81: =+C80+C56 -> 0 | D81: =+D80+D56 -> 0 | E81: 0 | F81: 0 | I81: =+I80+I56 -> 0 | J81: 0 | K81: 0 | L81: 0 | M81: 0 | N81: 0 | O81: 31.29 | P81: =P80 -> 0 | Q81: =+Q80+Q56 -> 0 | R81: =R80 -> 0 | S81: 0 | T81: 0 | U81: 0 | V81: 0 | W81: 0 | X81: 31.29 | Y81: =Y80 -> 0 | Z81: =+Z80+Z56 -> 0 | AA81: =AA80 -> 0 | AB81: =+AB80+AB56 -> 0
B82: Total (A + B) Residential Boys School | C82: =+C81+C49 -> 0 | D82: =+D81+D49 -> 0 | E82: 0 | F82: 0 | I82: =+I81+I49 -> 0 | J82: 0 | K82: 0 | L82: 0 | M82: 0 | N82: 0 | O82: 31.29 | P82: 0 | Q82: 0 | R82: 0 | S82: =+S81+S49 -> 0 | T82: =+T81+T49 -> 0 | U82: 0 | V82: 0 | W82: 0 | X82: 31.29 | Y82: 0 | Z82: 0 | AA82: 0 | AB82: =+AB81+AB49 -> 0
A83: 3 | B83: Residential Hostel for specific category of children
A84: (A) | B84: 50 children | I84: 0 | J84: 0 | Q84: 0 | R84: 0 | S84: 0 | Z84: =+Y84*X84 -> 0 | AA84: =+Y84+V84+T84 -> 0 | AB84: 0
B85: Non-recurring (one time grant) | G85: =+E85/C85 ->  | I85: =+C85-E85 -> 0 | J85: 0 | Q85: 0 | R85: 0 | S85: 0 | Z85: 0 | AA85: 0 | AB85: 0
A86: 3.01 | B86: Furniture/ Equipment (including kitchen) | I86: 0 | J86: 0 | O86: 2 | Q86: =+P86*O86 -> 0 | R86: =+P86+M86+K86 -> 0 | S86: 0 | X86: 2 | Z86: 0 | AA86: 0 | AB86: 0
A87: =+A86+0.01 -> 3.02 | B87: TLM and equipment including library books | I87: 0 | J87: 0 | O87: 3 | Q87: 0 | R87: 0 | S87: 0 | X87: 3 | Z87: 0 | AA87: 0 | AB87: 0
A88: 3.03 | B88: Bedding (new) | I88: 0 | J88: 0 | O88: 0.375 | Q88: 0 | R88: 0 | S88: 0 | X88: 0.375 | Z88: 0 | AA88: 0 | AB88: 0
A89: 3.04 | B89: Replacement of bedding (once in 3 years) | I89: 0 | J89: 0 | Q89: 0 | R89: 0 | S89: 0 | Z89: 0 | AA89: 0 | AB89: 0
B90: Sub Total (Non Recurring) | C90: =SUM(C86:C89) -> 0 | D90: =SUM(D86:D89) -> 0 | E90: 0 | F90: 0 | I90: =SUM(I86:I89) -> 0 | J90: 0 | K90: 0 | L90: 0 | M90: 0 | N90: 0 | O90: 5.375 | P90: 0 | Q90: 0 | R90: 0 | S90: 0 | T90: 0 | U90: 0 | V90: 0 | W90: 0 | X90: 5.375 | Y90: 0 | Z90: 0 | AA90: 0 | AB90: 0
B91: Recurring (50 children) | I91: 0 | J91: 0 | Q91: 0 | R91: 0 | S91: 0 | Z91: =+Y91*X91 -> 0 | AA91: =+Y91+V91+T91 -> 0 | AB91: 0
A92: 3.05 | B92: Maintenance per child Per month @ Rs.1500/- | I92: 0 | J92: 0 | O92: 9 | Q92: 0 | R92: 0 | S92: 0 | X92: 9 | Z92: 0 | AA92: 0 | AB92: 0
A93: =+A92+0.01 -> 3.06 | B93: Stipend per child per month @ Rs.100/- | I93: 0 | J93: 0 | O93: 0.6 | Q93: 0 | R93: 0 | S93: 0 | X93: 0.6 | Z93: 0 | AA93: 0 | AB93: 0
A94: 3.07 | B94: Supplementary TLM, Stationery and other educational material @Rs.1000/- per child per annum | I94: 0 | J94: 0 | O94: 0.5 | Q94: 0 | R94: 0 | S94: 0 | X94: 0.5 | Z94: 0 | AA94: 0 | AB94: 0
B95: Salaries | I95: 0 | J95: 0 | Q95: 0 | R95: 0 | S95: 0 | Z95: 0 | AA95: 0 | AB95: 0
A96: (a) | B96: 1 Warden @ Rs.25000/- per month | I96: 0 | J96: 0 | O96: 3 | Q96: 0 | R96: 0 | S96: 0 | X96: 3 | Z96: 0 | AA96: 0 | AB96: 0
A97: (b) | B97: 4 Fulltime teachers as per RTE Norms @ Rs. 20,000/- per month per teacher | I97: 0 | J97: 0 | O97: 9.6 | Q97: 0 | R97: 0 | S97: 0 | X97: 9.6 | Z97: 0 | AA97: 0 | AB97: 0
A98: (c) | B98: 2 Urdu Teachers (only for Blocks with muslim population above 20% and select urban areas) @ Rs.12,000/- per month per teacher. | I98: 0 | J98: 0 | O98: 2.88 | Q98: 0 | R98: 0 | S98: 0 | X98: 2.88 | Z98: 0 | AA98: 0 | AB98: 0
A99: (d) | B99: 3 Part time teachers @ Rs.5,000/- per month per teacher | I99: 0 | J99: 0 | O99: 1.5 | Q99: 0 | R99: 0 | S99: 0 | X99: 1.5 | Z99: 0 | AA99: 0 | AB99: 0
A100: (e) | B100: 1 Full time Accountant @ Rs. 10,000/- per month | I100: 0 | J100: 0 | O100: 1.2 | Q100: 0 | R100: 0 | S100: 0 | X100: 1.2 | Z100: 0 | AA100: 0 | AB100: 0
A101: (f) | B101: 2 Support staff - (Accountant/Assistant, Peon, Chowkidar) @ Rs. 5,000/- per month per staff | I101: 0 | J101: 0 | O101: 1.2 | Q101: 0 | R101: 0 | S101: 0 | X101: 1.2 | Z101: 0 | AA101: 0 | AB101: 0
A102: (g) | B102: 1 Head Cook @ Rs. 6,000/- per month and upto 2 Asstt. Cooks @ Rs. 4,500/- per month per cook | I102: 0 | J102: 0 | O102: 1.8 | Q102: 0 | R102: 0 | S102: 0 | X102: 1.8 | Z102: 0 | AA102: 0 | AB102: 0
A103: 3.08 | B103: Specific Skill training @ Rs.1000/- per annum per child | I103: 0 | J103: 0 | O103: 0.5 | Q103: 0 | R103: 0 | S103: 0 | X103: 0.5 | Z103: 0 | AA103: 0 | AB103: 0
A104: =+A103+0.01 -> 3.09 | B104: Electricity / water charges @ Rs. 1000/- per annum per child | I104: 0 | J104: 0 | O104: 0.5 | Q104: 0 | R104: 0 | S104: 0 | X104: 0.5 | Z104: 0 | AA104: 0 | AB104: 0
A105: 3.1 | B105: Medical care/contingencies @ Rs.1250/- per annum per child | I105: 0 | J105: 0 | O105: 0.625 | Q105: 0 | R105: 0 | S105: 0 | X105: 0.625 | Z105: 0 | AA105: 0 | AB105: 0
A106: 3.11 | B106: Maintenance @ Rs. 750/- per child per annum | I106: 0 | J106: 0 | O106: 0.375 | Q106: 0 | R106: 0 | S106: 0 | X106: 0.375 | Z106: 0 | AA106: 0 | AB106: 0
A107: 3.12 | B107: Miscellaneous @ Rs. 750/- per child per annum | I107: 0 | J107: 0 | O107: 0.375 | Q107: 0 | R107: 0 | S107: 0 | X107: 0.375 | Z107: 0 | AA107: 0 | AB107: 0
A108: 3.13 | B108: Preparatory camps @ Rs. 300/- per child per annum | I108: 0 | J108: 0 | O108: 0.15 | Q108: 0 | R108: 0 | S108: 0 | X108: 0.15 | Z108: 0 | AA108: 0 | AB108: 0
A109: 3.14 | B109: P.T.A / school functions @ Rs. 300/- per child per annum | I109: 0 | J109: 0 | O109: 0.15 | Q109: 0 | R109: 0 | S109: 0 | X109: 0.15 | Z109: 0 | AA109: 0 | AB109: 0
A110: 3.15 | B110: Provision of Rent @ Rs. 10,000/- per child per annum | I110: 0 | J110: 0 | Q110: 0 | R110: 0 | S110: 0 | Z110: 0 | AA110: 0 | AB110: 0
A111: 3.16 | B111: Capacity Building @ Rs. 500/- per child per annum | I111: 0 | J111: 0 | O111: 0.25 | Q111: 0 | R111: 0 | S111: 0 | X111: 0.25 | Z111: 0 | AA111: 0 | AB111: 0
A112: 3.17 | B112: Physical / Self Defence Training @ Rs.200/- per child per annum | I112: 0 | J112: 0 | O112: 0.1 | Q112: 0 | R112: 0 | S112: 0 | X112: 0.1 | Z112: 0 | AA112: 0 | AB112: 0
B113: Sub Total (Recurring) | C113: =SUM(C92:C112) -> 0 | D113: =SUM(D92:D112) -> 0 | E113: 0 | F113: 0 | I113: =SUM(I92:I112) -> 0 | J113: 0 | K113: 0 | L113: 0 | M113: 0 | N113: 0 | O113: 34.305 | P113: 0 | Q113: 0 | R113: 0 | S113: 0 | T113: 0 | U113: 0 | V113: 0 | W113: 0 | X113: 34.305 | Y113: 0 | Z113: 0 | AA113: 0 | AB113: 0
B114: Total (Non Recurring + Recurring) | C114: =+C113+C90 -> 0 | D114: =+D113+D90 -> 0 | E114: 0 | F114: 0 | I114: =+I113+I90 -> 0 | J114: 0 | K114: 0 | L114: 0 | M114: 0 | N114: 0 | O114: 39.68 | P114: 0 | Q114: 0 | R114: 0 | S114: 0 | T114: 0 | U114: 0 | V114: 0 | W114: 0 | X114: 39.68 | Y114: 0 | Z114: 0 | AA114: 0 | AB114: 0
A115: (B) | B115: 100 Children | I115: 0 | J115: 0 | Q115: 0 | R115: 0 | S115: 0 | Z115: =+Y115*X115 -> 0 | AA115: =+Y115+V115+T115 -> 0 | AB115: 0
B116: Non-recurring (one time grant) | I116: 0 | J116: 0 | Q116: 0 | R116: 0 | S116: 0 | Z116: 0 | AA116: 0 | AB116: 0
A117: 3.18 | B117: Furniture / Equipment (including kitchen equipment) | I117: 0 | J117: 0 | O117: 3 | Q117: 0 | R117: 0 | S117: 0 | X117: 3 | Z117: 0 | AA117: 0 | AB117: 0
A118: =+A117+0.01 -> 3.19 | B118: TLM and equipment including library books (New) | I118: 0 | J118: 0 | O118: 3.5 | Q118: 0 | R118: 0 | S118: 0 | X118: 3.5 | Z118: 0 | AA118: 0 | AB118: 0
A119: 3.2 | B119: Beds for Boys | I119: 0 | J119: 0 | O119: 0.04 | P119: 100 | Q119: 4 | R119: 100 | S119: 4 | X119: 0.04 | Z119: 0 | AA119: 0 | AB119: 0
A120: 3.21 | B120: Replacement of bedding (once in 3 years) | I120: 0 | J120: 0 | O120: 0.0075 | P120: =P123 -> 100 | Q120: 0.75 | R120: 100 | S120: 0.75 | X120: 0.0075 | Y120: =P120 -> 100 | Z120: 0.75 | AA120: 100 | AB120: 0.75
B121: Sub Total Non-recurring | C121: =SUM(C117:C120) -> 0 | D121: =SUM(D117:D120) -> 0 | E121: 0 | F121: 0 | I121: =SUM(I117:I120) -> 0 | J121: 0 | K121: 0 | L121: 0 | M121: 0 | N121: 0 | O121: 6.5475 | P121: 200 | Q121: 4.75 | R121: 200 | S121: 4.75 | T121: 0 | U121: 0 | V121: 0 | W121: 0 | X121: 6.5475 | Y121: 100 | Z121: 0.75 | AA121: 100 | AB121: 0.75
B122: Recurring | I122: 0 | J122: 0 | Q122: 0 | R122: 0 | S122: 0 | Z122: =+Y122*X122 -> 0 | AA122: =+Y122+V122+T122 -> 0 | AB122: 0
A123: 3.22 | B123: Maintenance per child per month @ Rs. 1500/- | C123: 0 | D123: 0 | E123: =+C123 -> 0 | F123: =+D123*0.98 -> 0 | I123: 0 | J123: 0 | O123: 0.18 | P123: 100 | Q123: 18 | R123: 100 | S123: 18 | X123: 0.18 | Y123: =P123 -> 100 | Z123: 18 | AA123: 100 | AB123: 18 | AF123: 250
A124: =+A123+0.01 -> 3.23 | B124: Stipend per child per month @ Rs.100/- | C124: 0 | D124: 0 | E124: =+C124 -> 0 | F124: =+D124*0.98 -> 0 | I124: 0 | J124: 0 | O124: 0.012 | P124: 100 | Q124: 1.2 | R124: 100 | S124: 1.2 | X124: 0.012 | Y124: =P124 -> 100 | Z124: 1.2 | AA124: 100 | AB124: 1.2
A125: 3.24 | B125: Supplementary TLM, Stationery and other educational material per child @1000/- per annum | C125: 0 | D125: 0 | E125: 0 | F125: =+D125*0.95 -> 0 | I125: 0 | J125: 0 | O125: 0.01 | P125: 100 | Q125: 1 | R125: 100 | S125: 1 | X125: 0.01 | Y125: 100 | Z125: 1 | AA125: 100 | AB125: 1
B126: Salaries | I126: 0 | J126: 0 | Q126: 0 | R126: 0 | S126: 0 | Y126: 0 | Z126: 0 | AA126: 0 | AB126: 0
A127: (a) | B127: 1 Warden @ Rs. 25,000/- per month | C127: 0 | D127: 0 | E127: =+C127 -> 0 | F127: =+D127*0.8 -> 0 | I127: 0 | J127: 0 | O127: 3 | P127: 1 | Q127: 3 | R127: 1 | S127: 3 | X127: 3 | Y127: 1 | Z127: 3 | AA127: 1 | AB127: 3
A128: (b) | B128: 1 head teacher @ Rs. 25,000/- per month in case the enrollment exceeds 100 | I128: 0 | J128: 0 | O128: 3 | Q128: 0 | R128: 0 | S128: 0 | X128: 3 | Y128: 0 | Z128: 0 | AA128: 0 | AB128: 0
A129: (c) | B129: 4 - 5 Full time teachers as per RTE norms @ Rs. 20,000/- per month per teacher | I129: 0 | J129: 0 | O129: 9.6 | Q129: 0 | R129: 0 | S129: 0 | X129: 9.6 | Y129: 0 | Z129: 0 | AA129: 0 | AB129: 0
A130: (d) | B130: 2 Urdu Teachers (only for blocks with muslim population above 20% and select urban areas), if required @ Rs. 12,000/- per month per teacher | I130: 0 | J130: 0 | O130: 2.88 | Q130: 0 | R130: 0 | S130: 0 | X130: 2.88 | Y130: 0 | Z130: 0 | AA130: 0 | AB130: 0
A131: (e) | B131: 3 part time teachers @ Rs. 5,000/- per month per teacher | C131: 0 | D131: 0 | E131: =+C131 -> 0 | F131: =+D131*0.85 -> 0 | I131: 0 | J131: 0 | O131: 1.8 | P131: 1 | Q131: 1.8 | R131: 1 | S131: 1.8 | X131: 1.8 | Y131: 1 | Z131: 1.8 | AA131: 1 | AB131: 1.8
A132: (f) | B132: 1 Full time Accountant @ Rs. 10,000/- per month | C132: 0 | D132: 0 | E132: =+C132 -> 0 | F132: =+D132*0.72 -> 0 | I132: 0 | J132: 0 | O132: 1.2 | P132: 1 | Q132: 1.2 | R132: 1 | S132: 1.2 | X132: 1.2 | Y132: 1 | Z132: 1.2 | AA132: 1 | AB132: 1.2
A133: 3.25 | B133: 2 Support Staff – (Accountant/ Assistant, Peon, Chowkidar) @ Rs. 5,000/- per month per staff | C133: 0 | D133: 0 | E133: 0 | F133: =+D133*0.96 -> 0 | I133: 0 | J133: 0 | O133: 1.2 | P133: 1 | Q133: 1.2 | R133: 1 | S133: 1.2 | X133: 1.2 | Y133: 1 | Z133: 1.2 | AA133: 1 | AB133: 1.2
A134: =+A133+0.01 -> 3.26 | B134: 1 Head cook @ Rs. 6,000/- per month and upto 2 Asstt. Cooks @ Rs. 4,500/- per month per cook | C134: 0 | D134: 0 | E134: 0 | F134: =+D134*0.96 -> 0 | I134: 0 | J134: 0 | O134: 1.8 | P134: 1 | Q134: 1.8 | R134: 1 | S134: 1.8 | X134: 1.8 | Y134: 1 | Z134: 1.8 | AA134: 1 | AB134: 1.8
A135: 3.27 | B135: Specific skill training per child @ Rs.1000/- per annum | C135: 0 | D135: 0 | E135: 0 | F135: =+D135*0.9 -> 0 | I135: 0 | J135: 0 | O135: 0.01 | P135: 100 | Q135: 1 | R135: 100 | S135: 1 | X135: 0.01 | Y135: 100 | Z135: 1 | AA135: 100 | AB135: 1
A136: 3.28 | B136: Electricity / water charges per child @Rs.1000/- per annum | C136: 0 | D136: 0 | E136: 0 | F136: =+D136 -> 0 | I136: 0 | J136: 0 | O136: 0.01 | P136: 100 | Q136: 1 | R136: 100 | S136: 1 | X136: 0.01 | Y136: 100 | Z136: 1 | AA136: 100 | AB136: 1
A137: 3.29 | B137: Medical care/contingencies @ Rs.1250/- per child per annum | C137: 0 | D137: 0 | E137: 0 | F137: 0 | I137: 0 | J137: 0 | O137: 0.0125 | P137: 100 | Q137: 1.25 | R137: 100 | S137: 1.25 | X137: 0.0125 | Y137: 100 | Z137: 1.25 | AA137: 100 | AB137: 1.25
A138: 3.3 | B138: Maintenance @ Rs.750/- per child per annum | C138: 0 | D138: 0 | E138: 0 | F138: 0 | I138: 0 | J138: 0 | O138: 0.0075 | P138: 100 | Q138: 0.75 | R138: 100 | S138: 0.75 | X138: 0.0075 | Y138: 100 | Z138: 0.75 | AA138: 100 | AB138: 0.75
A139: 3.31 | B139: Miscellaneous @ Rs.750/- per child per annum | C139: 0 | D139: 0 | E139: 0 | F139: 0 | I139: 0 | J139: 0 | O139: 0.0075 | P139: 100 | Q139: 0.75 | R139: 100 | S139: 0.75 | X139: 0.0075 | Y139: 100 | Z139: 0.75 | AA139: 100 | AB139: 0.75
A140: 3.32 | B140: Preparatory camps @ Rs.200/- per child per annum | C140: 0 | D140: 0 | E140: 0 | F140: =+D140*0.8 -> 0 | I140: 0 | J140: 0 | O140: 0.003 | P140: 100 | Q140: 0.3 | R140: 100 | S140: 0.3 | X140: 0.003 | Y140: 100 | Z140: 0.3 | AA140: 100 | AB140: 0.3
A141: 3.33 | B141: P.T.A / school functions @ Rs.200/- per child per annum | C141: 0 | D141: 0 | E141: 0 | F141: =+D141*0.8 -> 0 | I141: 0 | J141: 0 | O141: 0.003 | P141: 100 | Q141: 0.3 | R141: 100 | S141: 0.3 | X141: 0.003 | Y141: 100 | Z141: 0.3 | AA141: 100 | AB141: 0.3
A142: 3.34 | B142: Provision of Rent @ Rs. 6000/- per child per annum | I142: 0 | J142: 0 | O142: 0 | Q142: 0 | R142: 0 | S142: 0 | X142: 0 | Y142: 0 | Z142: 0 | AA142: 0 | AB142: 0
A143: 3.35 | B143: Capacity Building @ Rs.500/- per child per annum | C143: 0 | D143: 0 | E143: =+C143 -> 0 | F143: =+D143*0.61 -> 0 | I143: 0 | J143: 0 | O143: 0.005 | P143: 100 | Q143: 0.5 | R143: 100 | S143: 0.5 | X143: 0.005 | Y143: 100 | Z143: 0.5 | AA143: 100 | AB143: 0.5
A144: 3.36 | B144: Physical / Self Defence training @ Rs. 200/- per child per annum. | F144: =+D144*0.61 -> 0 | I144: 0 | J144: 0 | O144: 0.002 | P144: 100 | Q144: 0.2 | R144: 100 | S144: 0.2 | X144: 0.002 | Y144: 100 | Z144: 0.2 | AA144: 100 | AB144: 0.2
B145: Sub Total (Recurring) | C145: =+C123 -> 0 | D145: =SUM(D123:D144) -> 0 | E145: =+E123 -> 0 | F145: 0 | I145: =SUM(I123:I144) -> 0 | J145: 0 | K145: 0 | L145: 0 | M145: 0 | N145: 0 | O145: 24.7425 | P145: =+P123 -> 100 | Q145: 35.25 | R145: =+R123 -> 100 | S145: 35.25 | T145: 0 | U145: 0 | V145: 0 | W145: 0 | X145: 24.7425 | Y145: =+Y123 -> 100 | Z145: =SUM(Z123:Z144) -> 35.25 | AA145: =+AA123 -> 100 | AB145: =SUM(AB123:AB144) -> 35.25
B146: Total (Recurring + Non Recurring) | C146: =+C145+C121 -> 0 | D146: =+D145+D121 -> 0 | E146: 0 | F146: 0 | I146: =+I145+I121 -> 0 | J146: 0 | K146: 0 | L146: 0 | M146: 0 | N146: 0 | O146: 31.29 | P146: =P145 -> 100 | Q146: 40 | R146: =R145 -> 100 | S146: 40 | T146: 0 | U146: 0 | V146: 0 | W146: 0 | X146: 31.29 | Y146: =Y145 -> 100 | Z146: =+Z145+Z121 -> 36 | AA146: =AA145 -> 100 | AB146: =+AB145+AB121 -> 36
B147: Total (A + B) Residential Boys Hostels | C147: =+C146+C82 -> 0 | D147: =+D146+D82 -> 0 | E147: =+E146+E82 -> 0 | F147: =+F146+F82 -> 0 | I147: =+I146+I82 -> 0 | J147: =+J146+J82 -> 0 | K147: 0 | L147: =+L146+L114 -> 0 | M147: 0 | N147: 0 | O147: 70.97 | P147: 100 | Q147: =+Q146+Q82 -> 40 | R147: 100 | S147: =+S146+S82 -> 40 | T147: =+T146+T82 -> 0 | U147: =+U146+U114 -> 0 | V147: =+V146+V82 -> 0 | W147: =+W146+W114 -> 0 | X147: 70.97 | Y147: 100 | Z147: =+Z146+Z82 -> 36 | AA147: =+AA146+AA114 -> 100 | AB147: =+AB146+AB82 -> 36
A148: 4 | B148: Girls Hostel | I148: 0 | J148: 0 | Q148: 0 | R148: 0 | S148: 0 | Z148: =+Y148*X148 -> 0 | AA148: =+Y148+V148+T148 -> 0 | AB148: 0
A149: (A) | B149: 50 children Girls Hostels | C149: 5 | E149: =+C149 -> 5 | G149: =+E149/C149 -> 1 | I149: =+C149-E149 -> 0 | J149: 0 | P149: 0 | Q149: 0 | R149: 5 | S149: 0 | Z149: 0 | AA149: =+C149 -> 5 | AB149: 0 | AC149: Not recommended
B150: Non-recurring (one time grant) | I150: 0 | J150: 0 | Q150: =+P150*O150 -> 0 | R150: =+P150+M150+K150 -> 0 | S150: 0 | Z150: 0 | AA150: =+Y150+V150+T150 -> 0 | AB150: 0
A151: 4.01 | B151: Furniture/ Equipment (including kitchen) | I151: 0 | J151: 0 | O151: 2 | Q151: 0 | R151: 0 | S151: 0 | X151: 2 | Z151: 0 | AA151: 0 | AB151: 0
A152: =+A151+0.01 -> 4.02 | B152: TLM and equipment including library books | I152: 0 | J152: 0 | O152: 3 | Q152: 0 | R152: 0 | S152: 0 | X152: 3 | Z152: 0 | AA152: 0 | AB152: 0
A153: 4.03 | B153: Beds for Girls | I153: 0 | J153: 0 | O153: 0.04 | P153: 250 | Q153: 10 | R153: 250 | S153: 10 | X153: 0.04 | Z153: 0 | AA153: 0 | AB153: 0
A154: 4.04 | B154: Replacement of bedding (once in 3 years) | I154: 0 | J154: 0 | O154: 0.0075 | P154: =P157 -> 250 | Q154: 1.875 | R154: 250 | S154: 1.875 | X154: 0.0075 | Y154: =Y157 -> 250 | Z154: 1.875 | AA154: 250 | AB154: 1.875
B155: Sub Total (Non Recurring) | C155: =SUM(C151:C154) -> 0 | D155: =SUM(D151:D154) -> 0 | E155: 0 | F155: 0 | I155: =SUM(I151:I154) -> 0 | J155: 0 | K155: 0 | L155: 0 | M155: 0 | N155: 0 | O155: 5.0475 | P155: 500 | Q155: 11.875 | R155: 500 | S155: 11.875 | T155: 0 | U155: 0 | V155: 0 | W155: 0 | X155: 5.0475 | Y155: 250 | Z155: 1.875 | AA155: 250 | AB155: 1.875
B156: Recurring (50 children) | I156: 0 | J156: 0 | Q156: 0 | R156: 0 | S156: 0 | Z156: =+Y156*X156 -> 0 | AA156: =+Y156+V156+T156 -> 0 | AB156: 0
A157: 4.05 | B157: Maintenance per child Per month @ Rs.1500/- | C157: 250 | D157: 45 | E157: =+C157 -> 250 | F157: =+D157*0.98 -> 44.1 | G157: 1 | H157: 0.98 | I157: 0 | J157: 0.9 | O157: 0.18 | P157: 250 | Q157: 45 | R157: 250 | S157: 45 | X157: 0.18 | Y157: =C157 -> 250 | Z157: 45 | AA157: 250 | AB157: 45
A158: =+A157+0.01 -> 4.06 | B158: Stipend per child per month @ Rs.100/- | C158: 250 | D158: 3 | E158: =+C158 -> 250 | F158: =+D158*0.98 -> 2.94 | G158: 1 | H158: 0.98 | I158: 0 | J158: 0.06 | O158: 0.012 | P158: 250 | Q158: 3 | R158: 250 | S158: 3 | X158: 0.012 | Y158: =C158 -> 250 | Z158: 3 | AA158: 250 | AB158: 3
A159: 4.07 | B159: Supplementary TLM, Stationery and other educational material @Rs.1000/- per child per annum | C159: 250 | D159: 2.5 | E159: 250 | F159: =+D159*0.95 -> 2.375 | G159: 1 | H159: 0.95 | I159: 0 | J159: 0.125 | O159: 0.01 | P159: 250 | Q159: 2.5 | R159: 250 | S159: 2.5 | X159: 0.01 | Y159: 250 | Z159: 2.5 | AA159: 250 | AB159: 2.5
B160: Salaries | C160: 0 | D160: 0 | I160: 0 | J160: 0 | P160: 0 | Q160: 0 | R160: 0 | S160: 0 | Y160: 0 | Z160: 0 | AA160: 0 | AB160: 0
A161: (a) | B161: 1 Warden @ Rs.25000/- per month | C161: 5 | D161: 12 | E161: =+C161 -> 5 | F161: =+D161*0.77 -> 9.24 | G161: 1 | H161: 0.77 | I161: 0 | J161: 2.76 | O161: 3 | P161: 5 | Q161: 15 | R161: 5 | S161: 15 | X161: 3 | Y161: 5 | Z161: 15 | AA161: 5 | AB161: 15
A162: (b) | B162: 4 Fulltime teachers as per RTE Norms @ Rs. 20,000/- per month per teacher | I162: 0 | J162: 0 | O162: 3 | Q162: 0 | R162: 0 | S162: 0 | X162: 3 | Y162: 0 | Z162: 0 | AA162: 0 | AB162: 0
A163: (c) | B163: 2 Urdu Teachers (only for Blocks with muslim population above 20% and select urban areas) @ Rs.12,000/- per month per teacher. | I163: 0 | J163: 0 | O163: 9.6 | Q163: 0 | R163: 0 | S163: 0 | X163: 9.6 | Y163: 0 | Z163: 0 | AA163: 0 | AB163: 0
A164: (d) | B164: 3 Part time teachers @ Rs.5,000/- per month per teacher | C164: 5 | D164: 7.5 | E164: =+C164 -> 5 | F164: =+D164*0.85 -> 6.375 | G164: 1 | H164: 0.85 | I164: 0 | J164: 1.125 | O164: 1.8 | P164: 5 | Q164: 9 | R164: 5 | S164: 9 | X164: 1.8 | Y164: 5 | Z164: 9 | AA164: 5 | AB164: 9
A165: (e) | B165: 1 Full time Accountant @ Rs. 10,000/- per month | C165: 5 | D165: 6 | E165: =+C165 -> 5 | F165: =+D165*0.72 -> 4.32 | G165: 1 | H165: 0.72 | I165: 0 | J165: 1.68 | O165: 1.2 | P165: 5 | Q165: 6 | R165: 5 | S165: 6 | X165: 1.2 | Y165: 5 | Z165: 6 | AA165: 5 | AB165: 6
A166: (f) | B166: 2 Support staff - (Accountant/Assistant, Peon, Chowkidar) @ Rs. 5,000/- per month per staff | C166: 5 | D166: 6 | E166: 5 | F166: =+D166*0.96 -> 5.76 | G166: 1 | H166: 0.96 | I166: 0 | J166: 0.24 | O166: 1.2 | P166: 5 | Q166: 6 | R166: 5 | S166: 6 | X166: 1.2 | Y166: 5 | Z166: 6 | AA166: 5 | AB166: 6
A167: (g) | B167: 1 Head Cook @ Rs. 6,000/- per month and upto 2 Asstt. Cooks @ Rs. 4,500/- per month per cook | C167: 5 | D167: 6.3 | E167: 5 | F167: =+D167*0.96 -> 6.048 | G167: 1 | H167: 0.96 | I167: 0 | J167: 0.252 | O167: 1.8 | P167: 5 | Q167: 9 | R167: 5 | S167: 9 | X167: 1.8 | Y167: 5 | Z167: 9 | AA167: 5 | AB167: 9
A168: 4.08 | B168: Specific Skill training @ Rs.1000/- per annum per child | C168: 250 | D168: 2.5 | E168: 250 | F168: =+D168*0.9 -> 2.25 | G168: 1 | H168: 0.9 | I168: 0 | J168: 0.25 | O168: 0.01 | P168: 250 | Q168: 2.5 | R168: 250 | S168: 2.5 | X168: 0.01 | Y168: 250 | Z168: 2.5 | AA168: 250 | AB168: 2.5
A169: =+A168+0.01 -> 4.09 | B169: Electricity / water charges @ Rs. 1000/- per annum per child | C169: 250 | D169: 2.5 | E169: 250 | F169: =+D169 -> 2.5 | G169: 1 | H169: 1 | I169: 0 | J169: 0 | O169: 0.01 | P169: 250 | Q169: 2.5 | R169: 250 | S169: 2.5 | X169: 0.01 | Y169: 250 | Z169: 2.5 | AA169: 250 | AB169: 2.5
A170: 4.1 | B170: Medical care/contingencies @ Rs.1250/- per annum per child | C170: 250 | D170: 3.125 | E170: 250 | F170: 3.125 | G170: 1 | H170: 1 | I170: 0 | J170: 0 | O170: 0.0125 | P170: 250 | Q170: 3.125 | R170: 250 | S170: 3.125 | X170: 0.0125 | Y170: 250 | Z170: 3.125 | AA170: 250 | AB170: 3.125
A171: 4.11 | B171: Maintenance @ Rs. 750/- per child per annum | C171: 250 | D171: 1.875 | E171: 250 | F171: 1.875 | G171: 1 | H171: 1 | I171: 0 | J171: 0 | O171: 0.0075 | P171: 250 | Q171: 1.875 | R171: 250 | S171: 1.875 | X171: 0.0075 | Y171: 250 | Z171: 1.875 | AA171: 250 | AB171: 1.875
A172: 4.12 | B172: Miscellaneous @ Rs. 750/- per child per annum | C172: 250 | D172: 1.875 | E172: 250 | F172: 1.875 | G172: 1 | H172: 1 | I172: 0 | J172: 0 | O172: 0.0075 | P172: 250 | Q172: 1.875 | R172: 250 | S172: 1.875 | X172: 0.0075 | Y172: 250 | Z172: 1.875 | AA172: 250 | AB172: 1.875
A173: 4.13 | B173: Preparatory camps @ Rs. 300/- per child per annum | C173: 250 | D173: 0.75 | E173: 250 | F173: =+D173*0.8 -> 0.6 | G173: 1 | H173: 0.8 | I173: 0 | J173: 0.15 | O173: 0.003 | P173: 250 | Q173: 0.75 | R173: 250 | S173: 0.75 | X173: 0.003 | Y173: 250 | Z173: 0.75 | AA173: 250 | AB173: 0.75
A174: 4.14 | B174: P.T.A / school functions @ Rs. 300/- per child per annum | C174: 250 | D174: 0.75 | E174: 250 | F174: =+D174*0.8 -> 0.6 | G174: 1 | H174: 0.8 | I174: 0 | J174: 0.15 | O174: 0.003 | P174: 250 | Q174: 0.75 | R174: 250 | S174: 0.75 | X174: 0.003 | Y174: 250 | Z174: 0.75 | AA174: 250 | AB174: 0.75
A175: 4.15 | B175: Provision of Rent @ Rs. 10,000/- per child per annum | I175: 0 | J175: 0 | O175: 0 | Q175: 0 | R175: 0 | S175: 0 | X175: 0 | Y175: 0 | Z175: 0 | AA175: 0 | AB175: 0
A176: 4.16 | B176: Capacity Building @ Rs. 500/- per child per annum | C176: 250 | D176: 1.25 | E176: =+C176 -> 250 | F176: =+D176*0.61 -> 0.7625 | G176: 1 | H176: 0.61 | I176: 0 | J176: 0.4875 | O176: 0.005 | P176: 250 | Q176: 1.25 | R176: 250 | S176: 1.25 | X176: 0.005 | Y176: 250 | Z176: 1.25 | AA176: 250 | AB176: 1.25
A177: 4.17 | B177: Physical / Self Defence Training @ Rs.200/- per child per annum | C177: 250 | D177: 0.5 | E177: 250 | F177: =+D177*0.61 -> 0.305 | G177: 1 | H177: 0.61 | I177: 0 | J177: 0.195 | O177: 0.002 | P177: 250 | Q177: 0.5 | R177: 250 | S177: 0.5 | X177: 0.002 | Y177: 250 | Z177: 0.5 | AA177: 250 | AB177: 0.5
B178: Sub Total (Recurring) | C178: =+C157 -> 250 | D178: =SUM(D157:D177) -> 103.425 | E178: =+E157 -> 250 | F178: 95.0505 | G178: 1 | H178: 0.9190282814 | I178: =SUM(I157:I177) -> 0 | J178: 8.3745 | K178: 0 | L178: 0 | M178: 0 | N178: 0 | O178: 21.8625 | P178: =+P157 -> 250 | Q178: 110.625 | R178: =+R157 -> 250 | S178: 110.625 | T178: 0 | U178: 0 | V178: 0 | W178: 0 | X178: 21.8625 | Y178: =+Y157 -> 250 | Z178: =SUM(Z157:Z177) -> 110.625 | AA178: =+AA157 -> 250 | AB178: =SUM(AB157:AB177) -> 110.625
B179: Total (Non Recurring + Recurring) | C179: =+C178+C155 -> 250 | D179: =+D178+D155 -> 103.425 | E179: 250 | F179: 95.0505 | G179: 1 | H179: 0.9190282814 | I179: =+I178+I155 -> 0 | J179: 8.3745 | K179: 0 | L179: 0 | M179: 0 | N179: 0 | O179: 26.91 | P179: =+P178 -> 250 | Q179: 122.5 | R179: =+R178 -> 250 | S179: =+S178+S155 -> 122.5 | T179: =+T178+T155 -> 0 | U179: 0 | V179: 0 | W179: 0 | X179: 26.91 | Y179: =+Y178 -> 250 | Z179: =+Z178+Z155 -> 112.5 | AA179: =+AA178 -> 250 | AB179: =+AB178+AB155 -> 112.5
A180: (B) | B180: 100 Children Girls Hostels | C180: 1 | E180: =+C180 -> 1 | G180: 1 | I180: 0 | J180: 0 | P180: 0 | Q180: 0 | R180: 1 | S180: 0 | Z180: =+Y180*X180 -> 0 | AA180: =+C180 -> 1 | AB180: =+Z180+W180+U180 -> 0
B181: Non-recurring (one time grant) | I181: 0 | J181: 0 | Q181: 0 | R181: 0 | S181: 0 | Z181: 0 | AA181: =+Y181+V181+T181 -> 0 | AB181: 0
A182: 5.01 | B182: Furniture / Equipment (including kitchen equipment) | I182: 0 | J182: 0 | O182: 3 | Q182: 0 | R182: 0 | S182: 0 | X182: 3 | Z182: 0 | AA182: 0 | AB182: 0
A183: =+A182+0.01 -> 5.02 | B183: TLM and equipment including library books (New) | I183: 0 | J183: 0 | O183: 3.5 | Q183: 0 | R183: 0 | S183: 0 | X183: 3.5 | Z183: 0 | AA183: 0 | AB183: 0
A184: 5.03 | B184: Beds for Girls | I184: 0 | J184: 0 | O184: 0.04 | P184: 100 | Q184: 4 | R184: 100 | S184: 4 | X184: 0.04 | Z184: 0 | AA184: 0 | AB184: 0
A185: 5.04 | B185: Replacement of bedding (once in 3 years) | I185: 0 | J185: 0 | O185: 0.0075 | P185: =P188 -> 100 | Q185: 0.75 | R185: 100 | S185: 0.75 | X185: 0.0075 | Y185: =Y188 -> 100 | Z185: 0.75 | AA185: 100 | AB185: 0.75
B186: Sub Total Non-recurring | C186: =SUM(C182:C185) -> 0 | D186: =SUM(D182:D185) -> 0 | E186: 0 | F186: 0 | I186: =SUM(I182:I185) -> 0 | J186: 0 | K186: 0 | L186: 0 | M186: 0 | N186: 0 | O186: 6.5475 | P186: 200 | Q186: 4.75 | R186: 200 | S186: 4.75 | T186: 0 | U186: 0 | V186: 0 | W186: 0 | X186: 6.5475 | Y186: 100 | Z186: 0.75 | AA186: 100 | AB186: 0.75
B187: Recurring | I187: 0 | J187: 0 | Q187: 0 | R187: 0 | S187: 0 | Z187: =+Y187*X187 -> 0 | AA187: =+Y187+V187+T187 -> 0 | AB187: 0
A188: 5.05 | B188: Maintenance per child per month @ Rs. 1500/- | C188: 100 | D188: 18 | E188: =+C188 -> 100 | F188: =+D188*0.98 -> 17.64 | G188: 1 | H188: 0.98 | I188: 0 | J188: 0.36 | O188: 0.18 | P188: 100 | Q188: 18 | R188: 100 | S188: 18 | X188: 0.18 | Y188: 100 | Z188: 18 | AA188: 100 | AB188: 18
A189: =+A188+0.01 -> 5.06 | B189: Stipend per child per month @ Rs.100/- | C189: 100 | D189: 1.2 | E189: =+C189 -> 100 | F189: =+D189*0.98 -> 1.176 | G189: 1 | H189: 0.98 | I189: 0 | J189: 0.024 | O189: 0.012 | P189: 100 | Q189: 1.2 | R189: 100 | S189: 1.2 | X189: 0.012 | Y189: 100 | Z189: 1.2 | AA189: 100 | AB189: 1.2
A190: 5.07 | B190: Supplementary TLM, Stationery and other educational material per child @1000/- per annum | C190: 100 | D190: 1 | E190: 100 | F190: =+D190*0.95 -> 0.95 | G190: 1 | H190: 0.95 | I190: 0 | J190: 0.05 | O190: 0.01 | P190: 100 | Q190: 1 | R190: 100 | S190: 1 | X190: 0.01 | Y190: 100 | Z190: 1 | AA190: 100 | AB190: 1
B191: Salaries | C191: 0 | D191: 0 | I191: 0 | J191: 0 | P191: 0 | Y191: 0
A192: (a) | B192: 1 Warden @ Rs. 25,000/- per month | C192: 1 | D192: 2.4 | E192: =+C192 -> 1 | F192: =+D192*0.78 -> 1.872 | G192: 1 | H192: 0.78 | I192: 0 | J192: 0.528 | O192: 3 | P192: 1 | Q192: =+P192*O192 -> 3 | R192: =+P192+M192+K192 -> 1 | S192: 3 | X192: 3 | Y192: 1 | Z192: =+Y192*X192 -> 3 | AA192: =+Y192+V192+T192 -> 1 | AB192: 3
A193: (b) | B193: 1 head teacher @ Rs. 25,000/- per month in case the enrollment exceeds 100 | I193: 0 | J193: 0 | O193: 3 | Q193: 0 | R193: 0 | S193: 0 | X193: 3 | Z193: 0 | AA193: 0 | AB193: 0
A194: (c) | B194: 4 - 5 Full time teachers as per RTE norms @ Rs. 20,000/- per month per teacher | I194: 0 | J194: 0 | O194: 9.6 | Q194: 0 | R194: 0 | S194: 0 | X194: 9.6 | Z194: 0 | AA194: 0 | AB194: 0
A195: (d) | B195: 2 Urdu Teachers (only for blocks with muslim population above 20% and select urban areas), if required @ Rs. 12,000/- per month per teacher | E195: =+C195 -> 0 | F195: =+D195*0.85 -> 0 | I195: 0 | J195: 0 | O195: 2.88 | Q195: 0 | R195: 0 | S195: 0 | X195: 2.88 | Z195: 0 | AA195: 0 | AB195: 0
A196: (e) | B196: 3 part time teachers @ Rs. 5,000/- per month per teacher | C196: 1 | D196: 1.5 | E196: =+C196 -> 1 | F196: =+D196*0.72 -> 1.08 | G196: 1 | H196: 0.72 | I196: 0 | J196: 0.42 | O196: 1.8 | P196: 1 | Q196: 1.8 | R196: 1 | S196: 1.8 | X196: 1.8 | Y196: 1 | Z196: 1.8 | AA196: 1 | AB196: 1.8
A197: (f) | B197: 1 Full time Accountant @ Rs. 10,000/- per month | C197: 1 | D197: 1.2 | E197: 1 | F197: =+D197*0.96 -> 1.152 | G197: 1 | H197: 0.96 | I197: 0 | J197: 0.048 | O197: 1.2 | P197: 1 | Q197: 1.2 | R197: 1 | S197: 1.2 | X197: 1.2 | Y197: 1 | Z197: 1.2 | AA197: 1 | AB197: 1.2
A198: 5.08 | B198: 2 Support Staff – (Accountant/ Assistant, Peon, Chowkidar) @ Rs. 5,000/- per month per staff | C198: 1 | D198: 1.2 | E198: 1 | F198: =+D198*0.96 -> 1.152 | G198: 1 | H198: 0.96 | I198: 0 | J198: 0.048 | O198: 1.2 | P198: 1 | Q198: 1.2 | R198: 1 | S198: 1.2 | X198: 1.2 | Y198: 1 | Z198: 1.2 | AA198: 1 | AB198: 1.2
A199: =+A198+0.01 -> 5.09 | B199: 1 Head cook @ Rs. 6,000/- per month and upto 2 Asstt. Cooks @ Rs. 4,500/- per month per cook | C199: 1 | D199: 1.8 | E199: 1 | F199: =+D199*0.9 -> 1.62 | G199: 1 | H199: 0.9 | I199: 0 | J199: 0.18 | O199: 1.8 | P199: 1 | Q199: 1.8 | R199: 1 | S199: 1.8 | X199: 1.8 | Y199: 1 | Z199: 1.8 | AA199: 1 | AB199: 1.8
A200: 5.1 | B200: Specific skill training per child @ Rs.1000/- per annum | C200: 100 | D200: 1 | E200: 100 | F200: =+D200*0.9 -> 0.9 | G200: 1 | H200: 0.9 | I200: 0 | J200: 0.1 | O200: 0.01 | P200: 100 | Q200: 1 | R200: 100 | S200: 1 | X200: 0.01 | Y200: 100 | Z200: 1 | AA200: 100 | AB200: 1
A201: 5.11 | B201: Electricity / water charges per child @Rs.1000/- per annum | C201: 100 | D201: 1 | E201: 100 | F201: =+D201 -> 1 | G201: 1 | H201: 1 | I201: 0 | J201: 0 | O201: 0.01 | P201: 100 | Q201: 1 | R201: 100 | S201: 1 | X201: 0.01 | Y201: 100 | Z201: 1 | AA201: 100 | AB201: 1
A202: 5.12 | B202: Medical care/contingencies @ Rs.1250/- per child per annum | C202: 100 | D202: 1.25 | E202: 100 | F202: 1.25 | G202: 1 | H202: 1 | I202: 0 | J202: 0 | O202: 0.0125 | P202: 100 | Q202: 1.25 | R202: 100 | S202: 1.25 | X202: 0.0125 | Y202: 100 | Z202: 1.25 | AA202: 100 | AB202: 1.25
... 403 more rows

Sheet Balaghat
A1: State Summary for AWP&B - 2017-18 , SSA, Madhya Pradesh (Rs in Lakhs)
A3: District : | B3: Balaghat
A5: S.No. | B5: Activity | C5: Year 2016-17 | K5: Outlay Proposed for 2017-18 | T5: Outlay Recommended for 2017-18 | AC5: Remarks
C6: Outlay approved by PAB (including spillover) | E6: Expected Achievement till March'2017 | I6: Savings | K6: Spill Over | M6: Deferred laibility of 2016-17 | O6: Fresh | R6: Total | T6: Spill Over | V6: Deferred laibility of 2016-17 | X6: Fresh | AA6: Total
C7: Phy. | D7: Fin | E7: Phy. | F7: Fin. | G7: Phy. (%) | H7: Fin. (%) | I7: Phy. | J7: Fin. | K7: Phy. | L7: Fin. | M7: Phy. | N7: Fin. | O7: Unit Cost | P7: Phy. | Q7: Fin. | R7: Phy. | S7: Fin. | T7: Phy. | U7: Fin. | V7: Phy. | W7: Fin. | X7: Unit Cost | Y7: Phy. | Z7: Fin. | AA7: Phy. | AB7: Fin.
A8: I | B8: ACCESS
B9: SSA
A10: 1 | B10: Opening of New Schools
A11: 1.01 | B11: New Primary School
A12: 1.02 | B12: Upgradation of PS to UPS
A13: 1.03 | B13: Composite Schools
A14: 1.04 | B14: Residential schools for specific category of children
A15: 1.05 | B15: Residential Hostel | P15: 1 | R15: =+P15 -> 1 | AA15: =+Y15 -> 0
A16: 1.06 | B16: Integration of Class V with primary schools
A17: 1.07 | B17: Integration of Class VIII with upper primary schools
A18: 2 | B18: Residential Schools for specific category of children
A19: A | B19: 50 children
B20: Non-recurring (one time grant) | G20: =+E20/C20 ->  | H20: =+F20/D20 ->  | I20: =+C20-E20 -> 0 | J20: =+D20-F20 -> 0
A21: 2.01 | B21: Furniture/ Equipment (including kitchen) | G21: =+E21/C21 ->  | I21: =+C21-E21 -> 0 | J21: 0 | O21: 2 | Q21: =+P21*O21 -> 0 | R21: =+P21+M21+K21 -> 0 | S21: =+Q21+N21+L21 -> 0 | X21: 2 | Z21: =+Y21*X21 -> 0 | AA21: =+Y21+V21+T21 -> 0 | AB21: =+Z21+W21+U21 -> 0
A22: 2.02 | B22: TLM and equipment including library books | I22: 0 | J22: 0 | O22: 3 | Q22: =+P22*O22 -> 0 | R22: =+P22+M22+K22 -> 0 | S22: 0 | X22: 3 | Z22: =+Y22*X22 -> 0 | AA22: =+Y22+V22+T22 -> 0 | AB22: 0
A23: 2.03 | B23: Bedding (new) | I23: 0 | J23: 0 | O23: 0.375 | Q23: 0 | R23: 0 | S23: 0 | X23: 0.375 | Z23: 0 | AA23: 0 | AB23: 0
A24: 2.04 | B24: Replacement of bedding (once in 3 years) | I24: 0 | J24: 0 | Q24: 0 | R24: 0 | S24: 0 | Z24: 0 | AA24: 0 | AB24: 0
B25: Sub Total (Non Recurring) | I25: 0 | J25: 0 | Q25: 0 | R25: 0 | S25: 0 | Z25: 0 | AA25: 0 | AB25: 0
B26: Recurring (50 children) | I26: 0 | J26: 0 | Q26: 0 | R26: 0 | S26: 0 | Z26: 0 | AA26: 0 | AB26: 0
A27: 2.05 | B27: Maintenance per child Per month @ Rs.1500/- | I27: 0 | J27: 0 | O27: 9 | Q27: 0 | R27: 0 | S27: 0 | X27: 9 | Z27: 0 | AA27: 0 | AB27: 0
A28: 2.06 | B28: Stipend per child per month @ Rs.100/- | I28: 0 | J28: 0 | O28: 0.6 | Q28: 0 | R28: 0 | S28: 0 | X28: 0.6 | Z28: 0 | AA28: 0 | AB28: 0
A29: 2.07 | B29: Supplementary TLM, Stationery and other educational material @Rs.1000/- per child per annum | I29: 0 | J29: 0 | O29: 0.5 | Q29: 0 | R29: 0 | S29: 0 | X29: 0.5 | Z29: 0 | AA29: 0 | AB29: 0
A30: 2.08 | B30: Salaries | I30: 0 | J30: 0 | Q30: 0 | R30: 0 | S30: 0 | Z30: 0 | AA30: 0 | AB30: 0
A31: (a) | B31: 1 Warden @ Rs.25000/- per month | I31: 0 | J31: 0 | O31: 3 | Q31: 0 | R31: 0 | S31: 0 | X31: 3 | Z31: 0 | AA31: 0 | AB31: 0
A32: (b) | B32: 4 Fulltime teachers as per RTE Norms @ Rs. 20,000/- per month per teacher | I32: 0 | J32: 0 | O32: 9.6 | Q32: 0 | R32: 0 | S32: 0 | X32: 9.6 | Z32: 0 | AA32: 0 | AB32: 0
A33: (c) | B33: 2 Urdu Teachers (only for Blocks with muslim population above 20% and select urban areas) @ Rs.12,000/- per month per teacher. | I33: 0 | J33: 0 | O33: 2.88 | Q33: 0 | R33: 0 | S33: 0 | X33: 2.88 | Z33: 0 | AA33: 0 | AB33: 0
A34: (d) | B34: 3 Part time teachers @ Rs.5,000/- per month per teacher | I34: 0 | J34: 0 | O34: 1.5 | Q34: 0 | R34: 0 | S34: 0 | X34: 1.5 | Z34: 0 | AA34: 0 | AB34: 0
A35: (e) | B35: 1 Full time Accountant @ Rs. 10,000/- per month | I35: 0 | J35: 0 | O35: 1.2 | Q35: 0 | R35: 0 | S35: 0 | X35: 1.2 | Z35: 0 | AA35: 0 | AB35: 0
A36: (f) | B36: 2 Support staff - (Accountant/Assistant, Peon, Chowkidar) @ Rs. 5,000/- per month per staff | I36: 0 | J36: 0 | O36: 1.2 | Q36: 0 | R36: 0 | S36: 0 | X36: 1.2 | Z36: 0 | AA36: 0 | AB36: 0
A37: (g) | B37: 1 Head Cook @ Rs. 6,000/- per month and upto 2 Asstt. Cooks @ Rs. 4,500/- per month per cook | I37: 0 | J37: 0 | O37: 1.8 | Q37: 0 | R37: 0 | S37: 0 | X37: 1.8 | Z37: 0 | AA37: 0 | AB37: 0
A38: 2.09 | B38: Specific Skill training @ Rs.1000/- per annum per child | I38: 0 | J38: 0 | O38: 0.5 | Q38: 0 | R38: 0 | S38: 0 | X38: 0.5 | Z38: 0 | AA38: 0 | AB38: 0
A39: 2.1 | B39: Electricity / water charges @ Rs. 1000/- per annum per child | I39: 0 | J39: 0 | O39: 0.5 | Q39: 0 | R39: 0 | S39: 0 | X39: 0.5 | Z39: 0 | AA39: 0 | AB39: 0
A40: =+A39+0.01 -> 2.11 | B40: Medical care/contingencies @ Rs.1250/- per annum per child | I40: 0 | J40: 0 | O40: 0.625 | Q40: 0 | R40: 0 | S40: 0 | X40: 0.625 | Z40: 0 | AA40: 0 | AB40: 0
A41: =+A40+0.01 -> 2.12 | B41: Maintenance @ Rs. 750/- per child per annum | I41: 0 | J41: 0 | O41: 0.375 | Q41: 0 | R41: 0 | S41: 0 | X41: 0.375 | Z41: 0 | AA41: 0 | AB41: 0
A42: 2.13 | B42: Miscellaneous @ Rs. 750/- per child per annum | I42: 0 | J42: 0 | O42: 0.375 | Q42: 0 | R42: 0 | S42: 0 | X42: 0.375 | Z42: 0 | AA42: 0 | AB42: 0
A43: 2.14 | B43: Preparatory camps @ Rs. 300/- per child per annum | I43: 0 | J43: 0 | O43: 0.15 | Q43: 0 | R43: 0 | S43: 0 | X43: 0.15 | Z43: 0 | AA43: 0 | AB43: 0
A44: 2.15 | B44: P.T.A / school functions @ Rs. 300/- per child per annum | I44: 0 | J44: 0 | O44: 0.15 | Q44: 0 | R44: 0 | S44: 0 | X44: 0.15 | Z44: 0 | AA44: 0 | AB44: 0
A45: 2.16 | B45: Provision of Rent @ Rs. 10,000/- per child per annum | I45: 0 | J45: 0 | Q45: 0 | R45: 0 | S45: 0 | Z45: 0 | AA45: 0 | AB45: 0
A46: 2.17 | B46: Capacity Building @ Rs. 500/- per child per annum | I46: 0 | J46: 0 | O46: 0.25 | Q46: 0 | R46: 0 | S46: 0 | X46: 0.25 | Z46: 0 | AA46: 0 | AB46: 0
A47: 2.18 | B47: Physical / Self Defence Training @ Rs.200/- per child per annum | I47: 0 | J47: 0 | O47: 0.1 | Q47: 0 | R47: 0 | S47: 0 | X47: 0.1 | Z47: 0 | AA47: 0 | AB47: 0
B48: Sub Total (Recurring) | I48: 0 | J48: 0 | Q48: 0 | R48: 0 | S48: 0 | Z48: 0 | AA48: 0 | AB48: 0
B49: Total (Non Recurring + Recurring) | I49: 0 | J49: 0 | Q49: 0 | R49: 0 | S49: 0 | Z49: 0 | AA49: 0 | AB49: 0
A50: B | B50: 100 children | I50: 0 | J50: 0 | Q50: 0 | R50: 0 | S50: 0 | Z50: 0 | AA50: 0 | AB50: 0
B51: Non-recurring (one time grant) | I51: 0 | J51: 0 | Q51: 0 | R51: 0 | S51: 0 | Z51: 0 | AA51: 0 | AB51: 0
A52: 2.19 | B52: Furniture / Equipment (including kitchen equipment) | I52: 0 | J52: 0 | O52: 3 | Q52: 0 | R52: 0 | S52: 0 | X52: 3 | Z52: 0 | AA52: 0 | AB52: 0
A53: =+A52+0.01 -> 2.2 | B53: TLM and equipment including library books (New) | I53: 0 | J53: 0 | O53: 3.5 | Q53: 0 | R53: 0 | S53: 0 | X53: 3.5 | Z53: 0 | AA53: 0 | AB53: 0
A54: 2.21 | B54: Beds for Boys | I54: 0 | J54: 0 | O54: 0.04 | P54: 0 | Q54: 0 | R54: 0 | S54: 0 | X54: 0.04 | Z54: 0 | AA54: 0 | AB54: 0
A55: 2.22 | B55: Replacement of bedding (once in 3 years) | I55: 0 | J55: 0 | O55: 0.0075 | P55: =P58 -> 0 | Q55: 0 | R55: 0 | S55: 0 | X55: 0.0075 | Y55: =Y58 -> 0 | Z55: 0 | AA55: 0 | AB55: 0
B56: Sub Total Non-recurring | C56: =SUM(C52:C55) -> 0 | D56: =SUM(D52:D55) -> 0 | E56: 0 | F56: 0 | I56: =SUM(I52:I55) -> 0 | J56: 0 | K56: 0 | L56: 0 | M56: 0 | N56: 0 | O56: 6.5475 | P56: 0 | Q56: 0 | R56: 0 | S56: 0 | T56: 0 | U56: 0 | V56: 0 | W56: 0 | X56: 6.5475 | Y56: 0 | Z56: 0 | AA56: 0 | AB56: 0
B57: Recurring | I57: 0 | J57: 0 | Q57: 0 | R57: 0 | S57: 0 | Z57: =+Y57*X57 -> 0 | AA57: =+Y57+V57+T57 -> 0 | AB57: 0
A58: 2.23 | B58: Maintenance per child per month @ Rs. 1500/- | C58: 0 | D58: 0 | E58: =+C58 -> 0 | F58: =+D58*0.98 -> 0 | I58: 0 | J58: 0 | O58: 0.18 | P58: 0 | Q58: 0 | R58: 0 | S58: 0 | X58: 0.18 | Y58: =+P58 -> 0 | Z58: 0 | AA58: 0 | AB58: 0
A59: =+A58+0.01 -> 2.24 | B59: Stipend per child per month @ Rs.100/- | C59: 0 | D59: 0 | E59: =+C59 -> 0 | F59: =+D59*0.98 -> 0 | G59: =+E59/C59 ->  | I59: 0 | J59: 0 | O59: 0.012 | P59: 0 | Q59: 0 | R59: 0 | S59: 0 | X59: 0.012 | Y59: 0 | Z59: 0 | AA59: 0 | AB59: 0
A60: 2.25 | B60: Supplementary TLM, Stationery and other educational material per child @1000/- per annum | C60: 0 | D60: 0 | E60: 0 | F60: =+D60*0.95 -> 0 | I60: 0 | J60: 0 | O60: 0.01 | P60: 0 | Q60: 0 | R60: 0 | S60: 0 | X60: 0.01 | Y60: 0 | Z60: 0 | AA60: 0 | AB60: 0
A61: 2.26 | B61: Salaries | I61: 0 | J61: 0 | Q61: 0 | R61: 0 | S61: 0 | Y61: 0 | Z61: 0 | AA61: 0 | AB61: 0
A62: (a) | B62: 1 Warden @ Rs. 25,000/- per month | C62: 0 | D62: 0 | E62: =+C62 -> 0 | F62: =+D62*0.8 -> 0 | I62: 0 | J62: 0 | O62: 3 | P62: 0 | Q62: 0 | R62: 0 | S62: 0 | X62: 3 | Y62: 0 | Z62: 0 | AA62: 0 | AB62: 0 | AC62: =0.25*1*12 -> 3
A63: (b) | B63: 1 head teacher @ Rs. 25,000/- per month in case the enrollment exceeds 100 | I63: 0 | J63: 0 | O63: 3 | Q63: 0 | R63: 0 | S63: 0 | X63: 3 | Y63: 0 | Z63: 0 | AA63: 0 | AB63: 0
A64: (c) | B64: 4 - 5 Full time teachers as per RTE norms @ Rs. 20,000/- per month per teacher | I64: 0 | J64: 0 | O64: 9.6 | Q64: 0 | R64: 0 | S64: 0 | X64: 9.6 | Y64: 0 | Z64: 0 | AA64: 0 | AB64: 0
A65: (d) | B65: 2 Urdu Teachers (only for blocks with muslim population above 20% and select urban areas), if required @ Rs. 12,000/- per month per teacher | I65: 0 | J65: 0 | O65: 2.88 | Q65: 0 | R65: 0 | S65: 0 | X65: 2.88 | Y65: 0 | Z65: 0 | AA65: 0 | AB65: 0
A66: (e) | B66: 3 part time teachers @ Rs. 5,000/- per month per teacher | C66: 0 | D66: 0 | E66: =+C66 -> 0 | F66: =+D66*0.85 -> 0 | I66: 0 | J66: 0 | O66: 1.8 | P66: 0 | Q66: 0 | R66: 0 | S66: 0 | X66: 1.8 | Y66: 0 | Z66: 0 | AA66: 0 | AB66: 0
A67: (f) | B67: 1 Full time Accountant @ Rs. 10,000/- per month | C67: 0 | D67: 0 | E67: =+C67 -> 0 | F67: =+D67*0.72 -> 0 | I67: 0 | J67: 0 | O67: 1.2 | P67: 0 | Q67: 0 | R67: 0 | S67: 0 | X67: 1.2 | Y67: 0 | Z67: 0 | AA67: 0 | AB67: 0
A68: (g) | B68: 2 Support Staff – (Accountant/ Assistant, Peon, Chowkidar) @ Rs. 5,000/- per month per staff | C68: 0 | D68: 0 | E68: 0 | F68: =+D68*0.96 -> 0 | I68: 0 | J68: 0 | O68: 1.2 | P68: 0 | Q68: 0 | R68: 0 | S68: 0 | X68: 1.2 | Y68: 0 | Z68: 0 | AA68: 0 | AB68: 0
A69: (h) | B69: 1 Head cook @ Rs. 6,000/- per month and upto 2 Asstt. Cooks @ Rs. 4,500/- per month per cook | C69: 0 | D69: 0 | E69: 0 | F69: =+D69*0.96 -> 0 | I69: 0 | J69: 0 | O69: 1.8 | P69: 0 | Q69: 0 | R69: 0 | S69: 0 | X69: 1.8 | Y69: 0 | Z69: 0 | AA69: 0 | AB69: 0
A70: 2.27 | B70: Specific skill training per child @ Rs.1000/- per annum | C70: 0 | D70: 0 | E70: 0 | F70: =+D70*0.9 -> 0 | I70: 0 | J70: 0 | O70: 0.01 | P70: 0 | Q70: 0 | R70: 0 | S70: 0 | X70: 0.01 | Y70: 0 | Z70: 0 | AA70: 0 | AB70: 0
A71: 2.28 | B71: Electricity / water charges per child @Rs.1000/- per annum | C71: 0 | D71: 0 | E71: 0 | F71: =+D71 -> 0 | I71: 0 | J71: 0 | O71: 0.01 | P71: 0 | Q71: 0 | R71: 0 | S71: 0 | X71: 0.01 | Y71: 0 | Z71: 0 | AA71: 0 | AB71: 0
A72: 2.29 | B72: Medical care/contingencies @ Rs.1250/- per child per annum | C72: 0 | D72: 0 | E72: 0 | F72: 0 | I72: 0 | J72: 0 | O72: 0.0125 | P72: 0 | Q72: 0 | R72: 0 | S72: 0 | X72: 0.0125 | Y72: 0 | Z72: 0 | AA72: 0 | AB72: 0
A73: 2.3 | B73: Maintenance @ Rs.750/- per child per annum | C73: 0 | D73: 0 | E73: 0 | F73: 0 | I73: 0 | J73: 0 | O73: 0.0075 | P73: 0 | Q73: 0 | R73: 0 | S73: 0 | X73: 0.0075 | Y73: 0 | Z73: 0 | AA73: 0 | AB73: 0
A74: 2.31 | B74: Miscellaneous @ Rs.750/- per child per annum | C74: 0 | D74: 0 | E74: 0 | F74: 0 | I74: 0 | J74: 0 | O74: 0.0075 | P74: 0 | Q74: 0 | R74: 0 | S74: 0 | X74: 0.0075 | Y74: 0 | Z74: 0 | AA74: 0 | AB74: 0
A75: 2.32 | B75: Preparatory camps @ Rs.200/- per child per annum | C75: 0 | D75: 0 | E75: 0 | F75: =+D75*0.8 -> 0 | I75: 0 | J75: 0 | O75: 0.003 | P75: 0 | Q75: 0 | R75: 0 | S75: 0 | X75: 0.003 | Y75: 0 | Z75: 0 | AA75: 0 | AB75: 0
A76: 2.33 | B76: P.T.A / school functions @ Rs.200/- per child per annum | C76: 0 | D76: 0 | E76: 0 | F76: =+D76*0.8 -> 0 | I76: 0 | J76: 0 | O76: 0.003 | P76: 0 | Q76: 0 | R76: 0 | S76: 0 | X76: 0.003 | Y76: 0 | Z76: 0 | AA76: 0 | AB76: 0
A77: 2.34 | B77: Provision of Rent @ Rs. 6000/- per child per annum | I77: 0 | J77: 0 | O77: 0 | Q77: 0 | R77: 0 | S77: 0 | X77: 0 | Y77: 0 | Z77: 0 | AA77: 0 | AB77: 0
A78: 2.35 | B78: Capacity Building @ Rs.500/- per child per annum | C78: 0 | D78: 0 | E78: =+C78 -> 0 | F78: =+D78*0.61 -> 0 | I78: 0 | J78: 0 | O78: 0.005 | P78: 0 | Q78: 0 | R78: 0 | S78: 0 | X78: 0.005 | Y78: 0 | Z78: 0 | AA78: 0 | AB78: 0
A79: 2.36 | B79: Physical / Self Defence training @ Rs. 200/- per child per annum. | F79: =+D79*0.61 -> 0 | I79: 0 | J79: 0 | O79: 0.002 | P79: 0 | Q79: 0 | R79: 0 | S79: 0 | X79: 0.002 | Y79: 0 | Z79: 0 | AA79: 0 | AB79: 0
B80: Sub Total (Recurring) | C80: =+C58 -> 0 | D80: =SUM(D58:D79) -> 0 | E80: =+E58 -> 0 | F80: 0 | G80: =+E80/C80 ->  | I80: =SUM(I58:I79) -> 0 | J80: 0 | K80: 0 | L80: 0 | M80: 0 | N80: 0 | O80: 24.7425 | P80: =+P58 -> 0 | Q80: =SUM(Q58:Q79) -> 0 | R80: =+R58 -> 0 | S80: 0 | T80: 0 | U80: 0 | V80: 0 | W80: 0 | X80: 24.7425 | Y80: =+Y58 -> 0 | Z80: =SUM(Z58:Z79) -> 0 | AA80: =+AA58 -> 0 | AB80: =SUM(AB58:AB79) -> 0
B81: Total (Recurring + Non Recurring) | C81: =+C80+C56 -> 0 | D81: =+D80+D56 -> 0 | E81: 0 | F81: 0 | I81: =+I80+I56 -> 0 | J81: 0 | K81: 0 | L81: 0 | M81: 0 | N81: 0 | O81: 31.29 | P81: =P80 -> 0 | Q81: =+Q80+Q56 -> 0 | R81: =R80 -> 0 | S81: 0 | T81: 0 | U81: 0 | V81: 0 | W81: 0 | X81: 31.29 | Y81: =Y80 -> 0 | Z81: =+Z80+Z56 -> 0 | AA81: =AA80 -> 0 | AB81: =+AB80+AB56 -> 0
B82: Total (A + B) Residential Boys School | C82: =+C81+C49 -> 0 | D82: =+D81+D49 -> 0 | E82: 0 | F82: 0 | I82: =+I81+I49 -> 0 | J82: 0 | K82: 0 | L82: 0 | M82: 0 | N82: 0 | O82: 31.29 | P82: 0 | Q82: 0 | R82: 0 | S82: =+S81+S49 -> 0 | T82: =+T81+T49 -> 0 | U82: 0 | V82: 0 | W82: 0 | X82: 31.29 | Y82: 0 | Z82: 0 | AA82: 0 | AB82: =+AB81+AB49 -> 0
A83: 3 | B83: Residential Hostel for specific category of children
A84: (A) | B84: 50 children | I84: 0 | J84: 0 | Q84: 0 | R84: 0 | S84: 0 | Z84: =+Y84*X84 -> 0 | AA84: =+Y84+V84+T84 -> 0 | AB84: 0
B85: Non-recurring (one time grant) | G85: =+E85/C85 ->  | I85: =+C85-E85 -> 0 | J85: 0 | Q85: 0 | R85: 0 | S85: 0 | Z85: 0 | AA85: 0 | AB85: 0
A86: 3.01 | B86: Furniture/ Equipment (including kitchen) | I86: 0 | J86: 0 | O86: 2 | Q86: =+P86*O86 -> 0 | R86: =+P86+M86+K86 -> 0 | S86: 0 | X86: 2 | Z86: 0 | AA86: 0 | AB86: 0
A87: =+A86+0.01 -> 3.02 | B87: TLM and equipment including library books | I87: 0 | J87: 0 | O87: 3 | Q87: 0 | R87: 0 | S87: 0 | X87: 3 | Z87: 0 | AA87: 0 | AB87: 0
A88: 3.03 | B88: Bedding (new) | I88: 0 | J88: 0 | O88: 0.375 | Q88: 0 | R88: 0 | S88: 0 | X88: 0.375 | Z88: 0 | AA88: 0 | AB88: 0
A89: 3.04 | B89: Replacement of bedding (once in 3 years) | I89: 0 | J89: 0 | Q89: 0 | R89: 0 | S89: 0 | Z89: 0 | AA89: 0 | AB89: 0
B90: Sub Total (Non Recurring) | C90: =SUM(C86:C89) -> 0 | D90: =SUM(D86:D89) -> 0 | E90: 0 | F90: 0 | I90: =SUM(I86:I89) -> 0 | J90: 0 | K90: 0 | L90: 0 | M90: 0 | N90: 0 | O90: 5.375 | P90: 0 | Q90: 0 | R90: 0 | S90: 0 | T90: 0 | U90: 0 | V90: 0 | W90: 0 | X90: 5.375 | Y90: 0 | Z90: 0 | AA90: 0 | AB90: 0
B91: Recurring (50 children) | I91: 0 | J91: 0 | Q91: 0 | R91: 0 | S91: 0 | Z91: =+Y91*X91 -> 0 | AA91: =+Y91+V91+T91 -> 0 | AB91: 0
A92: 3.05 | B92: Maintenance per child Per month @ Rs.1500/- | I92: 0 | J92: 0 | O92: 9 | Q92: 0 | R92: 0 | S92: 0 | X92: 9 | Z92: 0 | AA92: 0 | AB92: 0
A93: =+A92+0.01 -> 3.06 | B93: Stipend per child per month @ Rs.100/- | I93: 0 | J93: 0 | O93: 0.6 | Q93: 0 | R93: 0 | S93: 0 | X93: 0.6 | Z93: 0 | AA93: 0 | AB93: 0
A94: 3.07 | B94: Supplementary TLM, Stationery and other educational material @Rs.1000/- per child per annum | I94: 0 | J94: 0 | O94: 0.5 | Q94: 0 | R94: 0 | S94: 0 | X94: 0.5 | Z94: 0 | AA94: 0 | AB94: 0
B95: Salaries | I95: 0 | J95: 0 | Q95: 0 | R95: 0 | S95: 0 | Z95: 0 | AA95: 0 | AB95: 0
A96: (a) | B96: 1 Warden @ Rs.25000/- per month | I96: 0 | J96: 0 | O96: 3 | Q96: 0 | R96: 0 | S96: 0 | X96: 3 | Z96: 0 | AA96: 0 | AB96: 0
A97: (b) | B97: 4 Fulltime teachers as per RTE Norms @ Rs. 20,000/- per month per teacher | I97: 0 | J97: 0 | O97: 9.6 | Q97: 0 | R97: 0 | S97: 0 | X97: 9.6 | Z97: 0 | AA97: 0 | AB97: 0
A98: (c) | B98: 2 Urdu Teachers (only for Blocks with muslim population above 20% and select urban areas) @ Rs.12,000/- per month per teacher. | I98: 0 | J98: 0 | O98: 2.88 | Q98: 0 | R98: 0 | S98: 0 | X98: 2.88 | Z98: 0 | AA98: 0 | AB98: 0
A99: (d) | B99: 3 Part time teachers @ Rs.5,000/- per month per teacher | I99: 0 | J99: 0 | O99: 1.5 | Q99: 0 | R99: 0 | S99: 0 | X99: 1.5 | Z99: 0 | AA99: 0 | AB99: 0
A100: (e) | B100: 1 Full time Accountant @ Rs. 10,000/- per month | I100: 0 | J100: 0 | O100: 1.2 | Q100: 0 | R100: 0 | S100: 0 | X100: 1.2 | Z100: 0 | AA100: 0 | AB100: 0
A101: (f) | B101: 2 Support staff - (Accountant/Assistant, Peon, Chowkidar) @ Rs. 5,000/- per month per staff | I101: 0 | J101: 0 | O101: 1.2 | Q101: 0 | R101: 0 | S101: 0 | X101: 1.2 | Z101: 0 | AA101: 0 | AB101: 0
A102: (g) | B102: 1 Head Cook @ Rs. 6,000/- per month and upto 2 Asstt. Cooks @ Rs. 4,500/- per month per cook | I102: 0 | J102: 0 | O102: 1.8 | Q102: 0 | R102: 0 | S102: 0 | X102: 1.8 | Z102: 0 | AA102: 0 | AB102: 0
A103: 3.08 | B103: Specific Skill training @ Rs.1000/- per annum per child | I103: 0 | J103: 0 | O103: 0.5 | Q103: 0 | R103: 0 | S103: 0 | X103: 0.5 | Z103: 0 | AA103: 0 | AB103: 0
A104: =+A103+0.01 -> 3.09 | B104: Electricity / water charges @ Rs. 1000/- per annum per child | I104: 0 | J104: 0 | O104: 0.5 | Q104: 0 | R104: 0 | S104: 0 | X104: 0.5 | Z104: 0 | AA104: 0 | AB104: 0
A105: 3.1 | B105: Medical care/contingencies @ Rs.1250/- per annum per child | I105: 0 | J105: 0 | O105: 0.625 | Q105: 0 | R105: 0 | S105: 0 | X105: 0.625 | Z105: 0 | AA105: 0 | AB105: 0
A106: 3.11 | B106: Maintenance @ Rs. 750/- per child per annum | I106: 0 | J106: 0 | O106: 0.375 | Q106: 0 | R106: 0 | S106: 0 | X106: 0.375 | Z106: 0 | AA106: 0 | AB106: 0
A107: 3.12 | B107: Miscellaneous @ Rs. 750/- per child per annum | I107: 0 | J107: 0 | O107: 0.375 | Q107: 0 | R107: 0 | S107: 0 | X107: 0.375 | Z107: 0 | AA107: 0 | AB107: 0
A108: 3.13 | B108: Preparatory camps @ Rs. 300/- per child per annum | I108: 0 | J108: 0 | O108: 0.15 | Q108: 0 | R108: 0 | S108: 0 | X108: 0.15 | Z108: 0 | AA108: 0 | AB108: 0
A109: 3.14 | B109: P.T.A / school functions @ Rs. 300/- per child per annum | I109: 0 | J109: 0 | O109: 0.15 | Q109: 0 | R109: 0 | S109: 0 | X109: 0.15 | Z109: 0 | AA109: 0 | AB109: 0
A110: 3.15 | B110: Provision of Rent @ Rs. 10,000/- per child per annum | I110: 0 | J110: 0 | Q110: 0 | R110: 0 | S110: 0 | Z110: 0 | AA110: 0 | AB110: 0
A111: 3.16 | B111: Capacity Building @ Rs. 500/- per child per annum | I111: 0 | J111: 0 | O111: 0.25 | Q111: 0 | R111: 0 | S111: 0 | X111: 0.25 | Z111: 0 | AA111: 0 | AB111: 0
A112: 3.17 | B112: Physical / Self Defence Training @ Rs.200/- per child per annum | I112: 0 | J112: 0 | O112: 0.1 | Q112: 0 | R112: 0 | S112: 0 | X112: 0.1 | Z112: 0 | AA112: 0 | AB112: 0
B113: Sub Total (Recurring) | C113: =SUM(C92:C112) -> 0 | D113: =SUM(D92:D112) -> 0 | E113: 0 | F113: 0 | I113: =SUM(I92:I112) -> 0 | J113: 0 | K113: 0 | L113: 0 | M113: 0 | N113: 0 | O113: 34.305 | P113: 0 | Q113: 0 | R113: 0 | S113: 0 | T113: 0 | U113: 0 | V113: 0 | W113: 0 | X113: 34.305 | Y113: 0 | Z113: 0 | AA113: 0 | AB113: 0
B114: Total (Non Recurring + Recurring) | C114: =+C113+C90 -> 0 | D114: =+D113+D90 -> 0 | E114: 0 | F114: 0 | I114: =+I113+I90 -> 0 | J114: 0 | K114: 0 | L114: 0 | M114: 0 | N114: 0 | O114: 39.68 | P114: 0 | Q114: 0 | R114: 0 | S114: 0 | T114: 0 | U114: 0 | V114: 0 | W114: 0 | X114: 39.68 | Y114: 0 | Z114: 0 | AA114: 0 | AB114: 0
A115: (B) | B115: 100 Children | I115: 0 | J115: 0 | Q115: 0 | R115: 0 | S115: 0 | Z115: =+Y115*X115 -> 0 | AA115: =+Y115+V115+T115 -> 0 | AB115: 0
B116: Non-recurring (one time grant) | I116: 0 | J116: 0 | Q116: 0 | R116: 0 | S116: 0 | Z116: 0 | AA116: 0 | AB116: 0
A117: 3.18 | B117: Furniture / Equipment (including kitchen equipment) | I117: 0 | J117: 0 | O117: 3 | Q117: 0 | R117: 0 | S117: 0 | X117: 3 | Z117: 0 | AA117: 0 | AB117: 0
A118: =+A117+0.01 -> 3.19 | B118: TLM and equipment including library books (New) | I118: 0 | J118: 0 | O118: 3.5 | Q118: 0 | R118: 0 | S118: 0 | X118: 3.5 | Z118: 0 | AA118: 0 | AB118: 0
A119: 3.2 | B119: Beds for Boys | I119: 0 | J119: 0 | O119: 0.04 | P119: 100 | Q119: 4 | R119: 100 | S119: 4 | X119: 0.04 | Z119: 0 | AA119: 0 | AB119: 0
A120: 3.21 | B120: Replacement of bedding (once in 3 years) | I120: 0 | J120: 0 | O120: 0.0075 | P120: =P123 -> 100 | Q120: 0.75 | R120: 100 | S120: 0.75 | X120: 0.0075 | Y120: =P120 -> 100 | Z120: 0.75 | AA120: 100 | AB120: 0.75
B121: Sub Total Non-recurring | C121: =SUM(C117:C120) -> 0 | D121: =SUM(D117:D120) -> 0 | E121: 0 | F121: 0 | I121: =SUM(I117:I120) -> 0 | J121: 0 | K121: 0 | L121: 0 | M121: 0 | N121: 0 | O121: 6.5475 | P121: 200 | Q121: 4.75 | R121: 200 | S121: 4.75 | T121: 0 | U121: 0 | V121: 0 | W121: 0 | X121: 6.5475 | Y121: 100 | Z121: 0.75 | AA121: 100 | AB121: 0.75
B122: Recurring | I122: 0 | J122: 0 | Q122: 0 | R122: 0 | S122: 0 | Z122: =+Y122*X122 -> 0 | AA122: =+Y122+V122+T122 -> 0 | AB122: 0
A123: 3.22 | B123: Maintenance per child per month @ Rs. 1500/- | C123: 0 | D123: 0 | E123: =+C123 -> 0 | F123: =+D123*0.98 -> 0 | I123: 0 | J123: 0 | O123: 0.18 | P123: 100 | Q123: 18 | R123: 100 | S123: 18 | X123: 0.18 | Y123: =P123 -> 100 | Z123: 18 | AA123: 100 | AB123: 18 | AF123: 250
A124: =+A123+0.01 -> 3.23 | B124: Stipend per child per month @ Rs.100/- | C124: 0 | D124: 0 | E124: =+C124 -> 0 | F124: =+D124*0.98 -> 0 | I124: 0 | J124: 0 | O124: 0.012 | P124: 100 | Q124: 1.2 | R124: 100 | S124: 1.2 | X124: 0.012 | Y124: =P124 -> 100 | Z124: 1.2 | AA124: 100 | AB124: 1.2
A125: 3.24 | B125: Supplementary TLM, Stationery and other educational material per child @1000/- per annum | C125: 0 | D125: 0 | E125: 0 | F125: =+D125*0.95 -> 0 | I125: 0 | J125: 0 | O125: 0.01 | P125: 100 | Q125: 1 | R125: 100 | S125: 1 | X125: 0.01 | Y125: 100 | Z125: 1 | AA125: 100 | AB125: 1
B126: Salaries | I126: 0 | J126: 0 | Q126: 0 | R126: 0 | S126: 0 | Y126: 0 | Z126: 0 | AA126: 0 | AB126: 0
A127: (a) | B127: 1 Warden @ Rs. 25,000/- per month | C127: 0 | D127: 0 | E127: =+C127 -> 0 | F127: =+D127*0.8 -> 0 | I127: 0 | J127: 0 | O127: 3 | P127: 1 | Q127: 3 | R127: 1 | S127: 3 | X127: 3 | Y127: 1 | Z127: 3 | AA127: 1 | AB127: 3
A128: (b) | B128: 1 head teacher @ Rs. 25,000/- per month in case the enrollment exceeds 100 | I128: 0 | J128: 0 | O128: 3 | Q128: 0 | R128: 0 | S128: 0 | X128: 3 | Y128: 0 | Z128: 0 | AA128: 0 | AB128: 0
A129: (c) | B129: 4 - 5 Full time teachers as per RTE norms @ Rs. 20,000/- per month per teacher | I129: 0 | J129: 0 | O129: 9.6 | Q129: 0 | R129: 0 | S129: 0 | X129: 9.6 | Y129: 0 | Z129: 0 | AA129: 0 | AB129: 0
A130: (d) | B130: 2 Urdu Teachers (only for blocks with muslim population above 20% and select urban areas), if required @ Rs. 12,000/- per month per teacher | I130: 0 | J130: 0 | O130: 2.88 | Q130: 0 | R130: 0 | S130: 0 | X130: 2.88 | Y130: 0 | Z130: 0 | AA130: 0 | AB130: 0
A131: (e) | B131: 3 part time teachers @ Rs. 5,000/- per month per teacher | C131: 0 | D131: 0 | E131: =+C131 -> 0 | F131: =+D131*0.85 -> 0 | I131: 0 | J131: 0 | O131: 1.8 | P131: 1 | Q131: 1.8 | R131: 1 | S131: 1.8 | X131: 1.8 | Y131: 1 | Z131: 1.8 | AA131: 1 | AB131: 1.8
A132: (f) | B132: 1 Full time Accountant @ Rs. 10,000/- per month | C132: 0 | D132: 0 | E132: =+C132 -> 0 | F132: =+D132*0.72 -> 0 | I132: 0 | J132: 0 | O132: 1.2 | P132: 1 | Q132: 1.2 | R132: 1 | S132: 1.2 | X132: 1.2 | Y132: 1 | Z132: 1.2 | AA132: 1 | AB132: 1.2
A133: 3.25 | B133: 2 Support Staff – (Accountant/ Assistant, Peon, Chowkidar) @ Rs. 5,000/- per month per staff | C133: 0 | D133: 0 | E133: 0 | F133: =+D133*0.96 -> 0 | I133: 0 | J133: 0 | O133: 1.2 | P133: 1 | Q133: 1.2 | R133: 1 | S133: 1.2 | X133: 1.2 | Y133: 1 | Z133: 1.2 | AA133: 1 | AB133: 1.2
A134: =+A133+0.01 -> 3.26 | B134: 1 Head cook @ Rs. 6,000/- per month and upto 2 Asstt. Cooks @ Rs. 4,500/- per month per cook | C134: 0 | D134: 0 | E134: 0 | F134: =+D134*0.96 -> 0 | I134: 0 | J134: 0 | O134: 1.8 | P134: 1 | Q134: 1.8 | R134: 1 | S134: 1.8 | X134: 1.8 | Y134: 1 | Z134: 1.8 | AA134: 1 | AB134: 1.8
A135: 3.27 | B135: Specific skill training per child @ Rs.1000/- per annum | C135: 0 | D135: 0 | E135: 0 | F135: =+D135*0.9 -> 0 | I135: 0 | J135: 0 | O135: 0.01 | P135: 100 | Q135: 1 | R135: 100 | S135: 1 | X135: 0.01 | Y135: 100 | Z135: 1 | AA135: 100 | AB135: 1
A136: 3.28 | B136: Electricity / water charges per child @Rs.1000/- per annum | C136: 0 | D136: 0 | E136: 0 | F136: =+D136 -> 0 | I136: 0 | J136: 0 | O136: 0.01 | P136: 100 | Q136: 1 | R136: 100 | S136: 1 | X136: 0.01 | Y136: 100 | Z136: 1 | AA136: 100 | AB136: 1
A137: 3.29 | B137: Medical care/contingencies @ Rs.1250/- per child per annum | C137: 0 | D137: 0 | E137: 0 | F137: 0 | I137: 0 | J137: 0 | O137: 0.0125 | P137: 100 | Q137: 1.25 | R137: 100 | S137: 1.25 | X137: 0.0125 | Y137: 100 | Z137: 1.25 | AA137: 100 | AB137: 1.25
A138: 3.3 | B138: Maintenance @ Rs.750/- per child per annum | C138: 0 | D138: 0 | E138: 0 | F138: 0 | I138: 0 | J138: 0 | O138: 0.0075 | P138: 100 | Q138: 0.75 | R138: 100 | S138: 0.75 | X138: 0.0075 | Y138: 100 | Z138: 0.75 | AA138: 100 | AB138: 0.75
A139: 3.31 | B139: Miscellaneous @ Rs.750/- per child per annum | C139: 0 | D139: 0 | E139: 0 | F139: 0 | I139: 0 | J139: 0 | O139: 0.0075 | P139: 100 | Q139: 0.75 | R139: 100 | S139: 0.75 | X139: 0.0075 | Y139: 100 | Z139: 0.75 | AA139: 100 | AB139: 0.75
A140: 3.32 | B140: Preparatory camps @ Rs.200/- per child per annum | C140: 0 | D140: 0 | E140: 0 | F140: =+D140*0.8 -> 0 | I140: 0 | J140: 0 | O140: 0.003 | P140: 100 | Q140: 0.3 | R140: 100 | S140: 0.3 | X140: 0.003 | Y140: 100 | Z140: 0.3 | AA140: 100 | AB140: 0.3
A141: 3.33 | B141: P.T.A / school functions @ Rs.200/- per child per annum | C141: 0 | D141: 0 | E141: 0 | F141: =+D141*0.8 -> 0 | I141: 0 | J141: 0 | O141: 0.003 | P141: 100 | Q141: 0.3 | R141: 100 | S141: 0.3 | X141: 0.003 | Y141: 100 | Z141: 0.3 | AA141: 100 | AB141: 0.3
A142: 3.34 | B142: Provision of Rent @ Rs. 6000/- per child per annum | I142: 0 | J142: 0 | O142: 0 | Q142: 0 | R142: 0 | S142: 0 | X142: 0 | Y142: 0 | Z142: 0 | AA142: 0 | AB142: 0
A143: 3.35 | B143: Capacity Building @ Rs.500/- per child per annum | C143: 0 | D143: 0 | E143: =+C143 -> 0 | F143: =+D143*0.61 -> 0 | I143: 0 | J143: 0 | O143: 0.005 | P143: 100 | Q143: 0.5 | R143: 100 | S143: 0.5 | X143: 0.005 | Y143: 100 | Z143: 0.5 | AA143: 100 | AB143: 0.5
A144: 3.36 | B144: Physical / Self Defence training @ Rs. 200/- per child per annum. | F144: =+D144*0.61 -> 0 | I144: 0 | J144: 0 | O144: 0.002 | P144: 100 | Q144: 0.2 | R144: 100 | S144: 0.2 | X144: 0.002 | Y144: 100 | Z144: 0.2 | AA144: 100 | AB144: 0.2
B145: Sub Total (Recurring) | C145: =+C123 -> 0 | D145: =SUM(D123:D144) -> 0 | E145: =+E123 -> 0 | F145: 0 | I145: =SUM(I123:I144) -> 0 | J145: 0 | K145: 0 | L145: 0 | M145: 0 | N145: 0 | O145: 24.7425 | P145: =+P123 -> 100 | Q145: 35.25 | R145: =+R123 -> 100 | S145: 35.25 | T145: 0 | U145: 0 | V145: 0 | W145: 0 | X145: 24.7425 | Y145: =+Y123 -> 100 | Z145: =SUM(Z123:Z144) -> 35.25 | AA145: =+AA123 -> 100 | AB145: =SUM(AB123:AB144) -> 35.25
B146: Total (Recurring + Non Recurring) | C146: =+C145+C121 -> 0 | D146: =+D145+D121 -> 0 | E146: 0 | F146: 0 | I146: =+I145+I121 -> 0 | J146: 0 | K146: 0 | L146: 0 | M146: 0 | N146: 0 | O146: 31.29 | P146: =P145 -> 100 | Q146: 40 | R146: =R145 -> 100 | S146: 40 | T146: 0 | U146: 0 | V146: 0 | W146: 0 | X146: 31.29 | Y146: =Y145 -> 100 | Z146: =+Z145+Z121 -> 36 | AA146: =AA145 -> 100 | AB146: =+AB145+AB121 -> 36
B147: Total (A + B) Residential Boys Hostels | C147: =+C146+C82 -> 0 | D147: =+D146+D82 -> 0 | E147: =+E146+E82 -> 0 | F147: =+F146+F82 -> 0 | I147: =+I146+I82 -> 0 | J147: =+J146+J82 -> 0 | K147: 0 | L147: =+L146+L114 -> 0 | M147: 0 | N147: 0 | O147: 70.97 | P147: 100 | Q147: =+Q146+Q82 -> 40 | R147: 100 | S147: =+S146+S82 -> 40 | T147: =+T146+T82 -> 0 | U147: =+U146+U114 -> 0 | V147: =+V146+V82 -> 0 | W147: =+W146+W114 -> 0 | X147: 70.97 | Y147: 100 | Z147: =+Z146+Z82 -> 36 | AA147: =+AA146+AA114 -> 100 | AB147: =+AB146+AB82 -> 36
A148: 4 | B148: Girls Hostel | I148: 0 | J148: 0 | Q148: 0 | R148: 0 | S148: 0 | Z148: =+Y148*X148 -> 0 | AA148: =+Y148+V148+T148 -> 0 | AB148: 0
A149: (A) | B149: 50 children Girls Hostels | C149: 2 | E149: =+C149 -> 2 | G149: =+E149/C149 -> 1 | I149: =+C149-E149 -> 0 | J149: 0 | P149: 0 | Q149: 0 | R149: 2 | S149: 0 | Z149: 0 | AA149: =+C149 -> 2 | AB149: 0 | AC149: Not recommended
B150: Non-recurring (one time grant) | I150: 0 | J150: 0 | Q150: =+P150*O150 -> 0 | R150: =+P150+M150+K150 -> 0 | S150: 0 | Z150: 0 | AA150: =+Y150+V150+T150 -> 0 | AB150: 0
A151: 4.01 | B151: Furniture/ Equipment (including kitchen) | I151: 0 | J151: 0 | O151: 2 | Q151: 0 | R151: 0 | S151: 0 | X151: 2 | Z151: 0 | AA151: 0 | AB151: 0
A152: =+A151+0.01 -> 4.02 | B152: TLM and equipment including library books | I152: 0 | J152: 0 | O152: 3 | Q152: 0 | R152: 0 | S152: 0 | X152: 3 | Z152: 0 | AA152: 0 | AB152: 0
A153: 4.03 | B153: Beds for Girls | I153: 0 | J153: 0 | O153: 0.04 | P153: 100 | Q153: 4 | R153: 100 | S153: 4 | X153: 0.04 | Z153: 0 | AA153: 0 | AB153: 0
A154: 4.04 | B154: Replacement of bedding (once in 3 years) | I154: 0 | J154: 0 | O154: 0.0075 | P154: =P157 -> 100 | Q154: 0.75 | R154: 100 | S154: 0.75 | X154: 0.0075 | Y154: =Y157 -> 100 | Z154: 0.75 | AA154: 100 | AB154: 0.75
B155: Sub Total (Non Recurring) | C155: =SUM(C151:C154) -> 0 | D155: =SUM(D151:D154) -> 0 | E155: 0 | F155: 0 | I155: =SUM(I151:I154) -> 0 | J155: 0 | K155: 0 | L155: 0 | M155: 0 | N155: 0 | O155: 5.0475 | P155: 200 | Q155: 4.75 | R155: 200 | S155: 4.75 | T155: 0 | U155: 0 | V155: 0 | W155: 0 | X155: 5.0475 | Y155: 100 | Z155: 0.75 | AA155: 100 | AB155: 0.75
B156: Recurring (50 children) | I156: 0 | J156: 0 | Q156: 0 | R156: 0 | S156: 0 | Z156: =+Y156*X156 -> 0 | AA156: =+Y156+V156+T156 -> 0 | AB156: 0
A157: 4.05 | B157: Maintenance per child Per month @ Rs.1500/- | C157: 100 | D157: 18 | E157: =+C157 -> 100 | F157: =+D157*0.98 -> 17.64 | G157: 1 | H157: 0.98 | I157: 0 | J157: 0.36 | O157: 0.18 | P157: 100 | Q157: 18 | R157: 100 | S157: 18 | X157: 0.18 | Y157: =C157 -> 100 | Z157: 18 | AA157: 100 | AB157: 18
A158: =+A157+0.01 -> 4.06 | B158: Stipend per child per month @ Rs.100/- | C158: 100 | D158: 1.2 | E158: =+C158 -> 100 | F158: =+D158*0.98 -> 1.176 | G158: 1 | H158: 0.98 | I158: 0 | J158: 0.024 | O158: 0.012 | P158: 100 | Q158: 1.2 | R158: 100 | S158: 1.2 | X158: 0.012 | Y158: =C158 -> 100 | Z158: 1.2 | AA158: 100 | AB158: 1.2
A159: 4.07 | B159: Supplementary TLM, Stationery and other educational material @Rs.1000/- per child per annum | C159: 100 | D159: 1 | E159: 100 | F159: =+D159*0.95 -> 0.95 | G159: 1 | H159: 0.95 | I159: 0 | J159: 0.05 | O159: 0.01 | P159: 100 | Q159: 1 | R159: 100 | S159: 1 | X159: 0.01 | Y159: 100 | Z159: 1 | AA159: 100 | AB159: 1
B160: Salaries | C160: 0 | D160: 0 | I160: 0 | J160: 0 | P160: 0 | Q160: 0 | R160: 0 | S160: 0 | Y160: 0 | Z160: 0 | AA160: 0 | AB160: 0
A161: (a) | B161: 1 Warden @ Rs.25000/- per month | C161: 2 | D161: 4.8 | E161: =+C161 -> 2 | F161: =+D161*0.77 -> 3.696 | G161: 1 | H161: 0.77 | I161: 0 | J161: 1.104 | O161: 3 | P161: 2 | Q161: 6 | R161: 2 | S161: 6 | X161: 3 | Y161: 2 | Z161: 6 | AA161: 2 | AB161: 6
A162: (b) | B162: 4 Fulltime teachers as per RTE Norms @ Rs. 20,000/- per month per teacher | I162: 0 | J162: 0 | O162: 3 | Q162: 0 | R162: 0 | S162: 0 | X162: 3 | Y162: 0 | Z162: 0 | AA162: 0 | AB162: 0
A163: (c) | B163: 2 Urdu Teachers (only for Blocks with muslim population above 20% and select urban areas) @ Rs.12,000/- per month per teacher. | I163: 0 | J163: 0 | O163: 9.6 | Q163: 0 | R163: 0 | S163: 0 | X163: 9.6 | Y163: 0 | Z163: 0 | AA163: 0 | AB163: 0
A164: (d) | B164: 3 Part time teachers @ Rs.5,000/- per month per teacher | C164: 2 | D164: 3 | E164: =+C164 -> 2 | F164: =+D164*0.85 -> 2.55 | G164: 1 | H164: 0.85 | I164: 0 | J164: 0.45 | O164: 1.8 | P164: 2 | Q164: 3.6 | R164: 2 | S164: 3.6 | X164: 1.8 | Y164: 2 | Z164: 3.6 | AA164: 2 | AB164: 3.6
A165: (e) | B165: 1 Full time Accountant @ Rs. 10,000/- per month | C165: 2 | D165: 2.4 | E165: =+C165 -> 2 | F165: =+D165*0.72 -> 1.728 | G165: 1 | H165: 0.72 | I165: 0 | J165: 0.672 | O165: 1.2 | P165: 2 | Q165: 2.4 | R165: 2 | S165: 2.4 | X165: 1.2 | Y165: 2 | Z165: 2.4 | AA165: 2 | AB165: 2.4
A166: (f) | B166: 2 Support staff - (Accountant/Assistant, Peon, Chowkidar) @ Rs. 5,000/- per month per staff | C166: 2 | D166: 2.4 | E166: 2 | F166: =+D166*0.96 -> 2.304 | G166: 1 | H166: 0.96 | I166: 0 | J166: 0.096 | O166: 1.2 | P166: 2 | Q166: 2.4 | R166: 2 | S166: 2.4 | X166: 1.2 | Y166: 2 | Z166: 2.4 | AA166: 2 | AB166: 2.4
A167: (g) | B167: 1 Head Cook @ Rs. 6,000/- per month and upto 2 Asstt. Cooks @ Rs. 4,500/- per month per cook | C167: 2 | D167: 2.52 | E167: 2 | F167: =+D167*0.96 -> 2.4192 | G167: 1 | H167: 0.96 | I167: 0 | J167: 0.1008 | O167: 1.8 | P167: 2 | Q167: 3.6 | R167: 2 | S167: 3.6 | X167: 1.8 | Y167: 2 | Z167: 3.6 | AA167: 2 | AB167: 3.6
A168: 4.08 | B168: Specific Skill training @ Rs.1000/- per annum per child | C168: 100 | D168: 1 | E168: 100 | F168: =+D168*0.9 -> 0.9 | G168: 1 | H168: 0.9 | I168: 0 | J168: 0.1 | O168: 0.01 | P168: 100 | Q168: 1 | R168: 100 | S168: 1 | X168: 0.01 | Y168: 100 | Z168: 1 | AA168: 100 | AB168: 1
A169: =+A168+0.01 -> 4.09 | B169: Electricity / water charges @ Rs. 1000/- per annum per child | C169: 100 | D169: 1 | E169: 100 | F169: =+D169 -> 1 | G169: 1 | H169: 1 | I169: 0 | J169: 0 | O169: 0.01 | P169: 100 | Q169: 1 | R169: 100 | S169: 1 | X169: 0.01 | Y169: 100 | Z169: 1 | AA169: 100 | AB169: 1
A170: 4.1 | B170: Medical care/contingencies @ Rs.1250/- per annum per child | C170: 100 | D170: 1.25 | E170: 100 | F170: 1.25 | G170: 1 | H170: 1 | I170: 0 | J170: 0 | O170: 0.0125 | P170: 100 | Q170: 1.25 | R170: 100 | S170: 1.25 | X170: 0.0125 | Y170: 100 | Z170: 1.25 | AA170: 100 | AB170: 1.25
A171: 4.11 | B171: Maintenance @ Rs. 750/- per child per annum | C171: 100 | D171: 0.75 | E171: 100 | F171: 0.75 | G171: 1 | H171: 1 | I171: 0 | J171: 0 | O171: 0.0075 | P171: 100 | Q171: 0.75 | R171: 100 | S171: 0.75 | X171: 0.0075 | Y171: 100 | Z171: 0.75 | AA171: 100 | AB171: 0.75
A172: 4.12 | B172: Miscellaneous @ Rs. 750/- per child per annum | C172: 100 | D172: 0.75 | E172: 100 | F172: 0.75 | G172: 1 | H172: 1 | I172: 0 | J172: 0 | O172: 0.0075 | P172: 100 | Q172: 0.75 | R172: 100 | S172: 0.75 | X172: 0.0075 | Y172: 100 | Z172: 0.75 | AA172: 100 | AB172: 0.75
A173: 4.13 | B173: Preparatory camps @ Rs. 300/- per child per annum | C173: 100 | D173: 0.3 | E173: 100 | F173: =+D173*0.8 -> 0.24 | G173: 1 | H173: 0.8 | I173: 0 | J173: 0.06 | O173: 0.003 | P173: 100 | Q173: 0.3 | R173: 100 | S173: 0.3 | X173: 0.003 | Y173: 100 | Z173: 0.3 | AA173: 100 | AB173: 0.3
A174: 4.14 | B174: P.T.A / school functions @ Rs. 300/- per child per annum | C174: 100 | D174: 0.3 | E174: 100 | F174: =+D174*0.8 -> 0.24 | G174: 1 | H174: 0.8 | I174: 0 | J174: 0.06 | O174: 0.003 | P174: 100 | Q174: 0.3 | R174: 100 | S174: 0.3 | X174: 0.003 | Y174: 100 | Z174: 0.3 | AA174: 100 | AB174: 0.3
A175: 4.15 | B175: Provision of Rent @ Rs. 10,000/- per child per annum | I175: 0 | J175: 0 | O175: 0 | Q175: 0 | R175: 0 | S175: 0 | X175: 0 | Y175: 0 | Z175: 0 | AA175: 0 | AB175: 0
A176: 4.16 | B176: Capacity Building @ Rs. 500/- per child per annum | C176: 100 | D176: 0.5 | E176: =+C176 -> 100 | F176: =+D176*0.61 -> 0.305 | G176: 1 | H176: 0.61 | I176: 0 | J176: 0.195 | O176: 0.005 | P176: 100 | Q176: 0.5 | R176: 100 | S176: 0.5 | X176: 0.005 | Y176: 100 | Z176: 0.5 | AA176: 100 | AB176: 0.5
A177: 4.17 | B177: Physical / Self Defence Training @ Rs.200/- per child per annum | C177: 100 | D177: 0.2 | E177: 100 | F177: =+D177*0.61 -> 0.122 | G177: 1 | H177: 0.61 | I177: 0 | J177: 0.078 | O177: 0.002 | P177: 100 | Q177: 0.2 | R177: 100 | S177: 0.2 | X177: 0.002 | Y177: 100 | Z177: 0.2 | AA177: 100 | AB177: 0.2
B178: Sub Total (Recurring) | C178: =+C157 -> 100 | D178: =SUM(D157:D177) -> 41.37 | E178: =+E157 -> 100 | F178: 38.0202 | G178: 1 | H178: 0.9190282814 | I178: =SUM(I157:I177) -> 0 | J178: 3.3498 | K178: 0 | L178: 0 | M178: 0 | N178: 0 | O178: 21.8625 | P178: =+P157 -> 100 | Q178: 44.25 | R178: =+R157 -> 100 | S178: 44.25 | T178: 0 | U178: 0 | V178: 0 | W178: 0 | X178: 21.8625 | Y178: =+Y157 -> 100 | Z178: =SUM(Z157:Z177) -> 44.25 | AA178: =+AA157 -> 100 | AB178: =SUM(AB157:AB177) -> 44.25
B179: Total (Non Recurring + Recurring) | C179: =+C178+C155 -> 100 | D179: =+D178+D155 -> 41.37 | E179: 100 | F179: 38.0202 | G179: 1 | H179: 0.9190282814 | I179: =+I178+I155 -> 0 | J179: 3.3498 | K179: 0 | L179: 0 | M179: 0 | N179: 0 | O179: 26.91 | P179: =+P178 -> 100 | Q179: 49 | R179: =+R178 -> 100 | S179: =+S178+S155 -> 49 | T179: =+T178+T155 -> 0 | U179: 0 | V179: 0 | W179: 0 | X179: 26.91 | Y179: =+Y178 -> 100 | Z179: =+Z178+Z155 -> 45 | AA179: =+AA178 -> 100 | AB179: =+AB178+AB155 -> 45
A180: (B) | B180: 100 Children Girls Hostels | C180: 1 | E180: =+C180 -> 1 | G180: 1 | I180: 0 | J180: 0 | P180: 0 | Q180: 0 | R180: 1 | S180: 0 | Z180: =+Y180*X180 -> 0 | AA180: =+C180 -> 1 | AB180: =+Z180+W180+U180 -> 0
B181: Non-recurring (one time grant) | I181: 0 | J181: 0 | Q181: 0 | R181: 0 | S181: 0 | Z181: 0 | AA181: =+Y181+V181+T181 -> 0 | AB181: 0
A182: 5.01 | B182: Furniture / Equipment (including kitchen equipment) | I182: 0 | J182: 0 | O182: 3 | Q182: 0 | R182: 0 | S182: 0 | X182: 3 | Z182: 0 | AA182: 0 | AB182: 0
A183: =+A182+0.01 -> 5.02 | B183: TLM and equipment including library books (New) | I183: 0 | J183: 0 | O183: 3.5 | Q183: 0 | R183: 0 | S183: 0 | X183: 3.5 | Z183: 0 | AA183: 0 | AB183: 0
A184: 5.03 | B184: Beds for Girls | I184: 0 | J184: 0 | O184: 0.04 | P184: 100 | Q184: 4 | R184: 100 | S184: 4 | X184: 0.04 | Z184: 0 | AA184: 0 | AB184: 0
A185: 5.04 | B185: Replacement of bedding (once in 3 years) | I185: 0 | J185: 0 | O185: 0.0075 | P185: =P188 -> 100 | Q185: 0.75 | R185: 100 | S185: 0.75 | X185: 0.0075 | Y185: =Y188 -> 100 | Z185: 0.75 | AA185: 100 | AB185: 0.75
B186: Sub Total Non-recurring | C186: =SUM(C182:C185) -> 0 | D186: =SUM(D182:D185) -> 0 | E186: 0 | F186: 0 | I186: =SUM(I182:I185) -> 0 | J186: 0 | K186: 0 | L186: 0 | M186: 0 | N186: 0 | O186: 6.5475 | P186: 200 | Q186: 4.75 | R186: 200 | S186: 4.75 | T186: 0 | U186: 0 | V186: 0 | W186: 0 | X186: 6.5475 | Y186: 100 | Z186: 0.75 | AA186: 100 | AB186: 0.75
B187: Recurring | I187: 0 | J187: 0 | Q187: 0 | R187: 0 | S187: 0 | Z187: =+Y187*X187 -> 0 | AA187: =+Y187+V187+T187 -> 0 | AB187: 0
A188: 5.05 | B188: Maintenance per child per month @ Rs. 1500/- | C188: 100 | D188: 18 | E188: =+C188 -> 100 | F188: =+D188*0.98 -> 17.64 | G188: 1 | H188: 0.98 | I188: 0 | J188: 0.36 | O188: 0.18 | P188: 100 | Q188: 18 | R188: 100 | S188: 18 | X188: 0.18 | Y188: 100 | Z188: 18 | AA188: 100 | AB188: 18
A189: =+A188+0.01 -> 5.06 | B189: Stipend per child per month @ Rs.100/- | C189: 100 | D189: 1.2 | E189: =+C189 -> 100 | F189: =+D189*0.98 -> 1.176 | G189: 1 | H189: 0.98 | I189: 0 | J189: 0.024 | O189: 0.012 | P189: 100 | Q189: 1.2 | R189: 100 | S189: 1.2 | X189: 0.012 | Y189: 100 | Z189: 1.2 | AA189: 100 | AB189: 1.2
A190: 5.07 | B190: Supplementary TLM, Stationery and other educational material per child @1000/- per annum | C190: 100 | D190: 1 | E190: 100 | F190: =+D190*0.95 -> 0.95 | G190: 1 | H190: 0.95 | I190: 0 | J190: 0.05 | O190: 0.01 | P190: 100 | Q190: 1 | R190: 100 | S190: 1 | X190: 0.01 | Y190: 100 | Z190: 1 | AA190: 100 | AB190: 1
B191: Salaries | C191: 0 | D191: 0 | I191: 0 | J191: 0 | P191: 0 | Y191: 0
A192: (a) | B192: 1 Warden @ Rs. 25,000/- per month | C192: 1 | D192: 2.4 | E192: =+C192 -> 1 | F192: =+D192*0.78 -> 1.872 | G192: 1 | H192: 0.78 | I192: 0 | J192: 0.528 | O192: 3 | P192: 1 | Q192: =+P192*O192 -> 3 | R192: =+P192+M192+K192 -> 1 | S192: 3 | X192: 3 | Y192: 1 | Z192: =+Y192*X192 -> 3 | AA192: =+Y192+V192+T192 -> 1 | AB192: 3
A193: (b) | B193: 1 head teacher @ Rs. 25,000/- per month in case the enrollment exceeds 100 | I193: 0 | J193: 0 | O193: 3 | Q193: 0 | R193: 0 | S193: 0 | X193: 3 | Z193: 0 | AA193: 0 | AB193: 0
A194: (c) | B194: 4 - 5 Full time teachers as per RTE norms @ Rs. 20,000/- per month per teacher | I194: 0 | J194: 0 | O194: 9.6 | Q194: 0 | R194: 0 | S194: 0 | X194: 9.6 | Z194: 0 | AA194: 0 | AB194: 0
A195: (d) | B195: 2 Urdu Teachers (only for blocks with muslim population above 20% and select urban areas), if required @ Rs. 12,000/- per month per teacher | E195: =+C195 -> 0 | F195: =+D195*0.85 -> 0 | I195: 0 | J195: 0 | O195: 2.88 | Q195: 0 | R195: 0 | S195: 0 | X195: 2.88 | Z195: 0 | AA195: 0 | AB195: 0
A196: (e) | B196: 3 part time teachers @ Rs. 5,000/- per month per teacher | C196: 1 | D196: 1.5 | E196: =+C196 -> 1 | F196: =+D196*0.72 -> 1.08 | G196: 1 | H196: 0.72 | I196: 0 | J196: 0.42 | O196: 1.8 | P196: 1 | Q196: 1.8 | R196: 1 | S196: 1.8 | X196: 1.8 | Y196: 1 | Z196: 1.8 | AA196: 1 | AB196: 1.8
A197: (f) | B197: 1 Full time Accountant @ Rs. 10,000/- per month | C197: 1 | D197: 1.2 | E197: 1 | F197: =+D197*0.96 -> 1.152 | G197: 1 | H197: 0.96 | I197: 0 | J197: 0.048 | O197: 1.2 | P197: 1 | Q197: 1.2 | R197: 1 | S197: 1.2 | X197: 1.2 | Y197: 1 | Z197: 1.2 | AA197: 1 | AB197: 1.2
A198: 5.08 | B198: 2 Support Staff – (Accountant/ Assistant, Peon, Chowkidar) @ Rs. 5,000/- per month per staff | C198: 1 | D198: 1.2 | E198: 1 | F198: =+D198*0.96 -> 1.152 | G198: 1 | H198: 0.96 | I198: 0 | J198: 0.048 | O198: 1.2 | P198: 1 | Q198: 1.2 | R198: 1 | S198: 1.2 | X198: 1.2 | Y198: 1 | Z198: 1.2 | AA198: 1 | AB198: 1.2
A199: =+A198+0.01 -> 5.09 | B199: 1 Head cook @ Rs. 6,000/- per month and upto 2 Asstt. Cooks @ Rs. 4,500/- per month per cook | C199: 1 | D199: 1.8 | E199: 1 | F199: =+D199*0.9 -> 1.62 | G199: 1 | H199: 0.9 | I199: 0 | J199: 0.18 | O199: 1.8 | P199: 1 | Q199: 1.8 | R199: 1 | S199: 1.8 | X199: 1.8 | Y199: 1 | Z199: 1.8 | AA199: 1 | AB199: 1.8
A200: 5.1 | B200: Specific skill training per child @ Rs.1000/- per annum | C200: 100 | D200: 1 | E200: 100 | F200: =+D200*0.9 -> 0.9 | G200: 1 | H200: 0.9 | I200: 0 | J200: 0.1 | O200: 0.01 | P200: 100 | Q200: 1 | R200: 100 | S200: 1 | X200: 0.01 | Y200: 100 | Z200: 1 | AA200: 100 | AB200: 1
A201: 5.11 | B201: Electricity / water charges per child @Rs.1000/- per annum | C201: 100 | D201: 1 | E201: 100 | F201: =+D201 -> 1 | G201: 1 | H201: 1 | I201: 0 | J201: 0 | O201: 0.01 | P201: 100 | Q201: 1 | R201: 100 | S201: 1 | X201: 0.01 | Y201: 100 | Z201: 1 | AA201: 100 | AB201: 1
A202: 5.12 | B202: Medical care/contingencies @ Rs.1250/- per child per annum | C202: 100 | D202: 1.25 | E202: 100 | F202: 1.25 | G202: 1 | H202: 1 | I202: 0 | J202: 0 | O202: 0.0125 | P202: 100 | Q202: 1.25 | R202: 100 | S202: 1.25 | X202: 0.0125 | Y202: 100 | Z202: 1.25 | AA202: 100 | AB202: 1.25
... 403 more rows

Sheet Badwani
A1: State Summary for AWP&B - 2017-18 , SSA, Madhya Pradesh (Rs in Lakhs)
A3: District : | B3: Barwani
A5: S.No. | B5: Activity | C5: Year 2016-17 | K5: Outlay Proposed for 2017-18 | T5: Outlay Recommended for 2017-18 | AC5: Remarks
C6: Outlay approved by PAB (including spillover) | E6: Expected Achievement till March'2017 | I6: Savings | K6: Spill Over | M6: Deferred laibility of 2016-17 | O6: Fresh | R6: Total | T6: Spill Over | V6: Deferred laibility of 2016-17 | X6: Fresh | AA6: Total
C7: Phy. | D7: Fin | E7: Phy. | F7: Fin. | G7: Phy. (%) | H7: Fin. (%) | I7: Phy. | J7: Fin. | K7: Phy. | L7: Fin. | M7: Phy. | N7: Fin. | O7: Unit Cost | P7: Phy. | Q7: Fin. | R7: Phy. | S7: Fin. | T7: Phy. | U7: Fin. | V7: Phy. | W7: Fin. | X7: Unit Cost | Y7: Phy. | Z7: Fin. | AA7: Phy. | AB7: Fin.
A8: I | B8: ACCESS
B9: SSA
A10: 1 | B10: Opening of New Schools
A11: 1.01 | B11: New Primary School
A12: 1.02 | B12: Upgradation of PS to UPS
A13: 1.03 | B13: Composite Schools
A14: 1.04 | B14: Residential schools for specific category of children
A15: 1.05 | B15: Residential Hostel | P15: 1 | R15: =+P15 -> 1 | AA15: =+Y15 -> 0
A16: 1.06 | B16: Integration of Class V with primary schools
A17: 1.07 | B17: Integration of Class VIII with upper primary schools
A18: 2 | B18: Residential Schools for specific category of children
A19: A | B19: 50 children
B20: Non-recurring (one time grant) | G20: =+E20/C20 ->  | H20: =+F20/D20 ->  | I20: =+C20-E20 -> 0 | J20: =+D20-F20 -> 0
A21: 2.01 | B21: Furniture/ Equipment (including kitchen) | G21: =+E21/C21 ->  | I21: =+C21-E21 -> 0 | J21: 0 | O21: 2 | Q21: =+P21*O21 -> 0 | R21: =+P21+M21+K21 -> 0 | S21: =+Q21+N21+L21 -> 0 | X21: 2 | Z21: =+Y21*X21 -> 0 | AA21: =+Y21+V21+T21 -> 0 | AB21: =+Z21+W21+U21 -> 0
A22: 2.02 | B22: TLM and equipment including library books | I22: 0 | J22: 0 | O22: 3 | Q22: =+P22*O22 -> 0 | R22: =+P22+M22+K22 -> 0 | S22: 0 | X22: 3 | Z22: =+Y22*X22 -> 0 | AA22: =+Y22+V22+T22 -> 0 | AB22: 0
A23: 2.03 | B23: Bedding (new) | I23: 0 | J23: 0 | O23: 0.375 | Q23: 0 | R23: 0 | S23: 0 | X23: 0.375 | Z23: 0 | AA23: 0 | AB23: 0
A24: 2.04 | B24: Replacement of bedding (once in 3 years) | I24: 0 | J24: 0 | Q24: 0 | R24: 0 | S24: 0 | Z24: 0 | AA24: 0 | AB24: 0
B25: Sub Total (Non Recurring) | I25: 0 | J25: 0 | Q25: 0 | R25: 0 | S25: 0 | Z25: 0 | AA25: 0 | AB25: 0
B26: Recurring (50 children) | I26: 0 | J26: 0 | Q26: 0 | R26: 0 | S26: 0 | Z26: 0 | AA26: 0 | AB26: 0
A27: 2.05 | B27: Maintenance per child Per month @ Rs.1500/- | I27: 0 | J27: 0 | O27: 9 | Q27: 0 | R27: 0 | S27: 0 | X27: 9 | Z27: 0 | AA27: 0 | AB27: 0
A28: 2.06 | B28: Stipend per child per month @ Rs.100/- | I28: 0 | J28: 0 | O28: 0.6 | Q28: 0 | R28: 0 | S28: 0 | X28: 0.6 | Z28: 0 | AA28: 0 | AB28: 0
A29: 2.07 | B29: Supplementary TLM, Stationery and other educational material @Rs.1000/- per child per annum | I29: 0 | J29: 0 | O29: 0.5 | Q29: 0 | R29: 0 | S29: 0 | X29: 0.5 | Z29: 0 | AA29: 0 | AB29: 0
A30: 2.08 | B30: Salaries | I30: 0 | J30: 0 | Q30: 0 | R30: 0 | S30: 0 | Z30: 0 | AA30: 0 | AB30: 0
A31: (a) | B31: 1 Warden @ Rs.25000/- per month | I31: 0 | J31: 0 | O31: 3 | Q31: 0 | R31: 0 | S31: 0 | X31: 3 | Z31: 0 | AA31: 0 | AB31: 0
A32: (b) | B32: 4 Fulltime teachers as per RTE Norms @ Rs. 20,000/- per month per teacher | I32: 0 | J32: 0 | O32: 9.6 | Q32: 0 | R32: 0 | S32: 0 | X32: 9.6 | Z32: 0 | AA32: 0 | AB32: 0
A33: (c) | B33: 2 Urdu Teachers (only for Blocks with muslim population above 20% and select urban areas) @ Rs.12,000/- per month per teacher. | I33: 0 | J33: 0 | O33: 2.88 | Q33: 0 | R33: 0 | S33: 0 | X33: 2.88 | Z33: 0 | AA33: 0 | AB33: 0
A34: (d) | B34: 3 Part time teachers @ Rs.5,000/- per month per teacher | I34: 0 | J34: 0 | O34: 1.5 | Q34: 0 | R34: 0 | S34: 0 | X34: 1.5 | Z34: 0 | AA34: 0 | AB34: 0
A35: (e) | B35: 1 Full time Accountant @ Rs. 10,000/- per month | I35: 0 | J35: 0 | O35: 1.2 | Q35: 0 | R35: 0 | S35: 0 | X35: 1.2 | Z35: 0 | AA35: 0 | AB35: 0
A36: (f) | B36: 2 Support staff - (Accountant/Assistant, Peon, Chowkidar) @ Rs. 5,000/- per month per staff | I36: 0 | J36: 0 | O36: 1.2 | Q36: 0 | R36: 0 | S36: 0 | X36: 1.2 | Z36: 0 | AA36: 0 | AB36: 0
A37: (g) | B37: 1 Head Cook @ Rs. 6,000/- per month and upto 2 Asstt. Cooks @ Rs. 4,500/- per month per cook | I37: 0 | J37: 0 | O37: 1.8 | Q37: 0 | R37: 0 | S37: 0 | X37: 1.8 | Z37: 0 | AA37: 0 | AB37: 0
A38: 2.09 | B38: Specific Skill training @ Rs.1000/- per annum per child | I38: 0 | J38: 0 | O38: 0.5 | Q38: 0 | R38: 0 | S38: 0 | X38: 0.5 | Z38: 0 | AA38: 0 | AB38: 0
A39: 2.1 | B39: Electricity / water charges @ Rs. 1000/- per annum per child | I39: 0 | J39: 0 | O39: 0.5 | Q39: 0 | R39: 0 | S39: 0 | X39: 0.5 | Z39: 0 | AA39: 0 | AB39: 0
A40: =+A39+0.01 -> 2.11 | B40: Medical care/contingencies @ Rs.1250/- per annum per child | I40: 0 | J40: 0 | O40: 0.625 | Q40: 0 | R40: 0 | S40: 0 | X40: 0.625 | Z40: 0 | AA40: 0 | AB40: 0
A41: =+A40+0.01 -> 2.12 | B41: Maintenance @ Rs. 750/- per child per annum | I41: 0 | J41: 0 | O41: 0.375 | Q41: 0 | R41: 0 | S41: 0 | X41: 0.375 | Z41: 0 | AA41: 0 | AB41: 0
A42: 2.13 | B42: Miscellaneous @ Rs. 750/- per child per annum | I42: 0 | J42: 0 | O42: 0.375 | Q42: 0 | R42: 0 | S42: 0 | X42: 0.375 | Z42: 0 | AA42: 0 | AB42: 0
A43: 2.14 | B43: Preparatory camps @ Rs. 300/- per child per annum | I43: 0 | J43: 0 | O43: 0.15 | Q43: 0 | R43: 0 | S43: 0 | X43: 0.15 | Z43: 0 | AA43: 0 | AB43: 0
A44: 2.15 | B44: P.T.A / school functions @ Rs. 300/- per child per annum | I44: 0 | J44: 0 | O44: 0.15 | Q44: 0 | R44: 0 | S44: 0 | X44: 0.15 | Z44: 0 | AA44: 0 | AB44: 0
A45: 2.16 | B45: Provision of Rent @ Rs. 10,000/- per child per annum | I45: 0 | J45: 0 | Q45: 0 | R45: 0 | S45: 0 | Z45: 0 | AA45: 0 | AB45: 0
A46: 2.17 | B46: Capacity Building @ Rs. 500/- per child per annum | I46: 0 | J46: 0 | O46: 0.25 | Q46: 0 | R46: 0 | S46: 0 | X46: 0.25 | Z46: 0 | AA46: 0 | AB46: 0
A47: 2.18 | B47: Physical / Self Defence Training @ Rs.200/- per child per annum | I47: 0 | J47: 0 | O47: 0.1 | Q47: 0 | R47: 0 | S47: 0 | X47: 0.1 | Z47: 0 | AA47: 0 | AB47: 0
B48: Sub Total (Recurring) | I48: 0 | J48: 0 | Q48: 0 | R48: 0 | S48: 0 | Z48: 0 | AA48: 0 | AB48: 0
B49: Total (Non Recurring + Recurring) | I49: 0 | J49: 0 | Q49: 0 | R49: 0 | S49: 0 | Z49: 0 | AA49: 0 | AB49: 0
A50: B | B50: 100 children | I50: 0 | J50: 0 | Q50: 0 | R50: 0 | S50: 0 | Z50: 0 | AA50: 0 | AB50: 0
B51: Non-recurring (one time grant) | I51: 0 | J51: 0 | Q51: 0 | R51: 0 | S51: 0 | Z51: 0 | AA51: 0 | AB51: 0
A52: 2.19 | B52: Furniture / Equipment (including kitchen equipment) | I52: 0 | J52: 0 | O52: 3 | Q52: 0 | R52: 0 | S52: 0 | X52: 3 | Z52: 0 | AA52: 0 | AB52: 0
A53: =+A52+0.01 -> 2.2 | B53: TLM and equipment including library books (New) | I53: 0 | J53: 0 | O53: 3.5 | Q53: 0 | R53: 0 | S53: 0 | X53: 3.5 | Z53: 0 | AA53: 0 | AB53: 0
A54: 2.21 | B54: Beds for Boys | I54: 0 | J54: 0 | O54: 0.04 | P54: 0 | Q54: 0 | R54: 0 | S54: 0 | X54: 0.04 | Z54: 0 | AA54: 0 | AB54: 0
A55: 2.22 | B55: Replacement of bedding (once in 3 years) | I55: 0 | J55: 0 | O55: 0.0075 | P55: =P58 -> 0 | Q55: 0 | R55: 0 | S55: 0 | X55: 0.0075 | Y55: =Y58 -> 0 | Z55: 0 | AA55: 0 | AB55: 0
B56: Sub Total Non-recurring | C56: =SUM(C52:C55) -> 0 | D56: =SUM(D52:D55) -> 0 | E56: 0 | F56: 0 | I56: =SUM(I52:I55) -> 0 | J56: 0 | K56: 0 | L56: 0 | M56: 0 | N56: 0 | O56: 6.5475 | P56: 0 | Q56: 0 | R56: 0 | S56: 0 | T56: 0 | U56: 0 | V56: 0 | W56: 0 | X56: 6.5475 | Y56: 0 | Z56: 0 | AA56: 0 | AB56: 0
B57: Recurring | I57: 0 | J57: 0 | Q57: 0 | R57: 0 | S57: 0 | Z57: =+Y57*X57 -> 0 | AA57: =+Y57+V57+T57 -> 0 | AB57: 0
A58: 2.23 | B58: Maintenance per child per month @ Rs. 1500/- | C58: 0 | D58: 0 | E58: =+C58 -> 0 | F58: =+D58*0.98 -> 0 | I58: 0 | J58: 0 | O58: 0.18 | P58: 0 | Q58: 0 | R58: 0 | S58: 0 | X58: 0.18 | Y58: =+P58 -> 0 | Z58: 0 | AA58: 0 | AB58: 0
A59: =+A58+0.01 -> 2.24 | B59: Stipend per child per month @ Rs.100/- | C59: 0 | D59: 0 | E59: =+C59 -> 0 | F59: =+D59*0.98 -> 0 | G59: =+E59/C59 ->  | I59: 0 | J59: 0 | O59: 0.012 | P59: 0 | Q59: 0 | R59: 0 | S59: 0 | X59: 0.012 | Y59: 0 | Z59: 0 | AA59: 0 | AB59: 0
A60: 2.25 | B60: Supplementary TLM, Stationery and other educational material per child @1000/- per annum | C60: 0 | D60: 0 | E60: 0 | F60: =+D60*0.95 -> 0 | I60: 0 | J60: 0 | O60: 0.01 | P60: 0 | Q60: 0 | R60: 0 | S60: 0 | X60: 0.01 | Y60: 0 | Z60: 0 | AA60: 0 | AB60: 0
A61: 2.26 | B61: Salaries | I61: 0 | J61: 0 | Q61: 0 | R61: 0 | S61: 0 | Y61: 0 | Z61: 0 | AA61: 0 | AB61: 0
A62: (a) | B62: 1 Warden @ Rs. 25,000/- per month | C62: 0 | D62: 0 | E62: =+C62 -> 0 | F62: =+D62*0.8 -> 0 | I62: 0 | J62: 0 | O62: 3 | P62: 0 | Q62: 0 | R62: 0 | S62: 0 | X62: 3 | Y62: 0 | Z62: 0 | AA62: 0 | AB62: 0 | AC62: =0.25*1*12 -> 3
A63: (b) | B63: 1 head teacher @ Rs. 25,000/- per month in case the enrollment exceeds 100 | I63: 0 | J63: 0 | O63: 3 | Q63: 0 | R63: 0 | S63: 0 | X63: 3 | Y63: 0 | Z63: 0 | AA63: 0 | AB63: 0
A64: (c) | B64: 4 - 5 Full time teachers as per RTE norms @ Rs. 20,000/- per month per teacher | I64: 0 | J64: 0 | O64: 9.6 | Q64: 0 | R64: 0 | S64: 0 | X64: 9.6 | Y64: 0 | Z64: 0 | AA64: 0 | AB64: 0
A65: (d) | B65: 2 Urdu Teachers (only for blocks with muslim population above 20% and select urban areas), if required @ Rs. 12,000/- per month per teacher | I65: 0 | J65: 0 | O65: 2.88 | Q65: 0 | R65: 0 | S65: 0 | X65: 2.88 | Y65: 0 | Z65: 0 | AA65: 0 | AB65: 0
A66: (e) | B66: 3 part time teachers @ Rs. 5,000/- per month per teacher | C66: 0 | D66: 0 | E66: =+C66 -> 0 | F66: =+D66*0.85 -> 0 | I66: 0 | J66: 0 | O66: 1.8 | P66: 0 | Q66: 0 | R66: 0 | S66: 0 | X66: 1.8 | Y66: 0 | Z66: 0 | AA66: 0 | AB66: 0
A67: (f) | B67: 1 Full time Accountant @ Rs. 10,000/- per month | C67: 0 | D67: 0 | E67: =+C67 -> 0 | F67: =+D67*0.72 -> 0 | I67: 0 | J67: 0 | O67: 1.2 | P67: 0 | Q67: 0 | R67: 0 | S67: 0 | X67: 1.2 | Y67: 0 | Z67: 0 | AA67: 0 | AB67: 0
A68: (g) | B68: 2 Support Staff – (Accountant/ Assistant, Peon, Chowkidar) @ Rs. 5,000/- per month per staff | C68: 0 | D68: 0 | E68: 0 | F68: =+D68*0.96 -> 0 | I68: 0 | J68: 0 | O68: 1.2 | P68: 0 | Q68: 0 | R68: 0 | S68: 0 | X68: 1.2 | Y68: 0 | Z68: 0 | AA68: 0 | AB68: 0
A69: (h) | B69: 1 Head cook @ Rs. 6,000/- per month and upto 2 Asstt. Cooks @ Rs. 4,500/- per month per cook | C69: 0 | D69: 0 | E69: 0 | F69: =+D69*0.96 -> 0 | I69: 0 | J69: 0 | O69: 1.8 | P69: 0 | Q69: 0 | R69: 0 | S69: 0 | X69: 1.8 | Y69: 0 | Z69: 0 | AA69: 0 | AB69: 0
A70: 2.27 | B70: Specific skill training per child @ Rs.1000/- per annum | C70: 0 | D70: 0 | E70: 0 | F70: =+D70*0.9 -> 0 | I70: 0 | J70: 0 | O70: 0.01 | P70: 0 | Q70: 0 | R70: 0 | S70: 0 | X70: 0.01 | Y70: 0 | Z70: 0 | AA70: 0 | AB70: 0
A71: 2.28 | B71: Electricity / water charges per child @Rs.1000/- per annum | C71: 0 | D71: 0 | E71: 0 | F71: =+D71 -> 0 | I71: 0 | J71: 0 | O71: 0.01 | P71: 0 | Q71: 0 | R71: 0 | S71: 0 | X71: 0.01 | Y71: 0 | Z71: 0 | AA71: 0 | AB71: 0
A72: 2.29 | B72: Medical care/contingencies @ Rs.1250/- per child per annum | C72: 0 | D72: 0 | E72: 0 | F72: 0 | I72: 0 | J72: 0 | O72: 0.0125 | P72: 0 | Q72: 0 | R72: 0 | S72: 0 | X72: 0.0125 | Y72: 0 | Z72: 0 | AA72: 0 | AB72: 0
A73: 2.3 | B73: Maintenance @ Rs.750/- per child per annum | C73: 0 | D73: 0 | E73: 0 | F73: 0 | I73: 0 | J73: 0 | O73: 0.0075 | P73: 0 | Q73: 0 | R73: 0 | S73: 0 | X73: 0.0075 | Y73: 0 | Z73: 0 | AA73: 0 | AB73: 0
A74: 2.31 | B74: Miscellaneous @ Rs.750/- per child per annum | C74: 0 | D74: 0 | E74: 0 | F74: 0 | I74: 0 | J74: 0 | O74: 0.0075 | P74: 0 | Q74: 0 | R74: 0 | S74: 0 | X74: 0.0075 | Y74: 0 | Z74: 0 | AA74: 0 | AB74: 0
A75: 2.32 | B75: Preparatory camps @ Rs.200/- per child per annum | C75: 0 | D75: 0 | E75: 0 | F75: =+D75*0.8 -> 0 | I75: 0 | J75: 0 | O75: 0.003 | P75: 0 | Q75: 0 | R75: 0 | S75: 0 | X75: 0.003 | Y75: 0 | Z75: 0 | AA75: 0 | AB75: 0
A76: 2.33 | B76: P.T.A / school functions @ Rs.200/- per child per annum | C76: 0 | D76: 0 | E76: 0 | F76: =+D76*0.8 -> 0 | I76: 0 | J76: 0 | O76: 0.003 | P76: 0 | Q76: 0 | R76: 0 | S76: 0 | X76: 0.003 | Y76: 0 | Z76: 0 | AA76: 0 | AB76: 0
A77: 2.34 | B77: Provision of Rent @ Rs. 6000/- per child per annum | I77: 0 | J77: 0 | O77: 0 | Q77: 0 | R77: 0 | S77: 0 | X77: 0 | Y77: 0 | Z77: 0 | AA77: 0 | AB77: 0
A78: 2.35 | B78: Capacity Building @ Rs.500/- per child per annum | C78: 0 | D78: 0 | E78: =+C78 -> 0 | F78: =+D78*0.61 -> 0 | I78: 0 | J78: 0 | O78: 0.005 | P78: 0 | Q78: 0 | R78: 0 | S78: 0 | X78: 0.005 | Y78: 0 | Z78: 0 | AA78: 0 | AB78: 0
A79: 2.36 | B79: Physical / Self Defence training @ Rs. 200/- per child per annum. | F79: =+D79*0.61 -> 0 | I79: 0 | J79: 0 | O79: 0.002 | P79: 0 | Q79: 0 | R79: 0 | S79: 0 | X79: 0.002 | Y79: 0 | Z79: 0 | AA79: 0 | AB79: 0
B80: Sub Total (Recurring) | C80: =+C58 -> 0 | D80: =SUM(D58:D79) -> 0 | E80: =+E58 -> 0 | F80: 0 | G80: =+E80/C80 ->  | I80: =SUM(I58:I79) -> 0 | J80: 0 | K80: 0 | L80: 0 | M80: 0 | N80: 0 | O80: 24.7425 | P80: =+P58 -> 0 | Q80: =SUM(Q58:Q79) -> 0 | R80: =+R58 -> 0 | S80: 0 | T80: 0 | U80: 0 | V80: 0 | W80: 0 | X80: 24.7425 | Y80: =+Y58 -> 0 | Z80: =SUM(Z58:Z79) -> 0 | AA80: =+AA58 -> 0 | AB80: =SUM(AB58:AB79) -> 0
B81: Total (Recurring + Non Recurring) | C81: =+C80+C56 -> 0 | D81: =+D80+D56 -> 0 | E81: 0 | F81: 0 | I81: =+I80+I56 -> 0 | J81: 0 | K81: 0 | L81: 0 | M81: 0 | N81: 0 | O81: 31.29 | P81: =P80 -> 0 | Q81: =+Q80+Q56 -> 0 | R81: =R80 -> 0 | S81: 0 | T81: 0 | U81: 0 | V81: 0 | W81: 0 | X81: 31.29 | Y81: =Y80 -> 0 | Z81: =+Z80+Z56 -> 0 | AA81: =AA80 -> 0 | AB81: =+AB80+AB56 -> 0
B82: Total (A + B) Residential Boys School | C82: =+C81+C49 -> 0 | D82: =+D81+D49 -> 0 | E82: 0 | F82: 0 | I82: =+I81+I49 -> 0 | J82: 0 | K82: 0 | L82: 0 | M82: 0 | N82: 0 | O82: 31.29 | P82: 0 | Q82: 0 | R82: 0 | S82: =+S81+S49 -> 0 | T82: =+T81+T49 -> 0 | U82: 0 | V82: 0 | W82: 0 | X82: 31.29 | Y82: 0 | Z82: 0 | AA82: 0 | AB82: =+AB81+AB49 -> 0
A83: 3 | B83: Residential Hostel for specific category of children
A84: (A) | B84: 50 children | I84: 0 | J84: 0 | Q84: 0 | R84: 0 | S84: 0 | Z84: =+Y84*X84 -> 0 | AA84: =+Y84+V84+T84 -> 0 | AB84: 0
B85: Non-recurring (one time grant) | G85: =+E85/C85 ->  | I85: =+C85-E85 -> 0 | J85: 0 | Q85: 0 | R85: 0 | S85: 0 | Z85: 0 | AA85: 0 | AB85: 0
A86: 3.01 | B86: Furniture/ Equipment (including kitchen) | I86: 0 | J86: 0 | O86: 2 | Q86: =+P86*O86 -> 0 | R86: =+P86+M86+K86 -> 0 | S86: 0 | X86: 2 | Z86: 0 | AA86: 0 | AB86: 0
A87: =+A86+0.01 -> 3.02 | B87: TLM and equipment including library books | I87: 0 | J87: 0 | O87: 3 | Q87: 0 | R87: 0 | S87: 0 | X87: 3 | Z87: 0 | AA87: 0 | AB87: 0
A88: 3.03 | B88: Bedding (new) | I88: 0 | J88: 0 | O88: 0.375 | Q88: 0 | R88: 0 | S88: 0 | X88: 0.375 | Z88: 0 | AA88: 0 | AB88: 0
A89: 3.04 | B89: Replacement of bedding (once in 3 years) | I89: 0 | J89: 0 | Q89: 0 | R89: 0 | S89: 0 | Z89: 0 | AA89: 0 | AB89: 0
B90: Sub Total (Non Recurring) | C90: =SUM(C86:C89) -> 0 | D90: =SUM(D86:D89) -> 0 | E90: 0 | F90: 0 | I90: =SUM(I86:I89) -> 0 | J90: 0 | K90: 0 | L90: 0 | M90: 0 | N90: 0 | O90: 5.375 | P90: 0 | Q90: 0 | R90: 0 | S90: 0 | T90: 0 | U90: 0 | V90: 0 | W90: 0 | X90: 5.375 | Y90: 0 | Z90: 0 | AA90: 0 | AB90: 0
B91: Recurring (50 children) | I91: 0 | J91: 0 | Q91: 0 | R91: 0 | S91: 0 | Z91: =+Y91*X91 -> 0 | AA91: =+Y91+V91+T91 -> 0 | AB91: 0
A92: 3.05 | B92: Maintenance per child Per month @ Rs.1500/- | I92: 0 | J92: 0 | O92: 9 | Q92: 0 | R92: 0 | S92: 0 | X92: 9 | Z92: 0 | AA92: 0 | AB92: 0
A93: =+A92+0.01 -> 3.06 | B93: Stipend per child per month @ Rs.100/- | I93: 0 | J93: 0 | O93: 0.6 | Q93: 0 | R93: 0 | S93: 0 | X93: 0.6 | Z93: 0 | AA93: 0 | AB93: 0
A94: 3.07 | B94: Supplementary TLM, Stationery and other educational material @Rs.1000/- per child per annum | I94: 0 | J94: 0 | O94: 0.5 | Q94: 0 | R94: 0 | S94: 0 | X94: 0.5 | Z94: 0 | AA94: 0 | AB94: 0
B95: Salaries | I95: 0 | J95: 0 | Q95: 0 | R95: 0 | S95: 0 | Z95: 0 | AA95: 0 | AB95: 0
A96: (a) | B96: 1 Warden @ Rs.25000/- per month | I96: 0 | J96: 0 | O96: 3 | Q96: 0 | R96: 0 | S96: 0 | X96: 3 | Z96: 0 | AA96: 0 | AB96: 0
A97: (b) | B97: 4 Fulltime teachers as per RTE Norms @ Rs. 20,000/- per month per teacher | I97: 0 | J97: 0 | O97: 9.6 | Q97: 0 | R97: 0 | S97: 0 | X97: 9.6 | Z97: 0 | AA97: 0 | AB97: 0
A98: (c) | B98: 2 Urdu Teachers (only for Blocks with muslim population above 20% and select urban areas) @ Rs.12,000/- per month per teacher. | I98: 0 | J98: 0 | O98: 2.88 | Q98: 0 | R98: 0 | S98: 0 | X98: 2.88 | Z98: 0 | AA98: 0 | AB98: 0
A99: (d) | B99: 3 Part time teachers @ Rs.5,000/- per month per teacher | I99: 0 | J99: 0 | O99: 1.5 | Q99: 0 | R99: 0 | S99: 0 | X99: 1.5 | Z99: 0 | AA99: 0 | AB99: 0
A100: (e) | B100: 1 Full time Accountant @ Rs. 10,000/- per month | I100: 0 | J100: 0 | O100: 1.2 | Q100: 0 | R100: 0 | S100: 0 | X100: 1.2 | Z100: 0 | AA100: 0 | AB100: 0
A101: (f) | B101: 2 Support staff - (Accountant/Assistant, Peon, Chowkidar) @ Rs. 5,000/- per month per staff | I101: 0 | J101: 0 | O101: 1.2 | Q101: 0 | R101: 0 | S101: 0 | X101: 1.2 | Z101: 0 | AA101: 0 | AB101: 0
A102: (g) | B102: 1 Head Cook @ Rs. 6,000/- per month and upto 2 Asstt. Cooks @ Rs. 4,500/- per month per cook | I102: 0 | J102: 0 | O102: 1.8 | Q102: 0 | R102: 0 | S102: 0 | X102: 1.8 | Z102: 0 | AA102: 0 | AB102: 0
A103: 3.08 | B103: Specific Skill training @ Rs.1000/- per annum per child | I103: 0 | J103: 0 | O103: 0.5 | Q103: 0 | R103: 0 | S103: 0 | X103: 0.5 | Z103: 0 | AA103: 0 | AB103: 0
A104: =+A103+0.01 -> 3.09 | B104: Electricity / water charges @ Rs. 1000/- per annum per child | I104: 0 | J104: 0 | O104: 0.5 | Q104: 0 | R104: 0 | S104: 0 | X104: 0.5 | Z104: 0 | AA104: 0 | AB104: 0
A105: 3.1 | B105: Medical care/contingencies @ Rs.1250/- per annum per child | I105: 0 | J105: 0 | O105: 0.625 | Q105: 0 | R105: 0 | S105: 0 | X105: 0.625 | Z105: 0 | AA105: 0 | AB105: 0
A106: 3.11 | B106: Maintenance @ Rs. 750/- per child per annum | I106: 0 | J106: 0 | O106: 0.375 | Q106: 0 | R106: 0 | S106: 0 | X106: 0.375 | Z106: 0 | AA106: 0 | AB106: 0
A107: 3.12 | B107: Miscellaneous @ Rs. 750/- per child per annum | I107: 0 | J107: 0 | O107: 0.375 | Q107: 0 | R107: 0 | S107: 0 | X107: 0.375 | Z107: 0 | AA107: 0 | AB107: 0
A108: 3.13 | B108: Preparatory camps @ Rs. 300/- per child per annum | I108: 0 | J108: 0 | O108: 0.15 | Q108: 0 | R108: 0 | S108: 0 | X108: 0.15 | Z108: 0 | AA108: 0 | AB108: 0
A109: 3.14 | B109: P.T.A / school functions @ Rs. 300/- per child per annum | I109: 0 | J109: 0 | O109: 0.15 | Q109: 0 | R109: 0 | S109: 0 | X109: 0.15 | Z109: 0 | AA109: 0 | AB109: 0
A110: 3.15 | B110: Provision of Rent @ Rs. 10,000/- per child per annum | I110: 0 | J110: 0 | Q110: 0 | R110: 0 | S110: 0 | Z110: 0 | AA110: 0 | AB110: 0
A111: 3.16 | B111: Capacity Building @ Rs. 500/- per child per annum | I111: 0 | J111: 0 | O111: 0.25 | Q111: 0 | R111: 0 | S111: 0 | X111: 0.25 | Z111: 0 | AA111: 0 | AB111: 0
A112: 3.17 | B112: Physical / Self Defence Training @ Rs.200/- per child per annum | I112: 0 | J112: 0 | O112: 0.1 | Q112: 0 | R112: 0 | S112: 0 | X112: 0.1 | Z112: 0 | AA112: 0 | AB112: 0
B113: Sub Total (Recurring) | C113: =SUM(C92:C112) -> 0 | D113: =SUM(D92:D112) -> 0 | E113: 0 | F113: 0 | I113: =SUM(I92:I112) -> 0 | J113: 0 | K113: 0 | L113: 0 | M113: 0 | N113: 0 | O113: 34.305 | P113: 0 | Q113: 0 | R113: 0 | S113: 0 | T113: 0 | U113: 0 | V113: 0 | W113: 0 | X113: 34.305 | Y113: 0 | Z113: 0 | AA113: 0 | AB113: 0
B114: Total (Non Recurring + Recurring) | C114: =+C113+C90 -> 0 | D114: =+D113+D90 -> 0 | E114: 0 | F114: 0 | I114: =+I113+I90 -> 0 | J114: 0 | K114: 0 | L114: 0 | M114: 0 | N114: 0 | O114: 39.68 | P114: 0 | Q114: 0 | R114: 0 | S114: 0 | T114: 0 | U114: 0 | V114: 0 | W114: 0 | X114: 39.68 | Y114: 0 | Z114: 0 | AA114: 0 | AB114: 0
A115: (B) | B115: 100 Children | I115: 0 | J115: 0 | Q115: 0 | R115: 0 | S115: 0 | Z115: =+Y115*X115 -> 0 | AA115: =+Y115+V115+T115 -> 0 | AB115: 0
B116: Non-recurring (one time grant) | I116: 0 | J116: 0 | Q116: 0 | R116: 0 | S116: 0 | Z116: 0 | AA116: 0 | AB116: 0
A117: 3.18 | B117: Furniture / Equipment (including kitchen equipment) | I117: 0 | J117: 0 | O117: 3 | Q117: 0 | R117: 0 | S117: 0 | X117: 3 | Z117: 0 | AA117: 0 | AB117: 0
A118: =+A117+0.01 -> 3.19 | B118: TLM and equipment including library books (New) | I118: 0 | J118: 0 | O118: 3.5 | Q118: 0 | R118: 0 | S118: 0 | X118: 3.5 | Z118: 0 | AA118: 0 | AB118: 0
A119: 3.2 | B119: Beds for Boys | I119: 0 | J119: 0 | O119: 0.04 | P119: 100 | Q119: 4 | R119: 100 | S119: 4 | X119: 0.04 | Z119: 0 | AA119: 0 | AB119: 0
A120: 3.21 | B120: Replacement of bedding (once in 3 years) | I120: 0 | J120: 0 | O120: 0.0075 | P120: =P123 -> 100 | Q120: 0.75 | R120: 100 | S120: 0.75 | X120: 0.0075 | Y120: =P120 -> 100 | Z120: 0.75 | AA120: 100 | AB120: 0.75
B121: Sub Total Non-recurring | C121: =SUM(C117:C120) -> 0 | D121: =SUM(D117:D120) -> 0 | E121: 0 | F121: 0 | I121: =SUM(I117:I120) -> 0 | J121: 0 | K121: 0 | L121: 0 | M121: 0 | N121: 0 | O121: 6.5475 | P121: 200 | Q121: 4.75 | R121: 200 | S121: 4.75 | T121: 0 | U121: 0 | V121: 0 | W121: 0 | X121: 6.5475 | Y121: 100 | Z121: 0.75 | AA121: 100 | AB121: 0.75
B122: Recurring | I122: 0 | J122: 0 | Q122: 0 | R122: 0 | S122: 0 | Z122: =+Y122*X122 -> 0 | AA122: =+Y122+V122+T122 -> 0 | AB122: 0
A123: 3.22 | B123: Maintenance per child per month @ Rs. 1500/- | C123: 0 | D123: 0 | E123: =+C123 -> 0 | F123: =+D123*0.98 -> 0 | I123: 0 | J123: 0 | O123: 0.18 | P123: 100 | Q123: 18 | R123: 100 | S123: 18 | X123: 0.18 | Y123: =P123 -> 100 | Z123: 18 | AA123: 100 | AB123: 18 | AF123: 250
A124: =+A123+0.01 -> 3.23 | B124: Stipend per child per month @ Rs.100/- | C124: 0 | D124: 0 | E124: =+C124 -> 0 | F124: =+D124*0.98 -> 0 | I124: 0 | J124: 0 | O124: 0.012 | P124: 100 | Q124: 1.2 | R124: 100 | S124: 1.2 | X124: 0.012 | Y124: =P124 -> 100 | Z124: 1.2 | AA124: 100 | AB124: 1.2
A125: 3.24 | B125: Supplementary TLM, Stationery and other educational material per child @1000/- per annum | C125: 0 | D125: 0 | E125: 0 | F125: =+D125*0.95 -> 0 | I125: 0 | J125: 0 | O125: 0.01 | P125: 100 | Q125: 1 | R125: 100 | S125: 1 | X125: 0.01 | Y125: 100 | Z125: 1 | AA125: 100 | AB125: 1
B126: Salaries | I126: 0 | J126: 0 | Q126: 0 | R126: 0 | S126: 0 | Y126: 0 | Z126: 0 | AA126: 0 | AB126: 0
A127: (a) | B127: 1 Warden @ Rs. 25,000/- per month | C127: 0 | D127: 0 | E127: =+C127 -> 0 | F127: =+D127*0.8 -> 0 | I127: 0 | J127: 0 | O127: 3 | P127: 1 | Q127: 3 | R127: 1 | S127: 3 | X127: 3 | Y127: 1 | Z127: 3 | AA127: 1 | AB127: 3
A128: (b) | B128: 1 head teacher @ Rs. 25,000/- per month in case the enrollment exceeds 100 | I128: 0 | J128: 0 | O128: 3 | Q128: 0 | R128: 0 | S128: 0 | X128: 3 | Y128: 0 | Z128: 0 | AA128: 0 | AB128: 0
A129: (c) | B129: 4 - 5 Full time teachers as per RTE norms @ Rs. 20,000/- per month per teacher | I129: 0 | J129: 0 | O129: 9.6 | Q129: 0 | R129: 0 | S129: 0 | X129: 9.6 | Y129: 0 | Z129: 0 | AA129: 0 | AB129: 0
A130: (d) | B130: 2 Urdu Teachers (only for blocks with muslim population above 20% and select urban areas), if required @ Rs. 12,000/- per month per teacher | I130: 0 | J130: 0 | O130: 2.88 | Q130: 0 | R130: 0 | S130: 0 | X130: 2.88 | Y130: 0 | Z130: 0 | AA130: 0 | AB130: 0
A131: (e) | B131: 3 part time teachers @ Rs. 5,000/- per month per teacher | C131: 0 | D131: 0 | E131: =+C131 -> 0 | F131: =+D131*0.85 -> 0 | I131: 0 | J131: 0 | O131: 1.8 | P131: 1 | Q131: 1.8 | R131: 1 | S131: 1.8 | X131: 1.8 | Y131: 1 | Z131: 1.8 | AA131: 1 | AB131: 1.8
A132: (f) | B132: 1 Full time Accountant @ Rs. 10,000/- per month | C132: 0 | D132: 0 | E132: =+C132 -> 0 | F132: =+D132*0.72 -> 0 | I132: 0 | J132: 0 | O132: 1.2 | P132: 1 | Q132: 1.2 | R132: 1 | S132: 1.2 | X132: 1.2 | Y132: 1 | Z132: 1.2 | AA132: 1 | AB132: 1.2
A133: 3.25 | B133: 2 Support Staff – (Accountant/ Assistant, Peon, Chowkidar) @ Rs. 5,000/- per month per staff | C133: 0 | D133: 0 | E133: 0 | F133: =+D133*0.96 -> 0 | I133: 0 | J133: 0 | O133: 1.2 | P133: 1 | Q133: 1.2 | R133: 1 | S133: 1.2 | X133: 1.2 | Y133: 1 | Z133: 1.2 | AA133: 1 | AB133: 1.2
A134: =+A133+0.01 -> 3.26 | B134: 1 Head cook @ Rs. 6,000/- per month and upto 2 Asstt. Cooks @ Rs. 4,500/- per month per cook | C134: 0 | D134: 0 | E134: 0 | F134: =+D134*0.96 -> 0 | I134: 0 | J134: 0 | O134: 1.8 | P134: 1 | Q134: 1.8 | R134: 1 | S134: 1.8 | X134: 1.8 | Y134: 1 | Z134: 1.8 | AA134: 1 | AB134: 1.8
A135: 3.27 | B135: Specific skill training per child @ Rs.1000/- per annum | C135: 0 | D135: 0 | E135: 0 | F135: =+D135*0.9 -> 0 | I135: 0 | J135: 0 | O135: 0.01 | P135: 100 | Q135: 1 | R135: 100 | S135: 1 | X135: 0.01 | Y135: 100 | Z135: 1 | AA135: 100 | AB135: 1
A136: 3.28 | B136: Electricity / water charges per child @Rs.1000/- per annum | C136: 0 | D136: 0 | E136: 0 | F136: =+D136 -> 0 | I136: 0 | J136: 0 | O136: 0.01 | P136: 100 | Q136: 1 | R136: 100 | S136: 1 | X136: 0.01 | Y136: 100 | Z136: 1 | AA136: 100 | AB136: 1
A137: 3.29 | B137: Medical care/contingencies @ Rs.1250/- per child per annum | C137: 0 | D137: 0 | E137: 0 | F137: 0 | I137: 0 | J137: 0 | O137: 0.0125 | P137: 100 | Q137: 1.25 | R137: 100 | S137: 1.25 | X137: 0.0125 | Y137: 100 | Z137: 1.25 | AA137: 100 | AB137: 1.25
A138: 3.3 | B138: Maintenance @ Rs.750/- per child per annum | C138: 0 | D138: 0 | E138: 0 | F138: 0 | I138: 0 | J138: 0 | O138: 0.0075 | P138: 100 | Q138: 0.75 | R138: 100 | S138: 0.75 | X138: 0.0075 | Y138: 100 | Z138: 0.75 | AA138: 100 | AB138: 0.75
A139: 3.31 | B139: Miscellaneous @ Rs.750/- per child per annum | C139: 0 | D139: 0 | E139: 0 | F139: 0 | I139: 0 | J139: 0 | O139: 0.0075 | P139: 100 | Q139: 0.75 | R139: 100 | S139: 0.75 | X139: 0.0075 | Y139: 100 | Z139: 0.75 | AA139: 100 | AB139: 0.75
A140: 3.32 | B140: Preparatory camps @ Rs.200/- per child per annum | C140: 0 | D140: 0 | E140: 0 | F140: =+D140*0.8 -> 0 | I140: 0 | J140: 0 | O140: 0.003 | P140: 100 | Q140: 0.3 | R140: 100 | S140: 0.3 | X140: 0.003 | Y140: 100 | Z140: 0.3 | AA140: 100 | AB140: 0.3
A141: 3.33 | B141: P.T.A / school functions @ Rs.200/- per child per annum | C141: 0 | D141: 0 | E141: 0 | F141: =+D141*0.8 -> 0 | I141: 0 | J141: 0 | O141: 0.003 | P141: 100 | Q141: 0.3 | R141: 100 | S141: 0.3 | X141: 0.003 | Y141: 100 | Z141: 0.3 | AA141: 100 | AB141: 0.3
A142: 3.34 | B142: Provision of Rent @ Rs. 6000/- per child per annum | I142: 0 | J142: 0 | O142: 0 | Q142: 0 | R142: 0 | S142: 0 | X142: 0 | Y142: 0 | Z142: 0 | AA142: 0 | AB142: 0
A143: 3.35 | B143: Capacity Building @ Rs.500/- per child per annum | C143: 0 | D143: 0 | E143: =+C143 -> 0 | F143: =+D143*0.61 -> 0 | I143: 0 | J143: 0 | O143: 0.005 | P143: 100 | Q143: 0.5 | R143: 100 | S143: 0.5 | X143: 0.005 | Y143: 100 | Z143: 0.5 | AA143: 100 | AB143: 0.5
A144: 3.36 | B144: Physical / Self Defence training @ Rs. 200/- per child per annum. | F144: =+D144*0.61 -> 0 | I144: 0 | J144: 0 | O144: 0.002 | P144: 100 | Q144: 0.2 | R144: 100 | S144: 0.2 | X144: 0.002 | Y144: 100 | Z144: 0.2 | AA144: 100 | AB144: 0.2
B145: Sub Total (Recurring) | C145: =+C123 -> 0 | D145: =SUM(D123:D144) -> 0 | E145: =+E123 -> 0 | F145: 0 | I145: =SUM(I123:I144) -> 0 | J145: 0 | K145: 0 | L145: 0 | M145: 0 | N145: 0 | O145: 24.7425 | P145: =+P123 -> 100 | Q145: 35.25 | R145: =+R123 -> 100 | S145: 35.25 | T145: 0 | U145: 0 | V145: 0 | W145: 0 | X145: 24.7425 | Y145: =+Y123 -> 100 | Z145: =SUM(Z123:Z144) -> 35.25 | AA145: =+AA123 -> 100 | AB145: =SUM(AB123:AB144) -> 35.25
B146: Total (Recurring + Non Recurring) | C146: =+C145+C121 -> 0 | D146: =+D145+D121 -> 0 | E146: 0 | F146: 0 | I146: =+I145+I121 -> 0 | J146: 0 | K146: 0 | L146: 0 | M146: 0 | N146: 0 | O146: 31.29 | P146: =P145 -> 100 | Q146: 40 | R146: =R145 -> 100 | S146: 40 | T146: 0 | U146: 0 | V146: 0 | W146: 0 | X146: 31.29 | Y146: =Y145 -> 100 | Z146: =+Z145+Z121 -> 36 | AA146: =AA145 -> 100 | AB146: =+AB145+AB121 -> 36
B147: Total (A + B) Residential Boys Hostels | C147: =+C146+C82 -> 0 | D147: =+D146+D82 -> 0 | E147: =+E146+E82 -> 0 | F147: =+F146+F82 -> 0 | I147: =+I146+I82 -> 0 | J147: =+J146+J82 -> 0 | K147: 0 | L147: =+L146+L114 -> 0 | M147: 0 | N147: 0 | O147: 70.97 | P147: 100 | Q147: =+Q146+Q82 -> 40 | R147: 100 | S147: =+S146+S82 -> 40 | T147: =+T146+T82 -> 0 | U147: =+U146+U114 -> 0 | V147: =+V146+V82 -> 0 | W147: =+W146+W114 -> 0 | X147: 70.97 | Y147: 100 | Z147: =+Z146+Z82 -> 36 | AA147: =+AA146+AA114 -> 100 | AB147: =+AB146+AB82 -> 36
A148: 4 | B148: Girls Hostel | I148: 0 | J148: 0 | Q148: 0 | R148: 0 | S148: 0 | Z148: =+Y148*X148 -> 0 | AA148: =+Y148+V148+T148 -> 0 | AB148: 0
A149: (A) | B149: 50 children Girls Hostels | C149: 11 | E149: =+C149 -> 11 | G149: =+E149/C149 -> 1 | I149: =+C149-E149 -> 0 | J149: 0 | P149: 0 | Q149: 0 | R149: 11 | S149: 0 | Z149: 0 | AA149: =+C149 -> 11 | AB149: 0 | AC149: Not recommended
B150: Non-recurring (one time grant) | I150: 0 | J150: 0 | Q150: =+P150*O150 -> 0 | R150: =+P150+M150+K150 -> 0 | S150: 0 | Z150: 0 | AA150: =+Y150+V150+T150 -> 0 | AB150: 0
A151: 4.01 | B151: Furniture/ Equipment (including kitchen) | I151: 0 | J151: 0 | O151: 2 | Q151: 0 | R151: 0 | S151: 0 | X151: 2 | Z151: 0 | AA151: 0 | AB151: 0
A152: =+A151+0.01 -> 4.02 | B152: TLM and equipment including library books | I152: 0 | J152: 0 | O152: 3 | Q152: 0 | R152: 0 | S152: 0 | X152: 3 | Z152: 0 | AA152: 0 | AB152: 0
A153: 4.03 | B153: Beds for Girls | I153: 0 | J153: 0 | O153: 0.04 | P153: 550 | Q153: 22 | R153: 550 | S153: 22 | X153: 0.04 | Z153: 0 | AA153: 0 | AB153: 0
A154: 4.04 | B154: Replacement of bedding (once in 3 years) | I154: 0 | J154: 0 | O154: 0.0075 | P154: =P157 -> 550 | Q154: 4.125 | R154: 550 | S154: 4.125 | X154: 0.0075 | Y154: =Y157 -> 550 | Z154: 4.125 | AA154: 550 | AB154: 4.125
B155: Sub Total (Non Recurring) | C155: =SUM(C151:C154) -> 0 | D155: =SUM(D151:D154) -> 0 | E155: 0 | F155: 0 | I155: =SUM(I151:I154) -> 0 | J155: 0 | K155: 0 | L155: 0 | M155: 0 | N155: 0 | O155: 5.0475 | P155: 1100 | Q155: 26.125 | R155: 1100 | S155: 26.125 | T155: 0 | U155: 0 | V155: 0 | W155: 0 | X155: 5.0475 | Y155: 550 | Z155: 4.125 | AA155: 550 | AB155: 4.125
B156: Recurring (50 children) | I156: 0 | J156: 0 | Q156: 0 | R156: 0 | S156: 0 | Z156: =+Y156*X156 -> 0 | AA156: =+Y156+V156+T156 -> 0 | AB156: 0
A157: 4.05 | B157: Maintenance per child Per month @ Rs.1500/- | C157: 550 | D157: 99 | E157: =+C157 -> 550 | F157: =+D157*0.98 -> 97.02 | G157: 1 | H157: 0.98 | I157: 0 | J157: 1.98 | O157: 0.18 | P157: 550 | Q157: 99 | R157: 550 | S157: 99 | X157: 0.18 | Y157: =C157 -> 550 | Z157: 99 | AA157: 550 | AB157: 99
A158: =+A157+0.01 -> 4.06 | B158: Stipend per child per month @ Rs.100/- | C158: 550 | D158: 6.6 | E158: =+C158 -> 550 | F158: =+D158*0.98 -> 6.468 | G158: 1 | H158: 0.98 | I158: 0 | J158: 0.132 | O158: 0.012 | P158: 550 | Q158: 6.6 | R158: 550 | S158: 6.6 | X158: 0.012 | Y158: =C158 -> 550 | Z158: 6.6 | AA158: 550 | AB158: 6.6
A159: 4.07 | B159: Supplementary TLM, Stationery and other educational material @Rs.1000/- per child per annum | C159: 550 | D159: 5.5 | E159: 550 | F159: =+D159*0.95 -> 5.225 | G159: 1 | H159: 0.95 | I159: 0 | J159: 0.275 | O159: 0.01 | P159: 550 | Q159: 5.5 | R159: 550 | S159: 5.5 | X159: 0.01 | Y159: 550 | Z159: 5.5 | AA159: 550 | AB159: 5.5
B160: Salaries | C160: 0 | D160: 0 | I160: 0 | J160: 0 | P160: 0 | Q160: 0 | R160: 0 | S160: 0 | Y160: 0 | Z160: 0 | AA160: 0 | AB160: 0
A161: (a) | B161: 1 Warden @ Rs.25000/- per month | C161: 11 | D161: 26.4 | E161: =+C161 -> 11 | F161: =+D161*0.77 -> 20.328 | G161: 1 | H161: 0.77 | I161: 0 | J161: 6.072 | O161: 3 | P161: 11 | Q161: 33 | R161: 11 | S161: 33 | X161: 3 | Y161: 11 | Z161: 33 | AA161: 11 | AB161: 33
A162: (b) | B162: 4 Fulltime teachers as per RTE Norms @ Rs. 20,000/- per month per teacher | I162: 0 | J162: 0 | O162: 3 | Q162: 0 | R162: 0 | S162: 0 | X162: 3 | Y162: 0 | Z162: 0 | AA162: 0 | AB162: 0
A163: (c) | B163: 2 Urdu Teachers (only for Blocks with muslim population above 20% and select urban areas) @ Rs.12,000/- per month per teacher. | I163: 0 | J163: 0 | O163: 9.6 | Q163: 0 | R163: 0 | S163: 0 | X163: 9.6 | Y163: 0 | Z163: 0 | AA163: 0 | AB163: 0
A164: (d) | B164: 3 Part time teachers @ Rs.5,000/- per month per teacher | C164: 11 | D164: 16.5 | E164: =+C164 -> 11 | F164: =+D164*0.85 -> 14.025 | G164: 1 | H164: 0.85 | I164: 0 | J164: 2.475 | O164: 1.8 | P164: 11 | Q164: 19.8 | R164: 11 | S164: 19.8 | X164: 1.8 | Y164: 11 | Z164: 19.8 | AA164: 11 | AB164: 19.8
A165: (e) | B165: 1 Full time Accountant @ Rs. 10,000/- per month | C165: 11 | D165: 13.2 | E165: =+C165 -> 11 | F165: =+D165*0.72 -> 9.504 | G165: 1 | H165: 0.72 | I165: 0 | J165: 3.696 | O165: 1.2 | P165: 11 | Q165: 13.2 | R165: 11 | S165: 13.2 | X165: 1.2 | Y165: 11 | Z165: 13.2 | AA165: 11 | AB165: 13.2
A166: (f) | B166: 2 Support staff - (Accountant/Assistant, Peon, Chowkidar) @ Rs. 5,000/- per month per staff | C166: 11 | D166: 13.2 | E166: 11 | F166: =+D166*0.96 -> 12.672 | G166: 1 | H166: 0.96 | I166: 0 | J166: 0.528 | O166: 1.2 | P166: 11 | Q166: 13.2 | R166: 11 | S166: 13.2 | X166: 1.2 | Y166: 11 | Z166: 13.2 | AA166: 11 | AB166: 13.2
A167: (g) | B167: 1 Head Cook @ Rs. 6,000/- per month and upto 2 Asstt. Cooks @ Rs. 4,500/- per month per cook | C167: 11 | D167: 13.86 | E167: 11 | F167: =+D167*0.96 -> 13.3056 | G167: 1 | H167: 0.96 | I167: 0 | J167: 0.5544 | O167: 1.8 | P167: 11 | Q167: 19.8 | R167: 11 | S167: 19.8 | X167: 1.8 | Y167: 11 | Z167: 19.8 | AA167: 11 | AB167: 19.8
A168: 4.08 | B168: Specific Skill training @ Rs.1000/- per annum per child | C168: 550 | D168: 5.5 | E168: 550 | F168: =+D168*0.9 -> 4.95 | G168: 1 | H168: 0.9 | I168: 0 | J168: 0.55 | O168: 0.01 | P168: 550 | Q168: 5.5 | R168: 550 | S168: 5.5 | X168: 0.01 | Y168: 550 | Z168: 5.5 | AA168: 550 | AB168: 5.5
A169: =+A168+0.01 -> 4.09 | B169: Electricity / water charges @ Rs. 1000/- per annum per child | C169: 550 | D169: 5.5 | E169: 550 | F169: =+D169 -> 5.5 | G169: 1 | H169: 1 | I169: 0 | J169: 0 | O169: 0.01 | P169: 550 | Q169: 5.5 | R169: 550 | S169: 5.5 | X169: 0.01 | Y169: 550 | Z169: 5.5 | AA169: 550 | AB169: 5.5
A170: 4.1 | B170: Medical care/contingencies @ Rs.1250/- per annum per child | C170: 550 | D170: 6.875 | E170: 550 | F170: 6.875 | G170: 1 | H170: 1 | I170: 0 | J170: 0 | O170: 0.0125 | P170: 550 | Q170: 6.875 | R170: 550 | S170: 6.875 | X170: 0.0125 | Y170: 550 | Z170: 6.875 | AA170: 550 | AB170: 6.875
A171: 4.11 | B171: Maintenance @ Rs. 750/- per child per annum | C171: 550 | D171: 4.125 | E171: 550 | F171: 4.125 | G171: 1 | H171: 1 | I171: 0 | J171: 0 | O171: 0.0075 | P171: 550 | Q171: 4.125 | R171: 550 | S171: 4.125 | X171: 0.0075 | Y171: 550 | Z171: 4.125 | AA171: 550 | AB171: 4.125
A172: 4.12 | B172: Miscellaneous @ Rs. 750/- per child per annum | C172: 550 | D172: 4.125 | E172: 550 | F172: 4.125 | G172: 1 | H172: 1 | I172: 0 | J172: 0 | O172: 0.0075 | P172: 550 | Q172: 4.125 | R172: 550 | S172: 4.125 | X172: 0.0075 | Y172: 550 | Z172: 4.125 | AA172: 550 | AB172: 4.125
A173: 4.13 | B173: Preparatory camps @ Rs. 300/- per child per annum | C173: 550 | D173: 1.65 | E173: 550 | F173: =+D173*0.8 -> 1.32 | G173: 1 | H173: 0.8 | I173: 0 | J173: 0.33 | O173: 0.003 | P173: 550 | Q173: 1.65 | R173: 550 | S173: 1.65 | X173: 0.003 | Y173: 550 | Z173: 1.65 | AA173: 550 | AB173: 1.65
A174: 4.14 | B174: P.T.A / school functions @ Rs. 300/- per child per annum | C174: 550 | D174: 1.65 | E174: 550 | F174: =+D174*0.8 -> 1.32 | G174: 1 | H174: 0.8 | I174: 0 | J174: 0.33 | O174: 0.003 | P174: 550 | Q174: 1.65 | R174: 550 | S174: 1.65 | X174: 0.003 | Y174: 550 | Z174: 1.65 | AA174: 550 | AB174: 1.65
A175: 4.15 | B175: Provision of Rent @ Rs. 10,000/- per child per annum | I175: 0 | J175: 0 | O175: 0 | Q175: 0 | R175: 0 | S175: 0 | X175: 0 | Y175: 0 | Z175: 0 | AA175: 0 | AB175: 0
A176: 4.16 | B176: Capacity Building @ Rs. 500/- per child per annum | C176: 550 | D176: 2.75 | E176: =+C176 -> 550 | F176: =+D176*0.61 -> 1.6775 | G176: 1 | H176: 0.61 | I176: 0 | J176: 1.0725 | O176: 0.005 | P176: 550 | Q176: 2.75 | R176: 550 | S176: 2.75 | X176: 0.005 | Y176: 550 | Z176: 2.75 | AA176: 550 | AB176: 2.75
A177: 4.17 | B177: Physical / Self Defence Training @ Rs.200/- per child per annum | C177: 550 | D177: 1.1 | E177: 550 | F177: =+D177*0.61 -> 0.671 | G177: 1 | H177: 0.61 | I177: 0 | J177: 0.429 | O177: 0.002 | P177: 550 | Q177: 1.1 | R177: 550 | S177: 1.1 | X177: 0.002 | Y177: 550 | Z177: 1.1 | AA177: 550 | AB177: 1.1
B178: Sub Total (Recurring) | C178: =+C157 -> 550 | D178: =SUM(D157:D177) -> 227.535 | E178: =+E157 -> 550 | F178: 209.1111 | G178: 1 | H178: 0.9190282814 | I178: =SUM(I157:I177) -> 0 | J178: 18.4239 | K178: 0 | L178: 0 | M178: 0 | N178: 0 | O178: 21.8625 | P178: =+P157 -> 550 | Q178: 243.375 | R178: =+R157 -> 550 | S178: 243.375 | T178: 0 | U178: 0 | V178: 0 | W178: 0 | X178: 21.8625 | Y178: =+Y157 -> 550 | Z178: =SUM(Z157:Z177) -> 243.375 | AA178: =+AA157 -> 550 | AB178: =SUM(AB157:AB177) -> 243.375
B179: Total (Non Recurring + Recurring) | C179: =+C178+C155 -> 550 | D179: =+D178+D155 -> 227.535 | E179: 550 | F179: 209.1111 | G179: 1 | H179: 0.9190282814 | I179: =+I178+I155 -> 0 | J179: 18.4239 | K179: 0 | L179: 0 | M179: 0 | N179: 0 | O179: 26.91 | P179: =+P178 -> 550 | Q179: 269.5 | R179: =+R178 -> 550 | S179: =+S178+S155 -> 269.5 | T179: =+T178+T155 -> 0 | U179: 0 | V179: 0 | W179: 0 | X179: 26.91 | Y179: =+Y178 -> 550 | Z179: =+Z178+Z155 -> 247.5 | AA179: =+AA178 -> 550 | AB179: =+AB178+AB155 -> 247.5
A180: (B) | B180: 100 Children Girls Hostels | C180: 1 | E180: =+C180 -> 1 | G180: 1 | I180: 0 | J180: 0 | P180: 0 | Q180: 0 | R180: 1 | S180: 0 | Z180: =+Y180*X180 -> 0 | AA180: =+C180 -> 1 | AB180: =+Z180+W180+U180 -> 0
B181: Non-recurring (one time grant) | I181: 0 | J181: 0 | Q181: 0 | R181: 0 | S181: 0 | Z181: 0 | AA181: =+Y181+V181+T181 -> 0 | AB181: 0
A182: 5.01 | B182: Furniture / Equipment (including kitchen equipment) | I182: 0 | J182: 0 | O182: 3 | Q182: 0 | R182: 0 | S182: 0 | X182: 3 | Z182: 0 | AA182: 0 | AB182: 0
A183: =+A182+0.01 -> 5.02 | B183: TLM and equipment including library books (New) | I183: 0 | J183: 0 | O183: 3.5 | Q183: 0 | R183: 0 | S183: 0 | X183: 3.5 | Z183: 0 | AA183: 0 | AB183: 0
A184: 5.03 | B184: Beds for Girls | I184: 0 | J184: 0 | O184: 0.04 | P184: 100 | Q184: 4 | R184: 100 | S184: 4 | X184: 0.04 | Z184: 0 | AA184: 0 | AB184: 0
A185: 5.04 | B185: Replacement of bedding (once in 3 years) | I185: 0 | J185: 0 | O185: 0.0075 | P185: =P188 -> 100 | Q185: 0.75 | R185: 100 | S185: 0.75 | X185: 0.0075 | Y185: =Y188 -> 100 | Z185: 0.75 | AA185: 100 | AB185: 0.75
B186: Sub Total Non-recurring | C186: =SUM(C182:C185) -> 0 | D186: =SUM(D182:D185) -> 0 | E186: 0 | F186: 0 | I186: =SUM(I182:I185) -> 0 | J186: 0 | K186: 0 | L186: 0 | M186: 0 | N186: 0 | O186: 6.5475 | P186: 200 | Q186: 4.75 | R186: 200 | S186: 4.75 | T186: 0 | U186: 0 | V186: 0 | W186: 0 | X186: 6.5475 | Y186: 100 | Z186: 0.75 | AA186: 100 | AB186: 0.75
B187: Recurring | I187: 0 | J187: 0 | Q187: 0 | R187: 0 | S187: 0 | Z187: =+Y187*X187 -> 0 | AA187: =+Y187+V187+T187 -> 0 | AB187: 0
A188: 5.05 | B188: Maintenance per child per month @ Rs. 1500/- | C188: 100 | D188: 18 | E188: =+C188 -> 100 | F188: =+D188*0.98 -> 17.64 | G188: 1 | H188: 0.98 | I188: 0 | J188: 0.36 | O188: 0.18 | P188: 100 | Q188: 18 | R188: 100 | S188: 18 | X188: 0.18 | Y188: 100 | Z188: 18 | AA188: 100 | AB188: 18
A189: =+A188+0.01 -> 5.06 | B189: Stipend per child per month @ Rs.100/- | C189: 100 | D189: 1.2 | E189: =+C189 -> 100 | F189: =+D189*0.98 -> 1.176 | G189: 1 | H189: 0.98 | I189: 0 | J189: 0.024 | O189: 0.012 | P189: 100 | Q189: 1.2 | R189: 100 | S189: 1.2 | X189: 0.012 | Y189: 100 | Z189: 1.2 | AA189: 100 | AB189: 1.2
A190: 5.07 | B190: Supplementary TLM, Stationery and other educational material per child @1000/- per annum | C190: 100 | D190: 1 | E190: 100 | F190: =+D190*0.95 -> 0.95 | G190: 1 | H190: 0.95 | I190: 0 | J190: 0.05 | O190: 0.01 | P190: 100 | Q190: 1 | R190: 100 | S190: 1 | X190: 0.01 | Y190: 100 | Z190: 1 | AA190: 100 | AB190: 1
B191: Salaries | C191: 0 | D191: 0 | I191: 0 | J191: 0 | P191: 0 | Y191: 0
A192: (a) | B192: 1 Warden @ Rs. 25,000/- per month | C192: 1 | D192: 2.4 | E192: =+C192 -> 1 | F192: =+D192*0.78 -> 1.872 | G192: 1 | H192: 0.78 | I192: 0 | J192: 0.528 | O192: 3 | P192: 1 | Q192: =+P192*O192 -> 3 | R192: =+P192+M192+K192 -> 1 | S192: 3 | X192: 3 | Y192: 1 | Z192: =+Y192*X192 -> 3 | AA192: =+Y192+V192+T192 -> 1 | AB192: 3
A193: (b) | B193: 1 head teacher @ Rs. 25,000/- per month in case the enrollment exceeds 100 | I193: 0 | J193: 0 | O193: 3 | Q193: 0 | R193: 0 | S193: 0 | X193: 3 | Z193: 0 | AA193: 0 | AB193: 0
A194: (c) | B194: 4 - 5 Full time teachers as per RTE norms @ Rs. 20,000/- per month per teacher | I194: 0 | J194: 0 | O194: 9.6 | Q194: 0 | R194: 0 | S194: 0 | X194: 9.6 | Z194: 0 | AA194: 0 | AB194: 0
A195: (d) | B195: 2 Urdu Teachers (only for blocks with muslim population above 20% and select urban areas), if required @ Rs. 12,000/- per month per teacher | E195: =+C195 -> 0 | F195: =+D195*0.85 -> 0 | I195: 0 | J195: 0 | O195: 2.88 | Q195: 0 | R195: 0 | S195: 0 | X195: 2.88 | Z195: 0 | AA195: 0 | AB195: 0
A196: (e) | B196: 3 part time teachers @ Rs. 5,000/- per month per teacher | C196: 1 | D196: 1.5 | E196: =+C196 -> 1 | F196: =+D196*0.72 -> 1.08 | G196: 1 | H196: 0.72 | I196: 0 | J196: 0.42 | O196: 1.8 | P196: 1 | Q196: 1.8 | R196: 1 | S196: 1.8 | X196: 1.8 | Y196: 1 | Z196: 1.8 | AA196: 1 | AB196: 1.8
A197: (f) | B197: 1 Full time Accountant @ Rs. 10,000/- per month | C197: 1 | D197: 1.2 | E197: 1 | F197: =+D197*0.96 -> 1.152 | G197: 1 | H197: 0.96 | I197: 0 | J197: 0.048 | O197: 1.2 | P197: 1 | Q197: 1.2 | R197: 1 | S197: 1.2 | X197: 1.2 | Y197: 1 | Z197: 1.2 | AA197: 1 | AB197: 1.2
A198: 5.08 | B198: 2 Support Staff – (Accountant/ Assistant, Peon, Chowkidar) @ Rs. 5,000/- per month per staff | C198: 1 | D198: 1.2 | E198: 1 | F198: =+D198*0.96 -> 1.152 | G198: 1 | H198: 0.96 | I198: 0 | J198: 0.048 | O198: 1.2 | P198: 1 | Q198: 1.2 | R198: 1 | S198: 1.2 | X198: 1.2 | Y198: 1 | Z198: 1.2 | AA198: 1 | AB198: 1.2
A199: =+A198+0.01 -> 5.09 | B199: 1 Head cook @ Rs. 6,000/- per month and upto 2 Asstt. Cooks @ Rs. 4,500/- per month per cook | C199: 1 | D199: 1.8 | E199: 1 | F199: =+D199*0.9 -> 1.62 | G199: 1 | H199: 0.9 | I199: 0 | J199: 0.18 | O199: 1.8 | P199: 1 | Q199: 1.8 | R199: 1 | S199: 1.8 | X199: 1.8 | Y199: 1 | Z199: 1.8 | AA199: 1 | AB199: 1.8
A200: 5.1 | B200: Specific skill training per child @ Rs.1000/- per annum | C200: 100 | D200: 1 | E200: 100 | F200: =+D200*0.9 -> 0.9 | G200: 1 | H200: 0.9 | I200: 0 | J200: 0.1 | O200: 0.01 | P200: 100 | Q200: 1 | R200: 100 | S200: 1 | X200: 0.01 | Y200: 100 | Z200: 1 | AA200: 100 | AB200: 1
A201: 5.11 | B201: Electricity / water charges per child @Rs.1000/- per annum | C201: 100 | D201: 1 | E201: 100 | F201: =+D201 -> 1 | G201: 1 | H201: 1 | I201: 0 | J201: 0 | O201: 0.01 | P201: 100 | Q201: 1 | R201: 100 | S201: 1 | X201: 0.01 | Y201: 100 | Z201: 1 | AA201: 100 | AB201: 1
A202: 5.12 | B202: Medical care/contingencies @ Rs.1250/- per child per annum | C202: 100 | D202: 1.25 | E202: 100 | F202: 1.25 | G202: 1 | H202: 1 | I202: 0 | J202: 0 | O202: 0.0125 | P202: 100 | Q202: 1.25 | R202: 100 | S202: 1.25 | X202: 0.0125 | Y202: 100 | Z202: 1.25 | AA202: 100 | AB202: 1.25
... 403 more rows

Sheet Betul
A1: State Summary for AWP&B - 2017-18 , SSA, Madhya Pradesh (Rs in Lakhs)
A3: District : | B3: Betul
A5: S.No. | B5: Activity | C5: Year 2016-17 | K5: Outlay Proposed for 2017-18 | T5: Outlay Recommended for 2017-18 | AC5: Remarks
C6: Outlay approved by PAB (including spillover) | E6: Expected Achievement till March'2017 | I6: Savings | K6: Spill Over | M6: Deferred laibility of 2016-17 | O6: Fresh | R6: Total | T6: Spill Over | V6: Deferred laibility of 2016-17 | X6: Fresh | AA6: Total
C7: Phy. | D7: Fin | E7: Phy. | F7: Fin. | G7: Phy. (%) | H7: Fin. (%) | I7: Phy. | J7: Fin. | K7: Phy. | L7: Fin. | M7: Phy. | N7: Fin. | O7: Unit Cost | P7: Phy. | Q7: Fin. | R7: Phy. | S7: Fin. | T7: Phy. | U7: Fin. | V7: Phy. | W7: Fin. | X7: Unit Cost | Y7: Phy. | Z7: Fin. | AA7: Phy. | AB7: Fin.
A8: I | B8: ACCESS
B9: SSA
A10: 1 | B10: Opening of New Schools
A11: 1.01 | B11: New Primary School
A12: 1.02 | B12: Upgradation of PS to UPS
A13: 1.03 | B13: Composite Schools
A14: 1.04 | B14: Residential schools for specific category of children
A15: 1.05 | B15: Residential Hostel | P15: 1 | R15: =+P15 -> 1 | AA15: =+Y15 -> 0
A16: 1.06 | B16: Integration of Class V with primary schools
A17: 1.07 | B17: Integration of Class VIII with upper primary schools
A18: 2 | B18: Residential Schools for specific category of children
A19: A | B19: 50 children
B20: Non-recurring (one time grant) | G20: =+E20/C20 ->  | H20: =+F20/D20 ->  | I20: =+C20-E20 -> 0 | J20: =+D20-F20 -> 0
A21: 2.01 | B21: Furniture/ Equipment (including kitchen) | G21: =+E21/C21 ->  | I21: =+C21-E21 -> 0 | J21: 0 | O21: 2 | Q21: =+P21*O21 -> 0 | R21: =+P21+M21+K21 -> 0 | S21: =+Q21+N21+L21 -> 0 | X21: 2 | Z21: =+Y21*X21 -> 0 | AA21: =+Y21+V21+T21 -> 0 | AB21: =+Z21+W21+U21 -> 0
A22: 2.02 | B22: TLM and equipment including library books | I22: 0 | J22: 0 | O22: 3 | Q22: =+P22*O22 -> 0 | R22: =+P22+M22+K22 -> 0 | S22: 0 | X22: 3 | Z22: =+Y22*X22 -> 0 | AA22: =+Y22+V22+T22 -> 0 | AB22: 0
A23: 2.03 | B23: Bedding (new) | I23: 0 | J23: 0 | O23: 0.375 | Q23: 0 | R23: 0 | S23: 0 | X23: 0.375 | Z23: 0 | AA23: 0 | AB23: 0
A24: 2.04 | B24: Replacement of bedding (once in 3 years) | I24: 0 | J24: 0 | Q24: 0 | R24: 0 | S24: 0 | Z24: 0 | AA24: 0 | AB24: 0
B25: Sub Total (Non Recurring) | I25: 0 | J25: 0 | Q25: 0 | R25: 0 | S25: 0 | Z25: 0 | AA25: 0 | AB25: 0
B26: Recurring (50 children) | I26: 0 | J26: 0 | Q26: 0 | R26: 0 | S26: 0 | Z26: 0 | AA26: 0 | AB26: 0
A27: 2.05 | B27: Maintenance per child Per month @ Rs.1500/- | I27: 0 | J27: 0 | O27: 9 | Q27: 0 | R27: 0 | S27: 0 | X27: 9 | Z27: 0 | AA27: 0 | AB27: 0
A28: 2.06 | B28: Stipend per child per month @ Rs.100/- | I28: 0 | J28: 0 | O28: 0.6 | Q28: 0 | R28: 0 | S28: 0 | X28: 0.6 | Z28: 0 | AA28: 0 | AB28: 0
A29: 2.07 | B29: Supplementary TLM, Stationery and other educational material @Rs.1000/- per child per annum | I29: 0 | J29: 0 | O29: 0.5 | Q29: 0 | R29: 0 | S29: 0 | X29: 0.5 | Z29: 0 | AA29: 0 | AB29: 0
A30: 2.08 | B30: Salaries | I30: 0 | J30: 0 | Q30: 0 | R30: 0 | S30: 0 | Z30: 0 | AA30: 0 | AB30: 0
A31: (a) | B31: 1 Warden @ Rs.25000/- per month | I31: 0 | J31: 0 | O31: 3 | Q31: 0 | R31: 0 | S31: 0 | X31: 3 | Z31: 0 | AA31: 0 | AB31: 0
A32: (b) | B32: 4 Fulltime teachers as per RTE Norms @ Rs. 20,000/- per month per teacher | I32: 0 | J32: 0 | O32: 9.6 | Q32: 0 | R32: 0 | S32: 0 | X32: 9.6 | Z32: 0 | AA32: 0 | AB32: 0
A33: (c) | B33: 2 Urdu Teachers (only for Blocks with muslim population above 20% and select urban areas) @ Rs.12,000/- per month per teacher. | I33: 0 | J33: 0 | O33: 2.88 | Q33: 0 | R33: 0 | S33: 0 | X33: 2.88 | Z33: 0 | AA33: 0 | AB33: 0
A34: (d) | B34: 3 Part time teachers @ Rs.5,000/- per month per teacher | I34: 0 | J34: 0 | O34: 1.5 | Q34: 0 | R34: 0 | S34: 0 | X34: 1.5 | Z34: 0 | AA34: 0 | AB34: 0
A35: (e) | B35: 1 Full time Accountant @ Rs. 10,000/- per month | I35: 0 | J35: 0 | O35: 1.2 | Q35: 0 | R35: 0 | S35: 0 | X35: 1.2 | Z35: 0 | AA35: 0 | AB35: 0
A36: (f) | B36: 2 Support staff - (Accountant/Assistant, Peon, Chowkidar) @ Rs. 5,000/- per month per staff | I36: 0 | J36: 0 | O36: 1.2 | Q36: 0 | R36: 0 | S36: 0 | X36: 1.2 | Z36: 0 | AA36: 0 | AB36: 0
A37: (g) | B37: 1 Head Cook @ Rs. 6,000/- per month and upto 2 Asstt. Cooks @ Rs. 4,500/- per month per cook | I37: 0 | J37: 0 | O37: 1.8 | Q37: 0 | R37: 0 | S37: 0 | X37: 1.8 | Z37: 0 | AA37: 0 | AB37: 0
A38: 2.09 | B38: Specific Skill training @ Rs.1000/- per annum per child | I38: 0 | J38: 0 | O38: 0.5 | Q38: 0 | R38: 0 | S38: 0 | X38: 0.5 | Z38: 0 | AA38: 0 | AB38: 0
A39: 2.1 | B39: Electricity / water charges @ Rs. 1000/- per annum per child | I39: 0 | J39: 0 | O39: 0.5 | Q39: 0 | R39: 0 | S39: 0 | X39: 0.5 | Z39: 0 | AA39: 0 | AB39: 0
A40: =+A39+0.01 -> 2.11 | B40: Medical care/contingencies @ Rs.1250/- per annum per child | I40: 0 | J40: 0 | O40: 0.625 | Q40: 0 | R40: 0 | S40: 0 | X40: 0.625 | Z40: 0 | AA40: 0 | AB40: 0
A41: =+A40+0.01 -> 2.12 | B41: Maintenance @ Rs. 750/- per child per annum | I41: 0 | J41: 0 | O41: 0.375 | Q41: 0 | R41: 0 | S41: 0 | X41: 0.375 | Z41: 0 | AA41: 0 | AB41: 0
A42: 2.13 | B42: Miscellaneous @ Rs. 750/- per child per annum | I42: 0 | J42: 0 | O42: 0.375 | Q42: 0 | R42: 0 | S42: 0 | X42: 0.375 | Z42: 0 | AA42: 0 | AB42: 0
A43: 2.14 | B43: Preparatory camps @ Rs. 300/- per child per annum | I43: 0 | J43: 0 | O43: 0.15 | Q43: 0 | R43: 0 | S43: 0 | X43: 0.15 | Z43: 0 | AA43: 0 | AB43: 0
A44: 2.15 | B44: P.T.A / school functions @ Rs. 300/- per child per annum | I44: 0 | J44: 0 | O44: 0.15 | Q44: 0 | R44: 0 | S44: 0 | X44: 0.15 | Z44: 0 | AA44: 0 | AB44: 0
A45: 2.16 | B45: Provision of Rent @ Rs. 10,000/- per child per annum | I45: 0 | J45: 0 | Q45: 0 | R45: 0 | S45: 0 | Z45: 0 | AA45: 0 | AB45: 0
A46: 2.17 | B46: Capacity Building @ Rs. 500/- per child per annum | I46: 0 | J46: 0 | O46: 0.25 | Q46: 0 | R46: 0 | S46: 0 | X46: 0.25 | Z46: 0 | AA46: 0 | AB46: 0
A47: 2.18 | B47: Physical / Self Defence Training @ Rs.200/- per child per annum | I47: 0 | J47: 0 | O47: 0.1 | Q47: 0 | R47: 0 | S47: 0 | X47: 0.1 | Z47: 0 | AA47: 0 | AB47: 0
B48: Sub Total (Recurring) | I48: 0 | J48: 0 | Q48: 0 | R48: 0 | S48: 0 | Z48: 0 | AA48: 0 | AB48: 0
B49: Total (Non Recurring + Recurring) | I49: 0 | J49: 0 | Q49: 0 | R49: 0 | S49: 0 | Z49: 0 | AA49: 0 | AB49: 0
A50: B | B50: 100 children | I50: 0 | J50: 0 | Q50: 0 | R50: 0 | S50: 0 | Z50: 0 | AA50: 0 | AB50: 0
B51: Non-recurring (one time grant) | I51: 0 | J51: 0 | Q51: 0 | R51: 0 | S51: 0 | Z51: 0 | AA51: 0 | AB51: 0
A52: 2.19 | B52: Furniture / Equipment (including kitchen equipment) | I52: 0 | J52: 0 | O52: 3 | Q52: 0 | R52: 0 | S52: 0 | X52: 3 | Z52: 0 | AA52: 0 | AB52: 0
A53: =+A52+0.01 -> 2.2 | B53: TLM and equipment including library books (New) | I53: 0 | J53: 0 | O53: 3.5 | Q53: 0 | R53: 0 | S53: 0 | X53: 3.5 | Z53: 0 | AA53: 0 | AB53: 0
A54: 2.21 | B54: Beds for Boys | I54: 0 | J54: 0 | O54: 0.04 | P54: 0 | Q54: 0 | R54: 0 | S54: 0 | X54: 0.04 | Z54: 0 | AA54: 0 | AB54: 0
A55: 2.22 | B55: Replacement of bedding (once in 3 years) | I55: 0 | J55: 0 | O55: 0.0075 | P55: =P58 -> 0 | Q55: 0 | R55: 0 | S55: 0 | X55: 0.0075 | Y55: =Y58 -> 0 | Z55: 0 | AA55: 0 | AB55: 0
B56: Sub Total Non-recurring | C56: =SUM(C52:C55) -> 0 | D56: =SUM(D52:D55) -> 0 | E56: 0 | F56: 0 | I56: =SUM(I52:I55) -> 0 | J56: 0 | K56: 0 | L56: 0 | M56: 0 | N56: 0 | O56: 6.5475 | P56: 0 | Q56: 0 | R56: 0 | S56: 0 | T56: 0 | U56: 0 | V56: 0 | W56: 0 | X56: 6.5475 | Y56: 0 | Z56: 0 | AA56: 0 | AB56: 0
B57: Recurring | I57: 0 | J57: 0 | Q57: 0 | R57: 0 | S57: 0 | Z57: =+Y57*X57 -> 0 | AA57: =+Y57+V57+T57 -> 0 | AB57: 0
A58: 2.23 | B58: Maintenance per child per month @ Rs. 1500/- | C58: 0 | D58: 0 | E58: =+C58 -> 0 | F58: =+D58*0.98 -> 0 | I58: 0 | J58: 0 | O58: 0.18 | P58: 0 | Q58: 0 | R58: 0 | S58: 0 | X58: 0.18 | Y58: =+P58 -> 0 | Z58: 0 | AA58: 0 | AB58: 0
A59: =+A58+0.01 -> 2.24 | B59: Stipend per child per month @ Rs.100/- | C59: 0 | D59: 0 | E59: =+C59 -> 0 | F59: =+D59*0.98 -> 0 | G59: =+E59/C59 ->  | I59: 0 | J59: 0 | O59: 0.012 | P59: 0 | Q59: 0 | R59: 0 | S59: 0 | X59: 0.012 | Y59: 0 | Z59: 0 | AA59: 0 | AB59: 0
A60: 2.25 | B60: Supplementary TLM, Stationery and other educational material per child @1000/- per annum | C60: 0 | D60: 0 | E60: 0 | F60: =+D60*0.95 -> 0 | I60: 0 | J60: 0 | O60: 0.01 | P60: 0 | Q60: 0 | R60: 0 | S60: 0 | X60: 0.01 | Y60: 0 | Z60: 0 | AA60: 0 | AB60: 0
A61: 2.26 | B61: Salaries | I61: 0 | J61: 0 | Q61: 0 | R61: 0 | S61: 0 | Y61: 0 | Z61: 0 | AA61: 0 | AB61: 0
A62: (a) | B62: 1 Warden @ Rs. 25,000/- per month | C62: 0 | D62: 0 | E62: =+C62 -> 0 | F62: =+D62*0.8 -> 0 | I62: 0 | J62: 0 | O62: 3 | P62: 0 | Q62: 0 | R62: 0 | S62: 0 | X62: 3 | Y62: 0 | Z62: 0 | AA62: 0 | AB62: 0 | AC62: =0.25*1*12 -> 3
A63: (b) | B63: 1 head teacher @ Rs. 25,000/- per month in case the enrollment exceeds 100 | I63: 0 | J63: 0 | O63: 3 | Q63: 0 | R63: 0 | S63: 0 | X63: 3 | Y63: 0 | Z63: 0 | AA63: 0 | AB63: 0
A64: (c) | B64: 4 - 5 Full time teachers as per RTE norms @ Rs. 20,000/- per month per teacher | I64: 0 | J64: 0 | O64: 9.6 | Q64: 0 | R64: 0 | S64: 0 | X64: 9.6 | Y64: 0 | Z64: 0 | AA64: 0 | AB64: 0
A65: (d) | B65: 2 Urdu Teachers (only for blocks with muslim population above 20% and select urban areas), if required @ Rs. 12,000/- per month per teacher | I65: 0 | J65: 0 | O65: 2.88 | Q65: 0 | R65: 0 | S65: 0 | X65: 2.88 | Y65: 0 | Z65: 0 | AA65: 0 | AB65: 0
A66: (e) | B66: 3 part time teachers @ Rs. 5,000/- per month per teacher | C66: 0 | D66: 0 | E66: =+C66 -> 0 | F66: =+D66*0.85 -> 0 | I66: 0 | J66: 0 | O66: 1.8 | P66: 0 | Q66: 0 | R66: 0 | S66: 0 | X66: 1.8 | Y66: 0 | Z66: 0 | AA66: 0 | AB66: 0
A67: (f) | B67: 1 Full time Accountant @ Rs. 10,000/- per month | C67: 0 | D67: 0 | E67: =+C67 -> 0 | F67: =+D67*0.72 -> 0 | I67: 0 | J67: 0 | O67: 1.2 | P67: 0 | Q67: 0 | R67: 0 | S67: 0 | X67: 1.2 | Y67: 0 | Z67: 0 | AA67: 0 | AB67: 0
A68: (g) | B68: 2 Support Staff – (Accountant/ Assistant, Peon, Chowkidar) @ Rs. 5,000/- per month per staff | C68: 0 | D68: 0 | E68: 0 | F68: =+D68*0.96 -> 0 | I68: 0 | J68: 0 | O68: 1.2 | P68: 0 | Q68: 0 | R68: 0 | S68: 0 | X68: 1.2 | Y68: 0 | Z68: 0 | AA68: 0 | AB68: 0
A69: (h) | B69: 1 Head cook @ Rs. 6,000/- per month and upto 2 Asstt. Cooks @ Rs. 4,500/- per month per cook | C69: 0 | D69: 0 | E69: 0 | F69: =+D69*0.96 -> 0 | I69: 0 | J69: 0 | O69: 1.8 | P69: 0 | Q69: 0 | R69: 0 | S69: 0 | X69: 1.8 | Y69: 0 | Z69: 0 | AA69: 0 | AB69: 0
A70: 2.27 | B70: Specific skill training per child @ Rs.1000/- per annum | C70: 0 | D70: 0 | E70: 0 | F70: =+D70*0.9 -> 0 | I70: 0 | J70: 0 | O70: 0.01 | P70: 0 | Q70: 0 | R70: 0 | S70: 0 | X70: 0.01 | Y70: 0 | Z70: 0 | AA70: 0 | AB70: 0
A71: 2.28 | B71: Electricity / water charges per child @Rs.1000/- per annum | C71: 0 | D71: 0 | E71: 0 | F71: =+D71 -> 0 | I71: 0 | J71: 0 | O71: 0.01 | P71: 0 | Q71: 0 | R71: 0 | S71: 0 | X71: 0.01 | Y71: 0 | Z71: 0 | AA71: 0 | AB71: 0
A72: 2.29 | B72: Medical care/contingencies @ Rs.1250/- per child per annum | C72: 0 | D72: 0 | E72: 0 | F72: 0 | I72: 0 | J72: 0 | O72: 0.0125 | P72: 0 | Q72: 0 | R72: 0 | S72: 0 | X72: 0.0125 | Y72: 0 | Z72: 0 | AA72: 0 | AB72: 0
A73: 2.3 | B73: Maintenance @ Rs.750/- per child per annum | C73: 0 | D73: 0 | E73: 0 | F73: 0 | I73: 0 | J73: 0 | O73: 0.0075 | P73: 0 | Q73: 0 | R73: 0 | S73: 0 | X73: 0.0075 | Y73: 0 | Z73: 0 | AA73: 0 | AB73: 0
A74: 2.31 | B74: Miscellaneous @ Rs.750/- per child per annum | C74: 0 | D74: 0 | E74: 0 | F74: 0 | I74: 0 | J74: 0 | O74: 0.0075 | P74: 0 | Q74: 0 | R74: 0 | S74: 0 | X74: 0.0075 | Y74: 0 | Z74: 0 | AA74: 0 | AB74: 0
A75: 2.32 | B75: Preparatory camps @ Rs.200/- per child per annum | C75: 0 | D75: 0 | E75: 0 | F75: =+D75*0.8 -> 0 | I75: 0 | J75: 0 | O75: 0.003 | P75: 0 | Q75: 0 | R75: 0 | S75: 0 | X75: 0.003 | Y75: 0 | Z75: 0 | AA75: 0 | AB75: 0
A76: 2.33 | B76: P.T.A / school functions @ Rs.200/- per child per annum | C76: 0 | D76: 0 | E76: 0 | F76: =+D76*0.8 -> 0 | I76: 0 | J76: 0 | O76: 0.003 | P76: 0 | Q76: 0 | R76: 0 | S76: 0 | X76: 0.003 | Y76: 0 | Z76: 0 | AA76: 0 | AB76: 0
A77: 2.34 | B77: Provision of Rent @ Rs. 6000/- per child per annum | I77: 0 | J77: 0 | O77: 0 | Q77: 0 | R77: 0 | S77: 0 | X77: 0 | Y77: 0 | Z77: 0 | AA77: 0 | AB77: 0
A78: 2.35 | B78: Capacity Building @ Rs.500/- per child per annum | C78: 0 | D78: 0 | E78: =+C78 -> 0 | F78: =+D78*0.61 -> 0 | I78: 0 | J78: 0 | O78: 0.005 | P78: 0 | Q78: 0 | R78: 0 | S78: 0 | X78: 0.005 | Y78: 0 | Z78: 0 | AA78: 0 | AB78: 0
A79: 2.36 | B79: Physical / Self Defence training @ Rs. 200/- per child per annum. | F79: =+D79*0.61 -> 0 | I79: 0 | J79: 0 | O79: 0.002 | P79: 0 | Q79: 0 | R79: 0 | S79: 0 | X79: 0.002 | Y79: 0 | Z79: 0 | AA79: 0 | AB79: 0
B80: Sub Total (Recurring) | C80: =+C58 -> 0 | D80: =SUM(D58:D79) -> 0 | E80: =+E58 -> 0 | F80: 0 | G80: =+E80/C80 ->  | I80: =SUM(I58:I79) -> 0 | J80: 0 | K80: 0 | L80: 0 | M80: 0 | N80: 0 | O80: 24.7425 | P80: =+P58 -> 0 | Q80: =SUM(Q58:Q79) -> 0 | R80: =+R58 -> 0 | S80: 0 | T80: 0 | U80: 0 | V80: 0 | W80: 0 | X80: 24.7425 | Y80: =+Y58 -> 0 | Z80: =SUM(Z58:Z79) -> 0 | AA80: =+AA58 -> 0 | AB80: =SUM(AB58:AB79) -> 0
B81: Total (Recurring + Non Recurring) | C81: =+C80+C56 -> 0 | D81: =+D80+D56 -> 0 | E81: 0 | F81: 0 | I81: =+I80+I56 -> 0 | J81: 0 | K81: 0 | L81: 0 | M81: 0 | N81: 0 | O81: 31.29 | P81: =P80 -> 0 | Q81: =+Q80+Q56 -> 0 | R81: =R80 -> 0 | S81: 0 | T81: 0 | U81: 0 | V81: 0 | W81: 0 | X81: 31.29 | Y81: =Y80 -> 0 | Z81: =+Z80+Z56 -> 0 | AA81: =AA80 -> 0 | AB81: =+AB80+AB56 -> 0
B82: Total (A + B) Residential Boys School | C82: =+C81+C49 -> 0 | D82: =+D81+D49 -> 0 | E82: 0 | F82: 0 | I82: =+I81+I49 -> 0 | J82: 0 | K82: 0 | L82: 0 | M82: 0 | N82: 0 | O82: 31.29 | P82: 0 | Q82: 0 | R82: 0 | S82: =+S81+S49 -> 0 | T82: =+T81+T49 -> 0 | U82: 0 | V82: 0 | W82: 0 | X82: 31.29 | Y82: 0 | Z82: 0 | AA82: 0 | AB82: =+AB81+AB49 -> 0
A83: 3 | B83: Residential Hostel for specific category of children
A84: (A) | B84: 50 children | I84: 0 | J84: 0 | Q84: 0 | R84: 0 | S84: 0 | Z84: =+Y84*X84 -> 0 | AA84: =+Y84+V84+T84 -> 0 | AB84: 0
B85: Non-recurring (one time grant) | G85: =+E85/C85 ->  | I85: =+C85-E85 -> 0 | J85: 0 | Q85: 0 | R85: 0 | S85: 0 | Z85: 0 | AA85: 0 | AB85: 0
A86: 3.01 | B86: Furniture/ Equipment (including kitchen) | I86: 0 | J86: 0 | O86: 2 | Q86: =+P86*O86 -> 0 | R86: =+P86+M86+K86 -> 0 | S86: 0 | X86: 2 | Z86: 0 | AA86: 0 | AB86: 0
A87: =+A86+0.01 -> 3.02 | B87: TLM and equipment including library books | I87: 0 | J87: 0 | O87: 3 | Q87: 0 | R87: 0 | S87: 0 | X87: 3 | Z87: 0 | AA87: 0 | AB87: 0
A88: 3.03 | B88: Bedding (new) | I88: 0 | J88: 0 | O88: 0.375 | Q88: 0 | R88: 0 | S88: 0 | X88: 0.375 | Z88: 0 | AA88: 0 | AB88: 0
A89: 3.04 | B89: Replacement of bedding (once in 3 years) | I89: 0 | J89: 0 | Q89: 0 | R89: 0 | S89: 0 | Z89: 0 | AA89: 0 | AB89: 0
B90: Sub Total (Non Recurring) | C90: =SUM(C86:C89) -> 0 | D90: =SUM(D86:D89) -> 0 | E90: 0 | F90: 0 | I90: =SUM(I86:I89) -> 0 | J90: 0 | K90: 0 | L90: 0 | M90: 0 | N90: 0 | O90: 5.375 | P90: 0 | Q90: 0 | R90: 0 | S90: 0 | T90: 0 | U90: 0 | V90: 0 | W90: 0 | X90: 5.375 | Y90: 0 | Z90: 0 | AA90: 0 | AB90: 0
B91: Recurring (50 children) | I91: 0 | J91: 0 | Q91: 0 | R91: 0 | S91: 0 | Z91: =+Y91*X91 -> 0 | AA91: =+Y91+V91+T91 -> 0 | AB91: 0
A92: 3.05 | B92: Maintenance per child Per month @ Rs.1500/- | I92: 0 | J92: 0 | O92: 9 | Q92: 0 | R92: 0 | S92: 0 | X92: 9 | Z92: 0 | AA92: 0 | AB92: 0
A93: =+A92+0.01 -> 3.06 | B93: Stipend per child per month @ Rs.100/- | I93: 0 | J93: 0 | O93: 0.6 | Q93: 0 | R93: 0 | S93: 0 | X93: 0.6 | Z93: 0 | AA93: 0 | AB93: 0
A94: 3.07 | B94: Supplementary TLM, Stationery and other educational material @Rs.1000/- per child per annum | I94: 0 | J94: 0 | O94: 0.5 | Q94: 0 | R94: 0 | S94: 0 | X94: 0.5 | Z94: 0 | AA94: 0 | AB94: 0
B95: Salaries | I95: 0 | J95: 0 | Q95: 0 | R95: 0 | S95: 0 | Z95: 0 | AA95: 0 | AB95: 0
A96: (a) | B96: 1 Warden @ Rs.25000/- per month | I96: 0 | J96: 0 | O96: 3 | Q96: 0 | R96: 0 | S96: 0 | X96: 3 | Z96: 0 | AA96: 0 | AB96: 0
A97: (b) | B97: 4 Fulltime teachers as per RTE Norms @ Rs. 20,000/- per month per teacher | I97: 0 | J97: 0 | O97: 9.6 | Q97: 0 | R97: 0 | S97: 0 | X97: 9.6 | Z97: 0 | AA97: 0 | AB97: 0
A98: (c) | B98: 2 Urdu Teachers (only for Blocks with muslim population above 20% and select urban areas) @ Rs.12,000/- per month per teacher. | I98: 0 | J98: 0 | O98: 2.88 | Q98: 0 | R98: 0 | S98: 0 | X98: 2.88 | Z98: 0 | AA98: 0 | AB98: 0
A99: (d) | B99: 3 Part time teachers @ Rs.5,000/- per month per teacher | I99: 0 | J99: 0 | O99: 1.5 | Q99: 0 | R99: 0 | S99: 0 | X99: 1.5 | Z99: 0 | AA99: 0 | AB99: 0
A100: (e) | B100: 1 Full time Accountant @ Rs. 10,000/- per month | I100: 0 | J100: 0 | O100: 1.2 | Q100: 0 | R100: 0 | S100: 0 | X100: 1.2 | Z100: 0 | AA100: 0 | AB100: 0
A101: (f) | B101: 2 Support staff - (Accountant/Assistant, Peon, Chowkidar) @ Rs. 5,000/- per month per staff | I101: 0 | J101: 0 | O101: 1.2 | Q101: 0 | R101: 0 | S101: 0 | X101: 1.2 | Z101: 0 | AA101: 0 | AB101: 0
A102: (g) | B102: 1 Head Cook @ Rs. 6,000/- per month and upto 2 Asstt. Cooks @ Rs. 4,500/- per month per cook | I102: 0 | J102: 0 | O102: 1.8 | Q102: 0 | R102: 0 | S102: 0 | X102: 1.8 | Z102: 0 | AA102: 0 | AB102: 0
A103: 3.08 | B103: Specific Skill training @ Rs.1000/- per annum per child | I103: 0 | J103: 0 | O103: 0.5 | Q103: 0 | R103: 0 | S103: 0 | X103: 0.5 | Z103: 0 | AA103: 0 | AB103: 0
A104: =+A103+0.01 -> 3.09 | B104: Electricity / water charges @ Rs. 1000/- per annum per child | I104: 0 | J104: 0 | O104: 0.5 | Q104: 0 | R104: 0 | S104: 0 | X104: 0.5 | Z104: 0 | AA104: 0 | AB104: 0
A105: 3.1 | B105: Medical care/contingencies @ Rs.1250/- per annum per child | I105: 0 | J105: 0 | O105: 0.625 | Q105: 0 | R105: 0 | S105: 0 | X105: 0.625 | Z105: 0 | AA105: 0 | AB105: 0
A106: 3.11 | B106: Maintenance @ Rs. 750/- per child per annum | I106: 0 | J106: 0 | O106: 0.375 | Q106: 0 | R106: 0 | S106: 0 | X106: 0.375 | Z106: 0 | AA106: 0 | AB106: 0
A107: 3.12 | B107: Miscellaneous @ Rs. 750/- per child per annum | I107: 0 | J107: 0 | O107: 0.375 | Q107: 0 | R107: 0 | S107: 0 | X107: 0.375 | Z107: 0 | AA107: 0 | AB107: 0
A108: 3.13 | B108: Preparatory camps @ Rs. 300/- per child per annum | I108: 0 | J108: 0 | O108: 0.15 | Q108: 0 | R108: 0 | S108: 0 | X108: 0.15 | Z108: 0 | AA108: 0 | AB108: 0
A109: 3.14 | B109: P.T.A / school functions @ Rs. 300/- per child per annum | I109: 0 | J109: 0 | O109: 0.15 | Q109: 0 | R109: 0 | S109: 0 | X109: 0.15 | Z109: 0 | AA109: 0 | AB109: 0
A110: 3.15 | B110: Provision of Rent @ Rs. 10,000/- per child per annum | I110: 0 | J110: 0 | Q110: 0 | R110: 0 | S110: 0 | Z110: 0 | AA110: 0 | AB110: 0
A111: 3.16 | B111: Capacity Building @ Rs. 500/- per child per annum | I111: 0 | J111: 0 | O111: 0.25 | Q111: 0 | R111: 0 | S111: 0 | X111: 0.25 | Z111: 0 | AA111: 0 | AB111: 0
A112: 3.17 | B112: Physical / Self Defence Training @ Rs.200/- per child per annum | I112: 0 | J112: 0 | O112: 0.1 | Q112: 0 | R112: 0 | S112: 0 | X112: 0.1 | Z112: 0 | AA112: 0 | AB112: 0
B113: Sub Total (Recurring) | C113: =SUM(C92:C112) -> 0 | D113: =SUM(D92:D112) -> 0 | E113: 0 | F113: 0 | I113: =SUM(I92:I112) -> 0 | J113: 0 | K113: 0 | L113: 0 | M113: 0 | N113: 0 | O113: 34.305 | P113: 0 | Q113: 0 | R113: 0 | S113: 0 | T113: 0 | U113: 0 | V113: 0 | W113: 0 | X113: 34.305 | Y113: 0 | Z113: 0 | AA113: 0 | AB113: 0
B114: Total (Non Recurring + Recurring) | C114: =+C113+C90 -> 0 | D114: =+D113+D90 -> 0 | E114: 0 | F114: 0 | I114: =+I113+I90 -> 0 | J114: 0 | K114: 0 | L114: 0 | M114: 0 | N114: 0 | O114: 39.68 | P114: 0 | Q114: 0 | R114: 0 | S114: 0 | T114: 0 | U114: 0 | V114: 0 | W114: 0 | X114: 39.68 | Y114: 0 | Z114: 0 | AA114: 0 | AB114: 0
A115: (B) | B115: 100 Children | I115: 0 | J115: 0 | Q115: 0 | R115: 0 | S115: 0 | Z115: =+Y115*X115 -> 0 | AA115: =+Y115+V115+T115 -> 0 | AB115: 0
B116: Non-recurring (one time grant) | I116: 0 | J116: 0 | Q116: 0 | R116: 0 | S116: 0 | Z116: 0 | AA116: 0 | AB116: 0
A117: 3.18 | B117: Furniture / Equipment (including kitchen equipment) | I117: 0 | J117: 0 | O117: 3 | Q117: 0 | R117: 0 | S117: 0 | X117: 3 | Z117: 0 | AA117: 0 | AB117: 0
A118: =+A117+0.01 -> 3.19 | B118: TLM and equipment including library books (New) | I118: 0 | J118: 0 | O118: 3.5 | Q118: 0 | R118: 0 | S118: 0 | X118: 3.5 | Z118: 0 | AA118: 0 | AB118: 0
A119: 3.2 | B119: Beds for Boys | I119: 0 | J119: 0 | O119: 0.04 | P119: 100 | Q119: 4 | R119: 100 | S119: 4 | X119: 0.04 | Z119: 0 | AA119: 0 | AB119: 0
A120: 3.21 | B120: Replacement of bedding (once in 3 years) | I120: 0 | J120: 0 | O120: 0.0075 | P120: =P123 -> 100 | Q120: 0.75 | R120: 100 | S120: 0.75 | X120: 0.0075 | Y120: =P120 -> 100 | Z120: 0.75 | AA120: 100 | AB120: 0.75
B121: Sub Total Non-recurring | C121: =SUM(C117:C120) -> 0 | D121: =SUM(D117:D120) -> 0 | E121: 0 | F121: 0 | I121: =SUM(I117:I120) -> 0 | J121: 0 | K121: 0 | L121: 0 | M121: 0 | N121: 0 | O121: 6.5475 | P121: 200 | Q121: 4.75 | R121: 200 | S121: 4.75 | T121: 0 | U121: 0 | V121: 0 | W121: 0 | X121: 6.5475 | Y121: 100 | Z121: 0.75 | AA121: 100 | AB121: 0.75
B122: Recurring | I122: 0 | J122: 0 | Q122: 0 | R122: 0 | S122: 0 | Z122: =+Y122*X122 -> 0 | AA122: =+Y122+V122+T122 -> 0 | AB122: 0
A123: 3.22 | B123: Maintenance per child per month @ Rs. 1500/- | C123: 0 | D123: 0 | E123: =+C123 -> 0 | F123: =+D123*0.98 -> 0 | I123: 0 | J123: 0 | O123: 0.18 | P123: 100 | Q123: 18 | R123: 100 | S123: 18 | X123: 0.18 | Y123: =P123 -> 100 | Z123: 18 | AA123: 100 | AB123: 18 | AF123: 250
A124: =+A123+0.01 -> 3.23 | B124: Stipend per child per month @ Rs.100/- | C124: 0 | D124: 0 | E124: =+C124 -> 0 | F124: =+D124*0.98 -> 0 | I124: 0 | J124: 0 | O124: 0.012 | P124: 100 | Q124: 1.2 | R124: 100 | S124: 1.2 | X124: 0.012 | Y124: =P124 -> 100 | Z124: 1.2 | AA124: 100 | AB124: 1.2
A125: 3.24 | B125: Supplementary TLM, Stationery and other educational material per child @1000/- per annum | C125: 0 | D125: 0 | E125: 0 | F125: =+D125*0.95 -> 0 | I125: 0 | J125: 0 | O125: 0.01 | P125: 100 | Q125: 1 | R125: 100 | S125: 1 | X125: 0.01 | Y125: 100 | Z125: 1 | AA125: 100 | AB125: 1
B126: Salaries | I126: 0 | J126: 0 | Q126: 0 | R126: 0 | S126: 0 | Y126: 0 | Z126: 0 | AA126: 0 | AB126: 0
A127: (a) | B127: 1 Warden @ Rs. 25,000/- per month | C127: 0 | D127: 0 | E127: =+C127 -> 0 | F127: =+D127*0.8 -> 0 | I127: 0 | J127: 0 | O127: 3 | P127: 1 | Q127: 3 | R127: 1 | S127: 3 | X127: 3 | Y127: 1 | Z127: 3 | AA127: 1 | AB127: 3
A128: (b) | B128: 1 head teacher @ Rs. 25,000/- per month in case the enrollment exceeds 100 | I128: 0 | J128: 0 | O128: 3 | Q128: 0 | R128: 0 | S128: 0 | X128: 3 | Y128: 0 | Z128: 0 | AA128: 0 | AB128: 0
A129: (c) | B129: 4 - 5 Full time teachers as per RTE norms @ Rs. 20,000/- per month per teacher | I129: 0 | J129: 0 | O129: 9.6 | Q129: 0 | R129: 0 | S129: 0 | X129: 9.6 | Y129: 0 | Z129: 0 | AA129: 0 | AB129: 0
A130: (d) | B130: 2 Urdu Teachers (only for blocks with muslim population above 20% and select urban areas), if required @ Rs. 12,000/- per month per teacher | I130: 0 | J130: 0 | O130: 2.88 | Q130: 0 | R130: 0 | S130: 0 | X130: 2.88 | Y130: 0 | Z130: 0 | AA130: 0 | AB130: 0
A131: (e) | B131: 3 part time teachers @ Rs. 5,000/- per month per teacher | C131: 0 | D131: 0 | E131: =+C131 -> 0 | F131: =+D131*0.85 -> 0 | I131: 0 | J131: 0 | O131: 1.8 | P131: 1 | Q131: 1.8 | R131: 1 | S131: 1.8 | X131: 1.8 | Y131: 1 | Z131: 1.8 | AA131: 1 | AB131: 1.8
A132: (f) | B132: 1 Full time Accountant @ Rs. 10,000/- per month | C132: 0 | D132: 0 | E132: =+C132 -> 0 | F132: =+D132*0.72 -> 0 | I132: 0 | J132: 0 | O132: 1.2 | P132: 1 | Q132: 1.2 | R132: 1 | S132: 1.2 | X132: 1.2 | Y132: 1 | Z132: 1.2 | AA132: 1 | AB132: 1.2
A133: 3.25 | B133: 2 Support Staff – (Accountant/ Assistant, Peon, Chowkidar) @ Rs. 5,000/- per month per staff | C133: 0 | D133: 0 | E133: 0 | F133: =+D133*0.96 -> 0 | I133: 0 | J133: 0 | O133: 1.2 | P133: 1 | Q133: 1.2 | R133: 1 | S133: 1.2 | X133: 1.2 | Y133: 1 | Z133: 1.2 | AA133: 1 | AB133: 1.2
A134: =+A133+0.01 -> 3.26 | B134: 1 Head cook @ Rs. 6,000/- per month and upto 2 Asstt. Cooks @ Rs. 4,500/- per month per cook | C134: 0 | D134: 0 | E134: 0 | F134: =+D134*0.96 -> 0 | I134: 0 | J134: 0 | O134: 1.8 | P134: 1 | Q134: 1.8 | R134: 1 | S134: 1.8 | X134: 1.8 | Y134: 1 | Z134: 1.8 | AA134: 1 | AB134: 1.8
A135: 3.27 | B135: Specific skill training per child @ Rs.1000/- per annum | C135: 0 | D135: 0 | E135: 0 | F135: =+D135*0.9 -> 0 | I135: 0 | J135: 0 | O135: 0.01 | P135: 100 | Q135: 1 | R135: 100 | S135: 1 | X135: 0.01 | Y135: 100 | Z135: 1 | AA135: 100 | AB135: 1
A136: 3.28 | B136: Electricity / water charges per child @Rs.1000/- per annum | C136: 0 | D136: 0 | E136: 0 | F136: =+D136 -> 0 | I136: 0 | J136: 0 | O136: 0.01 | P136: 100 | Q136: 1 | R136: 100 | S136: 1 | X136: 0.01 | Y136: 100 | Z136: 1 | AA136: 100 | AB136: 1
A137: 3.29 | B137: Medical care/contingencies @ Rs.1250/- per child per annum | C137: 0 | D137: 0 | E137: 0 | F137: 0 | I137: 0 | J137: 0 | O137: 0.0125 | P137: 100 | Q137: 1.25 | R137: 100 | S137: 1.25 | X137: 0.0125 | Y137: 100 | Z137: 1.25 | AA137: 100 | AB137: 1.25
A138: 3.3 | B138: Maintenance @ Rs.750/- per child per annum | C138: 0 | D138: 0 | E138: 0 | F138: 0 | I138: 0 | J138: 0 | O138: 0.0075 | P138: 100 | Q138: 0.75 | R138: 100 | S138: 0.75 | X138: 0.0075 | Y138: 100 | Z138: 0.75 | AA138: 100 | AB138: 0.75
A139: 3.31 | B139: Miscellaneous @ Rs.750/- per child per annum | C139: 0 | D139: 0 | E139: 0 | F139: 0 | I139: 0 | J139: 0 | O139: 0.0075 | P139: 100 | Q139: 0.75 | R139: 100 | S139: 0.75 | X139: 0.0075 | Y139: 100 | Z139: 0.75 | AA139: 100 | AB139: 0.75
A140: 3.32 | B140: Preparatory camps @ Rs.200/- per child per annum | C140: 0 | D140: 0 | E140: 0 | F140: =+D140*0.8 -> 0 | I140: 0 | J140: 0 | O140: 0.003 | P140: 100 | Q140: 0.3 | R140: 100 | S140: 0.3 | X140: 0.003 | Y140: 100 | Z140: 0.3 | AA140: 100 | AB140: 0.3
A141: 3.33 | B141: P.T.A / school functions @ Rs.200/- per child per annum | C141: 0 | D141: 0 | E141: 0 | F141: =+D141*0.8 -> 0 | I141: 0 | J141: 0 | O141: 0.003 | P141: 100 | Q141: 0.3 | R141: 100 | S141: 0.3 | X141: 0.003 | Y141: 100 | Z141: 0.3 | AA141: 100 | AB141: 0.3
A142: 3.34 | B142: Provision of Rent @ Rs. 6000/- per child per annum | I142: 0 | J142: 0 | O142: 0 | Q142: 0 | R142: 0 | S142: 0 | X142: 0 | Y142: 0 | Z142: 0 | AA142: 0 | AB142: 0
A143: 3.35 | B143: Capacity Building @ Rs.500/- per child per annum | C143: 0 | D143: 0 | E143: =+C143 -> 0 | F143: =+D143*0.61 -> 0 | I143: 0 | J143: 0 | O143: 0.005 | P143: 100 | Q143: 0.5 | R143: 100 | S143: 0.5 | X143: 0.005 | Y143: 100 | Z143: 0.5 | AA143: 100 | AB143: 0.5
A144: 3.36 | B144: Physical / Self Defence training @ Rs. 200/- per child per annum. | F144: =+D144*0.61 -> 0 | I144: 0 | J144: 0 | O144: 0.002 | P144: 100 | Q144: 0.2 | R144: 100 | S144: 0.2 | X144: 0.002 | Y144: 100 | Z144: 0.2 | AA144: 100 | AB144: 0.2
B145: Sub Total (Recurring) | C145: =+C123 -> 0 | D145: =SUM(D123:D144) -> 0 | E145: =+E123 -> 0 | F145: 0 | I145: =SUM(I123:I144) -> 0 | J145: 0 | K145: 0 | L145: 0 | M145: 0 | N145: 0 | O145: 24.7425 | P145: =+P123 -> 100 | Q145: 35.25 | R145: =+R123 -> 100 | S145: 35.25 | T145: 0 | U145: 0 | V145: 0 | W145: 0 | X145: 24.7425 | Y145: =+Y123 -> 100 | Z145: =SUM(Z123:Z144) -> 35.25 | AA145: =+AA123 -> 100 | AB145: =SUM(AB123:AB144) -> 35.25
B146: Total (Recurring + Non Recurring) | C146: =+C145+C121 -> 0 | D146: =+D145+D121 -> 0 | E146: 0 | F146: 0 | I146: =+I145+I121 -> 0 | J146: 0 | K146: 0 | L146: 0 | M146: 0 | N146: 0 | O146: 31.29 | P146: =P145 -> 100 | Q146: 40 | R146: =R145 -> 100 | S146: 40 | T146: 0 | U146: 0 | V146: 0 | W146: 0 | X146: 31.29 | Y146: =Y145 -> 100 | Z146: =+Z145+Z121 -> 36 | AA146: =AA145 -> 100 | AB146: =+AB145+AB121 -> 36
B147: Total (A + B) Residential Boys Hostels | C147: =+C146+C82 -> 0 | D147: =+D146+D82 -> 0 | E147: =+E146+E82 -> 0 | F147: =+F146+F82 -> 0 | I147: =+I146+I82 -> 0 | J147: =+J146+J82 -> 0 | K147: 0 | L147: =+L146+L114 -> 0 | M147: 0 | N147: 0 | O147: 70.97 | P147: 100 | Q147: =+Q146+Q82 -> 40 | R147: 100 | S147: =+S146+S82 -> 40 | T147: =+T146+T82 -> 0 | U147: =+U146+U114 -> 0 | V147: =+V146+V82 -> 0 | W147: =+W146+W114 -> 0 | X147: 70.97 | Y147: 100 | Z147: =+Z146+Z82 -> 36 | AA147: =+AA146+AA114 -> 100 | AB147: =+AB146+AB82 -> 36
A148: 4 | B148: Girls Hostel | I148: 0 | J148: 0 | Q148: 0 | R148: 0 | S148: 0 | Z148: =+Y148*X148 -> 0 | AA148: =+Y148+V148+T148 -> 0 | AB148: 0
A149: (A) | B149: 50 children Girls Hostels | C149: 7 | E149: =+C149 -> 7 | G149: =+E149/C149 -> 1 | I149: =+C149-E149 -> 0 | J149: 0 | P149: 0 | Q149: 0 | R149: 7 | S149: 0 | Z149: 0 | AA149: =+C149 -> 7 | AB149: 0 | AC149: Not recommended
B150: Non-recurring (one time grant) | I150: 0 | J150: 0 | Q150: =+P150*O150 -> 0 | R150: =+P150+M150+K150 -> 0 | S150: 0 | Z150: 0 | AA150: =+Y150+V150+T150 -> 0 | AB150: 0
A151: 4.01 | B151: Furniture/ Equipment (including kitchen) | I151: 0 | J151: 0 | O151: 2 | Q151: 0 | R151: 0 | S151: 0 | X151: 2 | Z151: 0 | AA151: 0 | AB151: 0
A152: =+A151+0.01 -> 4.02 | B152: TLM and equipment including library books | I152: 0 | J152: 0 | O152: 3 | Q152: 0 | R152: 0 | S152: 0 | X152: 3 | Z152: 0 | AA152: 0 | AB152: 0
A153: 4.03 | B153: Beds for Girls | I153: 0 | J153: 0 | O153: 0.04 | P153: 350 | Q153: 14 | R153: 350 | S153: 14 | X153: 0.04 | Z153: 0 | AA153: 0 | AB153: 0
A154: 4.04 | B154: Replacement of bedding (once in 3 years) | I154: 0 | J154: 0 | O154: 0.0075 | P154: =P157 -> 350 | Q154: 2.625 | R154: 350 | S154: 2.625 | X154: 0.0075 | Y154: =Y157 -> 350 | Z154: 2.625 | AA154: 350 | AB154: 2.625
B155: Sub Total (Non Recurring) | C155: =SUM(C151:C154) -> 0 | D155: =SUM(D151:D154) -> 0 | E155: 0 | F155: 0 | I155: =SUM(I151:I154) -> 0 | J155: 0 | K155: 0 | L155: 0 | M155: 0 | N155: 0 | O155: 5.0475 | P155: 700 | Q155: 16.625 | R155: 700 | S155: 16.625 | T155: 0 | U155: 0 | V155: 0 | W155: 0 | X155: 5.0475 | Y155: 350 | Z155: 2.625 | AA155: 350 | AB155: 2.625
B156: Recurring (50 children) | I156: 0 | J156: 0 | Q156: 0 | R156: 0 | S156: 0 | Z156: =+Y156*X156 -> 0 | AA156: =+Y156+V156+T156 -> 0 | AB156: 0
A157: 4.05 | B157: Maintenance per child Per month @ Rs.1500/- | C157: 350 | D157: 63 | E157: =+C157 -> 350 | F157: =+D157*0.98 -> 61.74 | G157: 1 | H157: 0.98 | I157: 0 | J157: 1.26 | O157: 0.18 | P157: 350 | Q157: 63 | R157: 350 | S157: 63 | X157: 0.18 | Y157: =C157 -> 350 | Z157: 63 | AA157: 350 | AB157: 63
A158: =+A157+0.01 -> 4.06 | B158: Stipend per child per month @ Rs.100/- | C158: 350 | D158: 4.2 | E158: =+C158 -> 350 | F158: =+D158*0.98 -> 4.116 | G158: 1 | H158: 0.98 | I158: 0 | J158: 0.084 | O158: 0.012 | P158: 350 | Q158: 4.2 | R158: 350 | S158: 4.2 | X158: 0.012 | Y158: =C158 -> 350 | Z158: 4.2 | AA158: 350 | AB158: 4.2
A159: 4.07 | B159: Supplementary TLM, Stationery and other educational material @Rs.1000/- per child per annum | C159: 350 | D159: 3.5 | E159: 350 | F159: =+D159*0.95 -> 3.325 | G159: 1 | H159: 0.95 | I159: 0 | J159: 0.175 | O159: 0.01 | P159: 350 | Q159: 3.5 | R159: 350 | S159: 3.5 | X159: 0.01 | Y159: 350 | Z159: 3.5 | AA159: 350 | AB159: 3.5
B160: Salaries | C160: 0 | D160: 0 | I160: 0 | J160: 0 | P160: 0 | Q160: 0 | R160: 0 | S160: 0 | Y160: 0 | Z160: 0 | AA160: 0 | AB160: 0
A161: (a) | B161: 1 Warden @ Rs.25000/- per month | C161: 7 | D161: 16.8 | E161: =+C161 -> 7 | F161: =+D161*0.77 -> 12.936 | G161: 1 | H161: 0.77 | I161: 0 | J161: 3.864 | O161: 3 | P161: 7 | Q161: 21 | R161: 7 | S161: 21 | X161: 3 | Y161: 7 | Z161: 21 | AA161: 7 | AB161: 21
A162: (b) | B162: 4 Fulltime teachers as per RTE Norms @ Rs. 20,000/- per month per teacher | I162: 0 | J162: 0 | O162: 3 | Q162: 0 | R162: 0 | S162: 0 | X162: 3 | Y162: 0 | Z162: 0 | AA162: 0 | AB162: 0
A163: (c) | B163: 2 Urdu Teachers (only for Blocks with muslim population above 20% and select urban areas) @ Rs.12,000/- per month per teacher. | I163: 0 | J163: 0 | O163: 9.6 | Q163: 0 | R163: 0 | S163: 0 | X163: 9.6 | Y163: 0 | Z163: 0 | AA163: 0 | AB163: 0
A164: (d) | B164: 3 Part time teachers @ Rs.5,000/- per month per teacher | C164: 7 | D164: 10.5 | E164: =+C164 -> 7 | F164: =+D164*0.85 -> 8.925 | G164: 1 | H164: 0.85 | I164: 0 | J164: 1.575 | O164: 1.8 | P164: 7 | Q164: 12.6 | R164: 7 | S164: 12.6 | X164: 1.8 | Y164: 7 | Z164: 12.6 | AA164: 7 | AB164: 12.6
A165: (e) | B165: 1 Full time Accountant @ Rs. 10,000/- per month | C165: 7 | D165: 8.4 | E165: =+C165 -> 7 | F165: =+D165*0.72 -> 6.048 | G165: 1 | H165: 0.72 | I165: 0 | J165: 2.352 | O165: 1.2 | P165: 7 | Q165: 8.4 | R165: 7 | S165: 8.4 | X165: 1.2 | Y165: 7 | Z165: 8.4 | AA165: 7 | AB165: 8.4
A166: (f) | B166: 2 Support staff - (Accountant/Assistant, Peon, Chowkidar) @ Rs. 5,000/- per month per staff | C166: 7 | D166: 8.4 | E166: 7 | F166: =+D166*0.96 -> 8.064 | G166: 1 | H166: 0.96 | I166: 0 | J166: 0.336 | O166: 1.2 | P166: 7 | Q166: 8.4 | R166: 7 | S166: 8.4 | X166: 1.2 | Y166: 7 | Z166: 8.4 | AA166: 7 | AB166: 8.4
A167: (g) | B167: 1 Head Cook @ Rs. 6,000/- per month and upto 2 Asstt. Cooks @ Rs. 4,500/- per month per cook | C167: 7 | D167: 8.82 | E167: 7 | F167: =+D167*0.96 -> 8.4672 | G167: 1 | H167: 0.96 | I167: 0 | J167: 0.3528 | O167: 1.8 | P167: 7 | Q167: 12.6 | R167: 7 | S167: 12.6 | X167: 1.8 | Y167: 7 | Z167: 12.6 | AA167: 7 | AB167: 12.6
A168: 4.08 | B168: Specific Skill training @ Rs.1000/- per annum per child | C168: 350 | D168: 3.5 | E168: 350 | F168: =+D168*0.9 -> 3.15 | G168: 1 | H168: 0.9 | I168: 0 | J168: 0.35 | O168: 0.01 | P168: 350 | Q168: 3.5 | R168: 350 | S168: 3.5 | X168: 0.01 | Y168: 350 | Z168: 3.5 | AA168: 350 | AB168: 3.5
A169: =+A168+0.01 -> 4.09 | B169: Electricity / water charges @ Rs. 1000/- per annum per child | C169: 350 | D169: 3.5 | E169: 350 | F169: =+D169 -> 3.5 | G169: 1 | H169: 1 | I169: 0 | J169: 0 | O169: 0.01 | P169: 350 | Q169: 3.5 | R169: 350 | S169: 3.5 | X169: 0.01 | Y169: 350 | Z169: 3.5 | AA169: 350 | AB169: 3.5
A170: 4.1 | B170: Medical care/contingencies @ Rs.1250/- per annum per child | C170: 350 | D170: 4.375 | E170: 350 | F170: 4.375 | G170: 1 | H170: 1 | I170: 0 | J170: 0 | O170: 0.0125 | P170: 350 | Q170: 4.375 | R170: 350 | S170: 4.375 | X170: 0.0125 | Y170: 350 | Z170: 4.375 | AA170: 350 | AB170: 4.375
A171: 4.11 | B171: Maintenance @ Rs. 750/- per child per annum | C171: 350 | D171: 2.625 | E171: 350 | F171: 2.625 | G171: 1 | H171: 1 | I171: 0 | J171: 0 | O171: 0.0075 | P171: 350 | Q171: 2.625 | R171: 350 | S171: 2.625 | X171: 0.0075 | Y171: 350 | Z171: 2.625 | AA171: 350 | AB171: 2.625
A172: 4.12 | B172: Miscellaneous @ Rs. 750/- per child per annum | C172: 350 | D172: 2.625 | E172: 350 | F172: 2.625 | G172: 1 | H172: 1 | I172: 0 | J172: 0 | O172: 0.0075 | P172: 350 | Q172: 2.625 | R172: 350 | S172: 2.625 | X172: 0.0075 | Y172: 350 | Z172: 2.625 | AA172: 350 | AB172: 2.625
A173: 4.13 | B173: Preparatory camps @ Rs. 300/- per child per annum | C173: 350 | D173: 1.05 | E173: 350 | F173: =+D173*0.8 -> 0.84 | G173: 1 | H173: 0.8 | I173: 0 | J173: 0.21 | O173: 0.003 | P173: 350 | Q173: 1.05 | R173: 350 | S173: 1.05 | X173: 0.003 | Y173: 350 | Z173: 1.05 | AA173: 350 | AB173: 1.05
A174: 4.14 | B174: P.T.A / school functions @ Rs. 300/- per child per annum | C174: 350 | D174: 1.05 | E174: 350 | F174: =+D174*0.8 -> 0.84 | G174: 1 | H174: 0.8 | I174: 0 | J174: 0.21 | O174: 0.003 | P174: 350 | Q174: 1.05 | R174: 350 | S174: 1.05 | X174: 0.003 | Y174: 350 | Z174: 1.05 | AA174: 350 | AB174: 1.05
A175: 4.15 | B175: Provision of Rent @ Rs. 10,000/- per child per annum | I175: 0 | J175: 0 | O175: 0 | Q175: 0 | R175: 0 | S175: 0 | X175: 0 | Y175: 0 | Z175: 0 | AA175: 0 | AB175: 0
A176: 4.16 | B176: Capacity Building @ Rs. 500/- per child per annum | C176: 350 | D176: 1.75 | E176: =+C176 -> 350 | F176: =+D176*0.61 -> 1.0675 | G176: 1 | H176: 0.61 | I176: 0 | J176: 0.6825 | O176: 0.005 | P176: 350 | Q176: 1.75 | R176: 350 | S176: 1.75 | X176: 0.005 | Y176: 350 | Z176: 1.75 | AA176: 350 | AB176: 1.75
A177: 4.17 | B177: Physical / Self Defence Training @ Rs.200/- per child per annum | C177: 350 | D177: 0.7 | E177: 350 | F177: =+D177*0.61 -> 0.427 | G177: 1 | H177: 0.61 | I177: 0 | J177: 0.273 | O177: 0.002 | P177: 350 | Q177: 0.7 | R177: 350 | S177: 0.7 | X177: 0.002 | Y177: 350 | Z177: 0.7 | AA177: 350 | AB177: 0.7
B178: Sub Total (Recurring) | C178: =+C157 -> 350 | D178: =SUM(D157:D177) -> 144.795 | E178: =+E157 -> 350 | F178: 133.0707 | G178: 1 | H178: 0.9190282814 | I178: =SUM(I157:I177) -> 0 | J178: 11.7243 | K178: 0 | L178: 0 | M178: 0 | N178: 0 | O178: 21.8625 | P178: =+P157 -> 350 | Q178: 154.875 | R178: =+R157 -> 350 | S178: 154.875 | T178: 0 | U178: 0 | V178: 0 | W178: 0 | X178: 21.8625 | Y178: =+Y157 -> 350 | Z178: =SUM(Z157:Z177) -> 154.875 | AA178: =+AA157 -> 350 | AB178: =SUM(AB157:AB177) -> 154.875
B179: Total (Non Recurring + Recurring) | C179: =+C178+C155 -> 350 | D179: =+D178+D155 -> 144.795 | E179: 350 | F179: 133.0707 | G179: 1 | H179: 0.9190282814 | I179: =+I178+I155 -> 0 | J179: 11.7243 | K179: 0 | L179: 0 | M179: 0 | N179: 0 | O179: 26.91 | P179: =+P178 -> 350 | Q179: 171.5 | R179: =+R178 -> 350 | S179: =+S178+S155 -> 171.5 | T179: =+T178+T155 -> 0 | U179: 0 | V179: 0 | W179: 0 | X179: 26.91 | Y179: =+Y178 -> 350 | Z179: =+Z178+Z155 -> 157.5 | AA179: =+AA178 -> 350 | AB179: =+AB178+AB155 -> 157.5
A180: (B) | B180: 100 Children Girls Hostels | C180: 4 | E180: =+C180 -> 4 | G180: 1 | I180: 0 | J180: 0 | P180: 0 | Q180: 0 | R180: 4 | S180: 0 | Z180: =+Y180*X180 -> 0 | AA180: =+C180 -> 4 | AB180: =+Z180+W180+U180 -> 0
B181: Non-recurring (one time grant) | I181: 0 | J181: 0 | Q181: 0 | R181: 0 | S181: 0 | Z181: 0 | AA181: =+Y181+V181+T181 -> 0 | AB181: 0
A182: 5.01 | B182: Furniture / Equipment (including kitchen equipment) | I182: 0 | J182: 0 | O182: 3 | Q182: 0 | R182: 0 | S182: 0 | X182: 3 | Z182: 0 | AA182: 0 | AB182: 0
A183: =+A182+0.01 -> 5.02 | B183: TLM and equipment including library books (New) | I183: 0 | J183: 0 | O183: 3.5 | Q183: 0 | R183: 0 | S183: 0 | X183: 3.5 | Z183: 0 | AA183: 0 | AB183: 0
A184: 5.03 | B184: Beds for Girls | I184: 0 | J184: 0 | O184: 0.04 | P184: 400 | Q184: 16 | R184: 400 | S184: 16 | X184: 0.04 | Z184: 0 | AA184: 0 | AB184: 0
A185: 5.04 | B185: Replacement of bedding (once in 3 years) | I185: 0 | J185: 0 | O185: 0.0075 | P185: =P188 -> 400 | Q185: 3 | R185: 400 | S185: 3 | X185: 0.0075 | Y185: =Y188 -> 400 | Z185: 3 | AA185: 400 | AB185: 3
B186: Sub Total Non-recurring | C186: =SUM(C182:C185) -> 0 | D186: =SUM(D182:D185) -> 0 | E186: 0 | F186: 0 | I186: =SUM(I182:I185) -> 0 | J186: 0 | K186: 0 | L186: 0 | M186: 0 | N186: 0 | O186: 6.5475 | P186: 800 | Q186: 19 | R186: 800 | S186: 19 | T186: 0 | U186: 0 | V186: 0 | W186: 0 | X186: 6.5475 | Y186: 400 | Z186: 3 | AA186: 400 | AB186: 3
B187: Recurring | I187: 0 | J187: 0 | Q187: 0 | R187: 0 | S187: 0 | Z187: =+Y187*X187 -> 0 | AA187: =+Y187+V187+T187 -> 0 | AB187: 0
A188: 5.05 | B188: Maintenance per child per month @ Rs. 1500/- | C188: 400 | D188: 72 | E188: =+C188 -> 400 | F188: =+D188*0.98 -> 70.56 | G188: 1 | H188: 0.98 | I188: 0 | J188: 1.44 | O188: 0.18 | P188: 400 | Q188: 72 | R188: 400 | S188: 72 | X188: 0.18 | Y188: 400 | Z188: 72 | AA188: 400 | AB188: 72
A189: =+A188+0.01 -> 5.06 | B189: Stipend per child per month @ Rs.100/- | C189: 400 | D189: 4.8 | E189: =+C189 -> 400 | F189: =+D189*0.98 -> 4.704 | G189: 1 | H189: 0.98 | I189: 0 | J189: 0.096 | O189: 0.012 | P189: 400 | Q189: 4.8 | R189: 400 | S189: 4.8 | X189: 0.012 | Y189: 400 | Z189: 4.8 | AA189: 400 | AB189: 4.8
A190: 5.07 | B190: Supplementary TLM, Stationery and other educational material per child @1000/- per annum | C190: 400 | D190: 4 | E190: 400 | F190: =+D190*0.95 -> 3.8 | G190: 1 | H190: 0.95 | I190: 0 | J190: 0.2 | O190: 0.01 | P190: 400 | Q190: 4 | R190: 400 | S190: 4 | X190: 0.01 | Y190: 400 | Z190: 4 | AA190: 400 | AB190: 4
B191: Salaries | C191: 0 | D191: 0 | I191: 0 | J191: 0 | P191: 0 | Y191: 0
A192: (a) | B192: 1 Warden @ Rs. 25,000/- per month | C192: 4 | D192: 9.6 | E192: =+C192 -> 4 | F192: =+D192*0.78 -> 7.488 | G192: 1 | H192: 0.78 | I192: 0 | J192: 2.112 | O192: 3 | P192: 4 | Q192: =+P192*O192 -> 12 | R192: =+P192+M192+K192 -> 4 | S192: 12 | X192: 3 | Y192: 4 | Z192: =+Y192*X192 -> 12 | AA192: =+Y192+V192+T192 -> 4 | AB192: 12
A193: (b) | B193: 1 head teacher @ Rs. 25,000/- per month in case the enrollment exceeds 100 | I193: 0 | J193: 0 | O193: 3 | Q193: 0 | R193: 0 | S193: 0 | X193: 3 | Z193: 0 | AA193: 0 | AB193: 0
A194: (c) | B194: 4 - 5 Full time teachers as per RTE norms @ Rs. 20,000/- per month per teacher | I194: 0 | J194: 0 | O194: 9.6 | Q194: 0 | R194: 0 | S194: 0 | X194: 9.6 | Z194: 0 | AA194: 0 | AB194: 0
A195: (d) | B195: 2 Urdu Teachers (only for blocks with muslim population above 20% and select urban areas), if required @ Rs. 12,000/- per month per teacher | E195: =+C195 -> 0 | F195: =+D195*0.85 -> 0 | I195: 0 | J195: 0 | O195: 2.88 | Q195: 0 | R195: 0 | S195: 0 | X195: 2.88 | Z195: 0 | AA195: 0 | AB195: 0
A196: (e) | B196: 3 part time teachers @ Rs. 5,000/- per month per teacher | C196: 4 | D196: 6 | E196: =+C196 -> 4 | F196: =+D196*0.72 -> 4.32 | G196: 1 | H196: 0.72 | I196: 0 | J196: 1.68 | O196: 1.8 | P196: 4 | Q196: 7.2 | R196: 4 | S196: 7.2 | X196: 1.8 | Y196: 4 | Z196: 7.2 | AA196: 4 | AB196: 7.2
A197: (f) | B197: 1 Full time Accountant @ Rs. 10,000/- per month | C197: 4 | D197: 4.8 | E197: 4 | F197: =+D197*0.96 -> 4.608 | G197: 1 | H197: 0.96 | I197: 0 | J197: 0.192 | O197: 1.2 | P197: 4 | Q197: 4.8 | R197: 4 | S197: 4.8 | X197: 1.2 | Y197: 4 | Z197: 4.8 | AA197: 4 | AB197: 4.8
A198: 5.08 | B198: 2 Support Staff – (Accountant/ Assistant, Peon, Chowkidar) @ Rs. 5,000/- per month per staff | C198: 4 | D198: 4.8 | E198: 4 | F198: =+D198*0.96 -> 4.608 | G198: 1 | H198: 0.96 | I198: 0 | J198: 0.192 | O198: 1.2 | P198: 4 | Q198: 4.8 | R198: 4 | S198: 4.8 | X198: 1.2 | Y198: 4 | Z198: 4.8 | AA198: 4 | AB198: 4.8
A199: =+A198+0.01 -> 5.09 | B199: 1 Head cook @ Rs. 6,000/- per month and upto 2 Asstt. Cooks @ Rs. 4,500/- per month per cook | C199: 4 | D199: 7.2 | E199: 4 | F199: =+D199*0.9 -> 6.48 | G199: 1 | H199: 0.9 | I199: 0 | J199: 0.72 | O199: 1.8 | P199: 4 | Q199: 7.2 | R199: 4 | S199: 7.2 | X199: 1.8 | Y199: 4 | Z199: 7.2 | AA199: 4 | AB199: 7.2
A200: 5.1 | B200: Specific skill training per child @ Rs.1000/- per annum | C200: 400 | D200: 4 | E200: 400 | F200: =+D200*0.9 -> 3.6 | G200: 1 | H200: 0.9 | I200: 0 | J200: 0.4 | O200: 0.01 | P200: 400 | Q200: 4 | R200: 400 | S200: 4 | X200: 0.01 | Y200: 400 | Z200: 4 | AA200: 400 | AB200: 4
A201: 5.11 | B201: Electricity / water charges per child @Rs.1000/- per annum | C201: 400 | D201: 4 | E201: 400 | F201: =+D201 -> 4 | G201: 1 | H201: 1 | I201: 0 | J201: 0 | O201: 0.01 | P201: 400 | Q201: 4 | R201: 400 | S201: 4 | X201: 0.01 | Y201: 400 | Z201: 4 | AA201: 400 | AB201: 4
A202: 5.12 | B202: Medical care/contingencies @ Rs.1250/- per child per annum | C202: 400 | D202: 5 | E202: 400 | F202: 5 | G202: 1 | H202: 1 | I202: 0 | J202: 0 | O202: 0.0125 | P202: 400 | Q202: 5 | R202: 400 | S202: 5 | X202: 0.0125 | Y202: 400 | Z202: 5 | AA202: 400 | AB202: 5
... 403 more rows

Sheet Bhind
A1: State Summary for AWP&B - 2017-18 , SSA, Madhya Pradesh (Rs in Lakhs)
A3: District : | B3: Bhind
A5: S.No. | B5: Activity | C5: Year 2016-17 | K5: Outlay Proposed for 2017-18 | T5: Outlay Recommended for 2017-18 | AC5: Remarks
C6: Outlay approved by PAB (including spillover) | E6: Expected Achievement till March'2017 | I6: Savings | K6: Spill Over | M6: Deferred laibility of 2016-17 | O6: Fresh | R6: Total | T6: Spill Over | V6: Deferred laibility of 2016-17 | X6: Fresh | AA6: Total
C7: Phy. | D7: Fin | E7: Phy. | F7: Fin. | G7: Phy. (%) | H7: Fin. (%) | I7: Phy. | J7: Fin. | K7: Phy. | L7: Fin. | M7: Phy. | N7: Fin. | O7: Unit Cost | P7: Phy. | Q7: Fin. | R7: Phy. | S7: Fin. | T7: Phy. | U7: Fin. | V7: Phy. | W7: Fin. | X7: Unit Cost | Y7: Phy. | Z7: Fin. | AA7: Phy. | AB7: Fin.
A8: I | B8: ACCESS
B9: SSA
